Workbook

Sheet Emission Factors
A1: Final Emission Factors and their Components
B3: Source Reduction | F3: BASELINE Recycling of Post-Consumer Material | L3: ALTERNATIVE Recycling of Post-Consumer Material | R3: BASELINE Centralized Composting of Post-Consumer Material | X3: ALTERNATIVE Centralized Composting of Post-Consumer Material | AD3: BASELINE Anaerobic Digestion of Post-Consumer Material | AI3: ALTERNATIVE Anaerobic Digestion of Post-Consumer Material | AN3: BASELINE Combustion of Post-Consumer Material | AT3: ALTERNATIVE Combustion of Post-Consumer Material | AZ3: BASELINE Landfilling of Post-Consumer Material | BE3: ALTERNATIVE Landfilling of Post-Consumer Material | BJ3: GHG Emissions of MSW Management Options Compared to Landfilling | BO3: Product Manufacture Using 100% Virgin Inputs | BS3: Product Manufacture Using Current Mix of Virgin and Recycled Inputs | BX3: Product Manufacture Using 100% Recycled Inputs
B4: (tonnes eCO2/tonne) | F4: (tonnes eCO2/tonne) | L4: (tonnes eCO2/tonne) | R4: (tonnes eCO2/tonne) | X4: (tonnes eCO2/tonne) | AD4: (tonnes eCO2/tonne) | AI4: (tonnes eCO2/tonne) | AN4: (tonnes eCO2/tonne) | AT4: (tonnes eCO2/tonne) | AZ4: (tonnes eCO2/tonne) | BE4: (tonnes eCO2/tonne) | BJ4: (tonnes eCO2/tonne) | BO4: (tonnes eCO2/tonne) | BS4: (tonnes eCO2/tonne) | BX4: (tonnes eCO2/tonne)
B5: Manufacturing | C5: Post-Consumer | D5: Forest Carbon Sequestration | E5: Net Emissions | F5: Raw Materials Acquisition | G5: Recycled Input Credit - Process Energy | H5: Recycled Input Credit - Transport Energy | I5: Recycled Input Credit - Process Non-energy | J5: Forest Carbon Sequestration | K5: Net Emissions (Post-Consumer) | L5: Raw Materials Acquisition | M5: Recycled Input Credit - Process Energy | N5: Recycled Input Credit - Transport Energy | O5: Recycled Input Credit - Process Non-energy | P5: Forest Carbon Sequestration | Q5: Net Emissions (Post-Consumer) | R5: Transportation to Compost Facility | S5: Manufacturing | T5: Compost Equipment CO2 | U5: Compost CH4 | V5: Soil Carbon Sequestration | W5: Net Emissions (Post-Consumer) | X5: Transportation to Compost Facility | Y5: Manufacturing | Z5: Compost Equipment CO2 | AA5: Compost CH4 | AB5: Soil Carbon Sequestration | AC5: Net Emissions (Post-Consumer) | AD5: Transportation to Digestion Facility Energy | AE5: Anaerobic Digestion CH4 | AF5: Avoided Utility Emissions | AG5: Soil Carbon Sequestration | AH5: Net Emissions (Post-Consumer) | AI5: Transportation to Digestion Facility Energy | AJ5: Anaerobic Digestion CH4 | AK5: Avoided Utility Emissions | AL5: Soil Carbon Sequestration | AM5: Net Emissions (Post-Consumer) | AN5: Transportation to Combustion Facility Energy | AO5: CO2 from Combustion | AP5: N2O from Combustion | AQ5: Avoided Utility Emissions | AR5: Steel Recovery | AS5: Net Emissions (Post-Consumer) | AT5: Transportation to Combustion Facility Energy | AU5: CO2 from Combustion | AV5: N2O from Combustion | AW5: Avoided Utility Emissions | AX5: Steel Recovery | AY5: Net Emissions (Post-Consumer) | AZ5: Waste Collection and Transportation, Landfill Heavy Equipment, Energy Use at Waste Management Facilities | BA5: Net Landfill CH4 | BB5: Avoided Utility Emissions | BC5: Landfill Carbon Sequestration | BD5: Net Emissions (Post-Consumer) | BE5: Waste Collection and Transportation, Landfill Heavy Equipment, Energy Use at Waste Management Facilities | BF5: Net Landfill CH4 | BG5: Avoided Utility Emissions | BH5: Landfill Carbon Sequestration | BI5: Net Emissions (Post-Consumer) | BJ5: Source Reduction Net Emissions Minus Landfilling Net Emissions | BK5: Recycling Net Emissions Minus Landfilling Net Emissions | BL5: Composting Net Emissions Minus Landfilling Net Emissions | BM5: Anaerobic Digestion Net Emissions Minus Landfilling Net Emissions | BN5: Combustion Net Emissions Minus Landfilling Net Emissions | BO5: Process Energy | BP5: Transportation Energy | BQ5: Process Non-Energy | BR5: Net Emissions | BS5: Percent of Virgin in Current Mix | BT5: Process Energy | BU5: Transportation Energy | BV5: Process Non-Energy | BW5: Net Emissions | BX5: Process Energy | BY5: Transportation Energy | BZ5: Process Non-Energy | CA5: Net Emissions
A6: Newsprint | B6: =IF(CurrentorVirgin="current",-BW6,-BR6) -> -0.9457075165 | C6: 0 | D6: =IF(CurrentorVirgin="Current",-'[1]Forest C'!P4,-'[1]Forest C'!H4) -> -3.055555556 | E6: =B6+C6+D6 -> -4.001263072 | F6: ='[1]Assumptions '!$C$65 -> 0.0006 | G6: =('[1]Assumptions '!C100*'[1]Loss Rates'!D4*(BX6-BO6))+('[1]Assumptions '!D100*'[1]Loss Rates'!D5*(BX7-BO7)) -> -0.2839564344 | H6: =('[1]Assumptions '!C100*'[1]Loss Rates'!D4*(BY6-BP6))+('[1]Assumptions '!D100*'[1]Loss Rates'!D5*(BY7-BP7))+([1]Settings!$H$26) -> -0.01396419992 | I6: =('[1]Assumptions '!C100*'[1]Loss Rates'!D4*(BZ6-BQ6))+('[1]Assumptions '!D100*'[1]Loss Rates'!D5*(BZ7-BQ7)) -> 0 | J6: =IF([1]Settings!$I$12=1,('[1]Assumptions '!C100*-'[1]Forest C'!M4)+'[1]Assumptions '!D100*-'[1]Forest C'!M5,0) -> -2.454920417 | K6: =F6+G6+H6+I6+J6 -> -2.752241051 | L6: ='[1]Assumptions '!$C$65 -> 0.0006 | M6: =('[1]Assumptions '!C100*'[1]Loss Rates'!D4*(BX6-BO6))+('[1]Assumptions '!D100*'[1]Loss Rates'!D5*(BX7-BO7)) -> -0.2839564344 | N6: =('[1]Assumptions '!C100*'[1]Loss Rates'!D4*(BY6-BP6))+('[1]Assumptions '!D100*'[1]Loss Rates'!D5*(BY7-BP7))+([1]Settings!$I$26) -> -0.01396419992 | O6: =('[1]Assumptions '!C100*'[1]Loss Rates'!D4*(BZ6-BQ6))+('[1]Assumptions '!D100*'[1]Loss Rates'!D5*(BZ7-BQ7)) -> 0 | P6: =IF([1]Settings!$I$12=1,('[1]Assumptions '!C100*-'[1]Forest C'!M4)+'[1]Assumptions '!D100*-'[1]Forest C'!M5,0) -> -2.454920417 | Q6: =L6+M6+N6+O6+P6 -> -2.752241051 | R6: NA | S6: NA | T6: NA | U6: NA | V6: NA | W6: NA | X6: NA | Y6: NA | Z6: NA | AA6: NA | AB6: NA | AC6: NA | AD6: =IF(ISBLANK('[1]User Assumptions'!$G$58),[1]Landfill!$J$36,([1]Settings!$H$28+[1]Landfill!$J$36)) -> 0.01 | AE6: ='[1]AD CH4'!Z5 -> 0 | AF6: ='[1]Electricity Offsets'!F127 -> -0.118627782 | AG6: =IF([1]Settings!$I$12=1,-'[1]AD Soil C'!N12,0) -> -0.3853333389 | AH6: =AD6+AE6+AF6+AG6 -> -0.4939611208 | AI6: =IF(ISBLANK('[1]User Assumptions'!$J$58),[1]Landfill!$J$36,([1]Settings!$I$28+[1]Landfill!$J$36)) -> 0.01 | AJ6: ='[1]AD CH4'!Z5 -> 0 | AK6: ='[1]Electricity Offsets'!F127 -> -0.118627782 | AL6: =IF([1]Settings!$I$12=1,-'[1]AD Soil C'!N12,0) -> -0.3853333389 | AM6: =AI6+AJ6+AK6+AL6 -> -0.4939611208 | AN6: =IF(ISBLANK('[1]User Assumptions'!$G$59),[1]Landfill!$J$36,([1]Settings!$H$29+[1]Landfill!$J$36)) -> 0.01 | AO6: ='[1]Comb CO2&N2O'!G6 -> 0 | AP6: ='[1]Comb CO2&N2O'!H6 -> 0.0372 | AQ6: =IF([1]Settings!$B$24=1,'[1]Electricity Offsets'!I26,0) -> -0.1014192609 | AR6: 0 | AS6: =AN6+AO6+AP6+AQ6+AR6 -> -0.0542192609 | AT6: =IF(ISBLANK('[1]User Assumptions'!$J$59),[1]Landfill!$J$36,([1]Settings!$I$29+[1]Landfill!$J$36)) -> 0.01 | AU6: ='[1]Comb CO2&N2O'!G6 -> 0 | AV6: ='[1]Comb CO2&N2O'!H6 -> 0.0372 | AW6: =IF([1]Settings!$D$24=1,'[1]Electricity Offsets'!I26,0) -> -0.1014192609 | AX6: 0 | AY6: =AT6+AU6+AV6+AW6+AX6 -> -0.0542192609 | AZ6: =IF(ISBLANK('[1]User Assumptions'!$G$60),[1]Landfill!$M$36,([1]Settings!$H$30+[1]Landfill!$M$36)) -> 0.01475 | BA6: =[1]Landfill!AC12 -> 0.216216945 | BB6: =IF([1]Settings!$B$13=1,'[1]Electricity Offsets'!L100,IF([1]Settings!$B$6=1,'[1]Electricity Offsets'!K100,0)) -> -0.001251548181 | BC6: =IF([1]Settings!$I$12=1,-[1]Landfill!G36,0) -> -1.4476 | BD6: =AZ6+BA6+BB6+BC6 -> -1.217884603 | BE6: =IF(ISBLANK('[1]User Assumptions'!$J$60),[1]Landfill!$M$36,([1]Settings!$I$30+[1]Landfill!$M$36)) -> 0.01475 | BF6: =[1]Landfill!AC44 -> 0.216216945 | BG6: =IF([1]Settings!$D$13=1,'[1]Electricity Offsets'!L100,IF([1]Settings!$D$6=1,'[1]Electricity Offsets'!K100,0)) -> -0.001251548181 | BH6: =IF([1]Settings!$I$12=1,-[1]Landfill!G36,0) -> -1.4476 | BI6: =BE6+BF6+BG6+BH6 -> -1.217884603 | BJ6: =E6-BD6 -> -2.783378469 | BK6: =K6-BD6 -> -1.534356448 | BL6: NA | BM6: =AH6-BD6 -> 0.7239234824 | BN6: =AS6-BD6 -> 1.163665342 | BO6: ='[1]Energy Data'!T3 -> 0.8937075301 | BP6: ='[1]Energy Data'!AO3 -> 0.05199998632 | BQ6: 0 | BR6: =BO6+BP6+BQ6 -> 0.9457075165 | BS6: ='[1]Mixed Recyc'!K4 -> 0.8056102896 | BT6: =BO6*BS6+(1-BS6)*BX6 -> 0.8240274207 | BU6: =BS6*BP6+(1-BS6)*BY6 -> 0.0484891242 | BV6: =BS6*BQ6+(1-BS6)*BZ6 -> 0 | BW6: =BT6+BU6+BV6 -> 0.8725165449 | BX6: ='[1]Energy Data'!T19 -> 0.5352517801 | BY6: ='[1]Energy Data'!AO19 -> 0.03393904 | BZ6: 0 | CA6: =BX6+BY6+BZ6 -> 0.5691908201
A7: Fine Paper | B7: -1.414714113 | C7: 0 | D7: =IF(CurrentorVirgin="Current",-'[1]Forest C'!P5,-'[1]Forest C'!H5) -> -4.583333333 | E7: =B7+C7+D7 -> -5.998047446 | F7: ='[1]Assumptions '!$C$65 -> 0.0006 | G7: =('[1]Assumptions '!E101*'[1]Loss Rates'!D5*('[1]Energy Data'!T33-'[1]Energy Data'!T17))+('[1]Assumptions '!F101*'[1]Loss Rates'!D6*(BX8-BO8)) -> -0.3586015959 | H7: =('[1]Assumptions '!E101*'[1]Loss Rates'!D5*('[1]Energy Data'!U33-'[1]Energy Data'!U17))+('[1]Assumptions '!F101*'[1]Loss Rates'!D6*(BY8-BP8))+([1]Settings!$H$26) -> -0.002449642271 | I7: =('[1]Assumptions '!F101*'[1]Loss Rates'!D6*(BZ8-BQ8)) -> 0 | J7: =IF([1]Settings!$I$12=1,('[1]Assumptions '!E101*-'[1]Forest C'!M5)+('[1]Assumptions '!F101*-'[1]Forest C'!M6),0) -> -2.84053 | K7: =F7+G7+H7+I7+J7 -> -3.200981238 | L7: ='[1]Assumptions '!$C$65 -> 0.0006 | M7: =('[1]Assumptions '!E101*'[1]Loss Rates'!D5*('[1]Energy Data'!T33-'[1]Energy Data'!T17))+('[1]Assumptions '!F101*'[1]Loss Rates'!D6*(BX8-BO8)) -> -0.3586015959 | N7: =('[1]Assumptions '!E101*'[1]Loss Rates'!D5*('[1]Energy Data'!U33-'[1]Energy Data'!U17))+('[1]Assumptions '!F101*'[1]Loss Rates'!D6*(BY8-BP8))+([1]Settings!$I$26) -> -0.002449642271 | O7: =('[1]Assumptions '!F101*'[1]Loss Rates'!D6*(BZ8-BQ8)) -> 0 | P7: =IF([1]Settings!$I$12=1,('[1]Assumptions '!E101*-'[1]Forest C'!M5)+('[1]Assumptions '!F101*-'[1]Forest C'!M6),0) -> -2.84053 | Q7: =L7+M7+N7+O7+P7 -> -3.200981238 | R7: NA | S7: NA | T7: NA | U7: NA | V7: NA | W7: NA | X7: NA | Y7: NA | Z7: NA | AA7: NA | AB7: NA | AC7: NA | AD7: =IF(ISBLANK('[1]User Assumptions'!$G$58),[1]Landfill!$J$36,([1]Settings!$H$28+[1]Landfill!$J$36)) -> 0.01 | AE7: ='[1]AD CH4'!Z6 -> 0 | AF7: ='[1]Electricity Offsets'!F128 -> -0.3469423556 | AG7: =IF([1]Settings!$I$12=1,-'[1]AD Soil C'!N13,0) -> 0 | AH7: =AD7+AE7+AF7+AG7 -> -0.3369423556 | AI7: =IF(ISBLANK('[1]User Assumptions'!$J$58),[1]Landfill!$J$36,([1]Settings!$I$28+[1]Landfill!$J$36)) -> 0.01 | AJ7: ='[1]AD CH4'!Z6 -> 0 | AK7: ='[1]Electricity Offsets'!F128 -> -0.3469423556 | AL7: =IF([1]Settings!$I$12=1,-'[1]AD Soil C'!N13,0) -> 0 | AM7: =AI7+AJ7+AK7+AL7 -> -0.3369423556 | AN7: =IF(ISBLANK('[1]User Assumptions'!$G$59),[1]Landfill!$J$36,([1]Settings!$H$29+[1]Landfill!$J$36)) -> 0.01 | AO7: ='[1]Comb CO2&N2O'!G7 -> 0 | AP7: ='[1]Comb CO2&N2O'!H7 -> 0.0372 | AQ7: =IF([1]Settings!$B$24=1,'[1]Electricity Offsets'!I27,0) -> -0.0867485502 | AR7: 0 | AS7: =AN7+AO7+AP7+AQ7+AR7 -> -0.0395485502 | AT7: =IF(ISBLANK('[1]User Assumptions'!$J$59),[1]Landfill!$J$36,([1]Settings!$I$29+[1]Landfill!$J$36)) -> 0.01 | AU7: ='[1]Comb CO2&N2O'!G7 -> 0 | AV7: ='[1]Comb CO2&N2O'!H7 -> 0.0372 | AW7: =IF([1]Settings!$D$24=1,'[1]Electricity Offsets'!I27,0) -> -0.0867485502 | AX7: 0 | AY7: =AT7+AU7+AV7+AW7+AX7 -> -0.0395485502 | AZ7: =IF(ISBLANK('[1]User Assumptions'!$G$60),[1]Landfill!$M$36,([1]Settings!$H$30+[1]Landfill!$M$36)) -> 0.01475 | BA7: =[1]Landfill!AC13 -> 1.3443138 | BB7: =IF([1]Settings!$B$13=1,'[1]Electricity Offsets'!L101,IF([1]Settings!$B$6=1,'[1]Electricity Offsets'!K101,0)) -> -0.007781413668 | BC7: =IF([1]Settings!$I$12=1,-[1]Landfill!G37,0) -> -0.1723333333 | BD7: =AZ7+BA7+BB7+BC7 -> 1.178949053 | BE7: =IF(ISBLANK('[1]User Assumptions'!$J$60),[1]Landfill!$M$36,([1]Settings!$I$30+[1]Landfill!$M$36)) -> 0.01475 | BF7: =[1]Landfill!AC45 -> 1.3443138 | BG7: =IF([1]Settings!$D$13=1,'[1]Electricity Offsets'!L101,IF([1]Settings!$D$6=1,'[1]Electricity Offsets'!K101,0)) -> -0.007781413668 | BH7: =IF([1]Settings!$I$12=1,-[1]Landfill!G37,0) -> -0.1723333333 | BI7: =BE7+BF7+BG7+BH7 -> 1.178949053 | BJ7: =E7-BD7 -> -7.176996499 | BK7: -4.379930291 | BL7: NA | BM7: -1.515891409 | BN7: -1.218497603 | BO7: ='[1]Energy Data'!T4 -> 1.362714127 | BP7: ='[1]Energy Data'!AO4 -> 0.05199998632 | BQ7: 0 | BR7: =BO7+BP7+BQ7 -> 1.414714113 | BS7: ='[1]Mixed Recyc'!K5 -> 0.9687701074 | BT7: 1.348005762 | BU7: =BS7*BP7+(1-BS7)*BY7 -> 0.05143594491 | BV7: 0 | BW7: =BT7+BU7+BV7 -> 1.399441707 | BX7: ='[1]Energy Data'!T20 -> 0.8917434024 | BY7: ='[1]Energy Data'!AO20 -> 0.03393904 | BZ7: 0 | CA7: =BX7+BY7+BZ7 -> 0.9256824424
A8: Cardboard | B8: -1.168862906 | C8: 0 | D8: =IF(CurrentorVirgin="Current",-'[1]Forest C'!P6,-'[1]Forest C'!H6) -> -4.583333333 | E8: =B8+C8+D8 -> -5.75219624 | F8: ='[1]Assumptions '!$C$65 -> 0.0006 | G8: =('[1]Assumptions '!F102*'[1]Loss Rates'!D6*(BX8-BO8))+('[1]Assumptions '!D100*'[1]Loss Rates'!D5*(BX7-BO7)) -> -0.2038365082 | H8: =('[1]Assumptions '!F102*'[1]Loss Rates'!D6*(BY8-BP8))+('[1]Assumptions '!D100*'[1]Loss Rates'!D5*(BY7-BP7))+([1]Settings!$H$26) -> -0.01089152725 | I8: =('[1]Assumptions '!F102*'[1]Loss Rates'!D6*(BZ8-BQ8))+('[1]Assumptions '!D102*'[1]Loss Rates'!D5*(BZ7-BQ7)) -> 0 | J8: =IF([1]Settings!$I$12=1,('[1]Assumptions '!F102*-'[1]Forest C'!M6)+('[1]Assumptions '!D102*-'[1]Forest C'!M5),0) -> -3.0413075 | K8: =F8+G8+H8+I8+J8 -> -3.255435535 | L8: ='[1]Assumptions '!$C$65 -> 0.0006 | M8: =('[1]Assumptions '!F102*'[1]Loss Rates'!D6*(BX8-BO8))+('[1]Assumptions '!D100*'[1]Loss Rates'!D5*(BX7-BO7)) -> -0.2038365082 | N8: =('[1]Assumptions '!F102*'[1]Loss Rates'!D6*(BY8-BP8))+('[1]Assumptions '!D100*'[1]Loss Rates'!D5*(BY7-BP7))+([1]Settings!$I$26) -> -0.01089152725 | O8: =('[1]Assumptions '!F102*'[1]Loss Rates'!D6*(BZ8-BQ8))+('[1]Assumptions '!D102*'[1]Loss Rates'!D5*(BZ7-BQ7)) -> 0 | P8: =IF([1]Settings!$I$12=1,('[1]Assumptions '!F102*-'[1]Forest C'!M6)+('[1]Assumptions '!D102*-'[1]Forest C'!M5),0) -> -3.0413075 | Q8: =L8+M8+N8+O8+P8 -> -3.255435535 | R8: NA | S8: NA | T8: NA | U8: NA | V8: NA | W8: NA | X8: NA | Y8: NA | Z8: NA | AA8: NA | AB8: NA | AC8: NA | AD8: =IF(ISBLANK('[1]User Assumptions'!$G$58),[1]Landfill!$J$36,([1]Settings!$H$28+[1]Landfill!$J$36)) -> 0.01 | AE8: ='[1]AD CH4'!Z7 -> 0 | AF8: ='[1]Electricity Offsets'!F129 -> -0.2431630039 | AG8: =IF([1]Settings!$I$12=1,-'[1]AD Soil C'!N14,0) -> -0.08352563393 | AH8: =AD8+AE8+AF8+AG8 -> -0.3166886379 | AI8: =IF(ISBLANK('[1]User Assumptions'!$J$58),[1]Landfill!$J$36,([1]Settings!$I$28+[1]Landfill!$J$36)) -> 0.01 | AJ8: ='[1]AD CH4'!Z7 -> 0 | AK8: ='[1]Electricity Offsets'!F129 -> -0.2431630039 | AL8: =IF([1]Settings!$I$12=1,-'[1]AD Soil C'!N14,0) -> -0.08352563393 | AM8: =AI8+AJ8+AK8+AL8 -> -0.3166886379 | AN8: =IF(ISBLANK('[1]User Assumptions'!$G$59),[1]Landfill!$J$36,([1]Settings!$H$29+[1]Landfill!$J$36)) -> 0.01 | AO8: ='[1]Comb CO2&N2O'!G8 -> 0 | AP8: ='[1]Comb CO2&N2O'!H8 -> 0.0372 | AQ8: =IF([1]Settings!$B$24=1,'[1]Electricity Offsets'!I28,0) -> -0.08984853516 | AR8: 0 | AS8: =AN8+AO8+AP8+AQ8+AR8 -> -0.04264853516 | AT8: =IF(ISBLANK('[1]User Assumptions'!$J$59),[1]Landfill!$J$36,([1]Settings!$I$29+[1]Landfill!$J$36)) -> 0.01 | AU8: ='[1]Comb CO2&N2O'!G8 -> 0 | AV8: ='[1]Comb CO2&N2O'!H8 -> 0.0372 | AW8: =IF([1]Settings!$D$24=1,'[1]Electricity Offsets'!I28,0) -> -0.08984853516 | AX8: 0 | AY8: =AT8+AU8+AV8+AW8+AX8 -> -0.04264853516 | AZ8: =IF(ISBLANK('[1]User Assumptions'!$G$60),[1]Landfill!$M$36,([1]Settings!$H$30+[1]Landfill!$M$36)) -> 0.01475 | BA8: =[1]Landfill!AC14 -> 1.18346238 | BB8: =IF([1]Settings!$B$13=1,'[1]Electricity Offsets'!L102,IF([1]Settings!$B$6=1,'[1]Electricity Offsets'!K102,0)) -> -0.006850342784 | BC8: =IF([1]Settings!$I$12=1,-[1]Landfill!G38,0) -> -0.9056666667 | BD8: =AZ8+BA8+BB8+BC8 -> 0.2856953705 | BE8: =IF(ISBLANK('[1]User Assumptions'!$J$60),[1]Landfill!$M$36,([1]Settings!$I$30+[1]Landfill!$M$36)) -> 0.01475 | BF8: =[1]Landfill!AC46 -> 1.18346238 | BG8: =IF([1]Settings!$D$13=1,'[1]Electricity Offsets'!L102,IF([1]Settings!$D$6=1,'[1]Electricity Offsets'!K102,0)) -> -0.006850342784 | BH8: =IF([1]Settings!$I$12=1,-[1]Landfill!G38,0) -> -0.9056666667 | BI8: =BE8+BF8+BG8+BH8 -> 0.2856953705 | BJ8: -6.03789161 | BK8: -3.541130906 | BL8: NA | BM8: -0.6023840084 | BN8: -0.3283439057 | BO8: ='[1]Energy Data'!T5 -> 1.11686292 | BP8: ='[1]Energy Data'!AO5 -> 0.05199998632 | BQ8: 0 | BR8: 1.168862906 | BS8: ='[1]Mixed Recyc'!K6 -> 0.6975898001 | BT8: 1.019129147 | BU8: 0.04653817193 | BV8: 0 | BW8: 1.065667319 | BX8: ='[1]Energy Data'!T21 -> 0.7936801261 | BY8: ='[1]Energy Data'!AO21 -> 0.03393904 | BZ8: 0 | CA8: 0.8276191661
A9: Other Paper | B9: -1.314014139 | C9: 0 | D9: =IF(CurrentorVirgin="Current",-'[1]Forest C'!P7,-'[1]Forest C'!H7) -> -4.583333333 | E9: =B9+C9+D9 -> -5.897347472 | F9: ='[1]Assumptions '!$C$65 -> 0.0006 | G9: =('[1]Assumptions '!F103*'[1]Loss Rates'!D6*(BX8-BO8))+('[1]Assumptions '!D103*'[1]Loss Rates'!D5*(BX7-BO7)) -> -0.2356292161 | H9: =('[1]Assumptions '!F103*'[1]Loss Rates'!D6*(BY8-BP8))+('[1]Assumptions '!D103*'[1]Loss Rates'!D5*(BY7-BP7))+([1]Settings!$H$26) -> -0.01191855393 | I9: =('[1]Assumptions '!F103*'[1]Loss Rates'!D6*(BZ8-BQ8))+('[1]Assumptions '!D103*'[1]Loss Rates'!D5*(BZ7-BQ7)) -> 0 | J9: =IF([1]Settings!$I$12=1,('[1]Assumptions '!D103*-'[1]Forest C'!M5)+('[1]Assumptions '!F103*-'[1]Forest C'!M6),0) -> -3.024576042 | K9: =F9+G9+H9+I9+J9 -> -3.271523812 | L9: ='[1]Assumptions '!$C$65 -> 0.0006 | M9: =('[1]Assumptions '!F103*'[1]Loss Rates'!D6*(BX8-BO8))+('[1]Assumptions '!D103*'[1]Loss Rates'!D5*(BX7-BO7)) -> -0.2356292161 | N9: =('[1]Assumptions '!F103*'[1]Loss Rates'!D6*(BY8-BP8))+('[1]Assumptions '!D103*'[1]Loss Rates'!D5*(BY7-BP7))+([1]Settings!$I$26) -> -0.01191855393 | O9: =('[1]Assumptions '!F103*'[1]Loss Rates'!D6*(BZ8-BQ8))+('[1]Assumptions '!D103*'[1]Loss Rates'!D5*(BZ7-BQ7)) -> 0 | P9: =IF([1]Settings!$I$12=1,('[1]Assumptions '!D103*-'[1]Forest C'!M5)+('[1]Assumptions '!F103*-'[1]Forest C'!M6),0) -> -3.024576042 | Q9: =L9+M9+N9+O9+P9 -> -3.271523812 | R9: NA | S9: NA | T9: NA | U9: NA | V9: NA | W9: NA | X9: NA | Y9: NA | Z9: NA | AA9: NA | AB9: NA | AC9: NA | AD9: =IF(ISBLANK('[1]User Assumptions'!$G$58),[1]Landfill!$J$36,([1]Settings!$H$28+[1]Landfill!$J$36)) -> 0.01 | AE9: ='[1]AD CH4'!Z8 -> 0 | AF9: ='[1]Electricity Offsets'!F130 -> -0.2362443805 | AG9: =IF([1]Settings!$I$12=1,-'[1]AD Soil C'!N15,0) -> -0.008283025035 | AH9: =AD9+AE9+AF9+AG9 -> -0.2345274055 | AI9: =IF(ISBLANK('[1]User Assumptions'!$J$58),[1]Landfill!$J$36,([1]Settings!$I$28+[1]Landfill!$J$36)) -> 0.01 | AJ9: ='[1]AD CH4'!Z8 -> 0 | AK9: ='[1]Electricity Offsets'!F130 -> -0.2362443805 | AL9: =IF([1]Settings!$I$12=1,-'[1]AD Soil C'!N15,0) -> -0.008283025035 | AM9: =AI9+AJ9+AK9+AL9 -> -0.2345274055 | AN9: =IF(ISBLANK('[1]User Assumptions'!$G$59),[1]Landfill!$J$36,([1]Settings!$H$29+[1]Landfill!$J$36)) -> 0.01 | AO9: ='[1]Comb CO2&N2O'!G9 -> 0 | AP9: ='[1]Comb CO2&N2O'!H9 -> 0.0372 | AQ9: =IF([1]Settings!$B$24=1,'[1]Electricity Offsets'!I29,0) -> -0.08742850575 | AR9: 0 | AS9: -0.04022850575 | AT9: =IF(ISBLANK('[1]User Assumptions'!$J$59),[1]Landfill!$J$36,([1]Settings!$I$29+[1]Landfill!$J$36)) -> 0.01 | AU9: ='[1]Comb CO2&N2O'!G9 -> 0 | AV9: ='[1]Comb CO2&N2O'!H9 -> 0.0372 | AW9: =IF([1]Settings!$D$24=1,'[1]Electricity Offsets'!I29,0) -> -0.08742850575 | AX9: 0 | AY9: -0.04022850575 | AZ9: =IF(ISBLANK('[1]User Assumptions'!$G$60),[1]Landfill!$M$36,([1]Settings!$H$30+[1]Landfill!$M$36)) -> 0.01475 | BA9: =[1]Landfill!AC15 -> 1.210968361 | BB9: =IF([1]Settings!$B$13=1,'[1]Electricity Offsets'!L103,IF([1]Settings!$B$6=1,'[1]Electricity Offsets'!K103,0)) -> -0.007009558154 | BC9: =IF([1]Settings!$I$12=1,-[1]Landfill!G39,0) -> -0.49401 | BD9: =AZ9+BA9+BB9+BC9 -> 0.7246988032 | BE9: =IF(ISBLANK('[1]User Assumptions'!$J$60),[1]Landfill!$M$36,([1]Settings!$I$30+[1]Landfill!$M$36)) -> 0.01475 | BF9: =[1]Landfill!AC47 -> 1.210968361 | BG9: =IF([1]Settings!$D$13=1,'[1]Electricity Offsets'!L103,IF([1]Settings!$D$6=1,'[1]Electricity Offsets'!K103,0)) -> -0.007009558154 | BH9: =IF([1]Settings!$I$12=1,-[1]Landfill!G39,0) -> -0.49401 | BI9: =BE9+BF9+BG9+BH9 -> 0.7246988032 | BJ9: -6.622046275 | BK9: -3.996222615 | BL9: NA | BM9: -0.9592262087 | BN9: -0.7649273089 | BO9: ='[1]Energy Data'!T6 -> 1.262014152 | BP9: ='[1]Energy Data'!AO6 -> 0.05199998632 | BQ9: 0 | BR9: 1.314014139 | BS9: ='[1]Mixed Recyc'!K7 -> 0.826148 | BT9: 1.162530435 | BU9: 0.04886005468 | BV9: 0 | BW9: 1.21139049 | BX9: ='[1]Energy Data'!T22 -> 0.6897819238 | BY9: ='[1]Energy Data'!AO22 -> 0.03393904 | BZ9: 0 | CA9: 0.7237209638
A10: Aluminum | B10: -16.65949338 | C10: 0 | D10: NA | E10: =B10+C10 -> -16.65949338 | F10: ='[1]Assumptions '!$C$65 -> 0.0006 | G10: ='[1]Loss Rates'!D8*(BX10-BO10) -> -6.777908214 | H10: ='[1]Loss Rates'!D8*(BY10-BP10)+([1]Settings!$H$26) -> -0.6028572536 | I10: ='[1]Loss Rates'!D8*(BZ10-BQ10) -> -2.268899793 | J10: NA | K10: =F10+G10+H10+I10 -> -9.64906526 | L10: ='[1]Assumptions '!$C$65 -> 0.0006 | M10: ='[1]Loss Rates'!D8*(BX10-BO10) -> -6.777908214 | N10: ='[1]Loss Rates'!D8*(BY10-BP10)+([1]Settings!$I$26) -> -0.6028572536 | O10: ='[1]Loss Rates'!D8*(BZ10-BQ10) -> -2.268899793 | P10: NA | Q10: =L10+M10+N10+O10 -> -9.64906526 | R10: NA | S10: NA | T10: NA | U10: NA | V10: NA | W10: NA | X10: NA | Y10: NA | Z10: NA | AA10: NA | AB10: NA | AC10: NA | AD10: =IF(ISBLANK('[1]User Assumptions'!$G$58),[1]Landfill!$J$36,([1]Settings!$H$28+[1]Landfill!$J$36)) -> 0.01 | AE10: ='[1]AD CH4'!Z9 -> 0 | AF10: ='[1]Electricity Offsets'!F131 -> NA | AG10: =IF([1]Settings!$I$12=1,-'[1]AD Soil C'!N16,0) -> 0 | AH10: =AD10+AE10+AG10 -> 0.01 | AI10: =IF(ISBLANK('[1]User Assumptions'!$J$58),[1]Landfill!$J$36,([1]Settings!$I$28+[1]Landfill!$J$36)) -> 0.01 | AJ10: ='[1]AD CH4'!Z9 -> 0 | AK10: ='[1]Electricity Offsets'!F131 -> NA | AL10: =IF([1]Settings!$I$12=1,-'[1]AD Soil C'!N16,0) -> 0 | AM10: =AI10+AJ10+AL10 -> 0.01 | AN10: =IF(ISBLANK('[1]User Assumptions'!$G$59),[1]Landfill!$J$36,([1]Settings!$H$29+[1]Landfill!$J$36)) -> 0.01 | AO10: ='[1]Comb CO2&N2O'!G10 -> 0 | AP10: ='[1]Comb CO2&N2O'!H10 -> 0 | AQ10: =IF([1]Settings!$B$24=1,'[1]Electricity Offsets'!I30,0) -> 0.004273641812 | AR10: 0 | AS10: 0.01427364181 | AT10: =IF(ISBLANK('[1]User Assumptions'!$J$59),[1]Landfill!$J$36,([1]Settings!$I$29+[1]Landfill!$J$36)) -> 0.01 | AU10: ='[1]Comb CO2&N2O'!G10 -> 0 | AV10: ='[1]Comb CO2&N2O'!H10 -> 0 | AW10: =IF([1]Settings!$D$24=1,'[1]Electricity Offsets'!I30,0) -> 0.004273641812 | AX10: 0 | AY10: 0.01427364181 | AZ10: =IF(ISBLANK('[1]User Assumptions'!$G$60),[1]Landfill!$M$36,([1]Settings!$H$30+[1]Landfill!$M$36)) -> 0.01475 | BA10: =[1]Landfill!AC16 -> 0 | BB10: =IF([1]Settings!$B$13=1,'[1]Electricity Offsets'!L104,IF([1]Settings!$B$6=1,'[1]Electricity Offsets'!K104,0)) -> NA | BC10: =IF([1]Settings!$I$12=1,-[1]Landfill!G40,0) -> 0 | BD10: =AZ10+BA10+BC10 -> 0.01475 | BE10: =IF(ISBLANK('[1]User Assumptions'!$J$60),[1]Landfill!$M$36,([1]Settings!$I$30+[1]Landfill!$M$36)) -> 0.01475 | BF10: =[1]Landfill!AC48 -> 0 | BG10: =IF([1]Settings!$D$13=1,'[1]Electricity Offsets'!L104,IF([1]Settings!$D$6=1,'[1]Electricity Offsets'!K104,0)) -> NA | BH10: =IF([1]Settings!$I$12=1,-[1]Landfill!G40,0) -> 0 | BI10: =BE10+BF10+BH10 -> 0.01475 | BJ10: -16.67424338 | BK10: -9.66381526 | BL10: NA | BM10: -0.00475 | BN10: -0.0004763581885 | BO10: ='[1]Energy Data'!T7 -> 12.99963993 | BP10: ='[1]Energy Data'!AO7 -> 0.9646219358 | BQ10: =[1]Aluminum!D83 -> 2.695231513 | BR10: 16.65949338 | BS10: ='[1]Mixed Recyc'!K8 -> 0.476371553 | BT10: 8.783648923 | BU10: 0.5896329744 | BV10: 1.283931622 | BW10: 10.65721352 | BX10: ='[1]Energy Data'!T23 -> 4.948146486 | BY10: ='[1]Energy Data'!AO23 -> 0.2484863562 | BZ10: 0 | CA10: 5.196632842
A11: Steel | B11: -2.199905255 | C11: 0 | D11: NA | E11: -2.199905255 | F11: ='[1]Assumptions '!$C$65 -> 0.0006 | G11: ='[1]Loss Rates'!D9*(BX11-BO11) -> -1.134530839 | H11: ='[1]Loss Rates'!D9*(BY11-BP11)+([1]Settings!$H$26) -> -0.01426814759 | I11: ='[1]Loss Rates'!D9*(BZ11-BQ11) -> -0.03395104 | J11: NA | K11: -1.182150026 | L11: ='[1]Assumptions '!$C$65 -> 0.0006 | M11: ='[1]Loss Rates'!D9*(BX11-BO11) -> -1.134530839 | N11: ='[1]Loss Rates'!D9*(BY11-BP11)+([1]Settings!$I$26) -> -0.01426814759 | O11: ='[1]Loss Rates'!D9*(BZ11-BQ11) -> -0.03395104 | P11: NA | Q11: -1.182150026 | R11: NA | S11: NA | T11: NA | U11: NA | V11: NA | W11: NA | X11: NA | Y11: NA | Z11: NA | AA11: NA | AB11: NA | AC11: NA | AD11: =IF(ISBLANK('[1]User Assumptions'!$G$58),[1]Landfill!$J$36,([1]Settings!$H$28+[1]Landfill!$J$36)) -> 0.01 | AE11: ='[1]AD CH4'!Z9 -> 0 | AF11: ='[1]Electricity Offsets'!F132 -> NA | AG11: =IF([1]Settings!$I$12=1,-'[1]AD Soil C'!N16,0) -> 0 | AH11: 0.01 | AI11: =IF(ISBLANK('[1]User Assumptions'!$J$58),[1]Landfill!$J$36,([1]Settings!$I$28+[1]Landfill!$J$36)) -> 0.01 | AJ11: ='[1]AD CH4'!Z9 -> 0 | AK11: ='[1]Electricity Offsets'!F132 -> NA | AL11: =IF([1]Settings!$I$12=1,-'[1]AD Soil C'!N16,0) -> 0 | AM11: 0.01 | AN11: =IF(ISBLANK('[1]User Assumptions'!$G$59),[1]Landfill!$J$36,([1]Settings!$H$29+[1]Landfill!$J$36)) -> 0.01 | AO11: ='[1]Comb CO2&N2O'!G11 -> 0 | AP11: ='[1]Comb CO2&N2O'!H11 -> 0 | AQ11: =IF([1]Settings!$B$24=1,'[1]Electricity Offsets'!I31,0) -> 0.002678999345 | AR11: =[1]Steel!D6 -> -1.042656323 | AS11: -1.029977324 | AT11: =IF(ISBLANK('[1]User Assumptions'!$J$59),[1]Landfill!$J$36,([1]Settings!$I$29+[1]Landfill!$J$36)) -> 0.01 | AU11: ='[1]Comb CO2&N2O'!G11 -> 0 | AV11: ='[1]Comb CO2&N2O'!H11 -> 0 | AW11: =IF([1]Settings!$D$24=1,'[1]Electricity Offsets'!I31,0) -> 0.002678999345 | AX11: =[1]Steel!D6 -> -1.042656323 | AY11: -1.029977324 | AZ11: =IF(ISBLANK('[1]User Assumptions'!$G$60),[1]Landfill!$M$36,([1]Settings!$H$30+[1]Landfill!$M$36)) -> 0.01475 | BA11: =[1]Landfill!AC17 -> 0 | BB11: =IF([1]Settings!$B$13=1,'[1]Electricity Offsets'!L105,IF([1]Settings!$B$6=1,'[1]Electricity Offsets'!K105,0)) -> NA | BC11: =IF([1]Settings!$I$12=1,-[1]Landfill!G41,0) -> 0 | BD11: =AZ11+BA11+BC11 -> 0.01475 | BE11: =IF(ISBLANK('[1]User Assumptions'!$J$60),[1]Landfill!$M$36,([1]Settings!$I$30+[1]Landfill!$M$36)) -> 0.01475 | BF11: =[1]Landfill!AC49 -> 0 | BG11: =IF([1]Settings!$D$13=1,'[1]Electricity Offsets'!L105,IF([1]Settings!$D$6=1,'[1]Electricity Offsets'!K105,0)) -> NA | BH11: =IF([1]Settings!$I$12=1,-[1]Landfill!G41,0) -> 0 | BI11: =BE11+BF11+BH11 -> 0.01475 | BJ11: -2.214655255 | BK11: -1.196900026 | BL11: NA | BM11: -0.00475 | BN11: -1.044727324 | BO11: ='[1]Energy Data'!T8 -> 2.104929269 | BP11: ='[1]Energy Data'!AO8 -> 0.05199998632 | BQ11: =[1]Steel!D14 -> 0.042976 | BR11: 2.199905255 | BS11: ='[1]Mixed Recyc'!K9 -> 0.8587875 | BT11: 1.902131881 | BU11: 0.04944955494 | BV11: 0.0369072516 | BW11: 1.988488688 | BX11: ='[1]Energy Data'!T24 -> 0.6688142833 | BY11: ='[1]Energy Data'!AO24 -> 0.03393904 | BZ11: 0 | CA11: 0.7027533233
A12: Copper Wire | B12: -6.555219898 | C12: 0 | D12: NA | E12: -6.555219898 | F12: ='[1]Assumptions '!$C$65 -> 0.0006 | G12: ='[1]Loss Rates'!D10*(BX12-[1]Copper!AM5) -> -4.031720325 | H12: ='[1]Loss Rates'!D10*(BY12-[1]Copper!AM9)+([1]Settings!$H$26) -> -0.06405902582 | I12: ='[1]Loss Rates'!D10*(BZ12-BQ12) -> 0 | J12: NA | K12: -4.095179351 | L12: ='[1]Assumptions '!$C$65 -> 0.0006 | M12: ='[1]Loss Rates'!D10*(BX12-[1]Copper!AM5) -> -4.031720325 | N12: ='[1]Loss Rates'!D10*(BY12-[1]Copper!AM9)+([1]Settings!$I$26) -> -0.06405902582 | O12: ='[1]Loss Rates'!D10*(BZ12-BQ12) -> 0 | P12: NA | Q12: -4.095179351 | R12: NA | S12: NA | T12: NA | U12: NA | V12: NA | W12: NA | X12: NA | Y12: NA | Z12: NA | AA12: NA | AB12: NA | AC12: NA | AD12: =IF(ISBLANK('[1]User Assumptions'!$G$58),[1]Landfill!$J$36,([1]Settings!$H$28+[1]Landfill!$J$36)) -> 0.01 | AE12: ='[1]AD CH4'!Z9 -> 0 | AF12: ='[1]Electricity Offsets'!F133 -> NA | AG12: =IF([1]Settings!$I$12=1,-'[1]AD Soil C'!N16,0) -> 0 | AH12: 0.01 | AI12: =IF(ISBLANK('[1]User Assumptions'!$J$58),[1]Landfill!$J$36,([1]Settings!$I$28+[1]Landfill!$J$36)) -> 0.01 | AJ12: ='[1]AD CH4'!Z9 -> 0 | AK12: ='[1]Electricity Offsets'!F133 -> NA | AL12: =IF([1]Settings!$I$12=1,-'[1]AD Soil C'!N16,0) -> 0 | AM12: 0.01 | AN12: =IF(ISBLANK('[1]User Assumptions'!$G$59),[1]Landfill!$J$36,([1]Settings!$H$29+[1]Landfill!$J$36)) -> 0.01 | AO12: ='[1]Comb CO2&N2O'!G12 -> 0 | AP12: ='[1]Comb CO2&N2O'!H12 -> 0 | AQ12: =IF([1]Settings!$B$24=1,'[1]Electricity Offsets'!I32,0) -> 0.003476320578 | AR12: 0 | AS12: 0.01347632058 | AT12: =IF(ISBLANK('[1]User Assumptions'!$J$59),[1]Landfill!$J$36,([1]Settings!$I$29+[1]Landfill!$J$36)) -> 0.01 | AU12: ='[1]Comb CO2&N2O'!G12 -> 0 | AV12: ='[1]Comb CO2&N2O'!H12 -> 0 | AW12: =IF([1]Settings!$D$24=1,'[1]Electricity Offsets'!I32,0) -> 0.003476320578 | AX12: 0 | AY12: 0.01347632058 | AZ12: =IF(ISBLANK('[1]User Assumptions'!$G$60),[1]Landfill!$M$36,([1]Settings!$H$30+[1]Landfill!$M$36)) -> 0.01475 | BA12: =[1]Landfill!AC18 -> 0 | BB12: =IF([1]Settings!$B$13=1,'[1]Electricity Offsets'!L106,IF([1]Settings!$B$6=1,'[1]Electricity Offsets'!K106,0)) -> NA | BC12: =IF([1]Settings!$I$12=1,-[1]Landfill!G42,0) -> 0 | BD12: 0.01475 | BE12: =IF(ISBLANK('[1]User Assumptions'!$J$60),[1]Landfill!$M$36,([1]Settings!$I$30+[1]Landfill!$M$36)) -> 0.01475 | BF12: =[1]Landfill!AC50 -> 0 | BG12: =IF([1]Settings!$D$13=1,'[1]Electricity Offsets'!L106,IF([1]Settings!$D$6=1,'[1]Electricity Offsets'!K106,0)) -> NA | BH12: =IF([1]Settings!$I$12=1,-[1]Landfill!G42,0) -> 0 | BI12: 0.01475 | BJ12: -6.569969898 | BK12: -4.109929351 | BL12: NA | BM12: -0.00475 | BN12: -0.001273679422 | BO12: ='[1]Energy Data'!T9 -> 6.516864101 | BP12: ='[1]Energy Data'!AO9 -> 0.03835579706 | BQ12: 0 | BR12: 6.555219898 | BS12: ='[1]Mixed Recyc'!K10 -> 0.95 | BT12: 6.213044996 | BU12: 0.04332477331 | BV12: 0 | BW12: 6.256369769 | BX12: ='[1]Energy Data'!T25 -> 0.4404820015 | BY12: ='[1]Energy Data'!AO25 -> 0.1377353219 | BZ12: 0 | CA12: 0.5782173235
A13: Glass | B13: -0.4448630761 | C13: 0 | D13: NA | E13: -0.4448630761 | F13: ='[1]Assumptions '!$C$65 -> 0.0006 | G13: ='[1]Loss Rates'!D11*(BX13-BO13) -> -0.1161204183 | H13: ='[1]Loss Rates'!D11*(BY13-BP13)+([1]Settings!$H$26) -> 0.0112035829 | I13: ='[1]Loss Rates'!D11*(BZ13-BQ13) -> 0 | J13: NA | K13: -0.1043168354 | L13: ='[1]Assumptions '!$C$65 -> 0.0006 | M13: ='[1]Loss Rates'!D11*(BX13-BO13) -> -0.1161204183 | N13: ='[1]Loss Rates'!D11*(BY13-BP13)+([1]Settings!$I$26) -> 0.0112035829 | O13: ='[1]Loss Rates'!D11*(BZ13-BQ13) -> 0 | P13: NA | Q13: -0.1043168354 | R13: NA | S13: NA | T13: NA | U13: NA | V13: NA | W13: NA | X13: NA | Y13: NA | Z13: NA | AA13: NA | AB13: NA | AC13: NA | AD13: =IF(ISBLANK('[1]User Assumptions'!$G$58),[1]Landfill!$J$36,([1]Settings!$H$28+[1]Landfill!$J$36)) -> 0.01 | AE13: ='[1]AD CH4'!Z10 -> 0 | AF13: ='[1]Electricity Offsets'!F134 -> NA | AG13: =IF([1]Settings!$I$12=1,-'[1]AD Soil C'!N17,0) -> 0 | AH13: 0.01 | AI13: =IF(ISBLANK('[1]User Assumptions'!$J$58),[1]Landfill!$J$36,([1]Settings!$I$28+[1]Landfill!$J$36)) -> 0.01 | AJ13: ='[1]AD CH4'!Z10 -> 0 | AK13: ='[1]Electricity Offsets'!F134 -> NA | AL13: =IF([1]Settings!$I$12=1,-'[1]AD Soil C'!N17,0) -> 0 | AM13: 0.01 | AN13: =IF(ISBLANK('[1]User Assumptions'!$G$59),[1]Landfill!$J$36,([1]Settings!$H$29+[1]Landfill!$J$36)) -> 0.01 | AO13: ='[1]Comb CO2&N2O'!G13 -> 0 | AP13: ='[1]Comb CO2&N2O'!H13 -> 0 | AQ13: =IF([1]Settings!$B$24=1,'[1]Electricity Offsets'!I33,0) -> 0.002997927838 | AR13: 0 | AS13: 0.01299792784 | AT13: =IF(ISBLANK('[1]User Assumptions'!$J$59),[1]Landfill!$J$36,([1]Settings!$I$29+[1]Landfill!$J$36)) -> 0.01 | AU13: ='[1]Comb CO2&N2O'!G13 -> 0 | AV13: ='[1]Comb CO2&N2O'!H13 -> 0 | AW13: =IF([1]Settings!$D$24=1,'[1]Electricity Offsets'!I33,0) -> 0.002997927838 | AX13: 0 | AY13: 0.01299792784 | AZ13: =IF(ISBLANK('[1]User Assumptions'!$G$60),[1]Landfill!$M$36,([1]Settings!$H$30+[1]Landfill!$M$36)) -> 0.01475 | BA13: =[1]Landfill!AC19 -> 0 | BB13: =IF([1]Settings!$B$13=1,'[1]Electricity Offsets'!L107,IF([1]Settings!$B$6=1,'[1]Electricity Offsets'!K107,0)) -> NA | BC13: =IF([1]Settings!$I$12=1,-[1]Landfill!G43,0) -> 0 | BD13: 0.01475 | BE13: =IF(ISBLANK('[1]User Assumptions'!$J$60),[1]Landfill!$M$36,([1]Settings!$I$30+[1]Landfill!$M$36)) -> 0.01475 | BF13: =[1]Landfill!AC51 -> 0 | BG13: =IF([1]Settings!$D$13=1,'[1]Electricity Offsets'!L107,IF([1]Settings!$D$6=1,'[1]Electricity Offsets'!K107,0)) -> NA | BH13: =IF([1]Settings!$I$12=1,-[1]Landfill!G43,0) -> 0 | BI13: 0.01475 | BJ13: -0.4596130761 | BK13: -0.1190668354 | BL13: NA | BM13: -0.00475 | BN13: -0.001752072162 | BO13: ='[1]Energy Data'!T10 -> 0.4268021298 | BP13: ='[1]Energy Data'!AO10 -> 0.01806094632 | BQ13: 0 | BR13: 0.4448630761 | BS13: ='[1]Mixed Recyc'!K11 -> 0.6953271082 | BT13: =BO13*BS13+(1-BS13)*BX13 -> 0.376662187 | BU13: 0.02289857104 | BV13: =BS13*BQ13+(1-BS13)*BZ13 -> 0 | BW13: 0.399560758 | BX13: ='[1]Energy Data'!T26 -> 0.2622323759 | BY13: ='[1]Energy Data'!AO26 -> 0.03393904 | BZ13: 0 | CA13: 0.2961714159
A14: HDPE | B14: -3.135458174 | C14: 0 | D14: NA | E14: -3.135458174 | F14: ='[1]Assumptions '!$C$65 -> 0.0006 | G14: ='[1]Loss Rates'!D12*(BX14-BO14) -> -2.257894736 | H14: ='[1]Loss Rates'!D12*(BY14-BP14)+([1]Settings!$H$26) -> -0.0154421091 | I14: ='[1]Loss Rates'!D12*(BZ14-BQ14) -> 0 | J14: NA | K14: -2.272736845 | L14: ='[1]Assumptions '!$C$65 -> 0.0006 | M14: ='[1]Loss Rates'!D12*(BX14-BO14) -> -2.257894736 | N14: ='[1]Loss Rates'!D12*(BY14-BP14)+([1]Settings!$I$26) -> -0.0154421091 | O14: ='[1]Loss Rates'!D12*(BZ14-BQ14) -> 0 | P14: NA | Q14: -2.272736845 | R14: NA | S14: NA | T14: NA | U14: NA | V14: NA | W14: NA | X14: NA | Y14: NA | Z14: NA | AA14: NA | AB14: NA | AC14: NA | AD14: =IF(ISBLANK('[1]User Assumptions'!$G$58),[1]Landfill!$J$36,([1]Settings!$H$28+[1]Landfill!$J$36)) -> 0.01 | AE14: ='[1]AD CH4'!Z11 -> 0 | AF14: ='[1]Electricity Offsets'!F135 -> NA | AG14: =IF([1]Settings!$I$12=1,-'[1]AD Soil C'!N18,0) -> 0 | AH14: 0.01 | AI14: =IF(ISBLANK('[1]User Assumptions'!$J$58),[1]Landfill!$J$36,([1]Settings!$I$28+[1]Landfill!$J$36)) -> 0.01 | AJ14: ='[1]AD CH4'!Z11 -> 0 | AK14: ='[1]Electricity Offsets'!F135 -> NA | AL14: =IF([1]Settings!$I$12=1,-'[1]AD Soil C'!N18,0) -> 0 | AM14: 0.01 | AN14: =IF(ISBLANK('[1]User Assumptions'!$G$59),[1]Landfill!$J$36,([1]Settings!$H$29+[1]Landfill!$J$36)) -> 0.01 | AO14: ='[1]Comb CO2&N2O'!G14 -> 3.079846 | AP14: ='[1]Comb CO2&N2O'!H14 -> 0.0372 | AQ14: =IF([1]Settings!$B$24=1,'[1]Electricity Offsets'!I34,0) -> -0.2383926702 | AR14: 0 | AS14: 2.88865333 | AT14: =IF(ISBLANK('[1]User Assumptions'!$J$59),[1]Landfill!$J$36,([1]Settings!$I$29+[1]Landfill!$J$36)) -> 0.01 | AU14: ='[1]Comb CO2&N2O'!G14 -> 3.079846 | AV14: ='[1]Comb CO2&N2O'!H14 -> 0.0372 | AW14: =IF([1]Settings!$D$24=1,'[1]Electricity Offsets'!I34,0) -> -0.2383926702 | AX14: 0 | AY14: 2.88865333 | AZ14: =IF(ISBLANK('[1]User Assumptions'!$G$60),[1]Landfill!$M$36,([1]Settings!$H$30+[1]Landfill!$M$36)) -> 0.01475 | BA14: =[1]Landfill!AC20 -> 0 | BB14: =IF([1]Settings!$B$13=1,'[1]Electricity Offsets'!L108,IF([1]Settings!$B$6=1,'[1]Electricity Offsets'!K108,0)) -> NA | BC14: =IF([1]Settings!$I$12=1,-[1]Landfill!G44,0) -> 0 | BD14: 0.01475 | BE14: =IF(ISBLANK('[1]User Assumptions'!$J$60),[1]Landfill!$M$36,([1]Settings!$I$30+[1]Landfill!$M$36)) -> 0.01475 | BF14: =[1]Landfill!AC52 -> 0 | BG14: =IF([1]Settings!$D$13=1,'[1]Electricity Offsets'!L108,IF([1]Settings!$D$6=1,'[1]Electricity Offsets'!K108,0)) -> NA | BH14: =IF([1]Settings!$I$12=1,-[1]Landfill!G44,0) -> 0 | BI14: 0.01475 | BJ14: -3.150208174 | BK14: -2.287486845 | BL14: NA | BM14: -0.00475 | BN14: 2.87390333 | BO14: ='[1]Energy Data'!T11 -> 3.083458188 | BP14: ='[1]Energy Data'!AO11 -> 0.05199998632 | BQ14: 0 | BR14: 3.135458174 | BS14: ='[1]Mixed Recyc'!K12 -> 0.8510067114 | BT14: =BO14*BS14+(1-BS14)*BX14 -> 2.68999484 | BU14: 0.04930902653 | BV14: =BS14*BQ14+(1-BS14)*BZ14 -> 0 | BW14: 2.739303867 | BX14: ='[1]Energy Data'!T27 -> 0.4426456312 | BY14: ='[1]Energy Data'!AO27 -> 0.03393904 | BZ14: 0 | CA14: 0.4765846712
A15: PET | B15: -4.718968742 | C15: 0 | D15: NA | E15: -4.718968742 | F15: ='[1]Assumptions '!$C$65 -> 0.0006 | G15: ='[1]Loss Rates'!D13*(BX15-BO15) -> -3.611796271 | H15: ='[1]Loss Rates'!D13*(BY15-BP15)+([1]Settings!$H$26) -> -0.0154421091 | I15: ='[1]Loss Rates'!D13*(BZ15-BQ15) -> 0 | J15: NA | K15: -3.626638381 | L15: ='[1]Assumptions '!$C$65 -> 0.0006 | M15: ='[1]Loss Rates'!D13*(BX15-BO15) -> -3.611796271 | N15: ='[1]Loss Rates'!D13*(BY15-BP15)+([1]Settings!$I$26) -> -0.0154421091 | O15: ='[1]Loss Rates'!D13*(BZ15-BQ15) -> 0 | P15: NA | Q15: -3.626638381 | R15: NA | S15: NA | T15: NA | U15: NA | V15: NA | W15: NA | X15: NA | Y15: NA | Z15: NA | AA15: NA | AB15: NA | AC15: NA | AD15: =IF(ISBLANK('[1]User Assumptions'!$G$58),[1]Landfill!$J$36,([1]Settings!$H$28+[1]Landfill!$J$36)) -> 0.01 | AE15: ='[1]AD CH4'!Z11 -> 0 | AF15: ='[1]Electricity Offsets'!F136 -> NA | AG15: =IF([1]Settings!$I$12=1,-'[1]AD Soil C'!N18,0) -> 0 | AH15: 0.01 | AI15: =IF(ISBLANK('[1]User Assumptions'!$J$58),[1]Landfill!$J$36,([1]Settings!$I$28+[1]Landfill!$J$36)) -> 0.01 | AJ15: ='[1]AD CH4'!Z11 -> 0 | AK15: ='[1]Electricity Offsets'!F136 -> NA | AL15: =IF([1]Settings!$I$12=1,-'[1]AD Soil C'!N18,0) -> 0 | AM15: 0.01 | AN15: =IF(ISBLANK('[1]User Assumptions'!$G$59),[1]Landfill!$J$36,([1]Settings!$H$29+[1]Landfill!$J$36)) -> 0.01 | AO15: ='[1]Comb CO2&N2O'!G15 -> 2.245833333 | AP15: ='[1]Comb CO2&N2O'!H15 -> 0.0372 | AQ15: =IF([1]Settings!$B$24=1,'[1]Electricity Offsets'!I35,0) -> -0.1237697697 | AR15: 0 | AS15: 2.169263564 | AT15: =IF(ISBLANK('[1]User Assumptions'!$J$59),[1]Landfill!$J$36,([1]Settings!$I$29+[1]Landfill!$J$36)) -> 0.01 | AU15: ='[1]Comb CO2&N2O'!G15 -> 2.245833333 | AV15: ='[1]Comb CO2&N2O'!H15 -> 0.0372 | AW15: =IF([1]Settings!$D$24=1,'[1]Electricity Offsets'!I35,0) -> -0.1237697697 | AX15: 0 | AY15: 2.169263564 | AZ15: =IF(ISBLANK('[1]User Assumptions'!$G$60),[1]Landfill!$M$36,([1]Settings!$H$30+[1]Landfill!$M$36)) -> 0.01475 | BA15: =[1]Landfill!AC21 -> 0 | BB15: =IF([1]Settings!$B$13=1,'[1]Electricity Offsets'!L109,IF([1]Settings!$B$6=1,'[1]Electricity Offsets'!K109,0)) -> NA | BC15: =IF([1]Settings!$I$12=1,-[1]Landfill!G45,0) -> 0 | BD15: 0.01475 | BE15: =IF(ISBLANK('[1]User Assumptions'!$J$60),[1]Landfill!$M$36,([1]Settings!$I$30+[1]Landfill!$M$36)) -> 0.01475 | BF15: =[1]Landfill!AC53 -> 0 | BG15: =IF([1]Settings!$D$13=1,'[1]Electricity Offsets'!L109,IF([1]Settings!$D$6=1,'[1]Electricity Offsets'!K109,0)) -> NA | BH15: =IF([1]Settings!$I$12=1,-[1]Landfill!G45,0) -> 0 | BI15: 0.01475 | BJ15: -4.733718742 | BK15: -3.641388381 | BL15: NA | BM15: -0.00475 | BN15: 2.154513564 | BO15: ='[1]Energy Data'!T12 -> 4.666968756 | BP15: ='[1]Energy Data'!AO12 -> 0.05199998632 | BQ15: 0 | BR15: 4.718968742 | BS15: ='[1]Mixed Recyc'!K13 -> 0.7136363636 | BT15: =BO15*BS15+(1-BS15)*BX15 -> 3.457276225 | BU15: 0.04682798806 | BV15: =BS15*BQ15+(1-BS15)*BZ15 -> 0 | BW15: 3.504104213 | BX15: ='[1]Energy Data'!T28 -> 0.4426456312 | BY15: ='[1]Energy Data'!AO28 -> 0.03393904 | BZ15: 0 | CA15: 0.4765846712
A16: Other Plastic | B16: -3.038037741 | C16: 0 | D16: NA | E16: -3.038037741 | F16: ='[1]Assumptions '!$C$65 -> 0.0006 | G16: ='[1]Loss Rates'!D14*(BX16-BO16) -> -1.788969314 | H16: ='[1]Loss Rates'!D14*(BY16-BP16)+([1]Settings!$H$26) -> -0.01219113876 | I16: ='[1]Loss Rates'!D14*(BZ16-BQ16) -> 0 | J16: NA | K16: -1.800560453 | L16: ='[1]Assumptions '!$C$65 -> 0.0006 | M16: ='[1]Loss Rates'!D14*(BX16-BO16) -> -1.788969314 | N16: ='[1]Loss Rates'!D14*(BY16-BP16)+([1]Settings!$I$26) -> -0.01219113876 | O16: ='[1]Loss Rates'!D14*(BZ16-BQ16) -> 0 | P16: NA | Q16: -1.800560453 | R16: NA | S16: NA | T16: NA | U16: NA | V16: NA | W16: NA | X16: NA | Y16: NA | Z16: NA | AA16: NA | AB16: NA | AC16: NA | AD16: =IF(ISBLANK('[1]User Assumptions'!$G$58),[1]Landfill!$J$36,([1]Settings!$H$28+[1]Landfill!$J$36)) -> 0.01 | AE16: ='[1]AD CH4'!Z11 -> 0 | AF16: ='[1]Electricity Offsets'!F136 -> NA | AG16: =IF([1]Settings!$I$12=1,-'[1]AD Soil C'!N18,0) -> 0 | AH16: =AD16+AE16+AG16 -> 0.01 | AI16: =IF(ISBLANK('[1]User Assumptions'!$J$58),[1]Landfill!$J$36,([1]Settings!$I$28+[1]Landfill!$J$36)) -> 0.01 | AJ16: ='[1]AD CH4'!Z11 -> 0 | AK16: ='[1]Electricity Offsets'!F136 -> NA | AL16: =IF([1]Settings!$I$12=1,-'[1]AD Soil C'!N18,0) -> 0 | AM16: =AI16+AJ16++AL16 -> 0.01 | AN16: =IF(ISBLANK('[1]User Assumptions'!$G$59),[1]Landfill!$J$36,([1]Settings!$H$29+[1]Landfill!$J$36)) -> 0.01 | AO16: ='[1]Comb CO2&N2O'!G16 -> 2.801841778 | AP16: ='[1]Comb CO2&N2O'!H16 -> 0.0372 | AQ16: =IF([1]Settings!$B$24=1,'[1]Electricity Offsets'!I36,0) -> -0.18108122 | AR16: 0 | AS16: 2.667960558 | AT16: =IF(ISBLANK('[1]User Assumptions'!$J$59),[1]Landfill!$J$36,([1]Settings!$I$29+[1]Landfill!$J$36)) -> 0.01 | AU16: ='[1]Comb CO2&N2O'!G16 -> 2.801841778 | AV16: ='[1]Comb CO2&N2O'!H16 -> 0.0372 | AW16: =IF([1]Settings!$D$24=1,'[1]Electricity Offsets'!I36,0) -> -0.18108122 | AX16: 0 | AY16: 2.667960558 | AZ16: =IF(ISBLANK('[1]User Assumptions'!$G$60),[1]Landfill!$M$36,([1]Settings!$H$30+[1]Landfill!$M$36)) -> 0.01475 | BA16: =[1]Landfill!AC22 -> 0 | BB16: =IF([1]Settings!$B$13=1,'[1]Electricity Offsets'!L110,IF([1]Settings!$B$6=1,'[1]Electricity Offsets'!K110,0)) -> NA | BC16: =IF([1]Settings!$I$12=1,-[1]Landfill!G46,0) -> 0 | BD16: 0.01475 | BE16: =IF(ISBLANK('[1]User Assumptions'!$J$60),[1]Landfill!$M$36,([1]Settings!$I$30+[1]Landfill!$M$36)) -> 0.01475 | BF16: =[1]Landfill!AC54 -> 0 | BG16: =IF([1]Settings!$D$13=1,'[1]Electricity Offsets'!L110,IF([1]Settings!$D$6=1,'[1]Electricity Offsets'!K110,0)) -> NA | BH16: =IF([1]Settings!$I$12=1,-[1]Landfill!G46,0) -> 0 | BI16: 0.01475 | BJ16: -3.052787741 | BK16: -1.815310453 | BL16: NA | BM16: -0.00475 | BN16: 2.653210558 | BO16: ='[1]Energy Data'!T13 -> 2.986037754 | BP16: ='[1]Energy Data'!AO13 -> 0.05199998632 | BQ16: 0 | BR16: 3.038037741 | BS16: ='[1]Mixed Recyc'!K14 -> 0.9907954545 | BT16: =BO16*BS16+(1-BS16)*BX16 -> 2.961642718 | BU16: 0.05183374352 | BV16: =BS16*BQ16+(1-BS16)*BZ16 -> 0 | BW16: 3.013476462 | BX16: ='[1]Energy Data'!T29 -> 0.335712845 | BY16: ='[1]Energy Data'!AO29 -> 0.03393904 | BZ16: 0 | CA16: 0.369651885
A17: Food Scraps | B17: NA | C17: NA | D17: NA | E17: NA | F17: ='[1]Assumptions '!$C$65 -> 0.0006 | G17: NA | H17: NA | I17: NA | J17: NA | K17: NA | L17: ='[1]Assumptions '!$C$65 -> 0.0006 | M17: NA | N17: NA | O17: NA | P17: NA | Q17: NA | R17: =IF(ISBLANK('[1]User Assumptions'!$G$57),[1]Landfill!$J$36,([1]Settings!$H$27+[1]Landfill!$J$36)) -> 0.01 | S17: NA | T17: ='[1]Compost Soil C'!M5 -> 0.02320892616 | U17: 0 | V17: =IF([1]Settings!$I$12=1,'[1]Compost Soil C'!G11,0) -> -0.2654623938 | W17: =R17+T17+U17+V17 -> -0.2322534676 | X17: =IF(ISBLANK('[1]User Assumptions'!$J$57),[1]Landfill!$J$36,([1]Settings!$I$27+[1]Landfill!$J$36)) -> 0.01 | Y17: NA | Z17: ='[1]Compost Soil C'!M5 -> 0.02320892616 | AA17: 0 | AB17: =IF([1]Settings!$I$12=1,'[1]Compost Soil C'!G11,0) -> -0.2654623938 | AC17: =X17+Z17+AA17+AB17 -> -0.2322534676 | AD17: =IF(ISBLANK('[1]User Assumptions'!$G$58),[1]Landfill!$J$36,([1]Settings!$H$28+[1]Landfill!$J$36)) -> 0.01 | AE17: ='[1]AD CH4'!Z12 -> 0 | AF17: ='[1]Electricity Offsets'!F137 -> -0.2400496234 | AG17: =IF([1]Settings!$I$12=1,-'[1]AD Soil C'!N19,0) -> 0 | AH17: =AD17+AE17+AF17+AG17 -> -0.2300496234 | AI17: =IF(ISBLANK('[1]User Assumptions'!$J$58),[1]Landfill!$J$36,([1]Settings!$I$28+[1]Landfill!$J$36)) -> 0.01 | AJ17: ='[1]AD CH4'!Z12 -> 0 | AK17: ='[1]Electricity Offsets'!F137 -> -0.2400496234 | AL17: =IF([1]Settings!$I$12=1,-'[1]AD Soil C'!N19,0) -> 0 | AM17: =AI17+AJ17+AK17+AL17 -> -0.2300496234 | AN17: =IF(ISBLANK('[1]User Assumptions'!$G$59),[1]Landfill!$J$36,([1]Settings!$H$29+[1]Landfill!$J$36)) -> 0.01 | AO17: ='[1]Comb CO2&N2O'!G17 -> 0 | AP17: ='[1]Comb CO2&N2O'!H17 -> 0.0372 | AQ17: =IF([1]Settings!$B$24=1,'[1]Electricity Offsets'!I37,0) -> -0.03023442117 | AR17: 0 | AS17: 0.01696557883 | AT17: =IF(ISBLANK('[1]User Assumptions'!$J$59),[1]Landfill!$J$36,([1]Settings!$I$29+[1]Landfill!$J$36)) -> 0.01 | AU17: ='[1]Comb CO2&N2O'!G17 -> 0 | AV17: ='[1]Comb CO2&N2O'!H17 -> 0.0372 | AW17: =IF([1]Settings!$D$24=1,'[1]Electricity Offsets'!I37,0) -> -0.03023442117 | AX17: 0 | AY17: 0.01696557883 | AZ17: =IF(ISBLANK('[1]User Assumptions'!$G$60),[1]Landfill!$M$36,([1]Settings!$H$30+[1]Landfill!$M$36)) -> 0.01475 | BA17: =[1]Landfill!AC23 -> 0.8762322825 | BB17: =IF([1]Settings!$B$13=1,'[1]Electricity Offsets'!L111,IF([1]Settings!$B$6=1,'[1]Electricity Offsets'!K111,0)) -> -0.005071974906 | BC17: =IF([1]Settings!$I$12=1,-[1]Landfill!G47,0) -> -0.088 | BD17: =AZ17+BA17+BB17+BC17 -> 0.7979103076 | BE17: =IF(ISBLANK('[1]User Assumptions'!$J$60),[1]Landfill!$M$36,([1]Settings!$I$30+[1]Landfill!$M$36)) -> 0.01475 | BF17: =[1]Landfill!AC55 -> 0.8762322825 | BG17: =IF([1]Settings!$D$13=1,'[1]Electricity Offsets'!L111,IF([1]Settings!$D$6=1,'[1]Electricity Offsets'!K111,0)) -> -0.005071974906 | BH17: =IF([1]Settings!$I$12=1,-[1]Landfill!G47,0) -> -0.088 | BI17: =BE17+BF17+BG17+BH17 -> 0.7979103076 | BJ17: NA | BK17: NA | BL17: =W17-BD17 -> -1.030163775 | BM17: -1.027959931 | BN17: -0.7809447288 | BO17: NA | BP17: ='[1]Energy Data'!AO14 -> 0 | BQ17: NA | BR17: NA | BS17: NA | BT17: NA | BU17: NA | BV17: NA | BW17: NA | BX17: NA | BY17: NA | BZ17: NA | CA17: NA
A18: Yard Trimmings | B18: NA | C18: NA | D18: NA | E18: NA | F18: ='[1]Assumptions '!$C$65 -> 0.0006 | G18: NA | H18: NA | I18: NA | J18: NA | K18: NA | L18: ='[1]Assumptions '!$C$65 -> 0.0006 | M18: NA | N18: NA | O18: NA | P18: NA | Q18: NA | R18: =IF(ISBLANK('[1]User Assumptions'!$G$57),[1]Landfill!$J$36,([1]Settings!$H$27+[1]Landfill!$J$36)) -> 0.01 | S18: NA | T18: ='[1]Compost Soil C'!M5 -> 0.02320892616 | U18: 0 | V18: =IF([1]Settings!$I$12=1,'[1]Compost Soil C'!G11,0) -> -0.2654623938 | W18: =R18+T18+U18+V18 -> -0.2322534676 | X18: =IF(ISBLANK('[1]User Assumptions'!$J$57),[1]Landfill!$J$36,([1]Settings!$I$27+[1]Landfill!$J$36)) -> 0.01 | Y18: NA | Z18: ='[1]Compost Soil C'!M5 -> 0.02320892616 | AA18: 0 | AB18: =IF([1]Settings!$I$12=1,'[1]Compost Soil C'!G11,0) -> -0.2654623938 | AC18: =X18+Z18+AA18+AB18 -> -0.2322534676 | AD18: =IF(ISBLANK('[1]User Assumptions'!$G$58),[1]Landfill!$J$36,([1]Settings!$H$28+[1]Landfill!$J$36)) -> 0.01 | AE18: ='[1]AD CH4'!Z21 -> 0 | AF18: ='[1]Electricity Offsets'!F138 -> -0.1072290172 | AG18: =IF([1]Settings!$I$12=1,-'[1]AD Soil C'!N20,0) -> -0.1636913148 | AH18: =AD18+AE18+AF18+AG18 -> -0.2609203321 | AI18: =IF(ISBLANK('[1]User Assumptions'!$J$58),[1]Landfill!$J$36,([1]Settings!$I$28+[1]Landfill!$J$36)) -> 0.01 | AJ18: ='[1]AD CH4'!Z21 -> 0 | AK18: ='[1]Electricity Offsets'!F138 -> -0.1072290172 | AL18: =IF([1]Settings!$I$12=1,-'[1]AD Soil C'!N20,0) -> -0.1636913148 | AM18: =AI18+AJ18+AK18+AL18 -> -0.2609203321 | AN18: =IF(ISBLANK('[1]User Assumptions'!$G$59),[1]Landfill!$J$36,([1]Settings!$H$29+[1]Landfill!$J$36)) -> 0.01 | AO18: ='[1]Comb CO2&N2O'!G18 -> 0 | AP18: ='[1]Comb CO2&N2O'!H18 -> 0.0372 | AQ18: =IF([1]Settings!$B$24=1,'[1]Electricity Offsets'!I38,0) -> -0.03571999126 | AR18: 0 | AS18: 0.01148000874 | AT18: =IF(ISBLANK('[1]User Assumptions'!$J$59),[1]Landfill!$J$36,([1]Settings!$I$29+[1]Landfill!$J$36)) -> 0.01 | AU18: ='[1]Comb CO2&N2O'!G18 -> 0 | AV18: ='[1]Comb CO2&N2O'!H18 -> 0.0372 | AW18: =IF([1]Settings!$D$24=1,'[1]Electricity Offsets'!I38,0) -> -0.03571999126 | AX18: 0 | AY18: 0.01148000874 | AZ18: =IF(ISBLANK('[1]User Assumptions'!$G$60),[1]Landfill!$M$36,([1]Settings!$H$30+[1]Landfill!$M$36)) -> 0.01475 | BA18: =[1]Landfill!AC24 -> 0.4161855654 | BB18: =IF([1]Settings!$B$13=1,'[1]Electricity Offsets'!L112,IF([1]Settings!$B$6=1,'[1]Electricity Offsets'!K112,0)) -> -0.002409044709 | BC18: =IF([1]Settings!$I$12=1,-[1]Landfill!G48,0) -> -0.59268 | BD18: =AZ18+BA18+BB18+BC18 -> -0.1641534793 | BE18: =IF(ISBLANK('[1]User Assumptions'!$J$60),[1]Landfill!$M$36,([1]Settings!$I$30+[1]Landfill!$M$36)) -> 0.01475 | BF18: =[1]Landfill!AC56 -> 0.4161855654 | BG18: =IF([1]Settings!$D$13=1,'[1]Electricity Offsets'!L112,IF([1]Settings!$D$6=1,'[1]Electricity Offsets'!K112,0)) -> -0.002409044709 | BH18: =IF([1]Settings!$I$12=1,-[1]Landfill!G48,0) -> -0.59268 | BI18: =BE18+BF18+BG18+BH18 -> -0.1641534793 | BJ18: NA | BK18: NA | BL18: =W18-BD18 -> -0.06809998832 | BM18: -0.09676685274 | BN18: 0.175633488 | BO18: NA | BP18: ='[1]Energy Data'!AO15 -> 0 | BQ18: NA | BR18: NA | BS18: NA | BT18: NA | BU18: NA | BV18: NA | BW18: NA | BX18: NA | BY18: NA | BZ18: NA | CA18: NA
A19: White Goods | B19: NA | C19: NA | D19: NA | E19: NA | F19: ='[1]Assumptions '!$C$65 -> 0.0006 | G19: ='[1]Loss Rates'!D17*($BX$19-$BO$19) -> -1.486534639 | H19: ='[1]Loss Rates'!D17*(BY19-BP19)+([1]Settings!$H$26) -> -0.03470974115 | I19: ='[1]Loss Rates'!$D$17*(BZ19-BQ19) -> -0.1098321214 | J19: =('[1]Assumptions '!M94*J8) -> 0 | K19: =F19+G19+H19+I19 -> -1.630476501 | L19: ='[1]Assumptions '!$C$65 -> 0.0006 | M19: ='[1]Loss Rates'!D17*($BX$19-$BO$19) -> -1.486534639 | N19: ='[1]Loss Rates'!D17*(BY19-BP19)+([1]Settings!$I$26) -> -0.03470974115 | O19: ='[1]Loss Rates'!$D$17*(BZ19-BQ19) -> -0.1098321214 | P19: =('[1]Assumptions '!M94*P8) -> 0 | Q19: =L19+M19+N19+O19 -> -1.630476501 | R19: NA | S19: NA | T19: NA | U19: NA | V19: NA | W19: NA | X19: NA | Y19: NA | Z19: NA | AA19: NA | AB19: NA | AC19: NA | AD19: =IF(ISBLANK('[1]User Assumptions'!$G$58),[1]Landfill!$J$36,([1]Settings!$H$28+[1]Landfill!$J$36)) -> 0.01 | AE19: =('[1]Assumptions '!$M$89*AE13)+('[1]Assumptions '!$M$90*AVERAGE('Emission Factors'!AE14:AE16))+('[1]Assumptions '!$M$91*'Emission Factors'!AE11)+('[1]Assumptions '!$M$92*AVERAGE('Emission Factors'!AE10:AE11))+('[1]Assumptions '!$M$93*AVERAGE('Emission Factors'!AE14:AE16))+('[1]Assumptions '!$M$94*'Emission Factors'!AE8) -> 0 | AF19: ='[1]Electricity Offsets'!F139 -> 0 | AG19: =IF([1]Settings!$I$12=1,('[1]Assumptions '!$M$89*AG13)+('[1]Assumptions '!$M$90*AVERAGE('Emission Factors'!AG14:AG16))+('[1]Assumptions '!$M$91*'Emission Factors'!AG11)+('[1]Assumptions '!$M$92*AVERAGE('Emission Factors'!AG10:AG11))+('[1]Assumptions '!$M$93*AVERAGE('Emission Factors'!AG14:AG16))+('[1]Assumptions '!$M$94*'Emission Factors'!AG8),0) -> 0 | AH19: =AD19+AE19+AF19+AG19 -> 0.01 | AI19: =IF(ISBLANK('[1]User Assumptions'!$J$58),[1]Landfill!$J$36,([1]Settings!$I$28+[1]Landfill!$J$36)) -> 0.01 | AJ19: =('[1]Assumptions '!$M$89*AJ13)+('[1]Assumptions '!$M$90*AVERAGE('Emission Factors'!AJ14:AJ16))+('[1]Assumptions '!$M$91*'Emission Factors'!AJ11)+('[1]Assumptions '!$M$92*AVERAGE('Emission Factors'!AJ10:AJ11))+('[1]Assumptions '!$M$93*AVERAGE('Emission Factors'!AJ14:AJ16))+('[1]Assumptions '!$M$94*'Emission Factors'!AJ8) -> 0 | AK19: ='[1]Electricity Offsets'!F139 -> 0 | AL19: =IF([1]Settings!$I$12=1,('[1]Assumptions '!$M$89*AL13)+('[1]Assumptions '!$M$90*AVERAGE('Emission Factors'!AL14:AL16))+('[1]Assumptions '!$M$91*'Emission Factors'!AL11)+('[1]Assumptions '!$M$92*AVERAGE('Emission Factors'!AL10:AL11))+('[1]Assumptions '!$M$93*AVERAGE('Emission Factors'!AL14:AL16))+('[1]Assumptions '!$M$94*'Emission Factors'!AL8),0) -> 0 | AM19: =AI19+AJ19+AK19+AL19 -> 0.01 | AN19: =IF(ISBLANK('[1]User Assumptions'!$G$59),[1]Landfill!$J$36,([1]Settings!$H$29+[1]Landfill!$J$36)) -> 0.01 | AO19: =('[1]Assumptions '!$M$89*AO13)+('[1]Assumptions '!$M$90*AVERAGE('Emission Factors'!AO14:AO16))+('[1]Assumptions '!$M$91*'Emission Factors'!AO11)+('[1]Assumptions '!$M$92*AVERAGE('Emission Factors'!AO10:AO11))+('[1]Assumptions '!$M$93*AVERAGE('Emission Factors'!AO14:AO16))+('[1]Assumptions '!$M$94*'Emission Factors'!AO8) -> 0.4950369696 | AP19: =('[1]Assumptions '!$M$89*AP13)+('[1]Assumptions '!$M$90*AVERAGE('Emission Factors'!AP14:AP16))+('[1]Assumptions '!$M$91*'Emission Factors'!AP11)+('[1]Assumptions '!$M$92*AVERAGE('Emission Factors'!AP10:AP11))+('[1]Assumptions '!$M$93*AVERAGE('Emission Factors'!AP14:AP16))+('[1]Assumptions '!$M$94*'Emission Factors'!AP8) -> 0.006797414003 | AQ19: =IF([1]Settings!$B$24=1,('[1]Assumptions '!$M$89*AQ13)+('[1]Assumptions '!$M$90*AVERAGE('Emission Factors'!AQ14:AQ16))+('[1]Assumptions '!$M$91*'Emission Factors'!AQ11)+('[1]Assumptions '!$M$92*AVERAGE('Emission Factors'!AQ10:AQ11))+('[1]Assumptions '!$M$93*AVERAGE('Emission Factors'!AQ14:AQ16))+('[1]Assumptions '!$M$94*'Emission Factors'!AQ8),0) -> -0.03086169102 | AR19: =('[1]Assumptions '!$M$89*AR13)+('[1]Assumptions '!$M$90*AVERAGE('Emission Factors'!AR14:AR16))+('[1]Assumptions '!$M$91*'Emission Factors'!AR11)+('[1]Assumptions '!$M$92*AVERAGE('Emission Factors'!AR10:AR11))+('[1]Assumptions '!$M$93*AVERAGE('Emission Factors'!AR14:AR16))+('[1]Assumptions '!$M$94*'Emission Factors'!AR8) -> -0.7392784624 | AS19: -0.2583057698 | AT19: =IF(ISBLANK('[1]User Assumptions'!$J$59),[1]Landfill!$J$36,([1]Settings!$I$29+[1]Landfill!$J$36)) -> 0.01 | AU19: =('[1]Assumptions '!$M$89*AU13)+('[1]Assumptions '!$M$90*AVERAGE('Emission Factors'!AU14:AU16))+('[1]Assumptions '!$M$91*'Emission Factors'!AU11)+('[1]Assumptions '!$M$92*AVERAGE('Emission Factors'!AU10:AU11))+('[1]Assumptions '!$M$93*AVERAGE('Emission Factors'!AU14:AU16))+('[1]Assumptions '!$M$94*'Emission Factors'!AU8) -> 0.4950369696 | AV19: =('[1]Assumptions '!$M$89*AV13)+('[1]Assumptions '!$M$90*AVERAGE('Emission Factors'!AV14:AV16))+('[1]Assumptions '!$M$91*'Emission Factors'!AV11)+('[1]Assumptions '!$M$92*AVERAGE('Emission Factors'!AV10:AV11))+('[1]Assumptions '!$M$93*AVERAGE('Emission Factors'!AV14:AV16))+('[1]Assumptions '!$M$94*'Emission Factors'!AV8) -> 0.006797414003 | AW19: =IF([1]Settings!$D$24=1,('[1]Assumptions '!$M$89*AW13)+('[1]Assumptions '!$M$90*AVERAGE('Emission Factors'!AW14:AW16))+('[1]Assumptions '!$M$91*'Emission Factors'!AW11)+('[1]Assumptions '!$M$92*AVERAGE('Emission Factors'!AW10:AW11))+('[1]Assumptions '!$M$93*AVERAGE('Emission Factors'!AW14:AW16))+('[1]Assumptions '!$M$94*'Emission Factors'!AW8),0) -> -0.03086169102 | AX19: =('[1]Assumptions '!$M$89*AX13)+('[1]Assumptions '!$M$90*AVERAGE('Emission Factors'!AX14:AX16))+('[1]Assumptions '!$M$91*'Emission Factors'!AX11)+('[1]Assumptions '!$M$92*AVERAGE('Emission Factors'!AX10:AX11))+('[1]Assumptions '!$M$93*AVERAGE('Emission Factors'!AX14:AX16))+('[1]Assumptions '!$M$94*'Emission Factors'!AX8) -> -0.7392784624 | AY19: -0.2583057698 | AZ19: =IF(ISBLANK('[1]User Assumptions'!$G$60),[1]Landfill!$M$36,([1]Settings!$H$30+[1]Landfill!$M$36)) -> 0.01475 | BA19: =('[1]Assumptions '!$M$89*BA13)+('[1]Assumptions '!$M$90*AVERAGE('Emission Factors'!BA14:BA16))+('[1]Assumptions '!$M$91*'Emission Factors'!BA11)+('[1]Assumptions '!$M$92*AVERAGE('Emission Factors'!BA10:BA11))+('[1]Assumptions '!$M$93*AVERAGE('Emission Factors'!BA14:BA16))+('[1]Assumptions '!$M$94*'Emission Factors'!BA8) -> 0 | BB19: ='[1]Assumptions '!$M$94*'Emission Factors'!BB8 -> 0 | BC19: =IF([1]Settings!$I$12=1,('[1]Assumptions '!$M$89*BC13)+('[1]Assumptions '!$M$90*AVERAGE('Emission Factors'!BC14:BC16))+('[1]Assumptions '!$M$91*'Emission Factors'!BC11)+('[1]Assumptions '!$M$92*AVERAGE('Emission Factors'!BC10:BC11))+('[1]Assumptions '!$M$93*AVERAGE('Emission Factors'!BC14:BC16))+('[1]Assumptions '!$M$94*'Emission Factors'!BC8),0) -> 0 | BD19: =AZ19+BA19+BB19+BC19 -> 0.01475 | BE19: =IF(ISBLANK('[1]User Assumptions'!$J$60),[1]Landfill!$M$36,([1]Settings!$I$30+[1]Landfill!$M$36)) -> 0.01475 | BF19: =('[1]Assumptions '!$M$89*BF13)+('[1]Assumptions '!$M$90*AVERAGE('Emission Factors'!BF14:BF16))+('[1]Assumptions '!$M$91*'Emission Factors'!BF11)+('[1]Assumptions '!$M$92*AVERAGE('Emission Factors'!BF10:BF11))+('[1]Assumptions '!$M$93*AVERAGE('Emission Factors'!BF14:BF16))+('[1]Assumptions '!$M$94*'Emission Factors'!BF8) -> 0 | BG19: ='[1]Assumptions '!$M$94*'Emission Factors'!BG8 -> 0 | BH19: =IF([1]Settings!$I$12=1,('[1]Assumptions '!$M$89*BH13)+('[1]Assumptions '!$M$90*AVERAGE('Emission Factors'!BH14:BH16))+('[1]Assumptions '!$M$91*'Emission Factors'!BH11)+('[1]Assumptions '!$M$92*AVERAGE('Emission Factors'!BH10:BH11))+('[1]Assumptions '!$M$93*AVERAGE('Emission Factors'!BH14:BH16))+('[1]Assumptions '!$M$94*'Emission Factors'!BH8),0) -> 0 | BI19: =BE19+BF19+BG19+BH19 -> 0.01475 | BJ19: NA | BK19: =K19-BD19 -> -1.645226501 | BL19: NA | BM19: -0.00475 | BN19: -0.2730557698 | BO19: =('[1]Assumptions '!$M$89*BO13)+('[1]Assumptions '!$M$90*AVERAGE('Emission Factors'!BO14:BO16))+('[1]Assumptions '!$M$91*'Emission Factors'!BO11)+('[1]Assumptions '!$M$92*AVERAGE('Emission Factors'!BO10:BO11))+('[1]Assumptions '!$M$93*AVERAGE('Emission Factors'!BO14:BO16))+('[1]Assumptions '!$M$94*'Emission Factors'!BO8) -> 2.713217661 | BP19: =('[1]Assumptions '!$M$89*BP13)+('[1]Assumptions '!$M$90*AVERAGE('Emission Factors'!BP14:BP16))+('[1]Assumptions '!$M$91*'Emission Factors'!BP11)+('[1]Assumptions '!$M$92*AVERAGE('Emission Factors'!BP10:BP11))+('[1]Assumptions '!$M$93*AVERAGE('Emission Factors'!BP14:BP16))+('[1]Assumptions '!$M$94*'Emission Factors'!BP8) -> 0.08776041811 | BQ19: =('[1]Assumptions '!$M$89*BQ13)+('[1]Assumptions '!$M$90*AVERAGE('Emission Factors'!BQ14:BQ16))+('[1]Assumptions '!$M$91*'Emission Factors'!BQ11)+('[1]Assumptions '!$M$92*AVERAGE('Emission Factors'!BQ10:BQ11))+('[1]Assumptions '!$M$93*AVERAGE('Emission Factors'!BQ14:BQ16))+('[1]Assumptions '!$M$94*'Emission Factors'!BQ8) -> 0.1436298484 | BR19: =BO19+BP19+BQ19 -> 2.944607927 | BS19: =('[1]Assumptions '!$M$89*BS13)+('[1]Assumptions '!$M$90*AVERAGE('Emission Factors'!BS14:BS16))+('[1]Assumptions '!$M$91*'Emission Factors'!BS11)+('[1]Assumptions '!$M$92*AVERAGE('Emission Factors'!BS10:BS11))+('[1]Assumptions '!$M$93*AVERAGE('Emission Factors'!BS14:BS16))+('[1]Assumptions '!$M$94*'Emission Factors'!BS8) -> 0.8188059364 | BT19: =BO19*BS19+(1-BS19)*BX19 -> 2.360981184 | BU19: =BS19*BP19+(1-BS19)*BY19 -> 0.07953589605 | BV19: =BS19*BQ19+(1-BS19)*BZ19 -> 0.1176049725 | BW19: =BT19+BU19+BV19 -> 2.558122052 | BX19: =('[1]Assumptions '!$M$89*BX13)+('[1]Assumptions '!$M$90*AVERAGE('Emission Factors'!BX14:BX16))+('[1]Assumptions '!$M$91*'Emission Factors'!BX11)+('[1]Assumptions '!$M$92*AVERAGE('Emission Factors'!BX10:BX11))+('[1]Assumptions '!$M$93*AVERAGE('Emission Factors'!BX14:BX16))+('[1]Assumptions '!$M$94*'Emission Factors'!BX8) -> 0.7692440568 | BY19: =('[1]Assumptions '!$M$89*BY13)+('[1]Assumptions '!$M$90*AVERAGE('Emission Factors'!BY14:BY16))+('[1]Assumptions '!$M$91*'Emission Factors'!BY11)+('[1]Assumptions '!$M$92*AVERAGE('Emission Factors'!BY10:BY11))+('[1]Assumptions '!$M$93*AVERAGE('Emission Factors'!BY14:BY16))+('[1]Assumptions '!$M$94*'Emission Factors'!BY8) -> 0.04236973643 | BZ19: 0 | CA19: =BX19+BY19+BZ19 -> 0.8116137932
A20: Personal Computers | B20: NA | C20: NA | D20: NA | E20: NA | F20: ='[1]Assumptions '!$C$65 -> 0.0006 | G20: =SUM('Raw PC Data'!I81:I86) -> -1.650356443 | H20: =SUM('Raw PC Data'!J81:J86)+([1]Settings!$H$26) -> -0.07329438424 | I20: =SUM('Raw PC Data'!K81:K86) -> -0.4191552551 | J20: NA | K20: =F20+G20+H20+I20 -> -2.142206082 | L20: ='[1]Assumptions '!$C$65 -> 0.0006 | M20: =SUM('Raw PC Data'!I81:I86) -> -1.650356443 | N20: =SUM('Raw PC Data'!J81:J86)+([1]Settings!$I$26) -> -0.07329438424 | O20: =SUM('Raw PC Data'!K81:K86) -> -0.4191552551 | P20: NA | Q20: =L20+M20+N20+O20 -> -2.142206082 | R20: NA | S20: NA | T20: NA | U20: NA | V20: NA | W20: NA | X20: NA | Y20: NA | Z20: NA | AA20: NA | AB20: NA | AC20: NA | AD20: =IF(ISBLANK('[1]User Assumptions'!$G$58),[1]Landfill!$J$36,([1]Settings!$H$28+[1]Landfill!$J$36)) -> 0.01 | AE20: 0 | AF20: NA | AG20: 0 | AH20: =AD20+AE20+AG20 -> 0.01 | AI20: =IF(ISBLANK('[1]User Assumptions'!$J$58),[1]Landfill!$J$36,([1]Settings!$I$28+[1]Landfill!$J$36)) -> 0.01 | AJ20: 0 | AK20: NA | AL20: 0 | AM20: =AI20+AJ20+AL20 -> 0.01 | AN20: =IF(ISBLANK('[1]User Assumptions'!$G$59),[1]Landfill!$J$36,([1]Settings!$H$29+[1]Landfill!$J$36)) -> 0.01 | AO20: =$AO$16*('Raw PC Data'!J154+'Raw PC Data'!J155) -> 0.6441714431 | AP20: =$AP$16*('Raw PC Data'!J154+'Raw PC Data'!J155) -> 0.008552652 | AQ20: =IF([1]Settings!$B$24=1,'[1]Electricity Offsets'!R39,0) -> -0.03949454404 | AR20: =AR$11*'Raw PC Data'!J160 -> -0.2134421759 | AS20: =AN20+AO20+AP20+AQ20+AR20 -> 0.4097873752 | AT20: =IF(ISBLANK('[1]User Assumptions'!$J$59),[1]Landfill!$J$36,([1]Settings!$I$29+[1]Landfill!$J$36)) -> 0.01 | AU20: =$AO$16*('Raw PC Data'!J154+'Raw PC Data'!J155) -> 0.6441714431 | AV20: =$AP$16*('Raw PC Data'!J154+'Raw PC Data'!J155) -> 0.008552652 | AW20: =IF([1]Settings!$D$24=1,'[1]Electricity Offsets'!R39,0) -> -0.03949454404 | AX20: =AX$11*'Raw PC Data'!J160 -> -0.2134421759 | AY20: 0.4097873752 | AZ20: =IF(ISBLANK('[1]User Assumptions'!$G$60),[1]Landfill!$M$36,([1]Settings!$H$30+[1]Landfill!$M$36)) -> 0.01475 | BA20: 0 | BB20: NA | BC20: 0 | BD20: =AZ20+BA20+BC20 -> 0.01475 | BE20: =IF(ISBLANK('[1]User Assumptions'!$J$60),[1]Landfill!$M$36,([1]Settings!$I$30+[1]Landfill!$M$36)) -> 0.01475 | BF20: 0 | BG20: NA | BH20: 0 | BI20: =BE20+BF20+BH20 -> 0.01475 | BJ20: NA | BK20: -2.156956082 | BL20: NA | BM20: -0.00475 | BN20: 0.3950373752 | BO20: ='Raw PC Data'!AX17 -> 29.11337187 | BP20: ='Raw PC Data'!AX32 -> 0.8309269375 | BQ20: ='Raw PC Data'!J143 -> 0.2046243 | BR20: =BO20+BP20+BQ20 -> 30.1489231 | BS20: 1 | BT20: =$BS20*BO20 -> 29.11337187 | BU20: =$BS20*BP20 -> 0.8309269375 | BV20: =$BS20*BQ20 -> 0.2046243 | BW20: =BT20+BU20+BV20 -> 30.1489231 | BX20: NA | BY20: NA | BZ20: NA | CA20: NA
A21: Televisions | B21: NA | C21: NA | D21: NA | E21: NA | F21: ='[1]Assumptions '!$C$65 -> 0.0006 | G21: =SUM('Raw PC Data'!R81:R86) -> -0.3400647109 | H21: =SUM('Raw PC Data'!S81:S86)+([1]Settings!$H$26) -> 0.234874285 | I21: =SUM('Raw PC Data'!T81:T86) -> -0.1176400769 | J21: NA | K21: =F21+G21+H21+I21 -> -0.2222305028 | L21: ='[1]Assumptions '!$C$65 -> 0.0006 | M21: =SUM('Raw PC Data'!R81:R86) -> -0.3400647109 | N21: =SUM('Raw PC Data'!S81:S86)+([1]Settings!$I$26) -> 0.234874285 | O21: =SUM('Raw PC Data'!T81:T86) -> -0.1176400769 | P21: NA | Q21: =L21+M21+N21+O21 -> -0.2222305028 | R21: NA | S21: NA | T21: NA | U21: NA | V21: NA | W21: NA | X21: NA | Y21: NA | Z21: NA | AA21: NA | AB21: NA | AC21: NA | AD21: =IF(ISBLANK('[1]User Assumptions'!$G$58),[1]Landfill!$J$36,([1]Settings!$H$28+[1]Landfill!$J$36)) -> 0.01 | AE21: 0 | AF21: NA | AG21: 0 | AH21: =AD21+AE21+AG21 -> 0.01 | AI21: =IF(ISBLANK('[1]User Assumptions'!$J$58),[1]Landfill!$J$36,([1]Settings!$I$28+[1]Landfill!$J$36)) -> 0.01 | AJ21: 0 | AK21: NA | AL21: 0 | AM21: =AI21+AJ21+AL21 -> 0.01 | AN21: =IF(ISBLANK('[1]User Assumptions'!$G$59),[1]Landfill!$J$36,([1]Settings!$H$29+[1]Landfill!$J$36)) -> 0.01 | AO21: =$AO$16*('Raw PC Data'!K154+'Raw PC Data'!K155) -> 0.853019745 | AP21: =$AP$16*('Raw PC Data'!K154+'Raw PC Data'!K155) -> 0.01132552693 | AQ21: =IF([1]Settings!$B$24=1,'[1]Electricity Offsets'!S39,0) -> -0.05320944725 | AR21: =AR$11*'Raw PC Data'!K160 -> -0.0756963607 | AS21: 0.745439464 | AT21: =IF(ISBLANK('[1]User Assumptions'!$J$59),[1]Landfill!$J$36,([1]Settings!$I$29+[1]Landfill!$J$36)) -> 0.01 | AU21: =$AO$16*('Raw PC Data'!K154+'Raw PC Data'!K155) -> 0.853019745 | AV21: =$AP$16*('Raw PC Data'!K154+'Raw PC Data'!K155) -> 0.01132552693 | AW21: =IF([1]Settings!$D$24=1,'[1]Electricity Offsets'!S39,0) -> -0.05320944725 | AX21: =AX$11*'Raw PC Data'!K160 -> -0.0756963607 | AY21: 0.745439464 | AZ21: =IF(ISBLANK('[1]User Assumptions'!$G$60),[1]Landfill!$M$36,([1]Settings!$H$30+[1]Landfill!$M$36)) -> 0.01475 | BA21: 0 | BB21: NA | BC21: 0 | BD21: =AZ21+BA21+BC21 -> 0.01475 | BE21: =IF(ISBLANK('[1]User Assumptions'!$J$60),[1]Landfill!$M$36,([1]Settings!$I$30+[1]Landfill!$M$36)) -> 0.01475 | BF21: 0 | BG21: NA | BH21: 0 | BI21: =BE21+BF21+BH21 -> 0.01475 | BJ21: NA | BK21: -0.2369805028 | BL21: NA | BM21: -0.00475 | BN21: 0.730689464 | BO21: ='Raw PC Data'!AY17 -> 2.872672924 | BP21: ='Raw PC Data'!AY32 -> 0.2395290997 | BQ21: ='Raw PC Data'!K143 -> 0.1157867162 | BR21: =BO21+BP21+BQ21 -> 3.22798874 | BS21: 1 | BT21: =BS21*BO21 -> 2.872672924 | BU21: =$BS21*BP21 -> 0.2395290997 | BV21: 0.1157867162 | BW21: =BT21+BU21+BV21 -> 3.22798874 | BX21: NA | BY21: NA | BZ21: NA | CA21: NA
A22: Microwaves | B22: NA | C22: NA | D22: NA | E22: NA | F22: ='[1]Assumptions '!$C$65 -> 0.0006 | G22: =SUM('Raw PC Data'!AA81:AA86) -> -1.227564855 | H22: =SUM('Raw PC Data'!AB81:AB86)+([1]Settings!$H$26) -> 0.00448462388 | I22: =SUM('Raw PC Data'!AC81:AC86) -> -0.0421340458 | J22: NA | K22: =F22+G22+H22+I22 -> -1.264614277 | L22: ='[1]Assumptions '!$C$65 -> 0.0006 | M22: =SUM('Raw PC Data'!AA81:AA86) -> -1.227564855 | N22: =SUM('Raw PC Data'!AB81:AB86)+([1]Settings!$I$26) -> 0.00448462388 | O22: =SUM('Raw PC Data'!AC81:AC86) -> -0.0421340458 | P22: NA | Q22: =L22+M22+N22+O22 -> -1.264614277 | R22: NA | S22: NA | T22: NA | U22: NA | V22: NA | W22: NA | X22: NA | Y22: NA | Z22: NA | AA22: NA | AB22: NA | AC22: NA | AD22: =IF(ISBLANK('[1]User Assumptions'!$G$58),[1]Landfill!$J$36,([1]Settings!$H$28+[1]Landfill!$J$36)) -> 0.01 | AE22: 0 | AF22: NA | AG22: 0 | AH22: =AD22+AE22+AG22 -> 0.01 | AI22: =IF(ISBLANK('[1]User Assumptions'!$J$58),[1]Landfill!$J$36,([1]Settings!$I$28+[1]Landfill!$J$36)) -> 0.01 | AJ22: 0 | AK22: NA | AL22: 0 | AM22: =AI22+AJ22+AL22 -> 0.01 | AN22: =IF(ISBLANK('[1]User Assumptions'!$G$59),[1]Landfill!$J$36,([1]Settings!$H$29+[1]Landfill!$J$36)) -> 0.01 | AO22: =$AO$16*('Raw PC Data'!L154+'Raw PC Data'!L155) -> 0.2464963441 | AP22: =$AP$16*('Raw PC Data'!L154+'Raw PC Data'!L155) -> 0.003272727273 | AQ22: =IF([1]Settings!$B$24=1,'[1]Electricity Offsets'!T39,0) -> -0.01339406145 | AR22: =AR$11*'Raw PC Data'!L160 -> -0.7949872259 | AS22: -0.5486122159 | AT22: =IF(ISBLANK('[1]User Assumptions'!$J$59),[1]Landfill!$J$36,([1]Settings!$I$29+[1]Landfill!$J$36)) -> 0.01 | AU22: =$AO$16*('Raw PC Data'!L154+'Raw PC Data'!L155) -> 0.2464963441 | AV22: =$AP$16*('Raw PC Data'!L154+'Raw PC Data'!L155) -> 0.003272727273 | AW22: =IF([1]Settings!$D$24=1,'[1]Electricity Offsets'!T39,0) -> -0.01339406145 | AX22: =AX$11*'Raw PC Data'!L160 -> -0.7949872259 | AY22: =AT22+AU22+AV22+AW22+AX22 -> -0.5486122159 | AZ22: =IF(ISBLANK('[1]User Assumptions'!$G$60),[1]Landfill!$M$36,([1]Settings!$H$30+[1]Landfill!$M$36)) -> 0.01475 | BA22: 0 | BB22: NA | BC22: 0 | BD22: =AZ22+BA22+BC22 -> 0.01475 | BE22: =IF(ISBLANK('[1]User Assumptions'!$J$60),[1]Landfill!$M$36,([1]Settings!$I$30+[1]Landfill!$M$36)) -> 0.01475 | BF22: 0 | BG22: NA | BH22: 0 | BI22: =BE22+BF22+BH22 -> 0.01475 | BJ22: NA | BK22: -1.279364277 | BL22: NA | BM22: -0.00475 | BN22: -0.5633622159 | BO22: ='Raw PC Data'!AZ17 -> 3.208554005 | BP22: ='Raw PC Data'!AZ32 -> 0.2194869171 | BQ22: ='Raw PC Data'!L143 -> 0.1025236848 | BR22: =BO22+BP22+BQ22 -> 3.530564606 | BS22: 1 | BT22: =BS22*BO22 -> 3.208554005 | BU22: 0.2194869171 | BV22: 0.1025236848 | BW22: =BT22+BU22+BV22 -> 3.530564606 | BX22: NA | BY22: NA | BZ22: NA | CA22: NA
A23: VCRs | B23: NA | C23: NA | D23: NA | E23: NA | F23: ='[1]Assumptions '!$C$65 -> 0.0006 | G23: =SUM('Raw PC Data'!AJ81:AJ86) -> -0.9214490103 | H23: =SUM('Raw PC Data'!AK81:AK86)+([1]Settings!$H$26) -> -0.005798875603 | I23: =SUM('Raw PC Data'!AL81:AL86) -> -0.01584345293 | J23: NA | K23: =F23+G23+H23+I23 -> -0.9424913389 | L23: ='[1]Assumptions '!$C$65 -> 0.0006 | M23: =SUM('Raw PC Data'!AJ81:AJ86) -> -0.9214490103 | N23: =SUM('Raw PC Data'!AK81:AK86)+([1]Settings!$I$26) -> -0.005798875603 | O23: =SUM('Raw PC Data'!AL81:AL86) -> -0.01584345293 | P23: NA | Q23: =L23+M23+N23+O23 -> -0.9424913389 | R23: NA | S23: NA | T23: NA | U23: NA | V23: NA | W23: NA | X23: NA | Y23: NA | Z23: NA | AA23: NA | AB23: NA | AC23: NA | AD23: =IF(ISBLANK('[1]User Assumptions'!$G$58),[1]Landfill!$J$36,([1]Settings!$H$28+[1]Landfill!$J$36)) -> 0.01 | AE23: 0 | AF23: NA | AG23: 0 | AH23: =AD23+AE23+AG23 -> 0.01 | AI23: =IF(ISBLANK('[1]User Assumptions'!$J$58),[1]Landfill!$J$36,([1]Settings!$I$28+[1]Landfill!$J$36)) -> 0.01 | AJ23: 0 | AK23: NA | AL23: 0 | AM23: =AI23+AJ23+AL23 -> 0.01 | AN23: =IF(ISBLANK('[1]User Assumptions'!$G$59),[1]Landfill!$J$36,([1]Settings!$H$29+[1]Landfill!$J$36)) -> 0.01 | AO23: =$AO$16*('Raw PC Data'!M154+'Raw PC Data'!M155) -> 0.6444236089 | AP23: =$AP$16*('Raw PC Data'!M154+'Raw PC Data'!M155) -> 0.008556 | AQ23: =IF([1]Settings!$B$24=1,'[1]Electricity Offsets'!U39,0) -> -0.04006073563 | AR23: =AR$11*'Raw PC Data'!M160 -> -0.4691953454 | AS23: 0.1537235278 | AT23: =IF(ISBLANK('[1]User Assumptions'!$J$59),[1]Landfill!$J$36,([1]Settings!$I$29+[1]Landfill!$J$36)) -> 0.01 | AU23: =$AO$16*('Raw PC Data'!M154+'Raw PC Data'!M155) -> 0.6444236089 | AV23: =$AP$16*('Raw PC Data'!M154+'Raw PC Data'!M155) -> 0.008556 | AW23: =IF([1]Settings!$D$24=1,'[1]Electricity Offsets'!U39,0) -> -0.04006073563 | AX23: =AX$11*'Raw PC Data'!M160 -> -0.4691953454 | AY23: 0.1537235278 | AZ23: =IF(ISBLANK('[1]User Assumptions'!$G$60),[1]Landfill!$M$36,([1]Settings!$H$30+[1]Landfill!$M$36)) -> 0.01475 | BA23: 0 | BB23: NA | BC23: 0 | BD23: =AZ23+BA23+BC23 -> 0.01475 | BE23: =IF(ISBLANK('[1]User Assumptions'!$J$60),[1]Landfill!$M$36,([1]Settings!$I$30+[1]Landfill!$M$36)) -> 0.01475 | BF23: 0 | BG23: NA | BH23: 0 | BI23: =BE23+BF23+BH23 -> 0.01475 | BJ23: NA | BK23: -0.9572413389 | BL23: NA | BM23: -0.00475 | BN23: 0.1389735278 | BO23: ='Raw PC Data'!BA17 -> 3.416936224 | BP23: ='Raw PC Data'!BA32 -> 0.2200422996 | BQ23: ='Raw PC Data'!M143 -> 0.05776080954 | BR23: =BO23+BP23+BQ23 -> 3.694739333 | BS23: 1 | BT23: =BS23*BO23 -> 3.416936224 | BU23: 0.2200422996 | BV23: 0.05776080954 | BW23: =BT23+BU23+BV23 -> 3.694739333 | BX23: NA | BY23: NA | BZ23: NA | CA23: NA
A24: Tires | B24: NA | C24: NA | D24: NA | E24: NA | F24: ='[1]Assumptions '!$C$65 -> 0.0006 | G24: =[1]Tires!U9-[1]Tires!U5 -> -3.294742379 | H24: NA | I24: NA | J24: NA | K24: =SUM(F24:J24) -> -3.294142379 | L24: ='[1]Assumptions '!$C$65 -> 0.0006 | M24: =[1]Tires!U9-[1]Tires!U5 -> -3.294742379 | N24: NA | O24: NA | P24: NA | Q24: =SUM(L24:P24) -> -3.294142379 | R24: NA | S24: NA | T24: NA | U24: NA | V24: NA | W24: NA | X24: NA | Y24: NA | Z24: NA | AA24: NA | AB24: NA | AC24: NA | AD24: =IF(ISBLANK('[1]User Assumptions'!$G$58),[1]Landfill!$J$36,([1]Settings!$H$28+[1]Landfill!$J$36)) -> 0.01 | AE24: 0 | AF24: NA | AG24: 0 | AH24: =AD24+AE24+AG24 -> 0.01 | AI24: =IF(ISBLANK('[1]User Assumptions'!$J$58),[1]Landfill!$J$36,([1]Settings!$I$28+[1]Landfill!$J$36)) -> 0.01 | AJ24: 0 | AK24: NA | AL24: 0 | AM24: =AI24+AJ24+AL24 -> 0.01 | AN24: =IF(ISBLANK('[1]User Assumptions'!$G$59),[1]Landfill!$J$36,([1]Settings!$H$29+[1]Landfill!$J$36)) -> 0.01 | AO24: =[1]Tires!H28 -> -0.4988984313 | AP24: NA | AQ24: NA | AR24: NA | AS24: =SUM(AN24:AR24) -> -0.4888984313 | AT24: =IF(ISBLANK('[1]User Assumptions'!$J$59),[1]Landfill!$J$36,([1]Settings!$I$29+[1]Landfill!$J$36)) -> 0.01 | AU24: =[1]Tires!H28 -> -0.4988984313 | AV24: NA | AW24: NA | AX24: NA | AY24: =SUM(AT24:AX24) -> -0.4888984313 | AZ24: =IF(ISBLANK('[1]User Assumptions'!$G$60),[1]Landfill!$M$36,([1]Settings!$H$30+[1]Landfill!$M$36)) -> 0.01475 | BA24: 0 | BB24: NA | BC24: 0 | BD24: =AZ24+BA24+BC24 -> 0.01475 | BE24: =IF(ISBLANK('[1]User Assumptions'!$J$60),[1]Landfill!$M$36,([1]Settings!$I$30+[1]Landfill!$M$36)) -> 0.01475 | BF24: 0 | BG24: NA | BH24: 0 | BI24: =BE24+BF24+BH24 -> 0.01475 | BJ24: NA | BK24: -3.308892379 | BM24: -0.00475 | BN24: -0.5036484313

Sheet Raw PC Data
A1: Raw PC/Electronics Data
B3: PC material data (100 percent virgin ) Franklin & Associates (2002) | AQ3: Composite Process Energy Factors (GJ/tonne) | AW3: Composite Process Emission Factors (MTCO2E/tonne)
B4: Process Energy for Materials in PC's (GJ/Tonne) | V4: CO2 Emissions from Process Energy for Materials in PC's (Tonne eCO2 per Tonne Output) | AR4: PC & Monitor1 | AS4: Televisions2 | AT4: Microwaves3 | AU4: VCRs4 | AX4: PC & Monitor1 | AY4: Televisions2 | AZ4: Microwaves3 | BA4: VCRs4
B5: Material Type (Virgin inputs) | C5: Delivered Electricity | D5: Coal | E5: Natural Gas | F5: Kerosene & Stove Oil | G5: Nat Gas feedstock (other fuels) | H5: Oils feedstock | I5: Diesel | J5: LPG | K5: Distillate (Light Fuel Oil) | L5: Residual (Heavy Fuel Oil) | M5: Gasoline | N5: Oil/ Lubricants | O5: Petroleum (Non-specified) | P5: Biomass | Q5: Hydro | R5: Nuclear | S5: Other | T5: Total | V5: Material Type (Virgin inputs) | W5: Delivered Electricity | X5: Coal | Y5: Natural Gas | Z5: Kerosene & Stove Oil | AA5: Nat Gas feedstock (other fuels) | AB5: Oils feedstock | AC5: Diesel | AD5: LPG | AE5: Distillate (Light Fuel Oil) | AF5: Residual (Heavy Fuel Oil) | AG5: Gasoline | AH5: Oil/ Lubricants | AI5: Petroleum (Non-specified) | AJ5: Biomass | AK5: Hydro | AL5: Nuclear | AM5: Other | AN5: Total | AR5: Average | AS5: "B&O 28"" | AT5: Average | AU5: Average | AX5: Average | AY5: "B&O 28"" | AZ5: Average | BA5: Average
B6: Copper | C6: ='[3]Energy Data Conversion'!C3 -> 22.24431713 | D6: ='[3]Energy Data Conversion'!D3 -> 3.206857924 | E6: ='[3]Energy Data Conversion'!E3 -> 41.93583439 | F6: ='[3]Energy Data Conversion'!F3 -> 0 | G6: ='[3]Energy Data Conversion'!G3 -> 0 | H6: ='[3]Energy Data Conversion'!H3 -> 0 | I6: ='[3]Energy Data Conversion'!I3 -> 15.42040539 | J6: ='[3]Energy Data Conversion'!J3 -> 0.02366026825 | K6: ='[3]Energy Data Conversion'!K3 -> 1.099494145 | L6: ='[3]Energy Data Conversion'!L3 -> 8.704328652 | M6: ='[3]Energy Data Conversion'!M3 -> 0.3982142258 | N6: ='[3]Energy Data Conversion'!N3 -> 0 | O6: ='[3]Energy Data Conversion'!O3 -> 0 | P6: ='[3]Energy Data Conversion'!P3 -> 0 | Q6: ='[3]Energy Data Conversion'!Q3 -> 0.07048039394 | R6: ='[3]Energy Data Conversion'!R3 -> 0.4228823636 | S6: ='[3]Energy Data Conversion'!S3 -> 0.05990833485 | T6: ='[3]Energy Data Conversion'!T3 -> 93.58638322 | V6: Copper | W6: =C6*'[1]Electricity Coefficients'!$C$20 -> 1.425937682 | X6: =D6*'[1]Carbon Coeffficients'!$I$5 -> 0.2989720969 | Y6: =E6*'[1]Carbon Coeffficients'!$I$6 -> 2.52455383 | Z6: =F6*'[1]Carbon Coeffficients'!$I$7 -> 0 | AA6: =G6*'[1]Carbon Coeffficients'!$I$8 -> 0 | AB6: =H6*'[1]Carbon Coeffficients'!$I$9 -> 0 | AC6: =I6*'[1]Carbon Coeffficients'!$I$10 -> 1.39253557 | AD6: =J6*'[1]Carbon Coeffficients'!$I$11 -> 0.001854149655 | AE6: =K6*'[1]Carbon Coeffficients'!$I$12 -> 0.1042594252 | AF6: =L6*'[1]Carbon Coeffficients'!$I$13 -> 0.8277524132 | AG6: =M6*'[1]Carbon Coeffficients'!$I$14 -> 0.03547675334 | AH6: =N6*'[1]Carbon Coeffficients'!$I$15 -> 0 | AI6: =O6*'[1]Carbon Coeffficients'!$I$16 -> 0 | AJ6: =P6*'[1]Carbon Coeffficients'!$I$17 -> 0 | AK6: =Q6*'[1]Carbon Coeffficients'!$I$18 -> 0 | AL6: =R6*'[1]Carbon Coeffficients'!$I$19 -> 0 | AM6: =S6*'[1]Carbon Coeffficients'!$I$20 -> 0 | AN6: =SUM(W6:AM6) -> 6.61134192 | AQ6: Copper | AR6: =$T6*J151 -> 6.484600494 | AS6: 1.972546719 | AT6: 8.233406149 | AU6: 10.29450215 | AW6: Copper | AX6: =$AN6*J151 -> 0.4580998816 | AY6: 0.1393491271 | AZ6: 0.5816429842 | BA6: 0.7272476112
B7: Lead | C7: ='[3]Energy Data Conversion'!C4 -> 8.233403327 | D7: ='[3]Energy Data Conversion'!D4 -> 4.333558383 | E7: ='[3]Energy Data Conversion'!E4 -> 2.616584625 | F7: ='[3]Energy Data Conversion'!F4 -> 0 | G7: ='[3]Energy Data Conversion'!G4 -> 0 | H7: ='[3]Energy Data Conversion'!H4 -> 0 | I7: ='[3]Energy Data Conversion'!I4 -> 0 | J7: ='[3]Energy Data Conversion'!J4 -> 0.01191999663 | K7: ='[3]Energy Data Conversion'!K4 -> 0.2229911564 | L7: ='[3]Energy Data Conversion'!L4 -> 0.2325853 | M7: ='[3]Energy Data Conversion'!M4 -> 0.0453541335 | N7: ='[3]Energy Data Conversion'!N4 -> 0 | O7: ='[3]Energy Data Conversion'!O4 -> 0 | P7: ='[3]Energy Data Conversion'!P4 -> 0 | Q7: ='[3]Energy Data Conversion'!Q4 -> 0.01657170262 | R7: ='[3]Energy Data Conversion'!R4 -> 0.1017560687 | S7: ='[3]Energy Data Conversion'!S4 -> 0.01482731287 | T7: ='[3]Energy Data Conversion'!T4 -> 15.82955201 | V7: Lead | W7: =C7*'[1]Electricity Coefficients'!$C$20 -> 0.5277896367 | X7: =D7*'[1]Carbon Coeffficients'!$I$5 -> 0.4040132328 | Y7: =E7*'[1]Carbon Coeffficients'!$I$6 -> 0.1575194301 | Z7: =F7*'[1]Carbon Coeffficients'!$I$7 -> 0 | AA7: =G7*'[1]Carbon Coeffficients'!$I$8 -> 0 | AB7: =H7*'[1]Carbon Coeffficients'!$I$9 -> 0 | AC7: =I7*'[1]Carbon Coeffficients'!$I$10 -> 0 | AD7: =J7*'[1]Carbon Coeffficients'!$I$11 -> 0.0009341169511 | AE7: =K7*'[1]Carbon Coeffficients'!$I$12 -> 0.02114511467 | AF7: =L7*'[1]Carbon Coeffficients'!$I$13 -> 0.02211808068 | AG7: =M7*'[1]Carbon Coeffficients'!$I$14 -> 0.004040582438 | AH7: =N7*'[1]Carbon Coeffficients'!$I$15 -> 0 | AI7: =O7*'[1]Carbon Coeffficients'!$I$16 -> 0 | AJ7: =P7*'[1]Carbon Coeffficients'!$I$17 -> 0 | AK7: =Q7*'[1]Carbon Coeffficients'!$I$18 -> 0 | AL7: =R7*'[1]Carbon Coeffficients'!$I$19 -> 0 | AM7: =S7*'[1]Carbon Coeffficients'!$I$20 -> 0 | AN7: 1.137560194 | AQ7: Lead | AR7: 0.9971034808 | AS7: 0.7414310073 | AT7: 0 | AU7: 0 | AW7: Lead | AX7: 0.07165491664 | AY7: 0.05328150793 | AZ7: 0 | BA7: 0
B8: CRT Glass | C8: ='[3]Energy Data Conversion'!C5 -> 0.6541932725 | D8: ='[3]Energy Data Conversion'!D5 -> 0.2418451363 | E8: ='[3]Energy Data Conversion'!E5 -> 6.765127461 | F8: ='[3]Energy Data Conversion'!F5 -> 0 | G8: ='[3]Energy Data Conversion'!G5 -> 0 | H8: ='[3]Energy Data Conversion'!H5 -> 0 | I8: ='[3]Energy Data Conversion'!I5 -> 0 | J8: ='[3]Energy Data Conversion'!J5 -> 0.001307271007 | K8: ='[3]Energy Data Conversion'!K5 -> 0.7418762965 | L8: ='[3]Energy Data Conversion'!L5 -> 0.7353399415 | M8: ='[3]Energy Data Conversion'!M5 -> 0.04597236375 | N8: ='[3]Energy Data Conversion'!N5 -> 0 | O8: ='[3]Energy Data Conversion'!O5 -> 0 | P8: ='[3]Energy Data Conversion'!P5 -> 0 | Q8: ='[3]Energy Data Conversion'!Q5 -> 0.004139691522 | R8: ='[3]Energy Data Conversion'!R5 -> 0.02614542014 | S8: ='[3]Energy Data Conversion'!S5 -> 0.00370393452 | T8: ='[3]Energy Data Conversion'!T5 -> 9.219650789 | V8: CRT Glass | W8: =C8*'[1]Electricity Coefficients'!$C$20 -> 0.04193605194 | X8: =D8*'[1]Carbon Coeffficients'!$I$5 -> 0.02254697565 | Y8: =E8*'[1]Carbon Coeffficients'!$I$6 -> 0.407263351 | Z8: =F8*'[1]Carbon Coeffficients'!$I$7 -> 0 | AA8: =G8*'[1]Carbon Coeffficients'!$I$8 -> 0 | AB8: =H8*'[1]Carbon Coeffficients'!$I$9 -> 0 | AC8: =I8*'[1]Carbon Coeffficients'!$I$10 -> 0 | AD8: =J8*'[1]Carbon Coeffficients'!$I$11 -> 0.0001024449961 | AE8: =K8*'[1]Carbon Coeffficients'!$I$12 -> 0.07034834752 | AF8: =L8*'[1]Carbon Coeffficients'!$I$13 -> 0.06992835811 | AG8: =M8*'[1]Carbon Coeffficients'!$I$14 -> 0.004095660335 | AH8: =N8*'[1]Carbon Coeffficients'!$I$15 -> 0 | AI8: =O8*'[1]Carbon Coeffficients'!$I$16 -> 0 | AJ8: =P8*'[1]Carbon Coeffficients'!$I$17 -> 0 | AK8: =Q8*'[1]Carbon Coeffficients'!$I$18 -> 0 | AL8: =R8*'[1]Carbon Coeffficients'!$I$19 -> 0 | AM8: =S8*'[1]Carbon Coeffficients'!$I$20 -> 0 | AN8: 0.6162211895 | AQ8: CRT Glass | AR8: 2.284629466 | AS8: 5.052454999 | AT8: 0.5407419818 | AU8: 0 | AW8: CRT Glass | AX8: 0.1526996108 | AY8: 0.3376949844 | AZ8: 0.03614200525 | BA8: 0
B9: ABS Resin | C9: ='[3]Energy Data Conversion'!C6 -> 2.598977918 | D9: ='[3]Energy Data Conversion'!D6 -> 0.2471218812 | E9: ='[3]Energy Data Conversion'!E6 -> 53.20388738 | F9: ='[3]Energy Data Conversion'!F6 -> 0 | G9: ='[3]Energy Data Conversion'!G6 -> 0 | H9: ='[3]Energy Data Conversion'!H6 -> 0 | I9: ='[3]Energy Data Conversion'!I6 -> 0 | J9: ='[3]Energy Data Conversion'!J6 -> 0.02918945515 | K9: ='[3]Energy Data Conversion'!K6 -> 0.3546925825 | L9: ='[3]Energy Data Conversion'!L6 -> 1.875218981 | M9: ='[3]Energy Data Conversion'!M6 -> 0.3285267362 | N9: ='[3]Energy Data Conversion'!N6 -> 0 | O9: ='[3]Energy Data Conversion'!O6 -> 33.43413687 | P9: ='[3]Energy Data Conversion'!P6 -> 0 | Q9: ='[3]Energy Data Conversion'!Q6 -> 0.0151180445 | R9: ='[3]Energy Data Conversion'!R6 -> 0.09303412 | S9: ='[3]Energy Data Conversion'!S6 -> 0.01337365475 | T9: ='[3]Energy Data Conversion'!T6 -> 92.19327762 | V9: ABS Resin | W9: =C9*'[1]Electricity Coefficients'!$C$20 -> 0.1666034757 | X9: =D9*'[1]Carbon Coeffficients'!$I$5 -> 0.02303892121 | Y9: =E9*'[1]Carbon Coeffficients'!$I$6 -> 3.202895079 | Z9: =F9*'[1]Carbon Coeffficients'!$I$7 -> 0 | AA9: =G9*'[1]Carbon Coeffficients'!$I$8 -> 0 | AB9: =H9*'[1]Carbon Coeffficients'!$I$9 -> 0 | AC9: =I9*'[1]Carbon Coeffficients'!$I$10 -> 0 | AD9: =J9*'[1]Carbon Coeffficients'!$I$11 -> 0.002287447363 | AE9: =K9*'[1]Carbon Coeffficients'!$I$12 -> 0.03363368957 | AF9: =L9*'[1]Carbon Coeffficients'!$I$13 -> 0.1783270255 | AG9: =M9*'[1]Carbon Coeffficients'!$I$14 -> 0.02926832151 | AH9: =N9*'[1]Carbon Coeffficients'!$I$15 -> 0 | AI9: =O9*'[1]Carbon Coeffficients'!$I$16 -> 3.050139242 | AJ9: =P9*'[1]Carbon Coeffficients'!$I$17 -> 0 | AK9: =Q9*'[1]Carbon Coeffficients'!$I$18 -> 0 | AL9: =R9*'[1]Carbon Coeffficients'!$I$19 -> 0 | AM9: =S9*'[1]Carbon Coeffficients'!$I$20 -> 0 | AN9: 6.686193203 | AQ9: ABS Resin | AR9: 10.59807823 | AS9: 14.03410549 | AT9: 4.055422769 | AU9: 10.60222693 | AW9: ABS Resin | AX9: 0.7686113396 | AY9: 1.017804586 | AZ9: 0.2941140705 | BA9: 0.7689122183
B10: PPO/HIPS Resin | C10: ='[3]Energy Data Conversion'!C7 -> 1.632081769 | D10: ='[3]Energy Data Conversion'!D7 -> 0.1755360755 | E10: ='[3]Energy Data Conversion'!E7 -> 51.51983815 | F10: ='[3]Energy Data Conversion'!F7 -> 0 | G10: ='[3]Energy Data Conversion'!G7 -> 0 | H10: ='[3]Energy Data Conversion'!H7 -> 0 | I10: ='[3]Energy Data Conversion'!I7 -> 0 | J10: ='[3]Energy Data Conversion'!J7 -> 0.01180480108 | K10: ='[3]Energy Data Conversion'!K7 -> 0.2194200943 | L10: ='[3]Energy Data Conversion'!L7 -> 0.776747134 | M10: ='[3]Energy Data Conversion'!M7 -> 0.2984113283 | N10: ='[3]Energy Data Conversion'!N7 -> 0 | O10: ='[3]Energy Data Conversion'!O7 -> 12.72636547 | P10: ='[3]Energy Data Conversion'!P7 -> 0 | Q10: ='[3]Energy Data Conversion'!Q7 -> 0.01053216453 | R10: ='[3]Energy Data Conversion'!R7 -> 0.0658260283 | S10: ='[3]Energy Data Conversion'!S7 -> 0.009654484151 | T10: ='[3]Energy Data Conversion'!T7 -> 67.4462175 | V10: PPO/HIPS Resin | W10: =C10*'[1]Electricity Coefficients'!$C$20 -> 0.1046220876 | X10: =D10*'[1]Carbon Coeffficients'!$I$5 -> 0.01636504947 | Y10: =E10*'[1]Carbon Coeffficients'!$I$6 -> 3.10151465 | Z10: =F10*'[1]Carbon Coeffficients'!$I$7 -> 0 | AA10: =G10*'[1]Carbon Coeffficients'!$I$8 -> 0 | AB10: =H10*'[1]Carbon Coeffficients'!$I$9 -> 0 | AC10: =I10*'[1]Carbon Coeffficients'!$I$10 -> 0 | AD10: =J10*'[1]Carbon Coeffficients'!$I$11 -> 0.0009250895898 | AE10: =K10*'[1]Carbon Coeffficients'!$I$12 -> 0.02080648906 | AF10: =L10*'[1]Carbon Coeffficients'!$I$13 -> 0.07386604301 | AG10: =M10*'[1]Carbon Coeffficients'!$I$14 -> 0.02658535131 | AH10: =N10*'[1]Carbon Coeffficients'!$I$15 -> 0 | AI10: =O10*'[1]Carbon Coeffficients'!$I$16 -> 1.161004601 | AJ10: =P10*'[1]Carbon Coeffficients'!$I$17 -> 0 | AK10: =Q10*'[1]Carbon Coeffficients'!$I$18 -> 0 | AL10: =R10*'[1]Carbon Coeffficients'!$I$19 -> 0 | AM10: =S10*'[1]Carbon Coeffficients'!$I$20 -> 0 | AN10: 4.50568936 | AQ10: PPO/HIPS Resin | AR10: 7.753279933 | AS10: 10.26698861 | AT10: 2.966842412 | AU10: 7.756315013 | AW10: PPO/HIPS Resin | AX10: 0.5179515204 | AY10: 0.6858777715 | AZ10: 0.1981974792 | BA10: 0.5181542764
B11: CRT , Plastic Housing, PWB, and Monitor Assembly | C11: ='[3]Energy Data Conversion'!C8 -> 2.718990789 | D11: ='[3]Energy Data Conversion'!D8 -> 0.2135209311 | E11: ='[3]Energy Data Conversion'!E8 -> 25.69876921 | F11: ='[3]Energy Data Conversion'!F8 -> 0 | G11: ='[3]Energy Data Conversion'!G8 -> 0 | H11: ='[3]Energy Data Conversion'!H8 -> 0 | I11: ='[3]Energy Data Conversion'!I8 -> 0 | J11: ='[3]Energy Data Conversion'!J8 -> 0.0006100598033 | K11: ='[3]Energy Data Conversion'!K8 -> 0.148702077 | L11: ='[3]Energy Data Conversion'!L8 -> 0.09532184426 | M11: ='[3]Energy Data Conversion'!M8 -> 0.1601406984 | N11: ='[3]Energy Data Conversion'!N8 -> 0 | O11: ='[3]Energy Data Conversion'!O8 -> 0 | P11: ='[3]Energy Data Conversion'!P8 -> 0 | Q11: ='[3]Energy Data Conversion'!Q8 -> 0.01296377082 | R11: ='[3]Energy Data Conversion'!R8 -> 0.08007034918 | S11: ='[3]Energy Data Conversion'!S8 -> 0.01143862131 | T11: ='[3]Energy Data Conversion'!T8 -> 29.14052835 | V11: CRT , Plastic Housing, PWB, and Monitor Assembly | W11: =C11*'[1]Electricity Coefficients'!$C$20 -> 0.1742967159 | X11: =D11*'[1]Carbon Coeffficients'!$I$5 -> 0.01990633886 | Y11: =E11*'[1]Carbon Coeffficients'!$I$6 -> 1.547076079 | Z11: =F11*'[1]Carbon Coeffficients'!$I$7 -> 0 | AA11: =G11*'[1]Carbon Coeffficients'!$I$8 -> 0 | AB11: =H11*'[1]Carbon Coeffficients'!$I$9 -> 0 | AC11: =I11*'[1]Carbon Coeffficients'!$I$10 -> 0 | AD11: =J11*'[1]Carbon Coeffficients'!$I$11 -> 4.780766483e-05 | AE11: =K11*'[1]Carbon Coeffficients'!$I$12 -> 0.01410065996 | AF11: =L11*'[1]Carbon Coeffficients'!$I$13 -> 0.009064787162 | AG11: =M11*'[1]Carbon Coeffficients'!$I$14 -> 0.01426687368 | AH11: =N11*'[1]Carbon Coeffficients'!$I$15 -> 0 | AI11: =O11*'[1]Carbon Coeffficients'!$I$16 -> 0 | AJ11: =P11*'[1]Carbon Coeffficients'!$I$17 -> 0 | AK11: =Q11*'[1]Carbon Coeffficients'!$I$18 -> 0 | AL11: =R11*'[1]Carbon Coeffficients'!$I$19 -> 0 | AM11: =S11*'[1]Carbon Coeffficients'!$I$20 -> 0 | AN11: 1.778759262 | AQ11: CRT , Plastic Housing, PWB, and Monitor Assembly | AR11: 29.14052835 | AS11: 7.285132088 | AT11: 7.285132088 | AU11: 7.285132088 | AW11: CRT , Plastic Housing, PWB, and Monitor Assembly | AX11: 1.778759262 | AY11: 0.4446898155 | AZ11: 0.4446898155 | BA11: 0.4446898155
B12: Fabrication and Packaging of Silicon Wafers | C12: ='[3]Energy Data Conversion'!C9 -> 308234.8131 | D12: ='[3]Energy Data Conversion'!D9 -> 9815.09966 | E12: ='[3]Energy Data Conversion'!E9 -> 21956.05232 | F12: ='[3]Energy Data Conversion'!F9 -> 0 | G12: ='[3]Energy Data Conversion'!G9 -> 0 | H12: ='[3]Energy Data Conversion'!H9 -> 0 | I12: ='[3]Energy Data Conversion'!I9 -> 0 | J12: ='[3]Energy Data Conversion'!J9 -> 34.887795 | K12: ='[3]Energy Data Conversion'!K9 -> 6977.559 | L12: ='[3]Energy Data Conversion'!L9 -> 2674.73095 | M12: ='[3]Energy Data Conversion'!M9 -> 1209.44356 | N12: ='[3]Energy Data Conversion'!N9 -> 0 | O12: ='[3]Energy Data Conversion'!O9 -> 0 | P12: ='[3]Energy Data Conversion'!P9 -> 0 | Q12: ='[3]Energy Data Conversion'!Q9 -> 581.46325 | R12: ='[3]Energy Data Conversion'!R9 -> 3651.58921 | S12: ='[3]Energy Data Conversion'!S9 -> 534.94619 | T12: ='[3]Energy Data Conversion'!T9 -> 355670.5851 | V12: Fabrication and Packaging of Silicon Wafers | W12: =C12*'[1]Electricity Coefficients'!$C$20 -> 19758.91786 | X12: =D12*'[1]Carbon Coeffficients'!$I$5 -> 915.0517411 | Y12: =E12*'[1]Carbon Coeffficients'!$I$6 -> 1321.76304 | Z12: =F12*'[1]Carbon Coeffficients'!$I$7 -> 0 | AA12: =G12*'[1]Carbon Coeffficients'!$I$8 -> 0 | AB12: =H12*'[1]Carbon Coeffficients'!$I$9 -> 0 | AC12: =I12*'[1]Carbon Coeffficients'!$I$10 -> 0 | AD12: =J12*'[1]Carbon Coeffficients'!$I$11 -> 2.734000832 | AE12: =K12*'[1]Carbon Coeffficients'!$I$12 -> 661.6463522 | AF12: =L12*'[1]Carbon Coeffficients'!$I$13 -> 254.3579278 | AG12: =M12*'[1]Carbon Coeffficients'!$I$14 -> 107.748865 | AH12: =N12*'[1]Carbon Coeffficients'!$I$15 -> 0 | AI12: =O12*'[1]Carbon Coeffficients'!$I$16 -> 0 | AJ12: =P12*'[1]Carbon Coeffficients'!$I$17 -> 0 | AK12: =Q12*'[1]Carbon Coeffficients'!$I$18 -> 0 | AL12: =R12*'[1]Carbon Coeffficients'!$I$19 -> 0 | AM12: =S12*'[1]Carbon Coeffficients'!$I$20 -> 0 | AN12: 23022.21979 | AQ12: Fabrication and Packaging of Silicon Wafers | AR12: 355.6705851 | AS12: 0 | AT12: 0 | AU12: 0 | AW12: Fabrication and Packaging of Silicon Wafers | AX12: 23.02221979 | AY12: 0 | AZ12: 0 | BA12: 0
B13: PWB, Steel Housing, and CPU Assembly | C13: ='[3]Energy Data Conversion'!C10 -> 0.5735123508 | D13: ='[3]Energy Data Conversion'!D10 -> 0.01824198431 | E13: ='[3]Energy Data Conversion'!E10 -> 0.04104446471 | F13: ='[3]Energy Data Conversion'!F10 -> 0 | G13: ='[3]Energy Data Conversion'!G10 -> 0 | H13: ='[3]Energy Data Conversion'!H10 -> 0 | I13: ='[3]Energy Data Conversion'!I10 -> 0 | J13: ='[3]Energy Data Conversion'!J10 -> 6.449844454e-05 | K13: ='[3]Energy Data Conversion'!K10 -> 0.0130299888 | L13: ='[3]Energy Data Conversion'!L10 -> 0.005016545686 | M13: ='[3]Energy Data Conversion'!M10 -> 0.002280248039 | N13: ='[3]Energy Data Conversion'!N10 -> 0 | O13: ='[3]Energy Data Conversion'!O10 -> 0 | P13: ='[3]Energy Data Conversion'!P10 -> 0 | Q13: ='[3]Energy Data Conversion'!Q10 -> 0.001107549048 | R13: ='[3]Energy Data Conversion'!R10 -> 0.006514994398 | S13: ='[3]Energy Data Conversion'!S10 -> 0.0009772491597 | T13: ='[3]Energy Data Conversion'!T10 -> 0.6617898734 | V13: PWB, Steel Housing, and CPU Assembly | W13: =C13*'[1]Electricity Coefficients'!$C$20 -> 0.03676412575 | X13: =D13*'[1]Carbon Coeffficients'!$I$5 -> 0.001700681612 | Y13: =E13*'[1]Carbon Coeffficients'!$I$6 -> 0.002470893022 | Z13: =F13*'[1]Carbon Coeffficients'!$I$7 -> 0 | AA13: =G13*'[1]Carbon Coeffficients'!$I$8 -> 0 | AB13: =H13*'[1]Carbon Coeffficients'!$I$9 -> 0 | AC13: =I13*'[1]Carbon Coeffficients'!$I$10 -> 0 | AD13: =J13*'[1]Carbon Coeffficients'!$I$11 -> 5.05445532e-06 | AE13: =K13*'[1]Carbon Coeffficients'!$I$12 -> 0.001235567418 | AF13: =L13*'[1]Carbon Coeffficients'!$I$13 -> 0.000477056642 | AG13: =M13*'[1]Carbon Coeffficients'!$I$14 -> 0.0002031464273 | AH13: =N13*'[1]Carbon Coeffficients'!$I$15 -> 0 | AI13: =O13*'[1]Carbon Coeffficients'!$I$16 -> 0 | AJ13: =P13*'[1]Carbon Coeffficients'!$I$17 -> 0 | AK13: =Q13*'[1]Carbon Coeffficients'!$I$18 -> 0 | AL13: =R13*'[1]Carbon Coeffficients'!$I$19 -> 0 | AM13: =S13*'[1]Carbon Coeffficients'!$I$20 -> 0 | AN13: 0.04285652533 | AQ13: PWB, Steel Housing, and CPU Assembly | AR13: 0.6617898734 | AS13: 0.1654474684 | AT13: 0.1654474684 | AU13: 0.1654474684 | AW13: PWB, Steel Housing, and CPU Assembly | AX13: 0.04285652533 | AY13: 0.01071413133 | AZ13: 0.01071413133 | BA13: 0.01071413133
B14: Aluminum | C14: ='[3]Energy Data Conversion'!C11 -> 68.41503944 | D14: ='[3]Energy Data Conversion'!D11 -> 1.713786421 | E14: ='[3]Energy Data Conversion'!E11 -> 21.29991695 | F14: ='[3]Energy Data Conversion'!F11 -> 0 | G14: ='[3]Energy Data Conversion'!G11 -> 0 | H14: ='[3]Energy Data Conversion'!H11 -> 0 | I14: ='[3]Energy Data Conversion'!I11 -> 0 | J14: ='[3]Energy Data Conversion'!J11 -> 0.02521714305 | K14: ='[3]Energy Data Conversion'!K11 -> 1.468959789 | L14: ='[3]Energy Data Conversion'!L11 -> 2.7910236 | M14: ='[3]Energy Data Conversion'!M11 -> 0.2800816665 | N14: ='[3]Energy Data Conversion'!N11 -> 0 | O14: ='[3]Energy Data Conversion'!O11 -> 0 | P14: ='[3]Energy Data Conversion'!P11 -> 0 | Q14: ='[3]Energy Data Conversion'!Q11 -> 0.06365492421 | R14: ='[3]Energy Data Conversion'!R11 -> 0.3917226105 | S14: ='[3]Energy Data Conversion'!S11 -> 0.05631012526 | T14: ='[3]Energy Data Conversion'!T11 -> 96.50571267 | V14: Aluminum | W14: =C14*'[1]Electricity Coefficients'!$C$20 -> 4.38564071 | X14: =D14*'[1]Carbon Coeffficients'!$I$5 -> 0.1597745619 | Y14: =E14*'[1]Carbon Coeffficients'!$I$6 -> 1.282263431 | Z14: =F14*'[1]Carbon Coeffficients'!$I$7 -> 0 | AA14: =G14*'[1]Carbon Coeffficients'!$I$8 -> 0 | AB14: =H14*'[1]Carbon Coeffficients'!$I$9 -> 0 | AC14: =I14*'[1]Carbon Coeffficients'!$I$10 -> 0 | AD14: =J14*'[1]Carbon Coeffficients'!$I$11 -> 0.001976154988 | AE14: =K14*'[1]Carbon Coeffficients'!$I$12 -> 0.1392939689 | AF14: =L14*'[1]Carbon Coeffficients'!$I$13 -> 0.2654169681 | AG14: =M14*'[1]Carbon Coeffficients'!$I$14 -> 0.02495236874 | AH14: =N14*'[1]Carbon Coeffficients'!$I$15 -> 0 | AI14: =O14*'[1]Carbon Coeffficients'!$I$16 -> 0 | AJ14: =P14*'[1]Carbon Coeffficients'!$I$17 -> 0 | AK14: =Q14*'[1]Carbon Coeffficients'!$I$18 -> 0 | AL14: =R14*'[1]Carbon Coeffficients'!$I$19 -> 0 | AM14: =S14*'[1]Carbon Coeffficients'!$I$20 -> 0 | AN14: 6.259318164 | AQ14: Aluminum | AR14: ='[1]Energy Data'!$T42*J159 -> 50.24482428 | AS14: ='[1]Energy Data'!$T42*K159 -> 0.8302947904 | AT14: ='[1]Energy Data'!$T42*L159 -> 1.03969465 | AU14: ='[1]Energy Data'!$T42*M159 -> 0 | AW14: Aluminum | AX14: ='[1]Energy Data'!$T7*J159 -> 1.842308971 | AY14: ='[1]Energy Data'!$T7*K159 -> 0.03044412162 | AZ14: ='[1]Energy Data'!$T7*L159 -> 0.03812211124 | BA14: ='[1]Energy Data'!$T7*M159 -> 0
B15: Steel Sheet | C15: ='[3]Energy Data Conversion'!C12 -> 2.655444261 | D15: ='[3]Energy Data Conversion'!D12 -> 15.59785334 | E15: ='[3]Energy Data Conversion'!E12 -> 6.343235455 | F15: ='[3]Energy Data Conversion'!F12 -> 0 | G15: ='[3]Energy Data Conversion'!G12 -> 0 | H15: ='[3]Energy Data Conversion'!H12 -> 0 | I15: ='[3]Energy Data Conversion'!I12 -> 0 | J15: ='[3]Energy Data Conversion'!J12 -> 0.001406897094 | K15: ='[3]Energy Data Conversion'!K12 -> 1.146661794 | L15: ='[3]Energy Data Conversion'!L12 -> 0.1138529441 | M15: ='[3]Energy Data Conversion'!M12 -> 0.08701617867 | N15: ='[3]Energy Data Conversion'!N12 -> 0 | O15: ='[3]Energy Data Conversion'!O12 -> 0 | P15: ='[3]Energy Data Conversion'!P12 -> 0 | Q15: ='[3]Energy Data Conversion'!Q12 -> 0.007563088427 | R15: ='[3]Energy Data Conversion'!R12 -> 0.04716764825 | S15: ='[3]Energy Data Conversion'!S12 -> 0.006749853112 | T15: ='[3]Energy Data Conversion'!T12 -> 26.00695145 | V15: Steel Sheet | W15: =C15*'[1]Electricity Coefficients'!$C$20 -> 0.1702231636 | X15: =D15*'[1]Carbon Coeffficients'!$I$5 -> 1.454171975 | Y15: =E15*'[1]Carbon Coeffficients'!$I$6 -> 0.3818652852 | Z15: =F15*'[1]Carbon Coeffficients'!$I$7 -> 0 | AA15: =G15*'[1]Carbon Coeffficients'!$I$8 -> 0 | AB15: =H15*'[1]Carbon Coeffficients'!$I$9 -> 0 | AC15: =I15*'[1]Carbon Coeffficients'!$I$10 -> 0 | AD15: =J15*'[1]Carbon Coeffficients'!$I$11 -> 0.000110252248 | AE15: =K15*'[1]Carbon Coeffficients'!$I$12 -> 0.1087320928 | AF15: =L15*'[1]Carbon Coeffficients'!$I$13 -> 0.0108270325 | AG15: =M15*'[1]Carbon Coeffficients'!$I$14 -> 0.007752238137 | AH15: =N15*'[1]Carbon Coeffficients'!$I$15 -> 0 | AI15: =O15*'[1]Carbon Coeffficients'!$I$16 -> 0 | AJ15: =P15*'[1]Carbon Coeffficients'!$I$17 -> 0 | AK15: =Q15*'[1]Carbon Coeffficients'!$I$18 -> 0 | AL15: =R15*'[1]Carbon Coeffficients'!$I$19 -> 0 | AM15: =S15*'[1]Carbon Coeffficients'!$I$20 -> 0 | AN15: 2.133682039 | AQ15: Steel Sheet | AR15: ='[1]Energy Data'!$T43*J160 -> 5.092753114 | AS15: ='[1]Energy Data'!$T43*K160 -> 1.806123251 | AT15: ='[1]Energy Data'!$T43*L160 -> 18.96848012 | AU15: ='[1]Energy Data'!$T43*M160 -> 11.19505105 | AW15: Steel Sheet | AX15: ='[1]Energy Data'!$T8*J160 -> 0.4309000706 | AY15: ='[1]Energy Data'!$T8*K160 -> 0.152816879 | AZ15: ='[1]Energy Data'!$T8*L160 -> 1.604931407 | BA15: ='[1]Energy Data'!$T8*M160 -> 0.947218171
B16: Zinc | C16: ='[3]Energy Data Conversion'!C13 -> 16.58584381 | D16: ='[3]Energy Data Conversion'!D13 -> 0.5271933467 | E16: ='[3]Energy Data Conversion'!E13 -> 1.1629265 | F16: ='[3]Energy Data Conversion'!F13 -> 0 | G16: ='[3]Energy Data Conversion'!G13 -> 0 | H16: ='[3]Energy Data Conversion'!H13 -> 0 | I16: ='[3]Energy Data Conversion'!I13 -> 0 | J16: ='[3]Energy Data Conversion'!J13 -> 0.004109006967 | K16: ='[3]Energy Data Conversion'!K13 -> 0.37213648 | L16: ='[3]Energy Data Conversion'!L13 -> 0.1473040233 | M16: ='[3]Energy Data Conversion'!M13 -> 0.07365201167 | N16: ='[3]Energy Data Conversion'!N13 -> 0 | O16: ='[3]Energy Data Conversion'!O13 -> 0 | P16: ='[3]Energy Data Conversion'!P13 -> 0 | Q16: ='[3]Energy Data Conversion'!Q13 -> 0.03178665767 | R16: ='[3]Energy Data Conversion'!R13 -> 0.1938210833 | S16: ='[3]Energy Data Conversion'!S13 -> 0.02868552033 | T16: ='[3]Energy Data Conversion'!T13 -> 19.12745844 | V16: Zinc | W16: =C16*'[1]Electricity Coefficients'!$C$20 -> 1.063209967 | X16: =D16*'[1]Carbon Coeffficients'!$I$5 -> 0.04914969858 | Y16: =E16*'[1]Carbon Coeffficients'!$I$6 -> 0.07000863562 | Z16: =F16*'[1]Carbon Coeffficients'!$I$7 -> 0 | AA16: =G16*'[1]Carbon Coeffficients'!$I$8 -> 0 | AB16: =H16*'[1]Carbon Coeffficients'!$I$9 -> 0 | AC16: =I16*'[1]Carbon Coeffficients'!$I$10 -> 0 | AD16: =J16*'[1]Carbon Coeffficients'!$I$11 -> 0.0003220045425 | AE16: =K16*'[1]Carbon Coeffficients'!$I$12 -> 0.03528780545 | AF16: =L16*'[1]Carbon Coeffficients'!$I$13 -> 0.01400811776 | AG16: =M16*'[1]Carbon Coeffficients'!$I$14 -> 0.0065616296 | AH16: =N16*'[1]Carbon Coeffficients'!$I$15 -> 0 | AI16: =O16*'[1]Carbon Coeffficients'!$I$16 -> 0 | AJ16: =P16*'[1]Carbon Coeffficients'!$I$17 -> 0 | AK16: =Q16*'[1]Carbon Coeffficients'!$I$18 -> 0 | AL16: =R16*'[1]Carbon Coeffficients'!$I$19 -> 0 | AM16: =S16*'[1]Carbon Coeffficients'!$I$20 -> 0 | AN16: 1.238547858 | AQ16: Zinc | AR16: =$T16*J161 -> 0.4217604586 | AS16: =$T16*K161 -> 0 | AT16: =$T16*L161 -> 0 | AU16: =$T16*M161 -> 0 | AW16: Zinc | AX16: =$AN16*J161 -> 0.02730998028 | AY16: =$AN16*K161 -> 0 | AZ16: =$AN16*L161 -> 0 | BA16: =$AN16*M161 -> 0
AQ17: net EFs | AR17: =SUM(AR6:AR16) -> 469.3499328 | AS17: =SUM(AS6:AS16) -> 42.15452443 | AT17: =SUM(AT6:AT16) -> 43.25516764 | AU17: =SUM(AU6:AU16) -> 47.2986747 | AW17: net Efs | AX17: =SUM(AX6:AX16) -> 29.11337187 | AY17: =SUM(AY6:AY16) -> 2.872672924 | AZ17: =SUM(AZ6:AZ16) -> 3.208554005 | BA17: =SUM(BA6:BA16) -> 3.416936224
AQ18: Composite Transport Energy Factors (GJ/tonne) | AW18: Composite Transport Emission Factors (MTCO2E/tonne)
B19: Transportation Energy for Materials in PC's (GJ/Tonne) | V19: CO2 Emissions from Transportation Energy for Materials in PC's (Tonne eCO2 per Tonne Output) | AR19: PC & Monitor1 | AS19: Televisions2 | AT19: Microwaves3 | AU19: VCRs4 | AX19: PC & Monitor1 | AY19: Televisions2 | AZ19: Microwaves3 | BA19: VCRs4
B20: Material Type (Virgin inputs) | C20: Delivered Electricity | D20: Coal | E20: Natural Gas | F20: Kerosene & Stove Oil | G20: Nat Gas feedstock (other fuels) | H20: Oils feedstock | I20: Diesel | J20: LPG | K20: Distillate (Light Fuel Oil) | L20: Residual (Heavy Fuel Oil) | M20: Gasoline | N20: Oil/ Lubricants | O20: Petroleum (Non-specified) | P20: Biomass | Q20: Hydro | R20: Nuclear | S20: Other | T20: Total | V20: Material Type (Virgin inputs) | W20: Delivered Electricity | X20: Coal | Y20: Natural Gas | Z20: Kerosene & Stove Oil | AA20: Nat Gas feedstock (other fuels) | AB20: Oils feedstock | AC20: Diesel | AD20: LPG | AE20: Distillate (Light Fuel Oil) | AF20: Residual (Heavy Fuel Oil) | AG20: Gasoline | AH20: Oil/ Lubricants | AI20: Petroleum (Non-specified) | AJ20: Biomass | AK20: Hydro | AL20: Nuclear | AM20: Other | AN20: Total | AR20: Average | AS20: "B&O 28"" | AT20: Average | AU20: Average | AX20: Average | AY20: "B&O 28"" | AZ20: Average | BA20: Average
B21: Copper | C21: ='[3]Energy Data Conversion'!C17 -> 3.246467906e-05 | D21: ='[3]Energy Data Conversion'!D17 -> 0.004581225606 | E21: ='[3]Energy Data Conversion'!E17 -> 0.03541992197 | F21: ='[3]Energy Data Conversion'!F17 -> 0 | G21: ='[3]Energy Data Conversion'!G17 -> 0 | H21: ='[3]Energy Data Conversion'!H17 -> 0 | I21: ='[3]Energy Data Conversion'!I17 -> 0.4793549625 | J21: ='[3]Energy Data Conversion'!J17 -> 0.0004228823636 | K21: ='[3]Energy Data Conversion'!K17 -> 0.002149652015 | L21: ='[3]Energy Data Conversion'!L17 -> 0.02213092123 | M21: ='[3]Energy Data Conversion'!M17 -> 0.0005638431515 | N21: ='[3]Energy Data Conversion'!N17 -> 0 | O21: ='[3]Energy Data Conversion'!O17 -> 0 | P21: ='[3]Energy Data Conversion'!P17 -> 0 | Q21: ='[3]Energy Data Conversion'!Q17 -> 0.0002924936348 | R21: ='[3]Energy Data Conversion'!R17 -> 0.001797250045 | S21: ='[3]Energy Data Conversion'!S17 -> 0.0002607774576 | T21: ='[3]Energy Data Conversion'!T17 -> 0.5470063947 | V21: Copper | W21: =C21*'[1]Electricity Coefficients'!$C$20 -> 2.081098239e-06 | X21: =D21*'[1]Carbon Coeffficients'!$I$5 -> 0.0004271029956 | Y21: =E21*'[1]Carbon Coeffficients'!$I$6 -> 0.002132293323 | Z21: =F21*'[1]Carbon Coeffficients'!$I$7 -> 0 | AA21: =G21*'[1]Carbon Coeffficients'!$I$8 -> 0 | AB21: =H21*'[1]Carbon Coeffficients'!$I$9 -> 0 | AC21: =I21*'[1]Carbon Coeffficients'!$I$10 -> 0.04328802123 | AD21: =J21*'[1]Carbon Coeffficients'!$I$11 -> 3.313940403e-05 | AE21: =K21*'[1]Carbon Coeffficients'!$I$12 -> 0.0002038405428 | AF21: =L21*'[1]Carbon Coeffficients'!$I$13 -> 0.002104576261 | AG21: =M21*'[1]Carbon Coeffficients'!$I$14 -> 5.02325711e-05 | AH21: =N21*'[1]Carbon Coeffficients'!$I$15 -> 0 | AI21: =O21*'[1]Carbon Coeffficients'!$I$16 -> 0 | AJ21: =P21*'[1]Carbon Coeffficients'!$I$17 -> 0 | AK21: =Q21*'[1]Carbon Coeffficients'!$I$18 -> 0 | AL21: =R21*'[1]Carbon Coeffficients'!$I$19 -> 0 | AM21: =S21*'[1]Carbon Coeffficients'!$I$20 -> 0 | AN21: =SUM(W21:AM21) -> 0.04824128742 | AQ21: Copper | AR21: =$T21*J151 -> 0.03790207309 | AS21: 0.01152940879 | AT21: 0.04812372974 | AU21: 0.06017070342 | AW21: Copper | AX21: =$AN21*J151 -> 0.003342638805 | AY21: 0.001016795285 | AZ21: 0.004244101533 | BA21: 0.005306541616
B22: Lead | C22: ='[3]Energy Data Conversion'!C18 -> 3.174324174e-05 | D22: ='[3]Energy Data Conversion'!D18 -> 0.007268290625 | E22: ='[3]Energy Data Conversion'!E18 -> 0.05523900875 | F22: ='[3]Energy Data Conversion'!F18 -> 0 | G22: ='[3]Energy Data Conversion'!G18 -> 0 | H22: ='[3]Energy Data Conversion'!H18 -> 0 | I22: ='[3]Energy Data Conversion'!I18 -> 0.7224680881 | J22: ='[3]Energy Data Conversion'!J18 -> 0.0006686827375 | K22: ='[3]Energy Data Conversion'!K18 -> 0.003198047875 | L22: ='[3]Energy Data Conversion'!L18 -> 0.04157462238 | M22: ='[3]Energy Data Conversion'!M18 -> 0.000872194875 | N22: ='[3]Energy Data Conversion'!N18 -> 0 | O22: ='[3]Energy Data Conversion'!O18 -> 0 | P22: ='[3]Energy Data Conversion'!P18 -> 0 | Q22: ='[3]Energy Data Conversion'!Q18 -> 0.0004651706 | R22: ='[3]Energy Data Conversion'!R18 -> 0.0027910236 | S22: ='[3]Energy Data Conversion'!S18 -> 0.000407024275 | T22: ='[3]Energy Data Conversion'!T18 -> 0.8349838971 | V22: Lead | W22: =C22*'[1]Electricity Coefficients'!$C$20 -> 2.034851611e-06 | X22: =D22*'[1]Carbon Coeffficients'!$I$5 -> 0.0006776153296 | Y22: =E22*'[1]Carbon Coeffficients'!$I$6 -> 0.003325410192 | Z22: =F22*'[1]Carbon Coeffficients'!$I$7 -> 0 | AA22: =G22*'[1]Carbon Coeffficients'!$I$8 -> 0 | AB22: =H22*'[1]Carbon Coeffficients'!$I$9 -> 0 | AC22: =I22*'[1]Carbon Coeffficients'!$I$10 -> 0.06524228678 | AD22: =J22*'[1]Carbon Coeffficients'!$I$11 -> 5.240168262e-05 | AE22: =K22*'[1]Carbon Coeffficients'!$I$12 -> 0.0003032545781 | AF22: =L22*'[1]Carbon Coeffficients'!$I$13 -> 0.003953606921 | AG22: =M22*'[1]Carbon Coeffficients'!$I$14 -> 7.770350843e-05 | AH22: =N22*'[1]Carbon Coeffficients'!$I$15 -> 0 | AI22: =O22*'[1]Carbon Coeffficients'!$I$16 -> 0 | AJ22: =P22*'[1]Carbon Coeffficients'!$I$17 -> 0 | AK22: =Q22*'[1]Carbon Coeffficients'!$I$18 -> 0 | AL22: =R22*'[1]Carbon Coeffficients'!$I$19 -> 0 | AM22: =S22*'[1]Carbon Coeffficients'!$I$20 -> 0 | AN22: 0.07363431384 | AQ22: Lead | AR22: 0.05259563568 | AS22: 0.03910931602 | AT22: 0 | AU22: 0 | AW22: Lead | AX22: 0.004638225429 | AY22: 0.003448913997 | AZ22: 0 | BA22: 0
B23: CRT Glass | C23: ='[3]Energy Data Conversion'!C19 -> 0 | D23: ='[3]Energy Data Conversion'!D19 -> 0.004684387775 | E23: ='[3]Energy Data Conversion'!E19 -> 0.03594995269 | F23: ='[3]Energy Data Conversion'!F19 -> 0 | G23: ='[3]Energy Data Conversion'!G19 -> 0 | H23: ='[3]Energy Data Conversion'!H19 -> 0 | I23: ='[3]Energy Data Conversion'!I19 -> 0.2855297758 | J23: ='[3]Energy Data Conversion'!J19 -> 0.0004248630773 | K23: ='[3]Energy Data Conversion'!K19 -> 0.002178785012 | L23: ='[3]Energy Data Conversion'!L19 -> 0.2064616677 | M23: ='[3]Energy Data Conversion'!M19 -> 0.000555590178 | N23: ='[3]Energy Data Conversion'!N19 -> 0 | O23: ='[3]Energy Data Conversion'!O19 -> 0 | P23: ='[3]Energy Data Conversion'!P19 -> 0 | Q23: ='[3]Energy Data Conversion'!Q19 -> 0.0002941359766 | R23: ='[3]Energy Data Conversion'!R19 -> 0.00185196726 | S23: ='[3]Energy Data Conversion'!S19 -> 0.0002614542014 | T23: ='[3]Energy Data Conversion'!T19 -> 0.5381925797 | V23: CRT Glass | W23: =C23*'[1]Electricity Coefficients'!$C$20 -> 0 | X23: =D23*'[1]Carbon Coeffficients'!$I$5 -> 0.0004367206996 | Y23: =E23*'[1]Carbon Coeffficients'!$I$6 -> 0.002164201382 | Z23: =F23*'[1]Carbon Coeffficients'!$I$7 -> 0 | AA23: =G23*'[1]Carbon Coeffficients'!$I$8 -> 0 | AB23: =H23*'[1]Carbon Coeffficients'!$I$9 -> 0 | AC23: =I23*'[1]Carbon Coeffficients'!$I$10 -> 0.02578468976 | AD23: =J23*'[1]Carbon Coeffficients'!$I$11 -> 3.329462372e-05 | AE23: =K23*'[1]Carbon Coeffficients'!$I$12 -> 0.0002066030764 | AF23: =L23*'[1]Carbon Coeffficients'!$I$13 -> 0.01963381101 | AG23: =M23*'[1]Carbon Coeffficients'!$I$14 -> 4.949731684e-05 | AH23: =N23*'[1]Carbon Coeffficients'!$I$15 -> 0 | AI23: =O23*'[1]Carbon Coeffficients'!$I$16 -> 0 | AJ23: =P23*'[1]Carbon Coeffficients'!$I$17 -> 0 | AK23: =Q23*'[1]Carbon Coeffficients'!$I$18 -> 0 | AL23: =R23*'[1]Carbon Coeffficients'!$I$19 -> 0 | AM23: =S23*'[1]Carbon Coeffficients'!$I$20 -> 0 | AN23: 0.04830881787 | AQ23: CRT Glass | AR23: 0.1333641212 | AS23: 0.2949345753 | AT23: 0.03156554719 | AU23: 0 | AW23: CRT Glass | AX23: 0.01197092507 | AY23: 0.02647368473 | AZ23: 0.002833361752 | BA23: 0
B24: ABS Resin | C24: ='[3]Energy Data Conversion'!C20 -> 0.4513492185 | D24: ='[3]Energy Data Conversion'!D20 -> 0.01424584962 | E24: ='[3]Energy Data Conversion'!E20 -> 0.2761950437 | F24: ='[3]Energy Data Conversion'!F20 -> 0 | G24: ='[3]Energy Data Conversion'!G20 -> 0 | H24: ='[3]Energy Data Conversion'!H20 -> 0 | I24: ='[3]Energy Data Conversion'!I20 -> 0.2820096762 | J24: ='[3]Energy Data Conversion'!J20 -> 0.001104780175 | K24: ='[3]Energy Data Conversion'!K20 -> 0.006977559 | L24: ='[3]Energy Data Conversion'!L20 -> 0.95359973 | M24: ='[3]Energy Data Conversion'!M20 -> 0.002645657788 | N24: ='[3]Energy Data Conversion'!N20 -> 0 | O24: ='[3]Energy Data Conversion'!O20 -> 0 | P24: ='[3]Energy Data Conversion'!P20 -> 0 | Q24: ='[3]Energy Data Conversion'!Q20 -> 0.000872194875 | R24: ='[3]Energy Data Conversion'!R20 -> 0.005523900875 | S24: ='[3]Energy Data Conversion'!S20 -> 0.0007849753875 | T24: ='[3]Energy Data Conversion'!T20 -> 1.995308586 | V24: ABS Resin | W24: =C24*'[1]Electricity Coefficients'!$C$20 -> 0.02893304635 | X24: =D24*'[1]Carbon Coeffficients'!$I$5 -> 0.001328126046 | Y24: =E24*'[1]Carbon Coeffficients'!$I$6 -> 0.01662705096 | Z24: =F24*'[1]Carbon Coeffficients'!$I$7 -> 0 | AA24: =G24*'[1]Carbon Coeffficients'!$I$8 -> 0 | AB24: =H24*'[1]Carbon Coeffficients'!$I$9 -> 0 | AC24: =I24*'[1]Carbon Coeffficients'!$I$10 -> 0.02546680812 | AD24: =J24*'[1]Carbon Coeffficients'!$I$11 -> 8.657669303e-05 | AE24: =K24*'[1]Carbon Coeffficients'!$I$12 -> 0.0006616463522 | AF24: =L24*'[1]Carbon Coeffficients'!$I$13 -> 0.09068413077 | AG24: =M24*'[1]Carbon Coeffficients'!$I$14 -> 0.0002357006422 | AH24: =N24*'[1]Carbon Coeffficients'!$I$15 -> 0 | AI24: =O24*'[1]Carbon Coeffficients'!$I$16 -> 0 | AJ24: =P24*'[1]Carbon Coeffficients'!$I$17 -> 0 | AK24: =Q24*'[1]Carbon Coeffficients'!$I$18 -> 0 | AL24: =R24*'[1]Carbon Coeffficients'!$I$19 -> 0 | AM24: =S24*'[1]Carbon Coeffficients'!$I$20 -> 0 | AN24: 0.1640230859 | AQ24: ABS Resin | AR24: 0.2293706985 | AS24: 0.3037354991 | AT24: 0.08777017242 | AU24: 0.2294604874 | AW24: ABS Resin | AX24: 0.01885527384 | AY24: 0.02496838545 | AZ24: 0.007215091757 | BA24: 0.01886265488
B25: PPO/HIPS Resin | C25: ='[3]Energy Data Conversion'!C21 -> 0.008385007253 | D25: ='[3]Energy Data Conversion'!D21 -> 0.01316520566 | E25: ='[3]Energy Data Conversion'!E21 -> 0.3071881321 | F25: ='[3]Energy Data Conversion'!F21 -> 0 | G25: ='[3]Energy Data Conversion'!G21 -> 0 | H25: ='[3]Energy Data Conversion'!H21 -> 0 | I25: ='[3]Energy Data Conversion'!I21 -> 0.846522724 | J25: ='[3]Energy Data Conversion'!J21 -> 0.001097100472 | K25: ='[3]Energy Data Conversion'!K21 -> 0.006143762642 | L25: ='[3]Energy Data Conversion'!L21 -> 0.4182146998 | M25: ='[3]Energy Data Conversion'!M21 -> 0.002676925151 | N25: ='[3]Energy Data Conversion'!N21 -> 0 | O25: ='[3]Energy Data Conversion'!O21 -> 0 | P25: ='[3]Energy Data Conversion'!P21 -> 0 | Q25: ='[3]Energy Data Conversion'!Q21 -> 0.0008337963585 | R25: ='[3]Energy Data Conversion'!R21 -> 0.005266082264 | S25: ='[3]Energy Data Conversion'!S21 -> 0.0007460283208 | T25: ='[3]Energy Data Conversion'!T21 -> 1.610239464 | V25: PPO/HIPS Resin | W25: =C25*'[1]Electricity Coefficients'!$C$20 -> 0.0005375079728 | X25: =D25*'[1]Carbon Coeffficients'!$I$5 -> 0.00122737871 | Y25: =E25*'[1]Carbon Coeffficients'!$I$6 -> 0.01849284714 | Z25: =F25*'[1]Carbon Coeffficients'!$I$7 -> 0 | AA25: =G25*'[1]Carbon Coeffficients'!$I$8 -> 0 | AB25: =H25*'[1]Carbon Coeffficients'!$I$9 -> 0 | AC25: =I25*'[1]Carbon Coeffficients'!$I$10 -> 0.07644500737 | AD25: =J25*'[1]Carbon Coeffficients'!$I$11 -> 8.597486894e-05 | AE25: =K25*'[1]Carbon Coeffficients'!$I$12 -> 0.0005825816938 | AF25: =L25*'[1]Carbon Coeffficients'!$I$13 -> 0.03977081299 | AG25: =M25*'[1]Carbon Coeffficients'!$I$14 -> 0.0002384862397 | AH25: =N25*'[1]Carbon Coeffficients'!$I$15 -> 0 | AI25: =O25*'[1]Carbon Coeffficients'!$I$16 -> 0 | AJ25: =P25*'[1]Carbon Coeffficients'!$I$17 -> 0 | AK25: =Q25*'[1]Carbon Coeffficients'!$I$18 -> 0 | AL25: =R25*'[1]Carbon Coeffficients'!$I$19 -> 0 | AM25: =S25*'[1]Carbon Coeffficients'!$I$20 -> 0 | AN25: 0.137380597 | AQ25: PPO/HIPS Resin | AR25: 0.1851050776 | AS25: 0.2451184196 | AT25: 0.07083164798 | AU25: 0.1851775384 | AW25: PPO/HIPS Resin | AX25: 0.01579258653 | AY25: 0.02091273725 | AZ25: 0.006043134765 | BA25: 0.01579876865
B26: CRT , Plastic Housing, PWB, and Monitor Assembly | C26: ='[3]Energy Data Conversion'!C22 -> 0 | D26: ='[3]Energy Data Conversion'!D22 -> 0.04194161148 | E26: ='[3]Energy Data Conversion'!E22 -> 0.3355328918 | F26: ='[3]Energy Data Conversion'!F22 -> 0 | G26: ='[3]Energy Data Conversion'!G22 -> 0 | H26: ='[3]Energy Data Conversion'!H22 -> 0 | I26: ='[3]Energy Data Conversion'!I22 -> 0.4537319787 | J26: ='[3]Energy Data Conversion'!J22 -> 0.00381287377 | K26: ='[3]Energy Data Conversion'!K22 -> 0.01982694361 | L26: ='[3]Energy Data Conversion'!L22 -> 4.15603241 | M26: ='[3]Energy Data Conversion'!M22 -> 0.004956735902 | N26: ='[3]Energy Data Conversion'!N22 -> 0 | O26: ='[3]Energy Data Conversion'!O22 -> 0 | P26: ='[3]Energy Data Conversion'!P22 -> 0 | Q26: ='[3]Energy Data Conversion'!Q22 -> 0.000648188541 | R26: ='[3]Energy Data Conversion'!R22 -> 0.01677664459 | S26: ='[3]Energy Data Conversion'!S22 -> 0.002402110475 | T26: ='[3]Energy Data Conversion'!T22 -> 5.035662389 | V26: CRT , Plastic Housing, PWB, and Monitor Assembly | W26: =C26*'[1]Electricity Coefficients'!$C$20 -> 0 | X26: =D26*'[1]Carbon Coeffficients'!$I$5 -> 0.003910173705 | Y26: =E26*'[1]Carbon Coeffficients'!$I$6 -> 0.0201992129 | Z26: =F26*'[1]Carbon Coeffficients'!$I$7 -> 0 | AA26: =G26*'[1]Carbon Coeffficients'!$I$8 -> 0 | AB26: =H26*'[1]Carbon Coeffficients'!$I$9 -> 0 | AC26: =I26*'[1]Carbon Coeffficients'!$I$10 -> 0.04097414455 | AD26: =J26*'[1]Carbon Coeffficients'!$I$11 -> 0.0002987979052 | AE26: =K26*'[1]Carbon Coeffficients'!$I$12 -> 0.001880087995 | AF26: =L26*'[1]Carbon Coeffficients'!$I$13 -> 0.3952247203 | AG26: =M26*'[1]Carbon Coeffficients'!$I$14 -> 0.0004415937091 | AH26: =N26*'[1]Carbon Coeffficients'!$I$15 -> 0 | AI26: =O26*'[1]Carbon Coeffficients'!$I$16 -> 0 | AJ26: =P26*'[1]Carbon Coeffficients'!$I$17 -> 0 | AK26: =Q26*'[1]Carbon Coeffficients'!$I$18 -> 0 | AL26: =R26*'[1]Carbon Coeffficients'!$I$19 -> 0 | AM26: =S26*'[1]Carbon Coeffficients'!$I$20 -> 0 | AN26: 0.462928731 | AQ26: CRT , Plastic Housing, PWB, and Monitor Assembly | AR26: 5.035662389 | AS26: 1.258915597 | AT26: 1.258915597 | AU26: 1.258915597 | AW26: CRT , Plastic Housing, PWB, and Monitor Assembly | AX26: 0.462928731 | AY26: 0.1157321828 | AZ26: 0.1157321828 | BA26: 0.1157321828
B27: Fabrication and Packaging of Silicon Wafers | C27: ='[3]Energy Data Conversion'!C23 -> 0 | D27: ='[3]Energy Data Conversion'!D23 -> 0.088382414 | E27: ='[3]Energy Data Conversion'!E23 -> 0.67449737 | F27: ='[3]Energy Data Conversion'!F23 -> 0 | G27: ='[3]Energy Data Conversion'!G23 -> 0 | H27: ='[3]Energy Data Conversion'!H23 -> 0 | I27: ='[3]Energy Data Conversion'!I23 -> 8.8382414 | J27: ='[3]Energy Data Conversion'!J23 -> 0.0079079002 | K27: ='[3]Energy Data Conversion'!K23 -> 0.039539501 | L27: ='[3]Energy Data Conversion'!L23 -> 0.37213648 | M27: ='[3]Energy Data Conversion'!M23 -> 0.0104663385 | N27: ='[3]Energy Data Conversion'!N23 -> 0 | O27: ='[3]Energy Data Conversion'!O23 -> 0 | P27: ='[3]Energy Data Conversion'!P23 -> 0 | Q27: ='[3]Energy Data Conversion'!Q23 -> 0.0053494619 | R27: ='[3]Energy Data Conversion'!R23 -> 0.032561942 | S27: ='[3]Energy Data Conversion'!S23 -> 0.0048842913 | T27: ='[3]Energy Data Conversion'!T23 -> 10.0739671 | V27: Fabrication and Packaging of Silicon Wafers | W27: =C27*'[1]Electricity Coefficients'!$C$20 -> 0 | X27: =D27*'[1]Carbon Coeffficients'!$I$5 -> 0.008239802408 | Y27: =E27*'[1]Carbon Coeffficients'!$I$6 -> 0.04060500866 | Z27: =F27*'[1]Carbon Coeffficients'!$I$7 -> 0 | AA27: =G27*'[1]Carbon Coeffficients'!$I$8 -> 0 | AB27: =H27*'[1]Carbon Coeffficients'!$I$9 -> 0 | AC27: =I27*'[1]Carbon Coeffficients'!$I$10 -> 0.7981350173 | AD27: =J27*'[1]Carbon Coeffficients'!$I$11 -> 0.0006197068553 | AE27: =K27*'[1]Carbon Coeffficients'!$I$12 -> 0.003749329329 | AF27: =L27*'[1]Carbon Coeffficients'!$I$13 -> 0.03538892908 | AG27: =M27*'[1]Carbon Coeffficients'!$I$14 -> 0.0009324421011 | AH27: =N27*'[1]Carbon Coeffficients'!$I$15 -> 0 | AI27: =O27*'[1]Carbon Coeffficients'!$I$16 -> 0 | AJ27: =P27*'[1]Carbon Coeffficients'!$I$17 -> 0 | AK27: =Q27*'[1]Carbon Coeffficients'!$I$18 -> 0 | AL27: =R27*'[1]Carbon Coeffficients'!$I$19 -> 0 | AM27: =S27*'[1]Carbon Coeffficients'!$I$20 -> 0 | AN27: 0.8876702357 | AQ27: Fabrication and Packaging of Silicon Wafers | AR27: 0.0100739671 | AS27: 0 | AT27: 0 | AU27: 0 | AW27: Fabrication and Packaging of Silicon Wafers | AX27: 0.0008876702357 | AY27: 0 | AZ27: 0 | BA27: 0
B28: PWB, Steel Housing, and CPU Assembly | C28: ='[3]Energy Data Conversion'!C24 -> 0 | D28: ='[3]Energy Data Conversion'!D24 -> 0.01563598655 | E28: ='[3]Energy Data Conversion'!E24 -> 0.1237848936 | F28: ='[3]Energy Data Conversion'!F24 -> 0 | G28: ='[3]Energy Data Conversion'!G24 -> 0 | H28: ='[3]Energy Data Conversion'!H24 -> 0 | I28: ='[3]Energy Data Conversion'!I24 -> 1.628748599 | J28: ='[3]Energy Data Conversion'!J24 -> 0.001433298768 | K28: ='[3]Energy Data Conversion'!K24 -> 0.007166493838 | L28: ='[3]Energy Data Conversion'!L24 -> 0.07166493838 | M28: ='[3]Energy Data Conversion'!M24 -> 0.001889348375 | N28: ='[3]Energy Data Conversion'!N24 -> 0 | O28: ='[3]Energy Data Conversion'!O24 -> 0 | P28: ='[3]Energy Data Conversion'!P24 -> 0 | Q28: ='[3]Energy Data Conversion'!Q24 -> 0.0009772491597 | R28: ='[3]Energy Data Conversion'!R24 -> 0.006124094734 | S28: ='[3]Energy Data Conversion'!S24 -> 0.0008469492717 | T28: ='[3]Energy Data Conversion'!T24 -> 1.858271852 | V28: PWB, Steel Housing, and CPU Assembly | W28: =C28*'[1]Electricity Coefficients'!$C$20 -> 0 | X28: =D28*'[1]Carbon Coeffficients'!$I$5 -> 0.001457727096 | Y28: =E28*'[1]Carbon Coeffficients'!$I$6 -> 0.007451899589 | Z28: =F28*'[1]Carbon Coeffficients'!$I$7 -> 0 | AA28: =G28*'[1]Carbon Coeffficients'!$I$8 -> 0 | AB28: =H28*'[1]Carbon Coeffficients'!$I$9 -> 0 | AC28: =I28*'[1]Carbon Coeffficients'!$I$10 -> 0.1470837051 | AD28: =J28*'[1]Carbon Coeffficients'!$I$11 -> 0.0001123212293 | AE28: =K28*'[1]Carbon Coeffficients'!$I$12 -> 0.0006795620798 | AF28: =L28*'[1]Carbon Coeffficients'!$I$13 -> 0.006815094886 | AG28: =M28*'[1]Carbon Coeffficients'!$I$14 -> 0.0001683213254 | AH28: =N28*'[1]Carbon Coeffficients'!$I$15 -> 0 | AI28: =O28*'[1]Carbon Coeffficients'!$I$16 -> 0 | AJ28: =P28*'[1]Carbon Coeffficients'!$I$17 -> 0 | AK28: =Q28*'[1]Carbon Coeffficients'!$I$18 -> 0 | AL28: =R28*'[1]Carbon Coeffficients'!$I$19 -> 0 | AM28: =S28*'[1]Carbon Coeffficients'!$I$20 -> 0 | AN28: 0.1637686313 | AQ28: PWB, Steel Housing, and CPU Assembly | AR28: 1.858271852 | AS28: 0.464567963 | AT28: 0.464567963 | AU28: 0.464567963 | AW28: PWB, Steel Housing, and CPU Assembly | AX28: 0.1637686313 | AY28: 0.04094215782 | AZ28: 0.04094215782 | BA28: 0.04094215782
B29: Aluminum | C29: ='[3]Energy Data Conversion'!C25 -> 0.008353484669 | D29: ='[3]Energy Data Conversion'!D25 -> 0.09058585368 | E29: ='[3]Energy Data Conversion'!E25 -> 0.6855145684 | F29: ='[3]Energy Data Conversion'!F25 -> 0 | G29: ='[3]Energy Data Conversion'!G25 -> 0 | H29: ='[3]Energy Data Conversion'!H25 -> 0 | I29: ='[3]Energy Data Conversion'!I25 -> 2.724430756 | J29: ='[3]Energy Data Conversion'!J25 -> 0.008079278842 | K29: ='[3]Energy Data Conversion'!K25 -> 0.04162052737 | L29: ='[3]Energy Data Conversion'!L25 -> 6.760152951 | M29: ='[3]Energy Data Conversion'!M25 -> 0.01052754516 | N29: ='[3]Energy Data Conversion'!N25 -> 0 | O29: ='[3]Energy Data Conversion'!O25 -> 0 | P29: ='[3]Energy Data Conversion'!P25 -> 0 | Q29: ='[3]Energy Data Conversion'!Q25 -> 0.005631012526 | R29: ='[3]Energy Data Conversion'!R25 -> 0.03427572842 | S29: ='[3]Energy Data Conversion'!S25 -> 0.004896532632 | T29: ='[3]Energy Data Conversion'!T25 -> 10.37406824 | V29: Aluminum | W29: =C29*'[1]Electricity Coefficients'!$C$20 -> 0.0005354872661 | X29: =D29*'[1]Carbon Coeffficients'!$I$5 -> 0.008445226845 | Y29: =E29*'[1]Carbon Coeffficients'!$I$6 -> 0.04126824836 | Z29: =F29*'[1]Carbon Coeffficients'!$I$7 -> 0 | AA29: =G29*'[1]Carbon Coeffficients'!$I$8 -> 0 | AB29: =H29*'[1]Carbon Coeffficients'!$I$9 -> 0 | AC29: =I29*'[1]Carbon Coeffficients'!$I$10 -> 0.2460289882 | AD29: =J29*'[1]Carbon Coeffficients'!$I$11 -> 0.0006331370349 | AE29: =K29*'[1]Carbon Coeffficients'!$I$12 -> 0.003946662452 | AF29: =L29*'[1]Carbon Coeffficients'!$I$13 -> 0.6428678354 | AG29: =M29*'[1]Carbon Coeffficients'!$I$14 -> 0.0009378949789 | AH29: =N29*'[1]Carbon Coeffficients'!$I$15 -> 0 | AI29: =O29*'[1]Carbon Coeffficients'!$I$16 -> 0 | AJ29: =P29*'[1]Carbon Coeffficients'!$I$17 -> 0 | AK29: =Q29*'[1]Carbon Coeffficients'!$I$18 -> 0 | AL29: =R29*'[1]Carbon Coeffficients'!$I$19 -> 0 | AM29: =S29*'[1]Carbon Coeffficients'!$I$20 -> 0 | AN29: 0.9446634805 | AQ29: Aluminum | AR29: ='[1]Energy Data'!$T76*J159 -> 1.479039522 | AS29: ='[1]Energy Data'!$T76*K159 -> 0.0244411007 | AT29: ='[1]Energy Data'!$T76*L159 -> 0.03060513196 | AU29: ='[1]Energy Data'!$T76*M159 -> 0 | AW29: Aluminum | AX29: ='[1]Energy Data'!$AO7*J159 -> 0.1367062207 | AY29: ='[1]Energy Data'!$AO7*K159 -> 0.002259067765 | AZ29: ='[1]Energy Data'!$AO7*L159 -> 0.002828803331 | BA29: ='[1]Energy Data'!$AO7*M159 -> 0
B30: Steel Sheet | C30: ='[3]Energy Data Conversion'!C26 -> 0.0001165398735 | D30: ='[3]Energy Data Conversion'!D26 -> 0.01138529441 | E30: ='[3]Energy Data Conversion'!E26 -> 0.08945588462 | F30: ='[3]Energy Data Conversion'!F26 -> 0 | G30: ='[3]Energy Data Conversion'!G26 -> 0 | H30: ='[3]Energy Data Conversion'!H26 -> 0 | I30: ='[3]Energy Data Conversion'!I26 -> 1.146661794 | J30: ='[3]Energy Data Conversion'!J26 -> 0.001057205909 | K30: ='[3]Energy Data Conversion'!K26 -> 0.005367353077 | L30: ='[3]Energy Data Conversion'!L26 -> 0.05123382483 | M30: ='[3]Energy Data Conversion'!M26 -> 0.001382500035 | N30: ='[3]Energy Data Conversion'!N26 -> 0 | O30: ='[3]Energy Data Conversion'!O26 -> 0 | P30: ='[3]Energy Data Conversion'!P26 -> 0 | Q30: ='[3]Energy Data Conversion'!Q26 -> 0.0007237794301 | R30: ='[3]Energy Data Conversion'!R26 -> 0.004472794231 | S30: ='[3]Energy Data Conversion'!S26 -> 0.0006424558986 | T30: ='[3]Energy Data Conversion'!T26 -> 1.312499426 | V30: Steel Sheet | W30: =C30*'[1]Electricity Coefficients'!$C$20 -> 7.470609063e-06 | X30: =D30*'[1]Carbon Coeffficients'!$I$5 -> 0.001061439397 | Y30: =E30*'[1]Carbon Coeffficients'!$I$6 -> 0.005385279663 | Z30: =F30*'[1]Carbon Coeffficients'!$I$7 -> 0 | AA30: =G30*'[1]Carbon Coeffficients'!$I$8 -> 0 | AB30: =H30*'[1]Carbon Coeffficients'!$I$9 -> 0 | AC30: =I30*'[1]Carbon Coeffficients'!$I$10 -> 0.1035489855 | AD30: =J30*'[1]Carbon Coeffficients'!$I$11 -> 8.284851007e-05 | AE30: =K30*'[1]Carbon Coeffficients'!$I$12 -> 0.0005089587325 | AF30: =L30*'[1]Carbon Coeffficients'!$I$13 -> 0.004872164624 | AG30: =M30*'[1]Carbon Coeffficients'!$I$14 -> 0.0001231664003 | AH30: =N30*'[1]Carbon Coeffficients'!$I$15 -> 0 | AI30: =O30*'[1]Carbon Coeffficients'!$I$16 -> 0 | AJ30: =P30*'[1]Carbon Coeffficients'!$I$17 -> 0 | AK30: =Q30*'[1]Carbon Coeffficients'!$I$18 -> 0 | AL30: =R30*'[1]Carbon Coeffficients'!$I$19 -> 0 | AM30: =S30*'[1]Carbon Coeffficients'!$I$20 -> 0 | AN30: 0.1155903134 | AQ30: Steel Sheet | AR30: ='[1]Energy Data'!$T77*J160 -> 0.1178777348 | AS30: ='[1]Energy Data'!$T77*K160 -> 0.04180483774 | AT30: ='[1]Energy Data'!$T77*L160 -> 0.4390476857 | AU30: ='[1]Energy Data'!$T77*M160 -> 0.2591225668 | AW30: Steel Sheet | AX30: ='[1]Energy Data'!$AO8*J160 -> 0.0106449172 | AY30: ='[1]Energy Data'!$AO8*K160 -> 0.003775174651 | AZ30: ='[1]Energy Data'!$AO8*L160 -> 0.03964808341 | BA30: ='[1]Energy Data'!$AO8*M160 -> 0.02339999384
B31: Zinc | C31: ='[3]Energy Data Conversion'!C27 -> 0 | D31: ='[3]Energy Data Conversion'!D27 -> 0.006202274667 | E31: ='[3]Energy Data Conversion'!E27 -> 0.04729234433 | F31: ='[3]Energy Data Conversion'!F27 -> 0 | G31: ='[3]Energy Data Conversion'!G27 -> 0 | H31: ='[3]Energy Data Conversion'!H27 -> 0 | I31: ='[3]Energy Data Conversion'!I27 -> 0.62798031 | J31: ='[3]Energy Data Conversion'!J27 -> 0.0005659575633 | K31: ='[3]Energy Data Conversion'!K27 -> 0.0027910236 | L31: ='[3]Energy Data Conversion'!L27 -> 0.02713495167 | M31: ='[3]Energy Data Conversion'!M27 -> 0.0007287672733 | N31: ='[3]Energy Data Conversion'!N27 -> 0 | O31: ='[3]Energy Data Conversion'!O27 -> 0 | P31: ='[3]Energy Data Conversion'!P27 -> 0 | Q31: ='[3]Energy Data Conversion'!Q27 -> 0.0003798893233 | R31: ='[3]Energy Data Conversion'!R27 -> 0.002325853 | S31: ='[3]Energy Data Conversion'!S27 -> 0.0003411251067 | T31: ='[3]Energy Data Conversion'!T27 -> 0.7157424965 | V31: Zinc | W31: =C31*'[1]Electricity Coefficients'!$C$20 -> 0 | X31: =D31*'[1]Carbon Coeffficients'!$I$5 -> 0.0005782317479 | Y31: =E31*'[1]Carbon Coeffficients'!$I$6 -> 0.002847017848 | Z31: =F31*'[1]Carbon Coeffficients'!$I$7 -> 0 | AA31: =G31*'[1]Carbon Coeffficients'!$I$8 -> 0 | AB31: =H31*'[1]Carbon Coeffficients'!$I$9 -> 0 | AC31: =I31*'[1]Carbon Coeffficients'!$I$10 -> 0.05670959334 | AD31: =J31*'[1]Carbon Coeffficients'!$I$11 -> 4.435156906e-05 | AE31: =K31*'[1]Carbon Coeffficients'!$I$12 -> 0.0002646585409 | AF31: =L31*'[1]Carbon Coeffficients'!$I$13 -> 0.002580442746 | AG31: =M31*'[1]Carbon Coeffficients'!$I$14 -> 6.492559815e-05 | AH31: =N31*'[1]Carbon Coeffficients'!$I$15 -> 0 | AI31: =O31*'[1]Carbon Coeffficients'!$I$16 -> 0 | AJ31: =P31*'[1]Carbon Coeffficients'!$I$17 -> 0 | AK31: =Q31*'[1]Carbon Coeffficients'!$I$18 -> 0 | AL31: =R31*'[1]Carbon Coeffficients'!$I$19 -> 0 | AM31: =S31*'[1]Carbon Coeffficients'!$I$20 -> 0 | AN31: 0.06308922139 | AQ31: Zinc | AR31: =$T31*J161 -> 0.01578212205 | AS31: =$T31*K161 -> 0 | AT31: =$T31*L161 -> 0 | AU31: =$T31*M161 -> 0 | AW31: Zinc | AX31: =$AN31*J161 -> 0.001391117332 | AY31: =$AN31*K161 -> 0 | AZ31: =$AN31*L161 -> 0 | BA31: =$AN31*M161 -> 0
AQ32: net EFs | AR32: =SUM(AR21:AR31) -> 9.155045193 | AS32: =SUM(AS21:AS31) -> 2.684156717 | AT32: =SUM(AT21:AT31) -> 2.431427475 | AU32: =SUM(AU21:AU31) -> 2.457414856 | AW32: net Efs | AX32: =SUM(AX21:AX31) -> 0.8309269375 | AY32: =SUM(AY21:AY31) -> 0.2395290997 | AZ32: =SUM(AZ21:AZ31) -> 0.2194869171 | BA32: =SUM(BA21:BA31) -> 0.2200422996
B35: PC secondary material life-cycle data Franklin & Associates (2002)
B36: Process Energy for Virgin Production (GJ/Tonne) | V36: CO2 Emissions from Virgin Production: Process Energy Only
B37: Type of Product | C37: Delivered Electricity | D37: Coal | E37: Natural Gas | F37: Kerosene & Stove Oil | G37: Nat Gas feedstock (other fuels) | H37: Oils feedstock | I37: Diesel | J37: LPG | K37: Distillate (Light Fuel Oil) | L37: Residual (Heavy Fuel Oil) | M37: Gasoline | N37: Oil/ Lubricants | O37: Petroleum (Non-specified) | P37: Biomass | Q37: Hydro | R37: Nuclear | S37: Other | T37: Total | V37: Type of Product | W37: Delivered Electricity | X37: Coal | Y37: Natural Gas | Z37: Kerosene & Stove Oil | AA37: Nat Gas feedstock (other fuels) | AB37: Oils feedstock | AC37: Diesel | AD37: LPG | AE37: Distillate (Light Fuel Oil) | AF37: Residual (Heavy Fuel Oil) | AG37: Gasoline | AH37: Oil/ Lubricants | AI37: Petroleum (Non-specified) | AJ37: Biomass | AK37: Hydro | AL37: Nuclear | AM37: Other | AN37: Total
B38: Asphalt (Cold Patch) | C38: ='[3]Energy Data Conversion'!C34 -> 0.03991712649 | D38: ='[3]Energy Data Conversion'!D34 -> 0.0060472178 | E38: ='[3]Energy Data Conversion'!E34 -> 0.341900391 | F38: ='[3]Energy Data Conversion'!F34 -> 0 | G38: ='[3]Energy Data Conversion'!G34 -> 0 | H38: ='[3]Energy Data Conversion'!H34 -> 0 | I38: ='[3]Energy Data Conversion'!I34 -> 0 | J38: ='[3]Energy Data Conversion'!J34 -> 0.004274917814 | K38: ='[3]Energy Data Conversion'!K34 -> 0.027910236 | L38: ='[3]Energy Data Conversion'!L34 -> 0.0609373486 | M38: ='[3]Energy Data Conversion'!M34 -> 0.0062798031 | N38: ='[3]Energy Data Conversion'!N34 -> 0 | O38: ='[3]Energy Data Conversion'!O34 -> 0 | P38: ='[3]Energy Data Conversion'!P34 -> 0.000230259447 | Q38: ='[3]Energy Data Conversion'!Q34 -> 0 | R38: ='[3]Energy Data Conversion'!R34 -> 0.00141877033 | S38: ='[3]Energy Data Conversion'!S34 -> 0.000204675064 | T38: =SUM(C38:S38) -> 0.4891207456 | V38: Asphalt (Cold Patch) | W38: =C38*'[1]Electricity Coefficients'!$C$20 -> 0.002558825901 | X38: =D38*VLOOKUP(X$37,'[1]Carbon Coeffficients'!$B$5:$J$20,9,FALSE) -> 0.0005249547813 | Y38: =E38*VLOOKUP(Y$37,'[1]Carbon Coeffficients'!$B$5:$J$20,9,FALSE) -> 0.01720255346 | Z38: =F38*VLOOKUP(Z$37,'[1]Carbon Coeffficients'!$B$5:$J$20,9,FALSE) -> 0 | AA38: =G38*VLOOKUP(AA$37,'[1]Carbon Coeffficients'!$B$5:$J$20,9,FALSE) -> 0 | AB38: =H38*VLOOKUP(AB$37,'[1]Carbon Coeffficients'!$B$5:$J$20,9,FALSE) -> 0 | AC38: =I38*VLOOKUP(AC$37,'[1]Carbon Coeffficients'!$B$5:$J$20,9,FALSE) -> 0 | AD38: =J38*VLOOKUP(AD$37,'[1]Carbon Coeffficients'!$B$5:$J$20,9,FALSE) -> 0.0002592087012 | AE38: =K38*VLOOKUP(AE$37,'[1]Carbon Coeffficients'!$B$5:$J$20,9,FALSE) -> 0.002151715762 | AF38: =L38*VLOOKUP(AF$37,'[1]Carbon Coeffficients'!$B$5:$J$20,9,FALSE) -> 0.004714471743 | AG38: =M38*VLOOKUP(AG$37,'[1]Carbon Coeffficients'!$B$5:$J$20,9,FALSE) -> 0.0004481195902 | AH38: =N38*VLOOKUP(AH$37,'[1]Carbon Coeffficients'!$B$5:$J$20,9,FALSE) -> 0 | AI38: =O38*VLOOKUP(AI$37,'[1]Carbon Coeffficients'!$B$5:$J$20,9,FALSE) -> 0 | AJ38: =P38*VLOOKUP(AJ$37,'[1]Carbon Coeffficients'!$B$5:$J$20,9,FALSE) -> 2.214635361e-07 | AK38: =Q38*VLOOKUP(AK$37,'[1]Carbon Coeffficients'!$B$5:$J$20,9,FALSE) -> 0 | AL38: =R38*VLOOKUP(AL$37,'[1]Carbon Coeffficients'!$B$5:$J$20,9,FALSE) -> 0 | AM38: =S38*VLOOKUP(AM$37,'[1]Carbon Coeffficients'!$B$5:$J$20,9,FALSE) -> 0 | AN38: =SUM(W38:AM38) -> 0.0278600714
B39: Steel Sheet | C39: ='[3]Energy Data Conversion'!C35 -> 2.658496496 | D39: ='[3]Energy Data Conversion'!D35 -> 0.2451246814 | E39: ='[3]Energy Data Conversion'!E35 -> 7.23272867 | F39: ='[3]Energy Data Conversion'!F35 -> 0 | G39: ='[3]Energy Data Conversion'!G35 -> 0 | H39: ='[3]Energy Data Conversion'!H35 -> 0 | I39: ='[3]Energy Data Conversion'!I35 -> 0 | J39: ='[3]Energy Data Conversion'!J35 -> 0.001850569996 | K39: ='[3]Energy Data Conversion'!K35 -> 1.599573378 | L39: ='[3]Energy Data Conversion'!L35 -> 0.1386781424 | M39: ='[3]Energy Data Conversion'!M35 -> 0.1133462325 | N39: ='[3]Energy Data Conversion'!N35 -> 0 | O39: ='[3]Energy Data Conversion'!O35 -> 0 | P39: ='[3]Energy Data Conversion'!P35 -> 0.00676856931 | Q39: ='[3]Energy Data Conversion'!Q35 -> 0 | R39: ='[3]Energy Data Conversion'!R35 -> 0.04651706 | S39: ='[3]Energy Data Conversion'!S35 -> 0.00718654869 | T39: 12.05027035 | V39: Steel Sheet | W39: =C39*'[1]Electricity Coefficients'!$C$20 -> 0.1704188225 | X39: =D39*VLOOKUP(X$37,'[1]Carbon Coeffficients'!$B$5:$J$20,9,FALSE) -> 0.02127910351 | Y39: =E39*VLOOKUP(Y$37,'[1]Carbon Coeffficients'!$B$5:$J$20,9,FALSE) -> 0.3639112586 | Z39: =F39*VLOOKUP(Z$37,'[1]Carbon Coeffficients'!$B$5:$J$20,9,FALSE) -> 0 | AA39: =G39*VLOOKUP(AA$37,'[1]Carbon Coeffficients'!$B$5:$J$20,9,FALSE) -> 0 | AB39: =H39*VLOOKUP(AB$37,'[1]Carbon Coeffficients'!$B$5:$J$20,9,FALSE) -> 0 | AC39: =I39*VLOOKUP(AC$37,'[1]Carbon Coeffficients'!$B$5:$J$20,9,FALSE) -> 0 | AD39: =J39*VLOOKUP(AD$37,'[1]Carbon Coeffficients'!$B$5:$J$20,9,FALSE) -> 0.0001122089046 | AE39: =K39*VLOOKUP(AE$37,'[1]Carbon Coeffficients'!$B$5:$J$20,9,FALSE) -> 0.1233177409 | AF39: =L39*VLOOKUP(AF$37,'[1]Carbon Coeffficients'!$B$5:$J$20,9,FALSE) -> 0.01072895685 | AG39: =M39*VLOOKUP(AG$37,'[1]Carbon Coeffficients'!$B$5:$J$20,9,FALSE) -> 0.008088257933 | AH39: =N39*VLOOKUP(AH$37,'[1]Carbon Coeffficients'!$B$5:$J$20,9,FALSE) -> 0 | AI39: =O39*VLOOKUP(AI$37,'[1]Carbon Coeffficients'!$B$5:$J$20,9,FALSE) -> 0 | AJ39: =P39*VLOOKUP(AJ$37,'[1]Carbon Coeffficients'!$B$5:$J$20,9,FALSE) -> 6.510009962e-06 | AK39: =Q39*VLOOKUP(AK$37,'[1]Carbon Coeffficients'!$B$5:$J$20,9,FALSE) -> 0 | AL39: =R39*VLOOKUP(AL$37,'[1]Carbon Coeffficients'!$B$5:$J$20,9,FALSE) -> 0 | AM39: =S39*VLOOKUP(AM$37,'[1]Carbon Coeffficients'!$B$5:$J$20,9,FALSE) -> 0 | AN39: 0.6978628592
B40: Lead Bullion | C40: ='[3]Energy Data Conversion'!C36 -> 6.078830794 | D40: ='[3]Energy Data Conversion'!D36 -> 0.2063031611 | E40: ='[3]Energy Data Conversion'!E36 -> 2.41888712 | F40: ='[3]Energy Data Conversion'!F36 -> 0 | G40: ='[3]Energy Data Conversion'!G36 -> 0 | H40: ='[3]Energy Data Conversion'!H36 -> 0 | I40: ='[3]Energy Data Conversion'!I36 -> 0.0039539501 | J40: ='[3]Energy Data Conversion'!J36 -> 0.0009303412 | K40: ='[3]Energy Data Conversion'!K36 -> 0.167461416 | L40: ='[3]Energy Data Conversion'!L36 -> 0.20932677 | M40: ='[3]Energy Data Conversion'!M36 -> 0.0362833068 | N40: ='[3]Energy Data Conversion'!N36 -> 0 | O40: ='[3]Energy Data Conversion'!O36 -> 0 | P40: ='[3]Energy Data Conversion'!P36 -> 0.0123270209 | Q40: ='[3]Energy Data Conversion'!Q36 -> 0 | R40: ='[3]Energy Data Conversion'!R36 -> 0.076753149 | S40: ='[3]Energy Data Conversion'!S36 -> 0.0109315091 | T40: 9.221988538 | V40: Lead Bullion | W40: =C40*'[1]Electricity Coefficients'!$C$20 -> 0.3896740836 | X40: =D40*VLOOKUP(X$37,'[1]Carbon Coeffficients'!$B$5:$J$20,9,FALSE) -> 0.01790903427 | Y40: =E40*VLOOKUP(Y$37,'[1]Carbon Coeffficients'!$B$5:$J$20,9,FALSE) -> 0.1217051401 | Z40: =F40*VLOOKUP(Z$37,'[1]Carbon Coeffficients'!$B$5:$J$20,9,FALSE) -> 0 | AA40: =G40*VLOOKUP(AA$37,'[1]Carbon Coeffficients'!$B$5:$J$20,9,FALSE) -> 0 | AB40: =H40*VLOOKUP(AB$37,'[1]Carbon Coeffficients'!$B$5:$J$20,9,FALSE) -> 0 | AC40: =I40*VLOOKUP(AC$37,'[1]Carbon Coeffficients'!$B$5:$J$20,9,FALSE) -> 0.0002869538693 | AD40: =J40*VLOOKUP(AD$37,'[1]Carbon Coeffficients'!$B$5:$J$20,9,FALSE) -> 5.641103399e-05 | AE40: =K40*VLOOKUP(AE$37,'[1]Carbon Coeffficients'!$B$5:$J$20,9,FALSE) -> 0.01291029457 | AF40: =L40*VLOOKUP(AF$37,'[1]Carbon Coeffficients'!$B$5:$J$20,9,FALSE) -> 0.01619475026 | AG40: =M40*VLOOKUP(AG$37,'[1]Carbon Coeffficients'!$B$5:$J$20,9,FALSE) -> 0.00258913541 | AH40: =N40*VLOOKUP(AH$37,'[1]Carbon Coeffficients'!$B$5:$J$20,9,FALSE) -> 0 | AI40: =O40*VLOOKUP(AI$37,'[1]Carbon Coeffficients'!$B$5:$J$20,9,FALSE) -> 0 | AJ40: =P40*VLOOKUP(AJ$37,'[1]Carbon Coeffficients'!$B$5:$J$20,9,FALSE) -> 1.18561287e-05 | AK40: =Q40*VLOOKUP(AK$37,'[1]Carbon Coeffficients'!$B$5:$J$20,9,FALSE) -> 0 | AL40: =R40*VLOOKUP(AL$37,'[1]Carbon Coeffficients'!$B$5:$J$20,9,FALSE) -> 0 | AM40: =S40*VLOOKUP(AM$37,'[1]Carbon Coeffficients'!$B$5:$J$20,9,FALSE) -> 0 | AN40: 0.5613376593
B41: CRT Glass | C41: ='[3]Energy Data Conversion'!C37 -> 0.6539107799 | D41: ='[3]Energy Data Conversion'!D37 -> 0.239562859 | E41: ='[3]Energy Data Conversion'!E37 -> 6.76823223 | F41: ='[3]Energy Data Conversion'!F37 -> 0 | G41: ='[3]Energy Data Conversion'!G37 -> 0 | H41: ='[3]Energy Data Conversion'!H37 -> 0 | I41: ='[3]Energy Data Conversion'!I37 -> 0 | J41: ='[3]Energy Data Conversion'!J37 -> 0.00134899474 | K41: ='[3]Energy Data Conversion'!K37 -> 0.74427296 | L41: ='[3]Energy Data Conversion'!L37 -> 0.732643695 | M41: ='[3]Energy Data Conversion'!M37 -> 0.0430282805 | N41: ='[3]Energy Data Conversion'!N37 -> 0 | O41: ='[3]Energy Data Conversion'!O37 -> 0 | P41: ='[3]Energy Data Conversion'!P37 -> 0.0041865354 | Q41: ='[3]Energy Data Conversion'!Q37 -> 0 | R41: ='[3]Energy Data Conversion'!R37 -> 0.025584383 | S41: ='[3]Energy Data Conversion'!S37 -> 0.0037213648 | T41: 9.216492082 | V41: CRT Glass | W41: =C41*'[1]Electricity Coefficients'!$C$20 -> 0.04191794319 | X41: =D41*VLOOKUP(X$37,'[1]Carbon Coeffficients'!$B$5:$J$20,9,FALSE) -> 0.02079628557 | Y41: =E41*VLOOKUP(Y$37,'[1]Carbon Coeffficients'!$B$5:$J$20,9,FALSE) -> 0.340540344 | Z41: =F41*VLOOKUP(Z$37,'[1]Carbon Coeffficients'!$B$5:$J$20,9,FALSE) -> 0 | AA41: =G41*VLOOKUP(AA$37,'[1]Carbon Coeffficients'!$B$5:$J$20,9,FALSE) -> 0 | AB41: =H41*VLOOKUP(AB$37,'[1]Carbon Coeffficients'!$B$5:$J$20,9,FALSE) -> 0 | AC41: =I41*VLOOKUP(AC$37,'[1]Carbon Coeffficients'!$B$5:$J$20,9,FALSE) -> 0 | AD41: =J41*VLOOKUP(AD$37,'[1]Carbon Coeffficients'!$B$5:$J$20,9,FALSE) -> 8.179599928e-05 | AE41: =K41*VLOOKUP(AE$37,'[1]Carbon Coeffficients'!$B$5:$J$20,9,FALSE) -> 0.057379087 | AF41: =L41*VLOOKUP(AF$37,'[1]Carbon Coeffficients'!$B$5:$J$20,9,FALSE) -> 0.05668162591 | AG41: =M41*VLOOKUP(AG$37,'[1]Carbon Coeffficients'!$B$5:$J$20,9,FALSE) -> 0.003070449044 | AH41: =N41*VLOOKUP(AH$37,'[1]Carbon Coeffficients'!$B$5:$J$20,9,FALSE) -> 0 | AI41: =O41*VLOOKUP(AI$37,'[1]Carbon Coeffficients'!$B$5:$J$20,9,FALSE) -> 0 | AJ41: =P41*VLOOKUP(AJ$37,'[1]Carbon Coeffficients'!$B$5:$J$20,9,FALSE) -> 4.026609748e-06 | AK41: =Q41*VLOOKUP(AK$37,'[1]Carbon Coeffficients'!$B$5:$J$20,9,FALSE) -> 0 | AL41: =R41*VLOOKUP(AL$37,'[1]Carbon Coeffficients'!$B$5:$J$20,9,FALSE) -> 0 | AM41: =S41*VLOOKUP(AM$37,'[1]Carbon Coeffficients'!$B$5:$J$20,9,FALSE) -> 0 | AN41: 0.5204715574
B42: Copper Wire | C42: ='[3]Energy Data Conversion'!C38 -> 22.22026922 | D42: ='[3]Energy Data Conversion'!D38 -> 3.20967714 | E42: ='[3]Energy Data Conversion'!E38 -> 41.865354 | F42: ='[3]Energy Data Conversion'!F38 -> 0 | G42: ='[3]Energy Data Conversion'!G38 -> 0 | H42: ='[3]Energy Data Conversion'!H38 -> 0 | I42: ='[3]Energy Data Conversion'!I38 -> 15.42040539 | J42: ='[3]Energy Data Conversion'!J38 -> 0.02330737291 | K42: ='[3]Energy Data Conversion'!K38 -> 1.09315091 | L42: ='[3]Energy Data Conversion'!L38 -> 8.74520728 | M42: ='[3]Energy Data Conversion'!M38 -> 0.407024275 | N42: ='[3]Energy Data Conversion'!N38 -> 0 | O42: ='[3]Energy Data Conversion'!O38 -> 0 | P42: ='[3]Energy Data Conversion'!P38 -> 0.06977559 | Q42: ='[3]Energy Data Conversion'!Q38 -> 0 | R42: ='[3]Energy Data Conversion'!R38 -> 0.41865354 | S42: ='[3]Energy Data Conversion'!S38 -> 0.060472178 | T42: 93.5332969 | V42: Copper Wire | W42: =C42*'[1]Electricity Coefficients'!$C$20 -> 1.424396128 | X42: =D42*VLOOKUP(X$37,'[1]Carbon Coeffficients'!$B$5:$J$20,9,FALSE) -> 0.2786298455 | Y42: =E42*VLOOKUP(Y$37,'[1]Carbon Coeffficients'!$B$5:$J$20,9,FALSE) -> 2.106435118 | Z42: =F42*VLOOKUP(Z$37,'[1]Carbon Coeffficients'!$B$5:$J$20,9,FALSE) -> 0 | AA42: =G42*VLOOKUP(AA$37,'[1]Carbon Coeffficients'!$B$5:$J$20,9,FALSE) -> 0 | AB42: =H42*VLOOKUP(AB$37,'[1]Carbon Coeffficients'!$B$5:$J$20,9,FALSE) -> 0 | AC42: =I42*VLOOKUP(AC$37,'[1]Carbon Coeffficients'!$B$5:$J$20,9,FALSE) -> 1.11912009 | AD42: =J42*VLOOKUP(AD$37,'[1]Carbon Coeffficients'!$B$5:$J$20,9,FALSE) -> 0.001413237429 | AE42: =K42*VLOOKUP(AE$37,'[1]Carbon Coeffficients'!$B$5:$J$20,9,FALSE) -> 0.08427553403 | AF42: =L42*VLOOKUP(AF$37,'[1]Carbon Coeffficients'!$B$5:$J$20,9,FALSE) -> 0.6765806776 | AG42: =M42*VLOOKUP(AG$37,'[1]Carbon Coeffficients'!$B$5:$J$20,9,FALSE) -> 0.02904478826 | AH42: =N42*VLOOKUP(AH$37,'[1]Carbon Coeffficients'!$B$5:$J$20,9,FALSE) -> 0 | AI42: =O42*VLOOKUP(AI$37,'[1]Carbon Coeffficients'!$B$5:$J$20,9,FALSE) -> 0 | AJ42: =P42*VLOOKUP(AJ$37,'[1]Carbon Coeffficients'!$B$5:$J$20,9,FALSE) -> 6.711016246e-05 | AK42: =Q42*VLOOKUP(AK$37,'[1]Carbon Coeffficients'!$B$5:$J$20,9,FALSE) -> 0 | AL42: =R42*VLOOKUP(AL$37,'[1]Carbon Coeffficients'!$B$5:$J$20,9,FALSE) -> 0 | AM42: =S42*VLOOKUP(AM$37,'[1]Carbon Coeffficients'!$B$5:$J$20,9,FALSE) -> 0 | AN42: 5.719962529
B43: Aluminum Sheet | C43: ='[3]Energy Data Conversion'!C39 -> 68.4384292 | D43: ='[3]Energy Data Conversion'!D39 -> 1.72113122 | E43: ='[3]Energy Data Conversion'!E39 -> 21.25829642 | F43: ='[3]Energy Data Conversion'!F39 -> 0 | G43: ='[3]Energy Data Conversion'!G39 -> 0 | H43: ='[3]Energy Data Conversion'!H39 -> 0 | I43: ='[3]Energy Data Conversion'!I39 -> 0.48842913 | J43: ='[3]Energy Data Conversion'!J39 -> 0.025584383 | K43: ='[3]Energy Data Conversion'!K39 -> 1.46528739 | L43: ='[3]Energy Data Conversion'!L39 -> 2.7910236 | M43: ='[3]Energy Data Conversion'!M39 -> 0.2665427538 | N43: ='[3]Energy Data Conversion'!N39 -> 0 | O43: ='[3]Energy Data Conversion'!O39 -> 0 | P43: ='[3]Energy Data Conversion'!P39 -> 0.062798031 | Q43: ='[3]Energy Data Conversion'!Q39 -> 0 | R43: ='[3]Energy Data Conversion'!R39 -> 0.39539501 | S43: ='[3]Energy Data Conversion'!S39 -> 0.055820472 | T43: 96.96873761 | V43: Aluminum Sheet | W43: =C43*'[1]Electricity Coefficients'!$C$20 -> 4.387140074 | X43: =D43*VLOOKUP(X$37,'[1]Carbon Coeffficients'!$B$5:$J$20,9,FALSE) -> 0.149410207 | Y43: =E43*VLOOKUP(Y$37,'[1]Carbon Coeffficients'!$B$5:$J$20,9,FALSE) -> 1.069600943 | Z43: =F43*VLOOKUP(Z$37,'[1]Carbon Coeffficients'!$B$5:$J$20,9,FALSE) -> 0 | AA43: =G43*VLOOKUP(AA$37,'[1]Carbon Coeffficients'!$B$5:$J$20,9,FALSE) -> 0 | AB43: =H43*VLOOKUP(AB$37,'[1]Carbon Coeffficients'!$B$5:$J$20,9,FALSE) -> 0 | AC43: =I43*VLOOKUP(AC$37,'[1]Carbon Coeffficients'!$B$5:$J$20,9,FALSE) -> 0.03544724267 | AD43: =J43*VLOOKUP(AD$37,'[1]Carbon Coeffficients'!$B$5:$J$20,9,FALSE) -> 0.001551303435 | AE43: =K43*VLOOKUP(AE$37,'[1]Carbon Coeffficients'!$B$5:$J$20,9,FALSE) -> 0.1129650775 | AF43: =L43*VLOOKUP(AF$37,'[1]Carbon Coeffficients'!$B$5:$J$20,9,FALSE) -> 0.2159300035 | AG43: =M43*VLOOKUP(AG$37,'[1]Carbon Coeffficients'!$B$5:$J$20,9,FALSE) -> 0.01902018705 | AH43: =N43*VLOOKUP(AH$37,'[1]Carbon Coeffficients'!$B$5:$J$20,9,FALSE) -> 0 | AI43: =O43*VLOOKUP(AI$37,'[1]Carbon Coeffficients'!$B$5:$J$20,9,FALSE) -> 0 | AJ43: =P43*VLOOKUP(AJ$37,'[1]Carbon Coeffficients'!$B$5:$J$20,9,FALSE) -> 6.039914622e-05 | AK43: =Q43*VLOOKUP(AK$37,'[1]Carbon Coeffficients'!$B$5:$J$20,9,FALSE) -> 0 | AL43: =R43*VLOOKUP(AL$37,'[1]Carbon Coeffficients'!$B$5:$J$20,9,FALSE) -> 0 | AM43: =S43*VLOOKUP(AM$37,'[1]Carbon Coeffficients'!$B$5:$J$20,9,FALSE) -> 0 | AN43: 5.991125438
B45: Transportation Energy for Virgin Production (GJ/Tonne) | V45: CO2 Emissions from Virgin Production: Transportation Energy Only
B46: Type of Product | C46: Delivered Electricity | D46: Coal | E46: Natural Gas | F46: Kerosene & Stove Oil | G46: Nat Gas feedstock (other fuels) | H46: Oils feedstock | I46: Diesel | J46: LPG | K46: Distillate (Light Fuel Oil) | L46: Residual (Heavy Fuel Oil) | M46: Gasoline | N46: Oil/ Lubricants | O46: Petroleum (Non-specified) | P46: Biomass | Q46: Hydro | R46: Nuclear | S46: Other | T46: Total | V46: Type of Product | W46: Delivered Electricity | X46: Coal | Y46: Natural Gas | Z46: Kerosene & Stove Oil | AA46: Nat Gas feedstock (other fuels) | AB46: Oils feedstock | AC46: Diesel | AD46: LPG | AE46: Distillate (Light Fuel Oil) | AF46: Residual (Heavy Fuel Oil) | AG46: Gasoline | AH46: Oil/ Lubricants | AI46: Petroleum (Non-specified) | AJ46: Biomass | AK46: Hydro | AL46: Nuclear | AM46: Other | AN46: Total
B47: Asphalt (Cold Patch) | C47: ='[3]Energy Data Conversion'!C42 -> 0.001745878296 | D47: ='[3]Energy Data Conversion'!D42 -> 0.00204675064 | E47: ='[3]Energy Data Conversion'!E42 -> 0.0155832151 | F47: ='[3]Energy Data Conversion'!F42 -> 0 | G47: ='[3]Energy Data Conversion'!G42 -> 0 | H47: ='[3]Energy Data Conversion'!H42 -> 0 | I47: ='[3]Energy Data Conversion'!I42 -> 0.1125712852 | J47: ='[3]Energy Data Conversion'!J42 -> 0.000183742387 | K47: ='[3]Energy Data Conversion'!K42 -> 0.00095359973 | L47: ='[3]Energy Data Conversion'!L42 -> 0.100011679 | M47: ='[3]Energy Data Conversion'!M42 -> 0.00025584383 | N47: ='[3]Energy Data Conversion'!N42 -> 0 | O47: ='[3]Energy Data Conversion'!O42 -> 0 | P47: ='[3]Energy Data Conversion'!P42 -> 0.000127921915 | Q47: ='[3]Energy Data Conversion'!Q42 -> 0 | R47: ='[3]Energy Data Conversion'!R42 -> 0.00079079002 | S47: ='[3]Energy Data Conversion'!S42 -> 0.000113966797 | T47: =SUM(C47:S47) -> 0.2343846729 | V47: Asphalt (Cold Patch) | W47: =C47*'[1]Electricity Coefficients'!$C$20 -> 0.0001119168386 | X47: =D47*VLOOKUP(X$37,'[1]Carbon Coeffficients'!$B$5:$J$20,9,FALSE) -> 0.0001776770029 | Y47: =E47*VLOOKUP(Y$37,'[1]Carbon Coeffficients'!$B$5:$J$20,9,FALSE) -> 0.0007840619605 | Z47: =F47*VLOOKUP(Z$37,'[1]Carbon Coeffficients'!$B$5:$J$20,9,FALSE) -> 0 | AA47: =G47*VLOOKUP(AA$37,'[1]Carbon Coeffficients'!$B$5:$J$20,9,FALSE) -> 0 | AB47: =H47*VLOOKUP(AB$37,'[1]Carbon Coeffficients'!$B$5:$J$20,9,FALSE) -> 0 | AC47: =I47*VLOOKUP(AC$37,'[1]Carbon Coeffficients'!$B$5:$J$20,9,FALSE) -> 0.008169745454 | AD47: =J47*VLOOKUP(AD$37,'[1]Carbon Coeffficients'!$B$5:$J$20,9,FALSE) -> 1.114117921e-05 | AE47: =K47*VLOOKUP(AE$37,'[1]Carbon Coeffficients'!$B$5:$J$20,9,FALSE) -> 7.351695522e-05 | AF47: =L47*VLOOKUP(AF$37,'[1]Carbon Coeffficients'!$B$5:$J$20,9,FALSE) -> 0.007737491791 | AG47: =M47*VLOOKUP(AG$37,'[1]Carbon Coeffficients'!$B$5:$J$20,9,FALSE) -> 1.825672405e-05 | AH47: =N47*VLOOKUP(AH$37,'[1]Carbon Coeffficients'!$B$5:$J$20,9,FALSE) -> 0 | AI47: =O47*VLOOKUP(AI$37,'[1]Carbon Coeffficients'!$B$5:$J$20,9,FALSE) -> 0 | AJ47: =P47*VLOOKUP(AJ$37,'[1]Carbon Coeffficients'!$B$5:$J$20,9,FALSE) -> 1.230352978e-07 | AK47: =Q47*VLOOKUP(AK$37,'[1]Carbon Coeffficients'!$B$5:$J$20,9,FALSE) -> 0 | AL47: =R47*VLOOKUP(AL$37,'[1]Carbon Coeffficients'!$B$5:$J$20,9,FALSE) -> 0 | AM47: =S47*VLOOKUP(AM$37,'[1]Carbon Coeffficients'!$B$5:$J$20,9,FALSE) -> 0 | AN47: =SUM(W47:AM47) -> 0.01708393094
B48: Steel Sheet | C48: ='[3]Energy Data Conversion'!C43 -> 0.0001190371565 | D48: ='[3]Energy Data Conversion'!D43 -> 0.01382365674 | E48: ='[3]Energy Data Conversion'!E43 -> 0.1084723906 | F48: ='[3]Energy Data Conversion'!F43 -> 0 | G48: ='[3]Energy Data Conversion'!G43 -> 0 | H48: ='[3]Energy Data Conversion'!H43 -> 0 | I48: ='[3]Energy Data Conversion'!I43 -> 1.279778703 | J48: ='[3]Energy Data Conversion'!J43 -> 0.00127888207 | K48: ='[3]Energy Data Conversion'!K43 -> 0.006394410349 | L48: ='[3]Energy Data Conversion'!L43 -> 0.215421179 | M48: ='[3]Energy Data Conversion'!M43 -> 0.001708996335 | N48: ='[3]Energy Data Conversion'!N43 -> 0 | O48: ='[3]Energy Data Conversion'!O43 -> 0 | P48: ='[3]Energy Data Conversion'!P43 -> 0.0008568577284 | Q48: ='[3]Energy Data Conversion'!Q43 -> 0 | R48: ='[3]Energy Data Conversion'!R43 -> 0.005255079459 | S48: ='[3]Energy Data Conversion'!S43 -> 0.0007766326539 | T48: 1.633885825 | V48: Steel Sheet | W48: =C48*'[1]Electricity Coefficients'!$C$20 -> 7.630693543e-06 | X48: =D48*VLOOKUP(X$37,'[1]Carbon Coeffficients'!$B$5:$J$20,9,FALSE) -> 0.00120002205 | Y48: =E48*VLOOKUP(Y$37,'[1]Carbon Coeffficients'!$B$5:$J$20,9,FALSE) -> 0.005457736078 | Z48: =F48*VLOOKUP(Z$37,'[1]Carbon Coeffficients'!$B$5:$J$20,9,FALSE) -> 0 | AA48: =G48*VLOOKUP(AA$37,'[1]Carbon Coeffficients'!$B$5:$J$20,9,FALSE) -> 0 | AB48: =H48*VLOOKUP(AB$37,'[1]Carbon Coeffficients'!$B$5:$J$20,9,FALSE) -> 0 | AC48: =I48*VLOOKUP(AC$37,'[1]Carbon Coeffficients'!$B$5:$J$20,9,FALSE) -> 0.09287862551 | AD48: =J48*VLOOKUP(AD$37,'[1]Carbon Coeffficients'!$B$5:$J$20,9,FALSE) -> 7.754473295e-05 | AE48: =K48*VLOOKUP(AE$37,'[1]Carbon Coeffficients'!$B$5:$J$20,9,FALSE) -> 0.0004929715944 | AF48: =L48*VLOOKUP(AF$37,'[1]Carbon Coeffficients'!$B$5:$J$20,9,FALSE) -> 0.01666624959 | AG48: =M48*VLOOKUP(AG$37,'[1]Carbon Coeffficients'!$B$5:$J$20,9,FALSE) -> 0.0001219520302 | AH48: =N48*VLOOKUP(AH$37,'[1]Carbon Coeffficients'!$B$5:$J$20,9,FALSE) -> 0 | AI48: =O48*VLOOKUP(AI$37,'[1]Carbon Coeffficients'!$B$5:$J$20,9,FALSE) -> 0 | AJ48: =P48*VLOOKUP(AJ$37,'[1]Carbon Coeffficients'!$B$5:$J$20,9,FALSE) -> 8.241257632e-07 | AK48: =Q48*VLOOKUP(AK$37,'[1]Carbon Coeffficients'!$B$5:$J$20,9,FALSE) -> 0 | AL48: =R48*VLOOKUP(AL$37,'[1]Carbon Coeffficients'!$B$5:$J$20,9,FALSE) -> 0 | AM48: =S48*VLOOKUP(AM$37,'[1]Carbon Coeffficients'!$B$5:$J$20,9,FALSE) -> 0 | AN48: 0.1169035564
B49: Lead Bullion | C49: ='[3]Energy Data Conversion'!C44 -> 3.174324174e-05 | D49: ='[3]Energy Data Conversion'!D44 -> 0.0062798031 | E49: ='[3]Energy Data Conversion'!E44 -> 0.048842913 | F49: ='[3]Energy Data Conversion'!F44 -> 0 | G49: ='[3]Energy Data Conversion'!G44 -> 0 | H49: ='[3]Energy Data Conversion'!H44 -> 0 | I49: ='[3]Energy Data Conversion'!I44 -> 0.6335623572 | J49: ='[3]Energy Data Conversion'!J44 -> 0.00058146325 | K49: ='[3]Energy Data Conversion'!K44 -> 0.0030236089 | L49: ='[3]Energy Data Conversion'!L44 -> 0.0374462333 | M49: ='[3]Energy Data Conversion'!M44 -> 0.00076753149 | N49: ='[3]Energy Data Conversion'!N44 -> 0 | O49: ='[3]Energy Data Conversion'!O44 -> 0 | P49: ='[3]Energy Data Conversion'!P44 -> 0.00039539501 | Q49: ='[3]Energy Data Conversion'!Q44 -> 0 | R49: ='[3]Energy Data Conversion'!R44 -> 0.002325853 | S49: ='[3]Energy Data Conversion'!S44 -> 0.00034887795 | T49: 0.7336057794 | V49: Lead Bullion | W49: =C49*'[1]Electricity Coefficients'!$C$20 -> 2.034851611e-06 | X49: =D49*VLOOKUP(X$37,'[1]Carbon Coeffficients'!$B$5:$J$20,9,FALSE) -> 0.0005451453498 | Y49: =E49*VLOOKUP(Y$37,'[1]Carbon Coeffficients'!$B$5:$J$20,9,FALSE) -> 0.002457507637 | Z49: =F49*VLOOKUP(Z$37,'[1]Carbon Coeffficients'!$B$5:$J$20,9,FALSE) -> 0 | AA49: =G49*VLOOKUP(AA$37,'[1]Carbon Coeffficients'!$B$5:$J$20,9,FALSE) -> 0 | AB49: =H49*VLOOKUP(AB$37,'[1]Carbon Coeffficients'!$B$5:$J$20,9,FALSE) -> 0 | AC49: =I49*VLOOKUP(AC$37,'[1]Carbon Coeffficients'!$B$5:$J$20,9,FALSE) -> 0.04598013764 | AD49: =J49*VLOOKUP(AD$37,'[1]Carbon Coeffficients'!$B$5:$J$20,9,FALSE) -> 3.525689624e-05 | AE49: =K49*VLOOKUP(AE$37,'[1]Carbon Coeffficients'!$B$5:$J$20,9,FALSE) -> 0.0002331025409 | AF49: =L49*VLOOKUP(AF$37,'[1]Carbon Coeffficients'!$B$5:$J$20,9,FALSE) -> 0.00289706088 | AG49: =M49*VLOOKUP(AG$37,'[1]Carbon Coeffficients'!$B$5:$J$20,9,FALSE) -> 5.477017214e-05 | AH49: =N49*VLOOKUP(AH$37,'[1]Carbon Coeffficients'!$B$5:$J$20,9,FALSE) -> 0 | AI49: =O49*VLOOKUP(AI$37,'[1]Carbon Coeffficients'!$B$5:$J$20,9,FALSE) -> 0 | AJ49: =P49*VLOOKUP(AJ$37,'[1]Carbon Coeffficients'!$B$5:$J$20,9,FALSE) -> 3.802909206e-07 | AK49: =Q49*VLOOKUP(AK$37,'[1]Carbon Coeffficients'!$B$5:$J$20,9,FALSE) -> 0 | AL49: =R49*VLOOKUP(AL$37,'[1]Carbon Coeffficients'!$B$5:$J$20,9,FALSE) -> 0 | AM49: =S49*VLOOKUP(AM$37,'[1]Carbon Coeffficients'!$B$5:$J$20,9,FALSE) -> 0 | AN49: 0.05220539626
B50: CRT Glass | C50: ='[3]Energy Data Conversion'!C45 -> 0 | D50: ='[3]Energy Data Conversion'!D45 -> 0.0027910236 | E50: ='[3]Energy Data Conversion'!E45 -> 0.0211652623 | F50: ='[3]Energy Data Conversion'!F45 -> 0 | G50: ='[3]Energy Data Conversion'!G45 -> 0 | H50: ='[3]Energy Data Conversion'!H45 -> 0 | I50: ='[3]Energy Data Conversion'!I45 -> 0.2897315082 | J50: ='[3]Energy Data Conversion'!J45 -> 0.00025584383 | K50: ='[3]Energy Data Conversion'!K45 -> 0.00037213648 | L50: ='[3]Energy Data Conversion'!L45 -> 0.01267589885 | M50: ='[3]Energy Data Conversion'!M45 -> 0.00113966797 | N50: ='[3]Energy Data Conversion'!N45 -> 0 | O50: ='[3]Energy Data Conversion'!O45 -> 0 | P50: ='[3]Energy Data Conversion'!P45 -> 0.000169787269 | Q50: ='[3]Energy Data Conversion'!Q45 -> 0 | R50: ='[3]Energy Data Conversion'!R45 -> 0.00104663385 | S50: ='[3]Energy Data Conversion'!S45 -> 0.000151180445 | T50: 0.3294989428 | V50: CRT Glass | W50: =C50*'[1]Electricity Coefficients'!$C$20 -> 0 | X50: =D50*VLOOKUP(X$37,'[1]Carbon Coeffficients'!$B$5:$J$20,9,FALSE) -> 0.0002422868221 | Y50: =E50*VLOOKUP(Y$37,'[1]Carbon Coeffficients'!$B$5:$J$20,9,FALSE) -> 0.001064919976 | Z50: =F50*VLOOKUP(Z$37,'[1]Carbon Coeffficients'!$B$5:$J$20,9,FALSE) -> 0 | AA50: =G50*VLOOKUP(AA$37,'[1]Carbon Coeffficients'!$B$5:$J$20,9,FALSE) -> 0 | AB50: =H50*VLOOKUP(AB$37,'[1]Carbon Coeffficients'!$B$5:$J$20,9,FALSE) -> 0 | AC50: =I50*VLOOKUP(AC$37,'[1]Carbon Coeffficients'!$B$5:$J$20,9,FALSE) -> 0.02102696676 | AD50: =J50*VLOOKUP(AD$37,'[1]Carbon Coeffficients'!$B$5:$J$20,9,FALSE) -> 1.551303435e-05 | AE50: =K50*VLOOKUP(AE$37,'[1]Carbon Coeffficients'!$B$5:$J$20,9,FALSE) -> 2.86895435e-05 | AF50: =L50*VLOOKUP(AF$37,'[1]Carbon Coeffficients'!$B$5:$J$20,9,FALSE) -> 0.0009806820991 | AG50: =M50*VLOOKUP(AG$37,'[1]Carbon Coeffficients'!$B$5:$J$20,9,FALSE) -> 8.132540712e-05 | AH50: =N50*VLOOKUP(AH$37,'[1]Carbon Coeffficients'!$B$5:$J$20,9,FALSE) -> 0 | AI50: =O50*VLOOKUP(AI$37,'[1]Carbon Coeffficients'!$B$5:$J$20,9,FALSE) -> 0 | AJ50: =P50*VLOOKUP(AJ$37,'[1]Carbon Coeffficients'!$B$5:$J$20,9,FALSE) -> 1.633013953e-07 | AK50: =Q50*VLOOKUP(AK$37,'[1]Carbon Coeffficients'!$B$5:$J$20,9,FALSE) -> 0 | AL50: =R50*VLOOKUP(AL$37,'[1]Carbon Coeffficients'!$B$5:$J$20,9,FALSE) -> 0 | AM50: =S50*VLOOKUP(AM$37,'[1]Carbon Coeffficients'!$B$5:$J$20,9,FALSE) -> 0 | AN50: 0.02344054694
B51: Copper Wire | C51: ='[3]Energy Data Conversion'!C46 -> 3.333040383e-05 | D51: ='[3]Energy Data Conversion'!D46 -> 0.004651706 | E51: ='[3]Energy Data Conversion'!E46 -> 0.03739273868 | F51: ='[3]Energy Data Conversion'!F46 -> 0 | G51: ='[3]Energy Data Conversion'!G46 -> 0 | H51: ='[3]Energy Data Conversion'!H46 -> 0 | I51: ='[3]Energy Data Conversion'!I46 -> 0.4699990708 | J51: ='[3]Energy Data Conversion'!J46 -> 0.00044191207 | K51: ='[3]Energy Data Conversion'!K46 -> 0.0020932677 | L51: ='[3]Energy Data Conversion'!L46 -> 0.02243750389 | M51: ='[3]Energy Data Conversion'!M46 -> 0.0004651706 | N51: ='[3]Energy Data Conversion'!N46 -> 0 | O51: ='[3]Energy Data Conversion'!O46 -> 0 | P51: ='[3]Energy Data Conversion'!P46 -> 0.00030236089 | Q51: ='[3]Energy Data Conversion'!Q46 -> 0 | R51: ='[3]Energy Data Conversion'!R46 -> 0.0018606824 | S51: ='[3]Energy Data Conversion'!S46 -> 0.00025584383 | T51: 0.5399335873 | V51: Copper Wire | W51: =C51*'[1]Electricity Coefficients'!$C$20 -> 2.136594192e-06 | X51: =D51*VLOOKUP(X$37,'[1]Carbon Coeffficients'!$B$5:$J$20,9,FALSE) -> 0.0004038113702 | Y51: =E51*VLOOKUP(Y$37,'[1]Carbon Coeffficients'!$B$5:$J$20,9,FALSE) -> 0.001881397633 | Z51: =F51*VLOOKUP(Z$37,'[1]Carbon Coeffficients'!$B$5:$J$20,9,FALSE) -> 0 | AA51: =G51*VLOOKUP(AA$37,'[1]Carbon Coeffficients'!$B$5:$J$20,9,FALSE) -> 0 | AB51: =H51*VLOOKUP(AB$37,'[1]Carbon Coeffficients'!$B$5:$J$20,9,FALSE) -> 0 | AC51: =I51*VLOOKUP(AC$37,'[1]Carbon Coeffficients'!$B$5:$J$20,9,FALSE) -> 0.03410970005 | AD51: =J51*VLOOKUP(AD$37,'[1]Carbon Coeffficients'!$B$5:$J$20,9,FALSE) -> 2.679524114e-05 | AE51: =K51*VLOOKUP(AE$37,'[1]Carbon Coeffficients'!$B$5:$J$20,9,FALSE) -> 0.0001613786822 | AF51: =L51*VLOOKUP(AF$37,'[1]Carbon Coeffficients'!$B$5:$J$20,9,FALSE) -> 0.001735897286 | AG51: =M51*VLOOKUP(AG$37,'[1]Carbon Coeffficients'!$B$5:$J$20,9,FALSE) -> 3.319404372e-05 | AH51: =N51*VLOOKUP(AH$37,'[1]Carbon Coeffficients'!$B$5:$J$20,9,FALSE) -> 0 | AI51: =O51*VLOOKUP(AI$37,'[1]Carbon Coeffficients'!$B$5:$J$20,9,FALSE) -> 0 | AJ51: =P51*VLOOKUP(AJ$37,'[1]Carbon Coeffficients'!$B$5:$J$20,9,FALSE) -> 2.90810704e-07 | AK51: =Q51*VLOOKUP(AK$37,'[1]Carbon Coeffficients'!$B$5:$J$20,9,FALSE) -> 0 | AL51: =R51*VLOOKUP(AL$37,'[1]Carbon Coeffficients'!$B$5:$J$20,9,FALSE) -> 0 | AM51: =S51*VLOOKUP(AM$37,'[1]Carbon Coeffficients'!$B$5:$J$20,9,FALSE) -> 0 | AN51: 0.03835460171
B52: Aluminum Sheet | C52: ='[3]Energy Data Conversion'!C47 -> 0.008650033375 | D52: ='[3]Energy Data Conversion'!D47 -> 0.072101443 | E52: ='[3]Energy Data Conversion'!E47 -> 0.55820472 | F52: ='[3]Energy Data Conversion'!F47 -> 0 | G52: ='[3]Energy Data Conversion'!G47 -> 0 | H52: ='[3]Energy Data Conversion'!H47 -> 0 | I52: ='[3]Energy Data Conversion'!I47 -> 0.8998725257 | J52: ='[3]Energy Data Conversion'!J47 -> 0.0065123884 | K52: ='[3]Energy Data Conversion'!K47 -> 0.032561942 | L52: ='[3]Energy Data Conversion'!L47 -> 6.678221719 | M52: ='[3]Energy Data Conversion'!M47 -> 0.0086056561 | N52: ='[3]Energy Data Conversion'!N47 -> 0 | O52: ='[3]Energy Data Conversion'!O47 -> 0 | P52: ='[3]Energy Data Conversion'!P47 -> 0.0044191207 | Q52: ='[3]Energy Data Conversion'!Q47 -> 0 | R52: ='[3]Energy Data Conversion'!R47 -> 0.027910236 | S52: ='[3]Energy Data Conversion'!S47 -> 0.0039539501 | T52: 8.301013734 | V52: Aluminum Sheet | W52: =C52*'[1]Electricity Coefficients'!$C$20 -> 0.0005544970641 | X52: =D52*VLOOKUP(X$37,'[1]Carbon Coeffficients'!$B$5:$J$20,9,FALSE) -> 0.006259076239 | Y52: =E52*VLOOKUP(Y$37,'[1]Carbon Coeffficients'!$B$5:$J$20,9,FALSE) -> 0.02808580157 | Z52: =F52*VLOOKUP(Z$37,'[1]Carbon Coeffficients'!$B$5:$J$20,9,FALSE) -> 0 | AA52: =G52*VLOOKUP(AA$37,'[1]Carbon Coeffficients'!$B$5:$J$20,9,FALSE) -> 0 | AB52: =H52*VLOOKUP(AB$37,'[1]Carbon Coeffficients'!$B$5:$J$20,9,FALSE) -> 0 | AC52: =I52*VLOOKUP(AC$37,'[1]Carbon Coeffficients'!$B$5:$J$20,9,FALSE) -> 0.06530732471 | AD52: =J52*VLOOKUP(AD$37,'[1]Carbon Coeffficients'!$B$5:$J$20,9,FALSE) -> 0.0003948772379 | AE52: =K52*VLOOKUP(AE$37,'[1]Carbon Coeffficients'!$B$5:$J$20,9,FALSE) -> 0.002510335056 | AF52: =L52*VLOOKUP(AF$37,'[1]Carbon Coeffficients'!$B$5:$J$20,9,FALSE) -> 0.5166665158 | AG52: =M52*VLOOKUP(AG$37,'[1]Carbon Coeffficients'!$B$5:$J$20,9,FALSE) -> 0.0006140898088 | AH52: =N52*VLOOKUP(AH$37,'[1]Carbon Coeffficients'!$B$5:$J$20,9,FALSE) -> 0 | AI52: =O52*VLOOKUP(AI$37,'[1]Carbon Coeffficients'!$B$5:$J$20,9,FALSE) -> 0 | AJ52: =P52*VLOOKUP(AJ$37,'[1]Carbon Coeffficients'!$B$5:$J$20,9,FALSE) -> 4.250310289e-06 | AK52: =Q52*VLOOKUP(AK$37,'[1]Carbon Coeffficients'!$B$5:$J$20,9,FALSE) -> 0 | AL52: =R52*VLOOKUP(AL$37,'[1]Carbon Coeffficients'!$B$5:$J$20,9,FALSE) -> 0 | AM52: =S52*VLOOKUP(AM$37,'[1]Carbon Coeffficients'!$B$5:$J$20,9,FALSE) -> 0 | AN52: 0.6203967678
B56: Process Energy for Recycled Production (GJ/Tonne) | V56: CO2 Emissions from Recycled Production: Process Only
B57: Type of Product | C57: Delivered Electricity | D57: Coal | E57: Natural Gas | F57: Kerosene & Stove Oil | G57: Nat Gas feedstock (other fuels) | H57: Oils feedstock | I57: Diesel | J57: LPG | K57: Distillate (Light Fuel Oil) | L57: Residual (Heavy Fuel Oil) | M57: Gasoline | N57: Oil/ Lubricants | O57: Petroleum (Non-specified) | P57: Biomass | Q57: Hydro | R57: Nuclear | S57: Other | T57: Total | V57: Type of Product | W57: Delivered Electricity | X57: Coal | Y57: Natural Gas | Z57: Kerosene & Stove Oil | AA57: Nat Gas feedstock (other fuels) | AB57: Oils feedstock | AC57: Diesel | AD57: LPG | AE57: Distillate (Light Fuel Oil) | AF57: Residual (Heavy Fuel Oil) | AG57: Gasoline | AH57: Oil/ Lubricants | AI57: Petroleum (Non-specified) | AJ57: Biomass | AK57: Hydro | AL57: Nuclear | AM57: Other | AN57: Total
B58: Asphalt (Cold Patch) | C58: ='[3]Energy Data Conversion'!C50+D189 -> 2.411223606 | D58: ='[3]Energy Data Conversion'!D50 -> 0.058146325 | E58: ='[3]Energy Data Conversion'!E50 -> 0.567508132 | F58: ='[3]Energy Data Conversion'!F50 -> 0 | G58: ='[3]Energy Data Conversion'!G50 -> 0 | H58: ='[3]Energy Data Conversion'!H50 -> 0 | I58: ='[3]Energy Data Conversion'!I50 -> 0 | J58: ='[3]Energy Data Conversion'!J50 -> 0.00632632016 | K58: ='[3]Energy Data Conversion'!K50 -> 0.0541923749 | L58: ='[3]Energy Data Conversion'!L50 -> 0.0972206554 | M58: ='[3]Energy Data Conversion'!M50 -> 0.0125596062 | N58: ='[3]Energy Data Conversion'!N50 -> 0 | O58: ='[3]Energy Data Conversion'!O50 -> 0 | P58: ='[3]Energy Data Conversion'!P50 -> 0.0034887795 | Q58: ='[3]Energy Data Conversion'!Q50 -> 0 | R58: ='[3]Energy Data Conversion'!R50 -> 0.0216304329 | S58: ='[3]Energy Data Conversion'!S50 -> 0.0030236089 | T58: =SUM(C58:S58) -> 3.235319841 | V58: Asphalt (Cold Patch) | W58: =C58*'[1]Electricity Coefficients'!$D$20 -> 0.1956334386 | X58: =D58*VLOOKUP(X$37,'[1]Carbon Coeffficients'!$B$5:$J$20,9,FALSE) -> 0.005047642128 | Y58: =E58*VLOOKUP(Y$37,'[1]Carbon Coeffficients'!$B$5:$J$20,9,FALSE) -> 0.02855389826 | Z58: =F58*VLOOKUP(Z$37,'[1]Carbon Coeffficients'!$B$5:$J$20,9,FALSE) -> 0 | AA58: =G58*VLOOKUP(AA$37,'[1]Carbon Coeffficients'!$B$5:$J$20,9,FALSE) -> 0 | AB58: =H58*VLOOKUP(AB$37,'[1]Carbon Coeffficients'!$B$5:$J$20,9,FALSE) -> 0 | AC58: =I58*VLOOKUP(AC$37,'[1]Carbon Coeffficients'!$B$5:$J$20,9,FALSE) -> 0 | AD58: =J58*VLOOKUP(AD$37,'[1]Carbon Coeffficients'!$B$5:$J$20,9,FALSE) -> 0.0003835950311 | AE58: =K58*VLOOKUP(AE$37,'[1]Carbon Coeffficients'!$B$5:$J$20,9,FALSE) -> 0.004177914772 | AF58: =L58*VLOOKUP(AF$37,'[1]Carbon Coeffficients'!$B$5:$J$20,9,FALSE) -> 0.007521561788 | AG58: =M58*VLOOKUP(AG$37,'[1]Carbon Coeffficients'!$B$5:$J$20,9,FALSE) -> 0.0008962391805 | AH58: =N58*VLOOKUP(AH$37,'[1]Carbon Coeffficients'!$B$5:$J$20,9,FALSE) -> 0 | AI58: =O58*VLOOKUP(AI$37,'[1]Carbon Coeffficients'!$B$5:$J$20,9,FALSE) -> 0 | AJ58: =P58*VLOOKUP(AJ$37,'[1]Carbon Coeffficients'!$B$5:$J$20,9,FALSE) -> 3.355508123e-06 | AK58: =Q58*VLOOKUP(AK$37,'[1]Carbon Coeffficients'!$B$5:$J$20,9,FALSE) -> 0 | AL58: =R58*VLOOKUP(AL$37,'[1]Carbon Coeffficients'!$B$5:$J$20,9,FALSE) -> 0 | AM58: =S58*VLOOKUP(AM$37,'[1]Carbon Coeffficients'!$B$5:$J$20,9,FALSE) -> 0 | AN58: =SUM(W58:AM58) -> 0.2422176452
B59: Steel Sheet | C59: ='[3]Energy Data Conversion'!C51+D189 -> 3.982514073 | D59: ='[3]Energy Data Conversion'!D51 -> 0.204675064 | E59: ='[3]Energy Data Conversion'!E51 -> 3.55855509 | F59: ='[3]Energy Data Conversion'!F51 -> 0 | G59: ='[3]Energy Data Conversion'!G51 -> 0 | H59: ='[3]Energy Data Conversion'!H51 -> 0 | I59: ='[3]Energy Data Conversion'!I51 -> 0 | J59: ='[3]Energy Data Conversion'!J51 -> 0.0004651706 | K59: ='[3]Energy Data Conversion'!K51 -> 0.0934992906 | L59: ='[3]Energy Data Conversion'!L51 -> 0.0439586217 | M59: ='[3]Energy Data Conversion'!M51 -> 0.03281778583 | N59: ='[3]Energy Data Conversion'!N51 -> 0 | O59: ='[3]Energy Data Conversion'!O51 -> 0 | P59: ='[3]Energy Data Conversion'!P51 -> 0.0074427296 | Q59: ='[3]Energy Data Conversion'!Q51 -> 0 | R59: ='[3]Energy Data Conversion'!R51 -> 0.04651706 | S59: ='[3]Energy Data Conversion'!S51 -> 0.0065123884 | T59: 7.976957273 | V59: Steel Sheet | W59: =C59*'[1]Electricity Coefficients'!$D$20 -> 0.3231193159 | X59: =D59*VLOOKUP(X$37,'[1]Carbon Coeffficients'!$B$5:$J$20,9,FALSE) -> 0.01776770029 | Y59: =E59*VLOOKUP(Y$37,'[1]Carbon Coeffficients'!$B$5:$J$20,9,FALSE) -> 0.179046985 | Z59: =F59*VLOOKUP(Z$37,'[1]Carbon Coeffficients'!$B$5:$J$20,9,FALSE) -> 0 | AA59: =G59*VLOOKUP(AA$37,'[1]Carbon Coeffficients'!$B$5:$J$20,9,FALSE) -> 0 | AB59: =H59*VLOOKUP(AB$37,'[1]Carbon Coeffficients'!$B$5:$J$20,9,FALSE) -> 0 | AC59: =I59*VLOOKUP(AC$37,'[1]Carbon Coeffficients'!$B$5:$J$20,9,FALSE) -> 0 | AD59: =J59*VLOOKUP(AD$37,'[1]Carbon Coeffficients'!$B$5:$J$20,9,FALSE) -> 2.820551699e-05 | AE59: =K59*VLOOKUP(AE$37,'[1]Carbon Coeffficients'!$B$5:$J$20,9,FALSE) -> 0.007208247804 | AF59: =L59*VLOOKUP(AF$37,'[1]Carbon Coeffficients'!$B$5:$J$20,9,FALSE) -> 0.003400897555 | AG59: =M59*VLOOKUP(AG$37,'[1]Carbon Coeffficients'!$B$5:$J$20,9,FALSE) -> 0.002341839785 | AH59: =N59*VLOOKUP(AH$37,'[1]Carbon Coeffficients'!$B$5:$J$20,9,FALSE) -> 0 | AI59: =O59*VLOOKUP(AI$37,'[1]Carbon Coeffficients'!$B$5:$J$20,9,FALSE) -> 0 | AJ59: =P59*VLOOKUP(AJ$37,'[1]Carbon Coeffficients'!$B$5:$J$20,9,FALSE) -> 7.158417329e-06 | AK59: =Q59*VLOOKUP(AK$37,'[1]Carbon Coeffficients'!$B$5:$J$20,9,FALSE) -> 0 | AL59: =R59*VLOOKUP(AL$37,'[1]Carbon Coeffficients'!$B$5:$J$20,9,FALSE) -> 0 | AM59: =S59*VLOOKUP(AM$37,'[1]Carbon Coeffficients'!$B$5:$J$20,9,FALSE) -> 0 | AN59: 0.5329203503
B60: Lead Bullion | C60: ='[3]Energy Data Conversion'!C52+D189 -> 6.815598398 | D60: ='[3]Energy Data Conversion'!D52 -> 0.2086290141 | E60: ='[3]Energy Data Conversion'!E52 -> 2.30259447 | F60: ='[3]Energy Data Conversion'!F52 -> 0 | G60: ='[3]Energy Data Conversion'!G52 -> 0 | H60: ='[3]Energy Data Conversion'!H52 -> 0 | I60: ='[3]Energy Data Conversion'!I52 -> 0 | J60: ='[3]Energy Data Conversion'!J52 -> 0.0009303412 | K60: ='[3]Energy Data Conversion'!K52 -> 0.1593209305 | L60: ='[3]Energy Data Conversion'!L52 -> 0.204675064 | M60: ='[3]Energy Data Conversion'!M52 -> 0.0444237923 | N60: ='[3]Energy Data Conversion'!N52 -> 0 | O60: ='[3]Energy Data Conversion'!O52 -> 0 | P60: ='[3]Energy Data Conversion'!P52 -> 0.0125596062 | Q60: ='[3]Energy Data Conversion'!Q52 -> 0 | R60: ='[3]Energy Data Conversion'!R52 -> 0.076753149 | S60: ='[3]Energy Data Conversion'!S52 -> 0.0109315091 | T60: 9.836416275 | V60: Lead Bullion | W60: =C60*'[1]Electricity Coefficients'!$D$20 -> 0.552980216 | X60: =D60*VLOOKUP(X$37,'[1]Carbon Coeffficients'!$B$5:$J$20,9,FALSE) -> 0.01811093996 | Y60: =E60*VLOOKUP(Y$37,'[1]Carbon Coeffficients'!$B$5:$J$20,9,FALSE) -> 0.1158539315 | Z60: =F60*VLOOKUP(Z$37,'[1]Carbon Coeffficients'!$B$5:$J$20,9,FALSE) -> 0 | AA60: =G60*VLOOKUP(AA$37,'[1]Carbon Coeffficients'!$B$5:$J$20,9,FALSE) -> 0 | AB60: =H60*VLOOKUP(AB$37,'[1]Carbon Coeffficients'!$B$5:$J$20,9,FALSE) -> 0 | AC60: =I60*VLOOKUP(AC$37,'[1]Carbon Coeffficients'!$B$5:$J$20,9,FALSE) -> 0 | AD60: =J60*VLOOKUP(AD$37,'[1]Carbon Coeffficients'!$B$5:$J$20,9,FALSE) -> 5.641103399e-05 | AE60: =K60*VLOOKUP(AE$37,'[1]Carbon Coeffficients'!$B$5:$J$20,9,FALSE) -> 0.01228271081 | AF60: =L60*VLOOKUP(AF$37,'[1]Carbon Coeffficients'!$B$5:$J$20,9,FALSE) -> 0.01583486692 | AG60: =M60*VLOOKUP(AG$37,'[1]Carbon Coeffficients'!$B$5:$J$20,9,FALSE) -> 0.003170031175 | AH60: =N60*VLOOKUP(AH$37,'[1]Carbon Coeffficients'!$B$5:$J$20,9,FALSE) -> 0 | AI60: =O60*VLOOKUP(AI$37,'[1]Carbon Coeffficients'!$B$5:$J$20,9,FALSE) -> 0 | AJ60: =P60*VLOOKUP(AJ$37,'[1]Carbon Coeffficients'!$B$5:$J$20,9,FALSE) -> 1.207982924e-05 | AK60: =Q60*VLOOKUP(AK$37,'[1]Carbon Coeffficients'!$B$5:$J$20,9,FALSE) -> 0 | AL60: =R60*VLOOKUP(AL$37,'[1]Carbon Coeffficients'!$B$5:$J$20,9,FALSE) -> 0 | AM60: =S60*VLOOKUP(AM$37,'[1]Carbon Coeffficients'!$B$5:$J$20,9,FALSE) -> 0 | AN60: 0.7183011872
B61: CRT Glass | C61: ='[3]Energy Data Conversion'!C53+D189 -> 1.461307097 | D61: ='[3]Energy Data Conversion'!D53 -> 0.058146325 | E61: ='[3]Energy Data Conversion'!E53 -> 4.74474012 | F61: ='[3]Energy Data Conversion'!F53 -> 0 | G61: ='[3]Energy Data Conversion'!G53 -> 0 | H61: ='[3]Energy Data Conversion'!H53 -> 0 | I61: ='[3]Energy Data Conversion'!I53 -> 0 | J61: ='[3]Energy Data Conversion'!J53 -> 0.00104663385 | K61: ='[3]Energy Data Conversion'!K53 -> 0.548901308 | L61: ='[3]Energy Data Conversion'!L53 -> 0.551227161 | M61: ='[3]Energy Data Conversion'!M53 -> 0.030236089 | N61: ='[3]Energy Data Conversion'!N53 -> 0 | O61: ='[3]Energy Data Conversion'!O53 -> 0 | P61: ='[3]Energy Data Conversion'!P53 -> 0.0034887795 | Q61: ='[3]Energy Data Conversion'!Q53 -> 0 | R61: ='[3]Energy Data Conversion'!R53 -> 0.0216304329 | S61: ='[3]Energy Data Conversion'!S53 -> 0.0030236089 | T61: 7.423747555 | V61: CRT Glass | W61: =C61*'[1]Electricity Coefficients'!$D$20 -> 0.1185624309 | X61: =D61*VLOOKUP(X$37,'[1]Carbon Coeffficients'!$B$5:$J$20,9,FALSE) -> 0.005047642128 | Y61: =E61*VLOOKUP(Y$37,'[1]Carbon Coeffficients'!$B$5:$J$20,9,FALSE) -> 0.2387293133 | Z61: =F61*VLOOKUP(Z$37,'[1]Carbon Coeffficients'!$B$5:$J$20,9,FALSE) -> 0 | AA61: =G61*VLOOKUP(AA$37,'[1]Carbon Coeffficients'!$B$5:$J$20,9,FALSE) -> 0 | AB61: =H61*VLOOKUP(AB$37,'[1]Carbon Coeffficients'!$B$5:$J$20,9,FALSE) -> 0 | AC61: =I61*VLOOKUP(AC$37,'[1]Carbon Coeffficients'!$B$5:$J$20,9,FALSE) -> 0 | AD61: =J61*VLOOKUP(AD$37,'[1]Carbon Coeffficients'!$B$5:$J$20,9,FALSE) -> 6.346241324e-05 | AE61: =K61*VLOOKUP(AE$37,'[1]Carbon Coeffficients'!$B$5:$J$20,9,FALSE) -> 0.04231707666 | AF61: =L61*VLOOKUP(AF$37,'[1]Carbon Coeffficients'!$B$5:$J$20,9,FALSE) -> 0.04264617569 | AG61: =M61*VLOOKUP(AG$37,'[1]Carbon Coeffficients'!$B$5:$J$20,9,FALSE) -> 0.002157612842 | AH61: =N61*VLOOKUP(AH$37,'[1]Carbon Coeffficients'!$B$5:$J$20,9,FALSE) -> 0 | AI61: =O61*VLOOKUP(AI$37,'[1]Carbon Coeffficients'!$B$5:$J$20,9,FALSE) -> 0 | AJ61: =P61*VLOOKUP(AJ$37,'[1]Carbon Coeffficients'!$B$5:$J$20,9,FALSE) -> 3.355508123e-06 | AK61: =Q61*VLOOKUP(AK$37,'[1]Carbon Coeffficients'!$B$5:$J$20,9,FALSE) -> 0 | AL61: =R61*VLOOKUP(AL$37,'[1]Carbon Coeffficients'!$B$5:$J$20,9,FALSE) -> 0 | AM61: =S61*VLOOKUP(AM$37,'[1]Carbon Coeffficients'!$B$5:$J$20,9,FALSE) -> 0 | AN61: 0.4495270695
B62: Copper Wire | C62: ='[3]Energy Data Conversion'!C54+D189 -> 19.98110791 | D62: ='[3]Energy Data Conversion'!D54 -> 2.97709184 | E62: ='[3]Energy Data Conversion'!E54 -> 42.7956952 | F62: ='[3]Energy Data Conversion'!F54 -> 0 | G62: ='[3]Energy Data Conversion'!G54 -> 0 | H62: ='[3]Energy Data Conversion'!H54 -> 0 | I62: ='[3]Energy Data Conversion'!I54 -> 0 | J62: ='[3]Energy Data Conversion'!J54 -> 0.009817425513 | K62: ='[3]Energy Data Conversion'!K54 -> 0.95359973 | L62: ='[3]Energy Data Conversion'!L54 -> 8.07070991 | M62: ='[3]Energy Data Conversion'!M54 -> 0.383765745 | N62: ='[3]Energy Data Conversion'!N54 -> 0 | O62: ='[3]Energy Data Conversion'!O54 -> 0 | P62: ='[3]Energy Data Conversion'!P54 -> 0.055820472 | Q62: ='[3]Energy Data Conversion'!Q54 -> 0 | R62: ='[3]Energy Data Conversion'!R54 -> 0.34887795 | S62: ='[3]Energy Data Conversion'!S54 -> 0.048842913 | T62: 75.6253291 | V62: Copper Wire | W62: =C62*'[1]Electricity Coefficients'!$D$20 -> 1.62115734 | X62: =D62*VLOOKUP(X$37,'[1]Carbon Coeffficients'!$B$5:$J$20,9,FALSE) -> 0.258439277 | Y62: =E62*VLOOKUP(Y$37,'[1]Carbon Coeffficients'!$B$5:$J$20,9,FALSE) -> 2.153244787 | Z62: =F62*VLOOKUP(Z$37,'[1]Carbon Coeffficients'!$B$5:$J$20,9,FALSE) -> 0 | AA62: =G62*VLOOKUP(AA$37,'[1]Carbon Coeffficients'!$B$5:$J$20,9,FALSE) -> 0 | AB62: =H62*VLOOKUP(AB$37,'[1]Carbon Coeffficients'!$B$5:$J$20,9,FALSE) -> 0 | AC62: =I62*VLOOKUP(AC$37,'[1]Carbon Coeffficients'!$B$5:$J$20,9,FALSE) -> 0 | AD62: =J62*VLOOKUP(AD$37,'[1]Carbon Coeffficients'!$B$5:$J$20,9,FALSE) -> 0.0005952774361 | AE62: =K62*VLOOKUP(AE$37,'[1]Carbon Coeffficients'!$B$5:$J$20,9,FALSE) -> 0.07351695522 | AF62: =L62*VLOOKUP(AF$37,'[1]Carbon Coeffficients'!$B$5:$J$20,9,FALSE) -> 0.6243975934 | AG62: =M62*VLOOKUP(AG$37,'[1]Carbon Coeffficients'!$B$5:$J$20,9,FALSE) -> 0.02738508607 | AH62: =N62*VLOOKUP(AH$37,'[1]Carbon Coeffficients'!$B$5:$J$20,9,FALSE) -> 0 | AI62: =O62*VLOOKUP(AI$37,'[1]Carbon Coeffficients'!$B$5:$J$20,9,FALSE) -> 0 | AJ62: =P62*VLOOKUP(AJ$37,'[1]Carbon Coeffficients'!$B$5:$J$20,9,FALSE) -> 5.368812997e-05 | AK62: =Q62*VLOOKUP(AK$37,'[1]Carbon Coeffficients'!$B$5:$J$20,9,FALSE) -> 0 | AL62: =R62*VLOOKUP(AL$37,'[1]Carbon Coeffficients'!$B$5:$J$20,9,FALSE) -> 0 | AM62: =S62*VLOOKUP(AM$37,'[1]Carbon Coeffficients'!$B$5:$J$20,9,FALSE) -> 0 | AN62: 4.758790004
B63: Aluminum Sheet | C63: ='[3]Energy Data Conversion'!C55+D189 -> 3.3952641 | D63: ='[3]Energy Data Conversion'!D55 -> 0.13955118 | E63: ='[3]Energy Data Conversion'!E55 -> 9.39644612 | F63: ='[3]Energy Data Conversion'!F55 -> 0 | G63: ='[3]Energy Data Conversion'!G55 -> 0 | H63: ='[3]Energy Data Conversion'!H55 -> 0 | I63: ='[3]Energy Data Conversion'!I55 -> 0 | J63: ='[3]Energy Data Conversion'!J55 -> 0.00106989238 | K63: ='[3]Energy Data Conversion'!K55 -> 0.095359973 | L63: ='[3]Energy Data Conversion'!L55 -> 0.825677815 | M63: ='[3]Energy Data Conversion'!M55 -> 0.065123884 | N63: ='[3]Energy Data Conversion'!N55 -> 0 | O63: ='[3]Energy Data Conversion'!O55 -> 0 | P63: ='[3]Energy Data Conversion'!P55 -> 0.0083730708 | Q63: ='[3]Energy Data Conversion'!Q55 -> 0 | R63: ='[3]Energy Data Conversion'!R55 -> 0.051168766 | S63: ='[3]Energy Data Conversion'!S55 -> 0.0074427296 | T63: 13.98547753 | V63: Aluminum Sheet | W63: =C63*'[1]Electricity Coefficients'!$D$20 -> 0.2754730789 | X63: =D63*VLOOKUP(X$37,'[1]Carbon Coeffficients'!$B$5:$J$20,9,FALSE) -> 0.01211434111 | Y63: =E63*VLOOKUP(Y$37,'[1]Carbon Coeffficients'!$B$5:$J$20,9,FALSE) -> 0.4727776598 | Z63: =F63*VLOOKUP(Z$37,'[1]Carbon Coeffficients'!$B$5:$J$20,9,FALSE) -> 0 | AA63: =G63*VLOOKUP(AA$37,'[1]Carbon Coeffficients'!$B$5:$J$20,9,FALSE) -> 0 | AB63: =H63*VLOOKUP(AB$37,'[1]Carbon Coeffficients'!$B$5:$J$20,9,FALSE) -> 0 | AC63: =I63*VLOOKUP(AC$37,'[1]Carbon Coeffficients'!$B$5:$J$20,9,FALSE) -> 0 | AD63: =J63*VLOOKUP(AD$37,'[1]Carbon Coeffficients'!$B$5:$J$20,9,FALSE) -> 6.487268908e-05 | AE63: =K63*VLOOKUP(AE$37,'[1]Carbon Coeffficients'!$B$5:$J$20,9,FALSE) -> 0.007351695522 | AF63: =L63*VLOOKUP(AF$37,'[1]Carbon Coeffficients'!$B$5:$J$20,9,FALSE) -> 0.0638792927 | AG63: =M63*VLOOKUP(AG$37,'[1]Carbon Coeffficients'!$B$5:$J$20,9,FALSE) -> 0.004647166121 | AH63: =N63*VLOOKUP(AH$37,'[1]Carbon Coeffficients'!$B$5:$J$20,9,FALSE) -> 0 | AI63: =O63*VLOOKUP(AI$37,'[1]Carbon Coeffficients'!$B$5:$J$20,9,FALSE) -> 0 | AJ63: =P63*VLOOKUP(AJ$37,'[1]Carbon Coeffficients'!$B$5:$J$20,9,FALSE) -> 8.053219495e-06 | AK63: =Q63*VLOOKUP(AK$37,'[1]Carbon Coeffficients'!$B$5:$J$20,9,FALSE) -> 0 | AL63: =R63*VLOOKUP(AL$37,'[1]Carbon Coeffficients'!$B$5:$J$20,9,FALSE) -> 0 | AM63: =S63*VLOOKUP(AM$37,'[1]Carbon Coeffficients'!$B$5:$J$20,9,FALSE) -> 0 | AN63: 0.83631616
B65: Transportation Energy for Recycled Production (GJ/Tonne) | V65: CO2 Emissions from Recycled Production: Transportation Only
B66: Type of Product | C66: Delivered Electricity | D66: Coal | E66: Natural Gas | F66: Kerosene & Stove Oil | G66: Nat Gas feedstock (other fuels) | H66: Oils feedstock | I66: Diesel | J66: LPG | K66: Distillate (Light Fuel Oil) | L66: Residual (Heavy Fuel Oil) | M66: Gasoline | N66: Oil/ Lubricants | O66: Petroleum (Non-specified) | P66: Biomass | Q66: Hydro | R66: Nuclear | S66: Other | T66: Total | V66: Type of Product | W66: Delivered Electricity | X66: Coal | Y66: Natural Gas | Z66: Kerosene & Stove Oil | AA66: Nat Gas feedstock (other fuels) | AB66: Oils feedstock | AC66: Diesel | AD66: LPG | AE66: Distillate (Light Fuel Oil) | AF66: Residual (Heavy Fuel Oil) | AG66: Gasoline | AH66: Oil/ Lubricants | AI66: Petroleum (Non-specified) | AJ66: Biomass | AK66: Hydro | AL66: Nuclear | AM66: Other | AN66: Total
B67: Asphalt (Cold Patch) | C67: ='[3]Energy Data Conversion'!C58 -> 0.002460101235 | D67: ='[3]Energy Data Conversion'!D58 -> 0.0097685826 | E67: ='[3]Energy Data Conversion'!E58 -> 0.074427296 | F67: ='[3]Energy Data Conversion'!F58 -> 0 | G67: ='[3]Energy Data Conversion'!G58 -> 0 | H67: ='[3]Energy Data Conversion'!H58 -> 0 | I67: ='[3]Energy Data Conversion'!I58 -> 0.8678222714 | J67: ='[3]Energy Data Conversion'!J58 -> 0.00088382414 | K67: ='[3]Energy Data Conversion'!K58 -> 0.0044191207 | L67: ='[3]Energy Data Conversion'!L58 -> 0.167461416 | M67: ='[3]Energy Data Conversion'!M58 -> 0.0011629265 | N67: ='[3]Energy Data Conversion'!N58 -> 0 | O67: ='[3]Energy Data Conversion'!O58 -> 0 | P67: ='[3]Energy Data Conversion'!P58 -> 0.00060472178 | Q67: ='[3]Energy Data Conversion'!Q58 -> 0 | R67: ='[3]Energy Data Conversion'!R58 -> 0.0037213648 | S67: ='[3]Energy Data Conversion'!S58 -> 0.00053494619 | T67: =SUM(C67:S67) -> 1.133266571 | V67: Asphalt (Cold Patch) | W67: =C67*'[1]Electricity Coefficients'!$D$20 -> 0.0001995991009 | X67: =D67*VLOOKUP(X$37,'[1]Carbon Coeffficients'!$B$5:$J$20,9,FALSE) -> 0.0008480038775 | Y67: =E67*VLOOKUP(Y$37,'[1]Carbon Coeffficients'!$B$5:$J$20,9,FALSE) -> 0.003744773543 | Z67: =F67*VLOOKUP(Z$37,'[1]Carbon Coeffficients'!$B$5:$J$20,9,FALSE) -> 0 | AA67: =G67*VLOOKUP(AA$37,'[1]Carbon Coeffficients'!$B$5:$J$20,9,FALSE) -> 0 | AB67: =H67*VLOOKUP(AB$37,'[1]Carbon Coeffficients'!$B$5:$J$20,9,FALSE) -> 0 | AC67: =I67*VLOOKUP(AC$37,'[1]Carbon Coeffficients'!$B$5:$J$20,9,FALSE) -> 0.06298131041 | AD67: =J67*VLOOKUP(AD$37,'[1]Carbon Coeffficients'!$B$5:$J$20,9,FALSE) -> 5.359048229e-05 | AE67: =K67*VLOOKUP(AE$37,'[1]Carbon Coeffficients'!$B$5:$J$20,9,FALSE) -> 0.0003406883291 | AF67: =L67*VLOOKUP(AF$37,'[1]Carbon Coeffficients'!$B$5:$J$20,9,FALSE) -> 0.01295580021 | AG67: =M67*VLOOKUP(AG$37,'[1]Carbon Coeffficients'!$B$5:$J$20,9,FALSE) -> 8.29851093e-05 | AH67: =N67*VLOOKUP(AH$37,'[1]Carbon Coeffficients'!$B$5:$J$20,9,FALSE) -> 0 | AI67: =O67*VLOOKUP(AI$37,'[1]Carbon Coeffficients'!$B$5:$J$20,9,FALSE) -> 0 | AJ67: =P67*VLOOKUP(AJ$37,'[1]Carbon Coeffficients'!$B$5:$J$20,9,FALSE) -> 5.81621408e-07 | AK67: =Q67*VLOOKUP(AK$37,'[1]Carbon Coeffficients'!$B$5:$J$20,9,FALSE) -> 0 | AL67: =R67*VLOOKUP(AL$37,'[1]Carbon Coeffficients'!$B$5:$J$20,9,FALSE) -> 0 | AM67: =S67*VLOOKUP(AM$37,'[1]Carbon Coeffficients'!$B$5:$J$20,9,FALSE) -> 0 | AN67: =SUM(W67:AM67) -> 0.08120733268
B68: Steel Sheet | C68: ='[3]Energy Data Conversion'!C59 -> 0 | D68: ='[3]Energy Data Conversion'!D59 -> 0.0067449737 | E68: ='[3]Energy Data Conversion'!E59 -> 0.051168766 | F68: ='[3]Energy Data Conversion'!F59 -> 0 | G68: ='[3]Energy Data Conversion'!G59 -> 0 | H68: ='[3]Energy Data Conversion'!H59 -> 0 | I68: ='[3]Energy Data Conversion'!I59 -> 0.6777535642 | J68: ='[3]Energy Data Conversion'!J59 -> 0.00060472178 | K68: ='[3]Energy Data Conversion'!K59 -> 0.0030236089 | L68: ='[3]Energy Data Conversion'!L59 -> 0.0307012596 | M68: ='[3]Energy Data Conversion'!M59 -> 0.0006977559 | N68: ='[3]Energy Data Conversion'!N59 -> 0 | O68: ='[3]Energy Data Conversion'!O59 -> 0 | P68: ='[3]Energy Data Conversion'!P59 -> 0.00041865354 | Q68: ='[3]Energy Data Conversion'!Q59 -> 0 | R68: ='[3]Energy Data Conversion'!R59 -> 0.0025584383 | S68: ='[3]Energy Data Conversion'!S59 -> 0.00037213648 | T68: 0.7740438784 | V68: Steel Sheet | W68: =C68*'[1]Electricity Coefficients'!$D$20 -> 0 | X68: =D68*VLOOKUP(X$37,'[1]Carbon Coeffficients'!$B$5:$J$20,9,FALSE) -> 0.0005855264869 | Y68: =E68*VLOOKUP(Y$37,'[1]Carbon Coeffficients'!$B$5:$J$20,9,FALSE) -> 0.002574531811 | Z68: =F68*VLOOKUP(Z$37,'[1]Carbon Coeffficients'!$B$5:$J$20,9,FALSE) -> 0 | AA68: =G68*VLOOKUP(AA$37,'[1]Carbon Coeffficients'!$B$5:$J$20,9,FALSE) -> 0 | AB68: =H68*VLOOKUP(AB$37,'[1]Carbon Coeffficients'!$B$5:$J$20,9,FALSE) -> 0 | AC68: =I68*VLOOKUP(AC$37,'[1]Carbon Coeffficients'!$B$5:$J$20,9,FALSE) -> 0.04918726912 | AD68: =J68*VLOOKUP(AD$37,'[1]Carbon Coeffficients'!$B$5:$J$20,9,FALSE) -> 3.666717209e-05 | AE68: =K68*VLOOKUP(AE$37,'[1]Carbon Coeffficients'!$B$5:$J$20,9,FALSE) -> 0.0002331025409 | AF68: =L68*VLOOKUP(AF$37,'[1]Carbon Coeffficients'!$B$5:$J$20,9,FALSE) -> 0.002375230038 | AG68: =M68*VLOOKUP(AG$37,'[1]Carbon Coeffficients'!$B$5:$J$20,9,FALSE) -> 4.979106558e-05 | AH68: =N68*VLOOKUP(AH$37,'[1]Carbon Coeffficients'!$B$5:$J$20,9,FALSE) -> 0 | AI68: =O68*VLOOKUP(AI$37,'[1]Carbon Coeffficients'!$B$5:$J$20,9,FALSE) -> 0 | AJ68: =P68*VLOOKUP(AJ$37,'[1]Carbon Coeffficients'!$B$5:$J$20,9,FALSE) -> 4.026609748e-07 | AK68: =Q68*VLOOKUP(AK$37,'[1]Carbon Coeffficients'!$B$5:$J$20,9,FALSE) -> 0 | AL68: =R68*VLOOKUP(AL$37,'[1]Carbon Coeffficients'!$B$5:$J$20,9,FALSE) -> 0 | AM68: =S68*VLOOKUP(AM$37,'[1]Carbon Coeffficients'!$B$5:$J$20,9,FALSE) -> 0 | AN68: 0.05504252089
B69: Lead Bullion | C69: ='[3]Energy Data Conversion'!C60 -> 3.09496607e-05 | D69: ='[3]Energy Data Conversion'!D60 -> 0.039539501 | E69: ='[3]Energy Data Conversion'!E60 -> 0.30236089 | F69: ='[3]Energy Data Conversion'!F60 -> 0 | G69: ='[3]Energy Data Conversion'!G60 -> 0 | H69: ='[3]Energy Data Conversion'!H60 -> 0 | I69: ='[3]Energy Data Conversion'!I60 -> 4.099850859 | J69: ='[3]Energy Data Conversion'!J60 -> 0.0037213648 | K69: ='[3]Energy Data Conversion'!K60 -> 0.0183742387 | L69: ='[3]Energy Data Conversion'!L60 -> 0.1774858424 | M69: ='[3]Energy Data Conversion'!M60 -> 0.004651706 | N69: ='[3]Energy Data Conversion'!N60 -> 0 | O69: ='[3]Energy Data Conversion'!O60 -> 0 | P69: ='[3]Energy Data Conversion'!P60 -> 0.0025584383 | Q69: ='[3]Energy Data Conversion'!Q60 -> 0 | R69: ='[3]Energy Data Conversion'!R60 -> 0.0153506298 | S69: ='[3]Energy Data Conversion'!S60 -> 0.00220956035 | T69: 4.66613398 | V69: Lead Bullion | W69: =C69*'[1]Electricity Coefficients'!$D$20 -> 2.511085463e-06 | X69: =D69*VLOOKUP(X$37,'[1]Carbon Coeffficients'!$B$5:$J$20,9,FALSE) -> 0.003432396647 | Y69: =E69*VLOOKUP(Y$37,'[1]Carbon Coeffficients'!$B$5:$J$20,9,FALSE) -> 0.01521314252 | Z69: =F69*VLOOKUP(Z$37,'[1]Carbon Coeffficients'!$B$5:$J$20,9,FALSE) -> 0 | AA69: =G69*VLOOKUP(AA$37,'[1]Carbon Coeffficients'!$B$5:$J$20,9,FALSE) -> 0 | AB69: =H69*VLOOKUP(AB$37,'[1]Carbon Coeffficients'!$B$5:$J$20,9,FALSE) -> 0 | AC69: =I69*VLOOKUP(AC$37,'[1]Carbon Coeffficients'!$B$5:$J$20,9,FALSE) -> 0.297542467 | AD69: =J69*VLOOKUP(AD$37,'[1]Carbon Coeffficients'!$B$5:$J$20,9,FALSE) -> 0.0002256441359 | AE69: =K69*VLOOKUP(AE$37,'[1]Carbon Coeffficients'!$B$5:$J$20,9,FALSE) -> 0.00141654621 | AF69: =L69*VLOOKUP(AF$37,'[1]Carbon Coeffficients'!$B$5:$J$20,9,FALSE) -> 0.0137313488 | AG69: =M69*VLOOKUP(AG$37,'[1]Carbon Coeffficients'!$B$5:$J$20,9,FALSE) -> 0.0003319404372 | AH69: =N69*VLOOKUP(AH$37,'[1]Carbon Coeffficients'!$B$5:$J$20,9,FALSE) -> 0 | AI69: =O69*VLOOKUP(AI$37,'[1]Carbon Coeffficients'!$B$5:$J$20,9,FALSE) -> 0 | AJ69: =P69*VLOOKUP(AJ$37,'[1]Carbon Coeffficients'!$B$5:$J$20,9,FALSE) -> 2.460705957e-06 | AK69: =Q69*VLOOKUP(AK$37,'[1]Carbon Coeffficients'!$B$5:$J$20,9,FALSE) -> 0 | AL69: =R69*VLOOKUP(AL$37,'[1]Carbon Coeffficients'!$B$5:$J$20,9,FALSE) -> 0 | AM69: =S69*VLOOKUP(AM$37,'[1]Carbon Coeffficients'!$B$5:$J$20,9,FALSE) -> 0 | AN69: 0.3318984576
B70: CRT Glass | C70: ='[3]Energy Data Conversion'!C61 -> 0 | D70: ='[3]Energy Data Conversion'!D61 -> 0.025584383 | E70: ='[3]Energy Data Conversion'!E61 -> 0.204675064 | F70: ='[3]Energy Data Conversion'!F61 -> 0 | G70: ='[3]Energy Data Conversion'!G61 -> 0 | H70: ='[3]Energy Data Conversion'!H61 -> 0 | I70: ='[3]Energy Data Conversion'!I61 -> 5.760440125 | J70: ='[3]Energy Data Conversion'!J61 -> 0.002325853 | K70: ='[3]Energy Data Conversion'!K61 -> 0.0120944356 | L70: ='[3]Energy Data Conversion'!L61 -> 0.11629265 | M70: ='[3]Energy Data Conversion'!M61 -> 0.0032561942 | N70: ='[3]Energy Data Conversion'!N61 -> 0 | O70: ='[3]Energy Data Conversion'!O61 -> 0 | P70: ='[3]Energy Data Conversion'!P61 -> 0.00165135563 | Q70: ='[3]Energy Data Conversion'!Q61 -> 0 | R70: ='[3]Energy Data Conversion'!R61 -> 0.0102337532 | S70: ='[3]Energy Data Conversion'!S61 -> 0.00146528739 | T70: 6.138019101 | V70: CRT Glass | W70: =C70*'[1]Electricity Coefficients'!$D$20 -> 0 | X70: =D70*VLOOKUP(X$37,'[1]Carbon Coeffficients'!$B$5:$J$20,9,FALSE) -> 0.002220962536 | Y70: =E70*VLOOKUP(Y$37,'[1]Carbon Coeffficients'!$B$5:$J$20,9,FALSE) -> 0.01029812724 | Z70: =F70*VLOOKUP(Z$37,'[1]Carbon Coeffficients'!$B$5:$J$20,9,FALSE) -> 0 | AA70: =G70*VLOOKUP(AA$37,'[1]Carbon Coeffficients'!$B$5:$J$20,9,FALSE) -> 0 | AB70: =H70*VLOOKUP(AB$37,'[1]Carbon Coeffficients'!$B$5:$J$20,9,FALSE) -> 0 | AC70: =I70*VLOOKUP(AC$37,'[1]Carbon Coeffficients'!$B$5:$J$20,9,FALSE) -> 0.4180580282 | AD70: =J70*VLOOKUP(AD$37,'[1]Carbon Coeffficients'!$B$5:$J$20,9,FALSE) -> 0.000141027585 | AE70: =K70*VLOOKUP(AE$37,'[1]Carbon Coeffficients'!$B$5:$J$20,9,FALSE) -> 0.0009324101637 | AF70: =L70*VLOOKUP(AF$37,'[1]Carbon Coeffficients'!$B$5:$J$20,9,FALSE) -> 0.008997083478 | AG70: =M70*VLOOKUP(AG$37,'[1]Carbon Coeffficients'!$B$5:$J$20,9,FALSE) -> 0.0002323583061 | AH70: =N70*VLOOKUP(AH$37,'[1]Carbon Coeffficients'!$B$5:$J$20,9,FALSE) -> 0 | AI70: =O70*VLOOKUP(AI$37,'[1]Carbon Coeffficients'!$B$5:$J$20,9,FALSE) -> 0 | AJ70: =P70*VLOOKUP(AJ$37,'[1]Carbon Coeffficients'!$B$5:$J$20,9,FALSE) -> 1.588273845e-06 | AK70: =Q70*VLOOKUP(AK$37,'[1]Carbon Coeffficients'!$B$5:$J$20,9,FALSE) -> 0 | AL70: =R70*VLOOKUP(AL$37,'[1]Carbon Coeffficients'!$B$5:$J$20,9,FALSE) -> 0 | AM70: =S70*VLOOKUP(AM$37,'[1]Carbon Coeffficients'!$B$5:$J$20,9,FALSE) -> 0 | AN70: 0.4408815858
B71: Copper Wire | C71: ='[3]Energy Data Conversion'!C62 -> 3.333040383e-05 | D71: ='[3]Energy Data Conversion'!D62 -> 0.0216304329 | E71: ='[3]Energy Data Conversion'!E62 -> 0.1676405067 | F71: ='[3]Energy Data Conversion'!F62 -> 0 | G71: ='[3]Energy Data Conversion'!G62 -> 0 | H71: ='[3]Energy Data Conversion'!H62 -> 0 | I71: ='[3]Energy Data Conversion'!I62 -> 2.216714674 | J71: ='[3]Energy Data Conversion'!J62 -> 0.00197697505 | K71: ='[3]Energy Data Conversion'!K62 -> 0.0097685826 | L71: ='[3]Energy Data Conversion'!L62 -> 0.09709738519 | M71: ='[3]Energy Data Conversion'!M62 -> 0.0025584383 | N71: ='[3]Energy Data Conversion'!N62 -> 0 | O71: ='[3]Energy Data Conversion'!O62 -> 0 | P71: ='[3]Energy Data Conversion'!P62 -> 0.00134899474 | Q71: ='[3]Energy Data Conversion'!Q62 -> 0 | R71: ='[3]Energy Data Conversion'!R62 -> 0.0083730708 | S71: ='[3]Energy Data Conversion'!S62 -> 0.00118618503 | T71: 2.528328576 | V71: Copper Wire | W71: =C71*'[1]Electricity Coefficients'!$D$20 -> 2.704245883e-06 | X71: =D71*VLOOKUP(X$37,'[1]Carbon Coeffficients'!$B$5:$J$20,9,FALSE) -> 0.001877722872 | Y71: =E71*VLOOKUP(Y$37,'[1]Carbon Coeffficients'!$B$5:$J$20,9,FALSE) -> 0.008434751332 | Z71: =F71*VLOOKUP(Z$37,'[1]Carbon Coeffficients'!$B$5:$J$20,9,FALSE) -> 0 | AA71: =G71*VLOOKUP(AA$37,'[1]Carbon Coeffficients'!$B$5:$J$20,9,FALSE) -> 0 | AB71: =H71*VLOOKUP(AB$37,'[1]Carbon Coeffficients'!$B$5:$J$20,9,FALSE) -> 0 | AC71: =I71*VLOOKUP(AC$37,'[1]Carbon Coeffficients'!$B$5:$J$20,9,FALSE) -> 0.1608757917 | AD71: =J71*VLOOKUP(AD$37,'[1]Carbon Coeffficients'!$B$5:$J$20,9,FALSE) -> 0.0001198734472 | AE71: =K71*VLOOKUP(AE$37,'[1]Carbon Coeffficients'!$B$5:$J$20,9,FALSE) -> 0.0007531005169 | AF71: =L71*VLOOKUP(AF$37,'[1]Carbon Coeffficients'!$B$5:$J$20,9,FALSE) -> 0.007512024879 | AG71: =M71*VLOOKUP(AG$37,'[1]Carbon Coeffficients'!$B$5:$J$20,9,FALSE) -> 0.0001825672405 | AH71: =N71*VLOOKUP(AH$37,'[1]Carbon Coeffficients'!$B$5:$J$20,9,FALSE) -> 0 | AI71: =O71*VLOOKUP(AI$37,'[1]Carbon Coeffficients'!$B$5:$J$20,9,FALSE) -> 0 | AJ71: =P71*VLOOKUP(AJ$37,'[1]Carbon Coeffficients'!$B$5:$J$20,9,FALSE) -> 1.297463141e-06 | AK71: =Q71*VLOOKUP(AK$37,'[1]Carbon Coeffficients'!$B$5:$J$20,9,FALSE) -> 0 | AL71: =R71*VLOOKUP(AL$37,'[1]Carbon Coeffficients'!$B$5:$J$20,9,FALSE) -> 0 | AM71: =S71*VLOOKUP(AM$37,'[1]Carbon Coeffficients'!$B$5:$J$20,9,FALSE) -> 0 | AN71: 0.1797598337
B72: Aluminum Sheet | C72: ='[3]Energy Data Conversion'!C63 -> 0 | D72: ='[3]Energy Data Conversion'!D63 -> 0.0100011679 | E72: ='[3]Energy Data Conversion'!E63 -> 0.076753149 | F72: ='[3]Energy Data Conversion'!F63 -> 0 | G72: ='[3]Energy Data Conversion'!G63 -> 0 | H72: ='[3]Energy Data Conversion'!H63 -> 0 | I72: ='[3]Energy Data Conversion'!I63 -> 1.032446147 | J72: ='[3]Energy Data Conversion'!J63 -> 0.00090708267 | K72: ='[3]Energy Data Conversion'!K63 -> 0.004651706 | L72: ='[3]Energy Data Conversion'!L63 -> 0.044191207 | M72: ='[3]Energy Data Conversion'!M63 -> 0.0011629265 | N72: ='[3]Energy Data Conversion'!N63 -> 0 | O72: ='[3]Energy Data Conversion'!O63 -> 0 | P72: ='[3]Energy Data Conversion'!P63 -> 0.00062798031 | Q72: ='[3]Energy Data Conversion'!Q63 -> 0 | R72: ='[3]Energy Data Conversion'!R63 -> 0.0037213648 | S72: ='[3]Energy Data Conversion'!S63 -> 0.00055820472 | T72: 1.175020936 | V72: Aluminum Sheet | W72: =C72*'[1]Electricity Coefficients'!$D$20 -> 0 | X72: =D72*VLOOKUP(X$37,'[1]Carbon Coeffficients'!$B$5:$J$20,9,FALSE) -> 0.000868194446 | Y72: =E72*VLOOKUP(Y$37,'[1]Carbon Coeffficients'!$B$5:$J$20,9,FALSE) -> 0.003861797716 | Z72: =F72*VLOOKUP(Z$37,'[1]Carbon Coeffficients'!$B$5:$J$20,9,FALSE) -> 0 | AA72: =G72*VLOOKUP(AA$37,'[1]Carbon Coeffficients'!$B$5:$J$20,9,FALSE) -> 0 | AB72: =H72*VLOOKUP(AB$37,'[1]Carbon Coeffficients'!$B$5:$J$20,9,FALSE) -> 0 | AC72: =I72*VLOOKUP(AC$37,'[1]Carbon Coeffficients'!$B$5:$J$20,9,FALSE) -> 0.07492871915 | AD72: =J72*VLOOKUP(AD$37,'[1]Carbon Coeffficients'!$B$5:$J$20,9,FALSE) -> 5.500075814e-05 | AE72: =K72*VLOOKUP(AE$37,'[1]Carbon Coeffficients'!$B$5:$J$20,9,FALSE) -> 0.0003586192937 | AF72: =L72*VLOOKUP(AF$37,'[1]Carbon Coeffficients'!$B$5:$J$20,9,FALSE) -> 0.003418891722 | AG72: =M72*VLOOKUP(AG$37,'[1]Carbon Coeffficients'!$B$5:$J$20,9,FALSE) -> 8.29851093e-05 | AH72: =N72*VLOOKUP(AH$37,'[1]Carbon Coeffficients'!$B$5:$J$20,9,FALSE) -> 0 | AI72: =O72*VLOOKUP(AI$37,'[1]Carbon Coeffficients'!$B$5:$J$20,9,FALSE) -> 0 | AJ72: =P72*VLOOKUP(AJ$37,'[1]Carbon Coeffficients'!$B$5:$J$20,9,FALSE) -> 6.039914622e-07 | AK72: =Q72*VLOOKUP(AK$37,'[1]Carbon Coeffficients'!$B$5:$J$20,9,FALSE) -> 0 | AL72: =R72*VLOOKUP(AL$37,'[1]Carbon Coeffficients'!$B$5:$J$20,9,FALSE) -> 0 | AM72: =S72*VLOOKUP(AM$37,'[1]Carbon Coeffficients'!$B$5:$J$20,9,FALSE) -> 0 | AN72: 0.08357481219
B75: Electronics Recycling Calculations (open loop recycling): GHG Emissions
C76: Personal Computers | L76: Televisions | U76: Microwaves | AD76: VCR's
C77: Product Manufacture Using 100% Virgin Inputs | F77: Product Manufacture Using 100% Recycled Inputs | I77: Delta, after factoring in loss rate | L77: Product Manufacture Using 100% Virgin Inputs | O77: Product Manufacture Using 100% Recycled Inputs | R77: Delta, after factoring in loss rate | U77: Product Manufacture Using 100% Virgin Inputs | X77: Product Manufacture Using 100% Recycled Inputs | AA77: Delta, after factoring in loss rate | AD77: Product Manufacture Using 100% Virgin Inputs | AG77: Product Manufacture Using 100% Recycled Inputs | AJ77: Delta, after factoring in loss rate
C78: (GHG Emissions in MTCO2/Tonne) | F78: (GHG Emissions in MTCO2/Tonne) | I78: (GHG Emissions in MTCO2/Tonne) | L78: (GHG Emissions in MTCO2/Tonne) | O78: (GHG Emissions in MTCO2/Tonne) | R78: (GHG Emissions in MTCO2/Tonne) | U78: (GHG Emissions in MTCO2/Tonne) | X78: (GHG Emissions in MTCO2/Tonne) | AA78: (GHG Emissions in MTCO2/Tonne) | AD78: (GHG Emissions in MTCO2/Tonne) | AG78: (GHG Emissions in MTCO2/Tonne) | AJ78: (GHG Emissions in MTCO2/Tonne)
B80: Type of Product | C80: Process Energy | D80: Transportation Energy | E80: Process Non-Energy | F80: Process Energy | G80: Transportation Energy | H80: Process Non-Energy | I80: Process Energy | J80: Transportation Energy | K80: Process Non-Energy | L80: Process Energy | M80: Transportation Energy | N80: Process Non-Energy | O80: Process Energy | P80: Transportation Energy | Q80: Process Non-Energy | R80: Process Energy | S80: Transportation Energy | T80: Process Non-Energy | U80: Process Energy | V80: Transportation Energy | W80: Process Non-Energy | X80: Process Energy | Y80: Transportation Energy | Z80: Process Non-Energy | AA80: Process Energy | AB80: Transportation Energy | AC80: Process Non-Energy | AD80: Process Energy | AE80: Transportation Energy | AF80: Process Non-Energy | AG80: Process Energy | AH80: Transportation Energy | AI80: Process Non-Energy | AJ80: Process Energy | AK80: Transportation Energy | AL80: Process Non-Energy
B81: Asphalt | C81: =$AN$38*$C$102 -> 0.01067969404 | D81: =$AN$47*$C$102 -> 0.006548840194 | E81: =F132*$C$102 -> 0.0007666537706 | F81: =$AN$58*$C$102 -> 0.09285009734 | G81: =$AN$67*$C$102 -> 0.03112947753 | H81: =G132*$C$102 -> 0.0009276510624 | I81: =(F81-C81)*$G$112 -> 0.04404607681 | J81: =(G81-D81)*$G$112 -> 0.01317604145 | K81: =(H81-E81)*$G$112 -> 8.629991819e-05 | L81: =$AN$38*$D$102 -> 0.00223406233 | M81: =$AN$47*$D$102 -> 0.001369937859 | N81: =F132*$D$102 -> 0.0001603746608 | O81: =$AN$58*$D$102 -> 0.01942311306 | P81: =$AN$67*$D$102 -> 0.006511908753 | Q81: =G132*$D$102 -> 0.0001940533395 | R81: =(O81-L81)*$G$112 -> 0.009213904502 | S81: =(P81-M81)*$G$112 -> 0.0027562679 | T81: =(Q81-N81)*$G$112 -> 1.805289511e-05 | U81: =$AN$38*$E$102 -> 0.002451032675 | V81: =$AN$47*$E$102 -> 0.001502985127 | W81: =F132*$E$102 -> 0.0001759501195 | X81: =$AN$58*$E$102 -> 0.02130947026 | Y81: =$AN$67*$E$102 -> 0.007144340119 | Z81: =G132*$E$102 -> 0.0002128996446 | AA81: =(X81-U81)*$G$112 -> 0.01010875153 | AB81: =(Y81-V81)*$G$112 -> 0.003023954433 | AC81: =(Z81-W81)*$G$112 -> 1.980617783e-05 | AD81: =$AN$38*$F$102 -> 0.006407816423 | AE81: =$AN$47*$F$102 -> 0.003929304117 | AF81: =F132*$F$102 -> 0.0004599922623 | AG81: =$AN$58*$F$102 -> 0.0557100584 | AH81: =$AN$67*$F$102 -> 0.01867768652 | AI81: =G132*$F$102 -> 0.0005565906374 | AJ81: =(AG81-AD81)*$G$112 -> 0.02642764609 | AK81: =(AH81-AE81)*$G$112 -> 0.007905624872 | AL81: =(AI81-AF81)*$G$112 -> 5.177995091e-05
B82: Steel Sheet | C82: ='[1]Energy Data'!$T$8*$C$103 -> 0.5613144717 | D82: ='[1]Energy Data'!$AO$8*$C$103 -> 0.01386666302 | E82: ='[1]Emission Factors'!$BQ$11*$C$103 -> 0.01146026667 | F82: =('[1]Energy Data'!$T$24+D190)*$C$103 -> 0.1930891955 | G82: ='[1]Energy Data'!$AO$24*$C$103 -> 0.009050410667 | H82: ='[1]Emission Factors'!$BZ$11*$C$103 -> 0 | I82: =(F82-C82)*$G$113 -> -0.3026509119 | J82: =(G82-D82)*$G$113 -> -0.003958563576 | K82: =(H82-E82)*$G$113 -> -0.00941939726 | L82: ='[1]Energy Data'!$T$8*$D$103 -> 0.2382938795 | M82: ='[1]Energy Data'!$AO$8*$D$103 -> 0.005886790904 | N82: ='[1]Emission Factors'!$BQ$11*$D$103 -> 0.004865207547 | O82: =('[1]Energy Data'!$T$24+D190)*$D$103 -> 0.08197182828 | P82: ='[1]Energy Data'!$AO$24*$D$103 -> 0.003842155472 | Q82: ='[1]Emission Factors'!$BZ$11*$D$103 -> 0 | R82: =(O82-L82)*$G$113 -> -0.1284838777 | S82: =(P82-M82)*$G$113 -> -0.001680522273 | T82: =(Q82-N82)*$G$113 -> -0.003998800724 | U82: ='[1]Energy Data'!$T$8*$E$103 -> 1.604931407 | V82: ='[1]Energy Data'!$AO$8*$E$103 -> 0.03964808341 | W82: ='[1]Emission Factors'!$BQ$11*$E$103 -> 0.03276762463 | X82: =('[1]Energy Data'!$T$24+D190)*$E$103 -> 0.5520878757 | Y82: ='[1]Energy Data'!$AO$24*$E$103 -> 0.0258772739 | Z82: ='[1]Emission Factors'!$BZ$11*$E$103 -> 0 | AA82: =(X82-U82)*$G$113 -> -0.8653508479 | AB82: =(Y82-V82)*$G$113 -> -0.01131847357 | AC82: =(Z82-W82)*$G$113 -> -0.02693229422 | AD82: ='[1]Energy Data'!$T$8*$F$103 -> 0.947218171 | AE82: ='[1]Energy Data'!$AO$8*$F$103 -> 0.02339999384 | AF82: ='[1]Emission Factors'!$BQ$11*$F$103 -> 0.0193392 | AG82: =('[1]Energy Data'!$T$24+D190)*$F$103 -> 0.3258380174 | AH82: ='[1]Energy Data'!$AO$24*$F$103 -> 0.015272568 | AI82: ='[1]Emission Factors'!$BZ$11*$F$103 -> 0 | AJ82: =(AG82-AD82)*$G$113 -> -0.5107234139 | AK82: =(AH82-AE82)*$G$113 -> -0.006680076035 | AL82: =(AI82-AF82)*$G$113 -> -0.01589523288
B83: Lead Bullion | C83: =$AN$40*$C$104 -> 0.05613376593 | D83: =$AN$49*$C$104 -> 0.005220539626 | E83: =F134*$C$104 -> 0.003181946476 | F83: =$AN$60*$C$104 -> 0.07183011872 | G83: =$AN$69*$C$104 -> 0.03318984576 | H83: =G134*$C$104 -> 0.001699971404 | I83: =(F83-C83)*$G$114 -> 0.01283660632 | J83: =(G83-D83)*$G$114 -> 0.02287352844 | K83: =(H83-E83)*$G$114 -> -0.001211971394 | L83: =$AN$40*$D$104 -> 0.002647819147 | M83: =$AN$49*$D$104 -> 0.0002462518691 | N83: =F134*$D$104 -> 0.0001500918149 | O83: =$AN$60*$D$104 -> 0.003388213147 | P83: =$AN$69*$D$104 -> 0.001565558762 | Q83: =G134*$D$104 -> 8.018733039e-05 | R83: =(O83-L83)*$G$114 -> 0.0006055002983 | S83: =(P83-M83)*$G$114 -> 0.001078940021 | T83: =(Q83-N83)*$G$114 -> -5.716846198e-05 | U83: =$AN$40*$E$104 -> 0 | V83: =$AN$49*$E$104 -> 0 | W83: =F134*$E$104 -> 0 | X83: =$AN$60*$E$104 -> 0 | Y83: =$AN$69*$E$104 -> 0 | Z83: =G134*$E$104 -> 0 | AA83: =(X83-U83)*$G$114 -> 0 | AB83: =(Y83-V83)*$G$114 -> 0 | AC83: =(Z83-W83)*$G$114 -> 0 | AD83: =$AN$40*$F$104 -> 0 | AE83: =$AN$49*$F$104 -> 0 | AF83: =F134*$F$104 -> 0 | AG83: =$AN$60*$F$104 -> 0 | AH83: =$AN$69*$F$104 -> 0 | AI83: =G134*$F$104 -> 0 | AJ83: =(AG83-AD83)*$G$114 -> 0 | AK83: =(AH83-AE83)*$G$114 -> 0 | AL83: =(AI83-AF83)*$G$114 -> 0
B84: CRT Glass | C84: =$AN$41*$C$105 -> 0.008674525956 | D84: =$AN$50*$C$105 -> 0.0003906757824 | E84: =F135*$C$105 -> 0.003016615923 | F84: =$AN$61*$C$105 -> 0.007492117825 | G84: =$AN$70*$C$105 -> 0.00734802643 | H84: =G135*$C$105 -> 0 | I84: =(F84-C84)*$G$115 -> -0.0009718422997 | J84: =(G84-D84)*$G$115 -> 0.005718370395 | K84: =(H84-E84)*$G$115 -> -0.002479410348 | L84: =$AN$41*$D$105 -> 0.3608930138 | M84: =$AN$50*$D$105 -> 0.0162535868 | N84: =F135*$D$105 -> 0.1255026059 | O84: =$AN$61*$D$105 -> 0.3117003737 | P84: =$AN$70*$D$105 -> 0.3057056279 | Q84: =G135*$D$105 -> 0 | R84: =(O84-L84)*$G$115 -> -0.040432307 | S84: =(P84-M84)*$G$115 -> 0.2379057872 | T84: =(Q84-N84)*$G$115 -> -0.1031528267 | U84: =$AN$41*$E$105 -> 0.03052619105 | V84: =$AN$50*$E$105 -> 0.001374812138 | W84: =F135*$E$105 -> 0.01061565721 | X84: =$AN$61*$E$105 -> 0.02636522402 | Y84: =$AN$70*$E$105 -> 0.02585815753 | Z84: =G135*$E$105 -> 0 | AA84: =(X84-U84)*$G$115 -> -0.003419972902 | AB84: =(Y84-V84)*$G$115 -> 0.02012329758 | AC84: =(Z84-W84)*$G$115 -> -0.008725197705 | AD84: =$AN$41*$F$105 -> 0 | AE84: =$AN$50*$F$105 -> 0 | AF84: =F135*$F$105 -> 0 | AG84: =$AN$61*$F$105 -> 0 | AH84: =$AN$70*$F$105 -> 0 | AI84: =G135*$F$105 -> 0 | AJ84: =(AG84-AD84)*$G$115 -> 0 | AK84: =(AH84-AE84)*$G$115 -> 0 | AL84: =(AI84-AF84)*$G$115 -> 0
B85: Copper Ingot | C85: =[1]Copper!$AM$5*$C$106 -> 0.2689886102 | D85: =[1]Copper!$AM$9*$C$106 -> 0.01081072526 | E85: =$F$136*$C$106 -> 1.799969722e-07 | F85: =('[1]Energy Data'!$T$25+D190)*$C$106 -> 0.02478761007 | G85: ='[1]Energy Data'!$AO$25*$C$106 -> 0.006886766095 | H85: =$G$136*$C$106 -> 1.799969722e-07 | I85: =(F85-C85)*$G$116 -> -0.1987060193 | J85: =(G85-D85)*$G$116 -> -0.0031929202 | K85: =(H85-E85)*$G$116 -> 0 | L85: =[1]Copper!$AM$5*$D$106 -> 0.2030102719 | M85: =[1]Copper!$AM$9*$D$106 -> 0.008159037935 | N85: =$F$136*$D$106 -> 1.358467715e-07 | O85: =('[1]Energy Data'!$T$25+D190)*$D$106 -> 0.01870763024 | P85: ='[1]Energy Data'!$AO$25*$D$106 -> 0.005197559317 | Q85: =$G$136*$D$106 -> 1.358467715e-07 | R85: =(O85-L85)*$G$116 -> -0.149966807 | S85: =(P85-M85)*$G$116 -> -0.002409751094 | T85: =(Q85-N85)*$G$116 -> 0 | U85: =[1]Copper!$AM$5*$E$106 -> 0.4732937424 | V85: =[1]Copper!$AM$9*$E$106 -> 0.01902180398 | W85: =$F$136*$E$106 -> 3.167102151e-07 | X85: =('[1]Energy Data'!$T$25+D190)*$E$106 -> 0.04361456317 | Y85: ='[1]Energy Data'!$AO$25*$E$106 -> 0.012117477 | Z85: =$G$136*$E$106 -> 3.167102151e-07 | AA85: =(X85-U85)*$G$116 -> -0.3496293595 | AB85: =(Y85-V85)*$G$116 -> -0.005618041408 | AC85: =(Z85-W85)*$G$116 -> 0 | AD85: =[1]Copper!$AM$5*$F$106 -> 0.5917749425 | AE85: =[1]Copper!$AM$9*$F$106 -> 0.02378359558 | AF85: =$F$136*$F$106 -> 3.959933389e-07 | AG85: =('[1]Energy Data'!$T$25+D190)*$F$106 -> 0.05453274216 | AH85: ='[1]Energy Data'!$AO$25*$F$106 -> 0.01515088541 | AI85: =$G$136*$F$106 -> 3.959933389e-07 | AJ85: =(AG85-AD85)*$G$116 -> -0.4371532425 | AK85: =(AH85-AE85)*$G$116 -> -0.00702442444 | AL85: =(AI85-AF85)*$G$116 -> 0
B86: Alum Sheet | C86: ='[1]Energy Data'!$T$7*$C$107 -> 2.383267321 | D86: ='[1]Energy Data'!$AO$7*$C$107 -> 0.1768473549 | E86: =[1]Aluminum!D83*$C$107 -> 0.4941257775 | F86: =('[1]Energy Data'!$T$23+D190)*$C$107 -> 0.917293059 | G86: ='[1]Energy Data'!$AO$23*$C$107 -> 0.04555583197 | H86: ='[1]Emission Factors'!$BZ$10*C107 -> 0 | I86: =(F86-C86)*$G$117 -> -1.204910352 | J86: =(G86-D86)*$G$117 -> -0.1079108408 | K86: =(H86-E86)*$G$117 -> -0.406130776 | L86: ='[1]Energy Data'!$T$7*$D$107 -> 0.06131905629 | M86: ='[1]Energy Data'!$AO$7*$D$107 -> 0.004550103471 | N86: =[1]Aluminum!D83*$D$107 -> 0.0127133562 | O86: =('[1]Energy Data'!$T$23+D190)*$D$107 -> 0.0236010221 | P86: ='[1]Energy Data'!$AO$23*$D$107 -> 0.001172105454 | Q86: ='[1]Emission Factors'!$BZ$10*$D$107 -> 0 | R86: =(O86-L86)*$G$117 -> -0.03100112399 | S86: =(P86-M86)*$G$117 -> -0.002776436726 | T86: =(Q86-N86)*$G$117 -> -0.01044933386 | U86: ='[1]Energy Data'!$T$7*$E$107 -> 0.03812211124 | V86: ='[1]Energy Data'!$AO$7*$E$107 -> 0.002828803331 | W86: ='[1]Emission Factors'!$BQ$10*$E$107 -> 0.007903904732 | X86: =('[1]Energy Data'!$T$23+D190)*$E$107 -> 0.0146727762 | Y86: ='[1]Energy Data'!$AO$23*$E$107 -> 0.0007286989918 | Z86: ='[1]Emission Factors'!$BZ$10*E107 -> 0 | AA86: =(X86-U86)*$G$117 -> -0.01927342606 | AB86: =(Y86-V86)*$G$117 -> -0.001726113155 | AC86: =(Z86-W86)*$G$117 -> -0.006496360053 | AD86: ='[1]Energy Data'!$T$7*$F$107 -> 0 | AE86: ='[1]Energy Data'!$AO$7*$F$107 -> 0 | AF86: ='[1]Emission Factors'!$BQ$10*$F$107 -> 0 | AG86: =('[1]Energy Data'!$T$23+D190)*$F$107 -> 0 | AH86: ='[1]Energy Data'!$AO$23*$F$107 -> 0 | AI86: ='[1]Emission Factors'!$BZ$10*F107 -> 0 | AJ86: =(AG86-AD86)*$G$117 -> 0 | AK86: =(AH86-AE86)*$G$117 -> 0 | AL86: =(AI86-AF86)*$G$117 -> 0
B87: Electronics Recycling Calculations (open loop recycling): Energy Requirements
C88: Personal Computers | L88: Televisions | U88: Microwaves | AD88: VCR's
C89: Product Manufacture Using 100% Virgin Inputs | F89: Product Manufacture Using 100% Recycled Inputs | I89: Delta, after factoring in loss rate | L89: Product Manufacture Using 100% Virgin Inputs | O89: Product Manufacture Using 100% Recycled Inputs | R89: Delta, after factoring in loss rate | U89: Product Manufacture Using 100% Virgin Inputs | X89: Product Manufacture Using 100% Recycled Inputs | AA89: Delta, after factoring in loss rate | AD89: Product Manufacture Using 100% Virgin Inputs | AG89: Product Manufacture Using 100% Recycled Inputs | AJ89: Delta, after factoring in loss rate
C90: (Energy Requirements in GJ/Tonne) | F90: (Energy Requirements in GJ/Tonne) | I90: (Energy Requirements in GJ/Tonne) | L90: (Energy Requirements in GJ/Tonne) | O90: (Energy Requirements in GJ/Tonne) | R90: (Energy Requirements in GJ/Tonne) | U90: (Energy Requirements in GJ/Tonne) | X90: (Energy Requirements in GJ/Tonne) | AA90: (Energy Requirements in GJ/Tonne) | AD90: (Energy Requirements in GJ/Tonne) | AG90: (Energy Requirements in GJ/Tonne) | AJ90: (Energy Requirements in GJ/Tonne)
B92: Type of Product | C92: Process Energy | D92: Transportation Energy | E92: Process Non-Energy | F92: Process Energy | G92: Transportation Energy | H92: Process Non-Energy | I92: Process Energy | J92: Transportation Energy | K92: Process Non-Energy | L92: Process Energy | M92: Transportation Energy | N92: Process Non-Energy | O92: Process Energy | P92: Transportation Energy | Q92: Process Non-Energy | R92: Process Energy | S92: Transportation Energy | T92: Process Non-Energy | U92: Process Energy | V92: Transportation Energy | W92: Process Non-Energy | X92: Process Energy | Y92: Transportation Energy | Z92: Process Non-Energy | AA92: Process Energy | AB92: Transportation Energy | AC92: Process Non-Energy | AD92: Process Energy | AE92: Transportation Energy | AF92: Process Non-Energy | AG92: Process Energy | AH92: Transportation Energy | AI92: Process Non-Energy | AJ92: Process Energy | AK92: Transportation Energy | AL92: Process Non-Energy
B93: Asphalt | C93: =$T$38*$C$102 -> 0.1874962858 | D93: =$T$47*$C$102 -> 0.08984745795 | E93: 0 | F93: =$T$58*$C$102 -> 1.240205939 | G93: =$T$67*$C$102 -> 0.4344188523 | H93: 0 | I93: =(F93-C93)*$G$112 -> 0.5642874854 | J93: =(G93-D93)*$G$112 -> 0.1847017599 | K93: =(H93-E93)*$G$112 -> 0 | L93: =$T$38*$D$102 -> 0.03922194658 | M93: =$T$47*$D$102 -> 0.01879499736 | N93: 0 | O93: =$T$58*$D$102 -> 0.259436025 | P93: =$T$67*$D$102 -> 0.09087514959 | Q93: 0 | R93: =(O93-L93)*$G$112 -> 0.1180420909 | S93: =(P93-M93)*$G$112 -> 0.0386373657 | T93: =(Q93-N93)*$G$112 -> 0 | U93: =$T$38*$E$102 -> 0.04303115064 | V93: =$T$47*$E$102 -> 0.02062035246 | W93: 0 | X93: =$T$58*$E$102 -> 0.2846322441 | Y93: =$T$67*$E$102 -> 0.09970087138 | Z93: 0 | AA93: =(X93-U93)*$G$112 -> 0.1295062443 | AB93: =(Y93-V93)*$G$112 -> 0.04238979573 | AC93: =(Z93-W93)*$G$112 -> 0 | AD93: =$T$38*$F$102 -> 0.1124977715 | AE93: =$T$47*$F$102 -> 0.05390847477 | AF93: 0 | AG93: =$T$58*$F$102 -> 0.7441235635 | AH93: =$T$67*$F$102 -> 0.2606513114 | AI93: 0 | AJ93: =(AG93-AD93)*$G$112 -> 0.3385724912 | AK93: =(AH93-AE93)*$G$112 -> 0.110821056 | AL93: =(AI93-AF93)*$G$112 -> 0
B94: Steel Sheet | C94: ='[1]Energy Data'!$T$43*$C$103 -> 6.634104328 | D94: ='[1]Energy Data'!$T$77*$C$103 -> 0.1535541137 | E94: 0 | F94: =('[1]Energy Data'!$T$59+$D$189)*$C$103 -> 2.660631991 | G94: ='[1]Energy Data'!$T$93*$C$103 -> 0.1002207803 | H94: 0 | I94: =(F94-C94)*$G$113 -> -3.265867675 | J94: =(G94-D94)*$G$113 -> -0.04383561644 | K94: =(H94-E94)*$G$113 -> 0 | L94: ='[1]Energy Data'!$T$43*$D$103 -> 2.816365045 | M94: ='[1]Energy Data'!$T$77*$D$103 -> 0.06518806712 | N94: 0 | O94: =('[1]Energy Data'!$T$59+$D$189)*$D$103 -> 1.129513581 | P94: ='[1]Energy Data'!$T$93*$D$103 -> 0.04254655769 | Q94: 0 | R94: =(O94-L94)*$G$113 -> -1.386453258 | S94: =(P94-M94)*$G$113 -> -0.01860945981 | T94: =(Q94-N94)*$G$113 -> 0 | U94: ='[1]Energy Data'!$T$43*$E$103 -> 18.96848012 | V94: ='[1]Energy Data'!$T$77*$E$103 -> 0.4390476857 | W94: 0 | X94: =('[1]Energy Data'!$T$59+$D$189)*$E$103 -> 7.607378859 | Y94: ='[1]Energy Data'!$T$93*$E$103 -> 0.2865550171 | Z94: 0 | AA94: =(X94-U94)*$G$113 -> -9.337891445 | AB94: =(Y94-V94)*$G$113 -> -0.12533644 | AC94: =(Z94-W94)*$G$113 -> 0 | AD94: ='[1]Energy Data'!$T$43*$F$103 -> 11.19505105 | AE94: ='[1]Energy Data'!$T$77*$F$103 -> 0.2591225668 | AF94: 0 | AG94: =('[1]Energy Data'!$T$59+$D$189)*$F$103 -> 4.489816484 | AH94: ='[1]Energy Data'!$T$93*$F$103 -> 0.1691225668 | AI94: 0 | AJ94: =(AG94-AD94)*$G$113 -> -5.511151701 | AK94: =(AH94-AE94)*$G$113 -> -0.07397260274 | AL94: =(AI94-AF94)*$G$113 -> 0
B95: Lead Bullion | C95: =$T$40*$C$104 -> 0.9221988538 | D95: =$T$49*$C$104 -> 0.07336057794 | E95: 0 | F95: =$T$60*$C$104 -> 0.9836416275 | G95: =$T$69*$C$104 -> 0.466613398 | H95: 0 | I95: =(F95-C95)*$G$114 -> 0.0502484053 | J95: =(G95-D95)*$G$114 -> 0.3216053884 | K95: =(H95-E95)*$G$114 -> 0 | L95: =$T$40*$D$104 -> 0.04349994593 | M95: =$T$49*$D$104 -> 0.00346040462 | N95: 0 | O95: =$T$60*$D$104 -> 0.04639818997 | P95: =$T$69*$D$104 -> 0.02201006594 | Q95: 0 | R95: =(O95-L95)*$G$114 -> 0.002370207797 | S95: =(P95-M95)*$G$114 -> 0.01517006549 | T95: =(Q95-N95)*$G$114 -> 0 | U95: =$T$40*$E$104 -> 0 | V95: =$T$49*$E$104 -> 0 | W95: 0 | X95: =$T$60*$E$104 -> 0 | Y95: =$T$69*$E$104 -> 0 | Z95: 0 | AA95: =(X95-U95)*$G$114 -> 0 | AB95: =(Y95-V95)*$G$114 -> 0 | AC95: =(Z95-W95)*$G$114 -> 0 | AD95: =$T$40*$F$104 -> 0 | AE95: =$T$49*$F$104 -> 0 | AF95: 0 | AG95: =$T$60*$F$104 -> 0 | AH95: =$T$69*$F$104 -> 0 | AI95: 0 | AJ95: =(AG95-AD95)*$G$114 -> 0 | AK95: =(AH95-AE95)*$G$114 -> 0 | AL95: =(AI95-AF95)*$G$114 -> 0
B96: CRT Glass | C96: =$T$41*$C$105 -> 0.1536082014 | D96: =$T$50*$C$105 -> 0.005491649047 | E96: 0 | F96: =$T$61*$C$105 -> 0.1237291259 | G96: =$T$70*$C$105 -> 0.1023003184 | H96: 0 | I96: =(F96-C96)*$G$115 -> -0.02455814421 | J96: =(G96-D96)*$G$115 -> 0.07956876929 | K96: =(H96-E96)*$G$115 -> 0 | L96: =$T$41*$D$105 -> 6.390680831 | M96: =$T$50*$D$105 -> 0.2284733235 | N96: 0 | O96: =$T$61*$D$105 -> 5.147598541 | P96: =$T$70*$D$105 -> 4.256079282 | Q96: 0 | R96: =(O96-L96)*$G$115 -> -1.021711471 | S96: =(P96-M96)*$G$115 -> 3.310361062 | T96: =(Q96-N96)*$G$115 -> 0 | U96: =$T$41*$E$105 -> 0.5405567204 | V96: =$T$50*$E$105 -> 0.01932545119 | W96: 0 | X96: =$T$61*$E$105 -> 0.4354104138 | Y96: =$T$70*$E$105 -> 0.3600011203 | Z96: 0 | AA96: =(X96-U96)*$G$115 -> -0.08642162184 | AB96: =(Y96-V96)*$G$115 -> 0.2800073993 | AC96: =(Z96-W96)*$G$115 -> 0 | AD96: =$T$41*$F$105 -> 0 | AE96: =$T$50*$F$105 -> 0 | AF96: 0 | AG96: =$T$61*$F$105 -> 0 | AH96: =$T$70*$F$105 -> 0 | AI96: 0 | AJ96: =(AG96-AD96)*$G$115 -> 0 | AK96: =(AH96-AE96)*$G$115 -> 0 | AL96: =(AI96-AF96)*$G$115 -> 0
B97: Copper Ingot | C97: =[1]Copper!$S$5*$C$106 -> 3.360967105 | D97: =[1]Copper!$S$9*$C$106 -> 0.1183656088 | E97: 0 | F97: =([1]Copper!$S$27+$D$189)*$C$106 -> 0.3354725851 | G97: =[1]Copper!$S$31*$C$106 -> 0.07789840185 | H97: 0 | I97: =(F97-C97)*$G$116 -> -2.461840746 | J97: =(G97-D97)*$G$116 -> -0.03292811083 | K97: =(H97-E97)*$G$116 -> 0 | L97: =[1]Copper!$S$5*$D$106 -> 2.536578947 | M97: =[1]Copper!$S$9*$D$106 -> 0.08933253492 | N97: 0 | O97: =([1]Copper!$S$27+$D$189)*$D$106 -> 0.2531868567 | P97: =[1]Copper!$S$31*$D$106 -> 0.05879124668 | Q97: 0 | R97: =(O97-L97)*$G$116 -> -1.857993016 | S97: =(P97-M97)*$G$116 -> -0.0248514044 | T97: =(Q97-N97)*$G$116 -> 0 | U97: =[1]Copper!$S$5*$E$106 -> 5.913725111 | V97: =[1]Copper!$S$9*$E$106 -> 0.2082679333 | W97: 0 | X97: =([1]Copper!$S$27+$D$189)*$E$106 -> 0.5902743432 | Y97: =[1]Copper!$S$31*$E$106 -> 0.1370646367 | Z97: 0 | AA97: =(X97-U97)*$G$116 -> -4.331684597 | AB97: =(Y97-V97)*$G$116 -> -0.05793802493 | AC97: =(Z97-W97)*$G$116 -> 0 | AD97: =[1]Copper!$S$5*$F$106 -> 7.394127631 | AE97: =[1]Copper!$S$9*$F$106 -> 0.2604043393 | AF97: 0 | AG97: =([1]Copper!$S$27+$D$189)*$F$106 -> 0.7380396872 | AH97: =[1]Copper!$S$31*$F$106 -> 0.1713764841 | AI97: 0 | AJ97: =(AG97-AD97)*$G$116 -> -5.416049642 | AK97: =(AH97-AE97)*$G$116 -> -0.07244184383 | AL97: =(AI97-AF97)*$G$116 -> 0
B98: Alum Sheet | C98: ='[1]Energy Data'!$T$42*$C$107 -> 64.99824384 | D98: ='[1]Energy Data'!$T$76*$C$107 -> 1.913330833 | E98: 0 | F98: =('[1]Energy Data'!$T$58+$D$189)*$C$107 -> 9.636912437 | G98: ='[1]Energy Data'!$T$92*$C$107 -> 0.5040988333 | H98: 0 | I98: =(F98-C98)*$G$117 -> -45.50246417 | J98: =(G98-D98)*$G$117 -> -1.158272877 | K98: =(H98-E98)*$G$117 -> 0 | L98: ='[1]Energy Data'!$T$42*$D$107 -> 1.672339035 | M98: ='[1]Energy Data'!$T$76*$D$107 -> 0.04922806604 | N98: 0 | O98: =('[1]Energy Data'!$T$58+$D$189)*$D$107 -> 0.2479480044 | P98: ='[1]Energy Data'!$T$92*$D$107 -> 0.01296995283 | Q98: 0 | R98: =(O98-L98)*$G$117 -> -1.170732354 | S98: =(P98-M98)*$G$117 -> -0.02980118894 | T98: =(Q98-N98)*$G$117 -> 0 | U98: ='[1]Energy Data'!$T$42*$E$107 -> 1.03969465 | V98: ='[1]Energy Data'!$T$76*$E$107 -> 0.03060513196 | W98: 0 | X98: =('[1]Energy Data'!$T$58+$D$189)*$E$107 -> 0.1541494925 | Y98: ='[1]Energy Data'!$T$92*$E$107 -> 0.008063431085 | Z98: 0 | AA98: =(X98-U98)*$G$117 -> -0.7278453346 | AB98: =(Y98-V98)*$G$117 -> -0.01852742538 | AC98: =(Z98-W98)*$G$117 -> 0 | AD98: ='[1]Energy Data'!$T$42*$F$107 -> 0 | AE98: ='[1]Energy Data'!$T$76*$F$107 -> 0 | AF98: 0 | AG98: =('[1]Energy Data'!$T$58+$D$189)*$F$107 -> 0 | AH98: ='[1]Energy Data'!$T$92*$F$107 -> 0 | AI98: 0 | AJ98: =(AG98-AD98)*$G$117 -> 0 | AK98: =(AH98-AE98)*$G$117 -> 0 | AL98: =(AI98-AF98)*$G$117 -> 0
B101: Type of Product | C101: Fate of Recycled PCs (% of recycled PCs going to each secondary product) | D101: Fate of Recycled TVs (% of recycled TVs going to each secondary product) | E101: Fate of Recycled Microwaves (% of recycled Microwaves going to each secondary product) | F101: Fate of Recycled VCRs (% of recycled VCRs going to each secondary product)
B102: Asphalt | C102: =2.3/6 -> 0.3833333333 | D102: =[4]Sheet1!$T$8/[4]Sheet1!$T$17 -> 0.08018867925 | E102: =SUM(L155,L154) -> 0.08797653959 | F102: =SUM(M155,M154) -> 0.23
B103: Steel Sheet | C103: =1.6/6 -> 0.2666666667 | D103: =[4]Sheet1!$T$10/[4]Sheet1!$T$17 -> 0.1132075472 | E103: =L160 -> 0.7624633431 | F103: =M160 -> 0.45
B104: Lead Bullion | C104: =0.6/6 -> 0.1 | D104: =[4]Sheet1!$T$13/[4]Sheet1!$T$17 -> 0.004716981132 | E104: =L152 -> 0 | F104: =M152 -> 0
B105: CRT Glass | C105: =0.1/6 -> 0.01666666667 | D105: =[4]Sheet1!$T$7/[4]Sheet1!$T$17 -> 0.6933962264 | E105: =L153 -> 0.05865102639 | F105: =M153 -> 0
B106: Copper Wire | C106: =0.3/6 -> 0.05 | D106: =[4]Sheet1!$T$11/[4]Sheet1!$T$17 -> 0.03773584906 | E106: =L151 -> 0.08797653959 | F106: =M151 -> 0.11
B107: Aluminum Sheet | C107: =1.1/6 -> 0.1833333333 | D107: =[4]Sheet1!$T$12/[4]Sheet1!$T$17 -> 0.004716981132 | E107: =L159 -> 0.00293255132 | F107: =M159 -> 0
C108: FAL report | D108: RIS report
B110: Loss Rates for Secondary Products: PCs
B111: Type of Product (a) | C111: Percent of Recovered Materials Retained (b) | D111: Percent of Recovered Materials Retained (percent) | E111: Tons of Product Produced per Ton of Recycled Inputs (c) | F111: Tons of Product Made per Ton of Recovered Materials [b*c] | G111: Retention Rate (percent)
B112: Asphalt | C112: =100-(1.3/(10-2.7))*100 -> 82.19178082 | D112: =C112/100 -> 0.8219178082 | E112: =1-(0.8/2.3) -> 0.652173913 | F112: =C112*E112 -> 53.60333532 | G112: =F112/100 -> 0.5360333532
B113: Steel Sheet | C113: 82.19178082 | D113: 0.8219178082 | E113: 1 | F113: 82.19178082 | G113: 0.8219178082
B114: Lead Bullion | C114: 82.19178082 | D114: 0.8219178082 | E114: 0.995 | F114: 81.78082192 | G114: 0.8178082192
B115: CRT Glass | C115: 82.19178082 | D115: 0.8219178082 | E115: 1 | F115: 82.19178082 | G115: 0.8219178082
B116: Copper Wire | C116: 82.19178082 | D116: 0.8219178082 | E116: 0.99 | F116: 81.36986301 | G116: 0.8136986301
B117: Aluminum Sheet | C117: 82.19178082 | D117: 0.8219178082 | E117: 1 | F117: 82.19178082 | G117: 0.8219178082
B118: Copper
B119: Lead | G119: 0.95
B120: CRT Glass
B121: ABS Resin
B122: PPO/HIPS Resin
B123: CRT , Plastic Housing, PWB, and Monitor Assembly
B124: Fabrication and Packaging of Silicon Wafers
B125: PWB, Steel Housing, and CPU Assembly
B126: Aluminum
B127: Steel Sheet | G127: 0.77
B128: Zinc
B129: FAL report | I129: Composite Process Non-Energy Factors (MTCO2/tonne)
A130: Process GHG Emissions TonneCO2e/Tonne | E130: Process GHG Emissions CO2 eq/Tonne | J130: PC & Monitor1 | K130: Televisions2 | L130: Microwaves3 | M130: VCRs4
B131: VIRGIN | C131: Fossil CO2 | E131: Type of Product | F131: VIRGIN | G131: RECYCLED | J131: Average | K131: "B&O 28"" | L131: Average | M131: Average
B132: Copper | C132: ='[3]Energy Data Conversion'!AT3 -> 3.636363636e-06 | E132: Asphalt | F132: =('[5]Industrial Process Emissions'!$B$32)*Ton_Tonnes*(44/12) -> 0.001999966358 | G132: ='[5]Industrial Process Emissions'!$B$76*Ton_Tonnes*(44/12) -> 0.002419959293 | I132: Copper | J132: =$C132*J151 -> 2.519636364e-07 | K132: 7.664466681e-08 | L132: 3.199146894e-07 | M132: 4e-07
B133: Lead | C133: ='[3]Energy Data Conversion'!AT4 -> 0.01875 | E133: Steel Sheet | F133: ='[5]Industrial Process Emissions'!$B$33*Ton_Tonnes*(44/12) -> 1.623062698 | G133: ='[5]Industrial Process Emissions'!$B$77*Ton_Tonnes*(44/12) -> 0.02619955929 | I133: Lead | J133: 0.0011810625 | K133: 0.0008782201405 | L133: 0 | M133: 0
B134: CRT Glass | C134: ='[3]Energy Data Conversion'!AT5 -> 0.1817330211 | E134: Lead Bullion | F134: ='[5]Industrial Process Emissions'!$B$34*Ton_Tonnes*(44/12) -> 0.03181946476 | G134: ='[5]Industrial Process Emissions'!$B$78*Ton_Tonnes*(44/12) -> 0.01699971404 | I134: CRT Glass | J134: 0.04503344262 | K134: 0.09959139797 | L134: 0.01065882822 | M134: 0
B135: ABS Resin | C135: ='[3]Energy Data Conversion'!AT6 -> 0.025125 | E135: CRT Glass | F135: ='[5]Industrial Process Emissions'!$B$35*Ton_Tonnes*(44/12) -> 0.1809969554 | G135: ='[5]Industrial Process Emissions'!$B$79*Ton_Tonnes*(44/12) -> 0 | I135: ABS Resin | J135: 0.002888244375 | K135: 0.003824648712 | L135: 0.001105205279 | M135: 0.002889375
B136: PPO/HIPS Resin | C136: ='[3]Energy Data Conversion'!AT7 -> 0.01018867925 | E136: Copper Wire | F136: ='[5]Industrial Process Emissions'!$B$36*Ton_Tonnes*(44/12) -> 3.599939444e-06 | G136: ='[5]Industrial Process Emissions'!$B$80*Ton_Tonnes*(44/12) -> 3.599939444e-06 | I136: PPO/HIPS Resin | J136: 0.001171239623 | K136: 0.001550969909 | L136: 0.0004481823715 | M136: 0.001171698113
B137: CRT , Plastic Housing, PWB, and Monitor Assembly | C137: ='[3]Energy Data Conversion'!AT8 -> 0.004950819672 | E137: Alum Sheet | F137: =[1]Aluminum!D83 -> 2.695231513 | G137: ='[5]Industrial Process Emissions'!$B$81*Ton_Tonnes*(44/12) -> 0 | I137: CRT , Plastic Housing, PWB, and Monitor Assembly | J137: 0.004950819672 | K137: 0.001237704918 | L137: 0.001237704918 | M137: 0.001237704918
B138: Fabrication and Packaging of Silicon Wafers | C138: ='[3]Energy Data Conversion'!AT9 -> 114 | I138: Fabrication and Packaging of Silicon Wafers | J138: 0.114 | K138: 0 | L138: 0 | M138: 0
B139: PWB, Steel Housing, and CPU Assembly | C139: ='[3]Energy Data Conversion'!AT10 -> 0.0002661064426 | I139: PWB, Steel Housing, and CPU Assembly | J139: 0.0002661064426 | K139: 6.652661064e-05 | L139: 6.652661064e-05 | M139: 6.652661064e-05
B140: Aluminum | C140: ='[3]Energy Data Conversion'!AT11 -> 0.07863157895 | I140: Aluminum | J140: 0.01114366737 | K140: 0.0001841488968 | L140: 0.0002305911406 | M140: 0
B141: Steel Sheet | C141: ='[3]Energy Data Conversion'!AT12 -> 0.1164335664 | I141: Steel Sheet | J141: 0.02383511538 | K141: 0.008453022387 | L141: 0.08877632631 | M141: 0.0523951049
B142: Zinc | C142: ='[3]Energy Data Conversion'!AT13 -> 0.007 | I142: Zinc | J142: 0.00015435 | K142: 0 | L142: 0 | M142: 0
I143: net EFs | J143: =SUM(J132:J142) -> 0.2046243 | K143: =SUM(K132:K142) -> 0.1157867162 | L143: =SUM(L132:L142) -> 0.1025236848 | M143: =SUM(M132:M142) -> 0.05776080954
C145: PC & Monitor1 | D145: Televisions2 | E145: Microwaves3 | F145: VCRs4
C146: Average | D146: "B&O 28"" | E146: Average | F146: Average
B147: =[4]Sheet1!B7 -> Glass/Silica | C147: =[4]Sheet1!E7-C173 -> 0.2478 | D147: =[4]Sheet1!F7 -> 0.5480093677 | E147: =[4]Sheet1!G7 -> 0.05865102639 | F147: =[4]Sheet1!H7 -> 0
B148: =[4]Sheet1!B8 -> Plastics | C148: =[4]Sheet1!E8 -> 0.22991 | D148: =[4]Sheet1!F8 -> 0.3044496487 | E148: =[4]Sheet1!G8 -> 0.08797653959 | F148: =[4]Sheet1!H8 -> 0.23 | I148: Adjusted Composition
B149: =[4]Sheet1!B9 -> Printed Wire Board | C149: =[4]Sheet1!E9 -> 0 | D149: =[4]Sheet1!F9 -> 0 | E149: =[4]Sheet1!G9 -> 0 | F149: =[4]Sheet1!H9 -> 0.21 | J149: PC & Monitor1 | K149: Televisions2 | L149: Microwaves3 | M149: VCRs4
B150: =[4]Sheet1!B10 -> Steel/Ferrous | C150: =[4]Sheet1!E10 -> 0.20471 | D150: =[4]Sheet1!F10 -> 0.07259953162 | E150: =[4]Sheet1!G10 -> 0.7624633431 | F150: =[4]Sheet1!H10 -> 0.45 | J150: Average | K150: "B&O 28"" | L150: Average | M150: Average
B151: =[4]Sheet1!B11 -> Aluminum | C151: =[4]Sheet1!E11 -> 0.14172 | D151: =[4]Sheet1!F11 -> 0.002341920375 | E151: =[4]Sheet1!G11 -> 0.00293255132 | F151: =[4]Sheet1!H11 -> 0 | I151: Copper | J151: =C152 -> 0.06929 | K151: 0.02107728337 | L151: 0.08797653959 | M151: 0.11
B152: =[4]Sheet1!B12 -> Copper | C152: =[4]Sheet1!E12 -> 0.06929 | D152: =[4]Sheet1!F12 -> 0.02107728337 | E152: =[4]Sheet1!G12 -> 0.08797653959 | F152: =[4]Sheet1!H12 -> 0.11 | I152: Lead | J152: 0.06299 | K152: 0.04683840749 | L152: 0 | M152: 0
B153: =[4]Sheet1!B13 -> Lead | C153: =[4]Sheet1!E13 -> 0.06299 | D153: =[4]Sheet1!F13 -> 0.04683840749 | E153: =[4]Sheet1!G13 -> 0 | F153: =[4]Sheet1!H13 -> 0 | I153: CRT Glass | J153: =C147 -> 0.2478 | K153: =D147 -> 0.5480093677 | L153: =E147 -> 0.05865102639 | M153: =F147 -> 0
B154: =[4]Sheet1!B14 -> Zinc | C154: =[4]Sheet1!E14 -> 0.02205 | D154: =[4]Sheet1!F14 -> 0 | E154: =[4]Sheet1!G14 -> 0 | F154: =[4]Sheet1!H14 -> 0 | I154: ABS Resin | J154: =C148/2 -> 0.114955 | K154: =D148/2 -> 0.1522248244 | L154: =E148/2 -> 0.04398826979 | M154: =F148/2 -> 0.115
B155: =[4]Sheet1!B15 -> Tin | C155: =[4]Sheet1!E15 -> 0.01008 | D155: =[4]Sheet1!F15 -> 0 | E155: =[4]Sheet1!G15 -> 0 | F155: =[4]Sheet1!H15 -> 0 | I155: PPO/HIPS Resin | J155: =C148/2 -> 0.114955 | K155: =D148/2 -> 0.1522248244 | L155: =E148/2 -> 0.04398826979 | M155: =F148/2 -> 0.115
B156: =[4]Sheet1!B16 -> Nickel | C156: =[4]Sheet1!E16 -> 0.0085 | D156: =[4]Sheet1!F16 -> 0 | E156: =[4]Sheet1!G16 -> 0 | F156: =[4]Sheet1!H16 -> 0 | I156: CRT , Plastic Housing, PWB, and Monitor Assembly | J156: 1 | K156: 0.25 | L156: 0.25 | M156: 0.25
B157: =[4]Sheet1!B17 -> Barium | C157: =[4]Sheet1!E17 -> 0.00032 | D157: =[4]Sheet1!F17 -> 0 | E157: =[4]Sheet1!G17 -> 0 | F157: =[4]Sheet1!H17 -> 0 | I157: Fabrication and Packaging of Silicon Wafers | J157: =C173 -> 0.001 | K157: =D173 -> 0 | L157: =E173 -> 0 | M157: =F173 -> 0
B158: =[4]Sheet1!B18 -> Manganese | C158: =[4]Sheet1!E18 -> 0.00032 | D158: =[4]Sheet1!F18 -> 0 | E158: =[4]Sheet1!G18 -> 0 | F158: =[4]Sheet1!H18 -> 0 | I158: PWB, Steel Housing, and CPU Assembly | J158: 1 | K158: 0.25 | L158: 0.25 | M158: 0.25
B159: =[4]Sheet1!B19 -> Silver | C159: =[4]Sheet1!E19 -> 0.00019 | D159: =[4]Sheet1!F19 -> 0 | E159: =[4]Sheet1!G19 -> 0 | F159: =[4]Sheet1!H19 -> 0 | I159: Aluminum | J159: =C151 -> 0.14172 | K159: =D151 -> 0.002341920375 | L159: =E151 -> 0.00293255132 | M159: =F151 -> 0
B160: =[4]Sheet1!B20 -> Beryllium | C160: =[4]Sheet1!E20 -> 0.00016 | D160: =[4]Sheet1!F20 -> 0 | E160: =[4]Sheet1!G20 -> 0 | F160: =[4]Sheet1!H20 -> 0 | I160: Steel Sheet | J160: =C150 -> 0.20471 | K160: =D150 -> 0.07259953162 | L160: =E150 -> 0.7624633431 | M160: =F150 -> 0.45
B161: =[4]Sheet1!B21 -> Cobalt | C161: =[4]Sheet1!E21 -> 0.00016 | D161: =[4]Sheet1!F21 -> 0 | E161: =[4]Sheet1!G21 -> 0 | F161: =[4]Sheet1!H21 -> 0 | I161: Zinc | J161: =C154 -> 0.02205 | K161: =D154 -> 0 | L161: =E154 -> 0 | M161: =F154 -> 0
B162: =[4]Sheet1!B22 -> Tantalum | C162: =[4]Sheet1!E22 -> 0.00016 | D162: =[4]Sheet1!F22 -> 0 | E162: =[4]Sheet1!G22 -> 0 | F162: =[4]Sheet1!H22 -> 0
B163: =[4]Sheet1!B23 -> Cadmium | C163: =[4]Sheet1!E23 -> 9e-05 | D163: =[4]Sheet1!F23 -> 0 | E163: =[4]Sheet1!G23 -> 0 | F163: =[4]Sheet1!H23 -> 0
B164: =[4]Sheet1!B24 -> Antimony | C164: =[4]Sheet1!E24 -> 9e-05 | D164: =[4]Sheet1!F24 -> 0 | E164: =[4]Sheet1!G24 -> 0 | F164: =[4]Sheet1!H24 -> 0
B165: =[4]Sheet1!B25 -> Chromium | C165: =[4]Sheet1!E25 -> 6e-05 | D165: =[4]Sheet1!F25 -> 0 | E165: =[4]Sheet1!G25 -> 0 | F165: =[4]Sheet1!H25 -> 0
B166: =[4]Sheet1!B26 -> Mercury | C166: =[4]Sheet1!E26 -> 2e-05 | D166: =[4]Sheet1!F26 -> 0 | E166: =[4]Sheet1!G26 -> 0 | F166: =[4]Sheet1!H26 -> 0
B167: =[4]Sheet1!B27 -> Gold | C167: =[4]Sheet1!E27 -> 2e-05 | D167: =[4]Sheet1!F27 -> 0 | E167: =[4]Sheet1!G27 -> 0 | F167: =[4]Sheet1!H27 -> 0
B168: =[4]Sheet1!B28 -> Nonferrous Metal5 | C168: =[4]Sheet1!E28 -> 0 | D168: =[4]Sheet1!F28 -> 0 | E168: =[4]Sheet1!G28 -> 0 | F168: =[4]Sheet1!H28 -> 0
B169: =[4]Sheet1!B29 -> Selenium | C169: =[4]Sheet1!E29 -> 2e-05 | D169: =[4]Sheet1!F29 -> 0 | E169: =[4]Sheet1!G29 -> 0 | F169: =[4]Sheet1!H29 -> 0
B170: =[4]Sheet1!B30 -> Arsenic | C170: =[4]Sheet1!E30 -> 1e-05 | D170: =[4]Sheet1!F30 -> 0 | E170: =[4]Sheet1!G30 -> 0 | F170: =[4]Sheet1!H30 -> 0
B171: =[4]Sheet1!B31 -> Wires | C171: =[4]Sheet1!E31 -> 0 | D171: =[4]Sheet1!F31 -> 0 | E171: =[4]Sheet1!G31 -> 0 | F171: =[4]Sheet1!H31 -> 0
B172: =[4]Sheet1!B32 -> Other | C172: =[4]Sheet1!E32 -> 0 | D172: =[4]Sheet1!F32 -> 0.004683840749 | E172: =[4]Sheet1!G32 -> 0 | F172: =[4]Sheet1!H32 -> 0
B173: Silicon Wafers | C173: =1/1000 -> 0.001 | D173: 0 | E173: 0 | F173: 0
B174: =[4]Sheet1!B33 -> Total Weight | C174: =[4]Sheet1!E33 -> 0.99967 | D174: =[4]Sheet1!F33 -> 1 | E174: =[4]Sheet1!G33 -> 1 | F174: =[4]Sheet1!H33 -> 1
B175: =[4]Sheet1!B34 -> Total Weight (kg) | C175: =[4]Sheet1!E34 -> 27.2 | D175: =[4]Sheet1!F34 -> 42.7 | E175: =[4]Sheet1!G34 -> 17.1 | F175: =[4]Sheet1!H34 -> NA
B176: =[4]Sheet1!B35 -> % Weight Captured by Source Reduction EF | C176: =[4]Sheet1!E35 -> 0.97947 | D176: =[4]Sheet1!F35 -> 0.9953161593 | E176: =[4]Sheet1!G35 -> 1 | F176: =[4]Sheet1!H35 -> 0.79
B177: =[4]Sheet1!B36 -> % Weight Captured by Recycling EF | C177: =[4]Sheet1!E36 -> 0.95742 | D177: =[4]Sheet1!F36 -> 0.9953161593 | E177: =[4]Sheet1!G36 -> 1 | F177: =[4]Sheet1!H36 -> 0.79
B179: =[4]Sheet1!B38 -> Notes:
B180: =[4]Sheet1!B39 -> 1. Source: RIS (2003). Information Technology and Telecommunication Waste in Canada - 2003 Update. October
B181: =[4]Sheet1!B40 -> 2. Data is based on data for a B&O 28" television. Source: RIS (2003). Baseline Study of End-of-Life Electrical and Electronic Equipment in Canada. June.
B182: =[4]Sheet1!B42 -> 3. Source: RIS (2003). Baseline Study of End-of-Life Electrical and Electronic Equipment in Canada. June.
B183: =[4]Sheet1!B43 -> 4. Source: University of Florida (2004). RCRA Toxicity Characterization of Computer CPUs and Other Discarded Electronic Devices. Department of Environmental Engineering Science. July.
C188: Demanufacturing Energy = | D188: 309 | E188: kj/lb
D189: =(D188/1000000)*C191 -> 0.6812169312 | E189: GJ/Tonne
D190: =D189*'[1]Electricity Coefficients'!D20 -> 0.05527019988 | E190: MTCO2e/MT
C191: =2000/0.9072 -> 2204.585538 | D191: pounds per metric ton

Sheet OES
A1: INDIVIDUAL MATERIAL INPUTS
A2: CELLS WITH SHADED PATTERN WILL BE LOCKED IN LATER VERSIONS
A4: Material | B4: Tonnage Data | D4: Gross Costs | E4: Material Management Costs | F4: Recycling Emissions Coefficients (GHD) | G4: Landfilling Emissions Coeffcient (Canadian WARM) | H4: Virgins Emissions Coeffcient (Canadian WARM) | I4: Recycling Rates | J4: Avoided Emissions | K4: Potential Credit | L4: $/tC02 avoided | M4: Relative Contribution of Cost Component Categories
B5: Generation (Year 5 Tonnes) (Sheet 1) | C5: Recovery (Sheet 1) | D5: ($/tonne) | E5: ($s) | F5: tCO2e/tonne | G5: tCO2e/tonne | H5: tCO2e/tonne | I5: (%) | J5: tCO2e | K5: $ | L5: $/tCO2e | M5: Collection | N5: Consolidation | O5: Processing | P5: Transportation | Q5: Contingency
B6: (tonnes) | C6: (tonnes) | M6: ='OES Cost Data'!B59 -> 0.19245179 | N6: ='OES Cost Data'!C59 -> 0.02349836808 | O6: ='OES Cost Data'!D59 -> 0.5626896123 | P6: ='OES Cost Data'!E59 -> 0.1302697639 | Q6: ='OES Cost Data'!F59 -> 0.09109046569
A7: Computer Monitors | B7: 8680 | C7: 6820.119218 | D7: ='[6]OES Cost Data'!G2 -> 1702.602606 | E7: =D7*C7 -> 11611952.75 | F7: 1.97 | G7: 0.01 | H7: ='Virgin Emissions'!C4 -> 3.22798874 | I7: =C7/B7 -> 0.7857280205 | J7: =C7*F7 -> 13435.63486 | K7: =$B$29*J7 -> 201534.5229 | L7: =D7/F7 -> 864.2652822
A8: Display Devices <18" | B8: 1814 | C8: 1425.310629 | D8: ='[6]OES Cost Data'!G4 -> 1743.814181 | E8: =D8*C8 -> 2485476.887 | F8: 1.97 | G8: 0.01 | H8: ='Virgin Emissions'!C5 -> 3.22798874 | I8: =C8/B8 -> 0.7857280205 | J8: =C8*F8 -> 2807.86194 | K8: =$B$29*J8 -> 42117.92909 | L8: =D8/F8 -> 885.1848634
A9: Display Devices 18-29" | B9: 23419 | C9: 18400.96451 | D9: ='[6]OES Cost Data'!G5 -> 1743.179675 | E9: 32076187.34 | F9: 1.97 | G9: 0.01 | H9: ='Virgin Emissions'!C6 -> 3.22798874 | I9: 0.7857280205 | J9: =C9*F9 -> 36249.90009 | K9: =$B$29*J9 -> 543748.5013 | L9: 884.8627793
A10: Display Devices 29-45 | B10: 13001 | C10: 10215.24999 | D10: ='[6]OES Cost Data'!G6 -> 1743.953695 | E10: 17814922.97 | F10: 1.97 | G10: 0.01 | H10: ='Virgin Emissions'!C7 -> 3.22798874 | I10: 0.7857280205 | J10: =C10*F10 -> 20124.04249 | K10: =$B$29*J10 -> 301860.6373 | L10: 885.2556825
A11: Display Devices >45" | B11: 6080 | C11: 4777.226365 | D11: ='[6]OES Cost Data'!G7 -> 1742.950243 | E11: 8326467.855 | F11: 1.97 | G11: 0.01 | H11: ='Virgin Emissions'!C8 -> 3.22798874 | I11: 0.7857280205 | J11: =C11*F11 -> 9411.135938 | K11: =$B$29*J11 -> 141167.0391 | L11: 884.7463164
A12: Display Devices | B12: 46805 | C12: 36776 | D12: =SUMPRODUCT(D7:D11,B7:B11)/SUM(B7:B11) -> 1736.718757 | E12: 63869569.02 | F12: 1.9726 | G12: 0.01 | H12: 3.23 | I12: =C12/B12 -> 0.7857280205 | J12: =SUM(J7:J11) -> 82028.57532 | K12: =J12*$B$29 -> 1230428.63 | L12: 880.4211484
A13: Desktop Computers | B13: 9695 | C13: 7617.633159 | D13: ='[6]OES Cost Data'!G8 -> 1416.889123 | E13: 10793341.56 | F13: 4.99 | G13: 0.01 | H13: ='Virgin Emissions'!C10 -> 30.1489231 | I13: =C13/B13 -> 0.7857280205 | J13: =C13*F13 -> 38011.98946 | K13: =$B$29*J13 -> 570179.8419 | L13: 283.945716
A14: Portable Laptop Computers | B14: 5153 | C14: 4048.85649 | D14: ='[6]OES Cost Data'!G12 -> 1527.129371 | E14: 6183127.663 | F14: 4.99 | G14: 0.01 | H14: ='Virgin Emissions'!C11 -> 30.1489231 | I14: =C14/B14 -> 0.7857280205 | J14: 20203.79388 | K14: =$B$29*J14 -> 303056.9083 | L14: 306.03795 | M14: Display Devices | N14: =Sheet1!J12 -> 82028.57532 | O14: =J12 -> 82028.57532
A15: Computers | B15: 13332 | C15: 10475 | D15: =SUMPRODUCT(D13:D14,B13:B14)/SUM(B13:B14) -> 1455.148013 | E15: 15242675.43 | F15: 4.9949 | G15: 0.01 | H15: ='Virgin Emissions'!C11 -> 30.1489231 | I15: =C15/B15 -> 0.7857035704 | J15: 52321.5775 | K15: =J15*$B$29 -> 784823.6625 | L15: 291.3267558 | M15: Computers | N15: =Sheet1!J15 -> 52321.5775 | O15: =J15 -> 52321.5775
A16: Dekstop and portable Printing Copying and Multi Function Devices | B16: 29555 | C16: 23222.19165 | D16: ='[6]OES Cost Data'!G14 -> 1526.360801 | E16: 35445443.05 | F16: 2.93 | G16: 0.01 | H16: ='Virgin Emissions'!C13 -> 10.15055395 | I16: =C16/B16 -> 0.7857280205 | J16: 68041.02152 | K16: =$B$29*J16 -> 1020615.323 | L16: 520.942253 | M16: Printers and Peripherals | N16: =Sheet1!J24 -> 65935.2096 | O16: =J24 -> 65935.2096
A17: Telephones and Telephone Answering Machines | B17: 5343 | C17: 4198.144814 | D17: ='[6]OES Cost Data'!G18 -> 1567.296578 | E17: 6579738 | F17: 2.93 | G17: 0.01 | H17: ='Virgin Emissions'!C14 -> 10.15055395 | I17: =C17/B17 -> 0.7857280205 | J17: 12300.5643 | K17: =$B$29*J17 -> 184508.4646 | L17: 534.9135078 | M17: Big Printers/Copiers | N17: =Sheet1!J27 -> 3712.365 | O17: =J27 -> 3712.365
A18: Cellular Devices and Pagers | B18: 1085 | C18: 852.5149023 | D18: ='[6]OES Cost Data'!G19 -> 1570.173653 | E18: 1338596.438 | F18: 2.93 | G18: 0.01 | H18: ='Virgin Emissions'!C15 -> 10.15055395 | I18: 0.7857280205 | J18: 2497.868664 | K18: =$B$29*J18 -> 37468.02995 | L18: 535.8954446
A19: Computer Peripherals | B19: 1927 | C19: 1514.097896 | D19: ='[6]OES Cost Data'!G14 -> 1526.360801 | E19: 2311059.677 | F19: 2.93 | G19: 0.01 | H19: ='Virgin Emissions'!C16 -> 10.15055395 | I19: 0.7857280205 | J19: 4436.306834 | K19: =$B$29*J19 -> 66544.60251 | L19: 520.942253
A20: Personal/Portable | B20: 2445 | C20: 1921.10501 | D20: ='[6]OES Cost Data'!G20 -> 1331.614486 | E20: 2558171.261 | F20: 2.93 | G20: 0.01 | H20: ='Virgin Emissions'!C17 -> 10.15055395 | I20: 0.7857280205 | J20: 5628.83768 | K20: =$B$29*J20 -> 84432.5652 | L20: 454.4759338
A21: Home/Non Portable | B21: 16638 | C21: 13072.94281 | D21: ='[6]OES Cost Data'!G21 -> 1566.983345 | E21: 20485083.65 | F21: 2.93 | G21: 0.01 | H21: ='Virgin Emissions'!C18 -> 10.15055395 | I21: 0.7857280205 | J21: 38303.72242 | K21: =$B$29*J21 -> 574555.8363 | L21: 534.8066025
A22: Home Theater in a Box | B22: 9784 | C22: 7687.562953 | D22: ='[6]OES Cost Data'!G22 -> 1566.629222 | E22: 12043560.77 | F22: 2.93 | G22: 0.01 | H22: ='Virgin Emissions'!C19 -> 10.15055395 | I22: 0.7857280205 | J22: 22524.55945 | K22: =$B$29*J22 -> 337868.3918 | L22: 534.6857412
A23: Aftermarket Vehicle | B23: 1013 | C23: 795.9424848 | D23: ='[6]OES Cost Data'!G23 -> 1564.491597 | E23: 1245245.329 | F23: 2.93 | G23: 0.01 | H23: ='Virgin Emissions'!C20 -> 10.15055395 | I23: 0.7857280205 | J23: 2332.11148 | K23: =$B$29*J23 -> 34981.67221 | L23: 533.9561763
A24: Printers and Peripherals | B24: 28613 | C24: 22482 | D24: =SUMPRODUCT(D16:D23,B16:B23)/SUM(B16:B23) -> 1539.616336 | E24: 34613654.46 | F24: 2.9328 | G24: 0.01 | H24: ='Virgin Emissions'!C20 -> 10.15055395 | I24: =C24/B24 -> 0.7857267676 | J24: 65935.2096 | K24: =J24*$B$29 -> 989028.144 | L24: 524.9646534
A25: Floor Standing Printing Devices | B25: 502 | C25: 394.4354663 | D25: ='[6]OES Cost Data'!G16 -> 865.5897436 | E25: 341419.2941 | F25: 2.89 | G25: 0.01 | H25: ='Virgin Emissions'!C22 -> 10.15055395 | I25: =C25/B25 -> 0.7857280205 | J25: 1139.918498 | K25: =$B$29*J25 -> 17098.77746 | L25: 299.512022
A26: Floor Standing Copying Devices | B26: 1006 | C26: 790.4423886 | D26: ='[6]OES Cost Data'!G17 -> 432.7948718 | E26: 342099.4122 | F26: 2.89 | G26: 0.01 | H26: ='Virgin Emissions'!C23 -> 10.15055395 | I26: =C26/B26 -> 0.7857280205 | J26: 2284.378503 | K26: =$B$29*J26 -> 34265.67755 | L26: 149.756011
A27: Big Printers/Copiers | B27: 1636 | C27: 1285 | D27: =SUMPRODUCT(D25:D26,B25:B26)/SUM(B25:B26) -> 576.8684962 | E27: 741276.0176 | F27: 2.889 | G27: 0.01 | H27: ='Virgin Emissions'!C22 -> 10.15055395 | I27: =C27/B27 -> 0.7854523227 | J27: 3712.365 | K27: =J27*$B$29 -> 55685.475 | L27: 199.6775688
A28: Total | B28: =SUM(B27,B24,B15,B12) -> 90386 | C28: =SUM(C27,C24,C15,C12) -> 71018 | D28: =SUMPRODUCT(D7:D27,B7:B27)/SUM(B7:B27) -> 1602.305558 | E28: 113792536.1 | F28: =SUMPRODUCT(C7:C27,F7:F27)/SUM(C7:C27) -> 2.764667229 | G28: 0.01 | H28: =SUMPRODUCT(H7:H27,B7:B27)/SUM(B7:B27) -> 9.591422659 | I28: =C28/B28 -> 0.7857190273 | J28: =SUM(J27,J24,J15,J12) -> 203997.7274 | K28: =SUM(K27,K24,K15,K12) -> 3059965.911 | L28: 579.5654324
A29: Value of Carbon Credit | B29: 15 | M29: Goal Carbon | N29: 215000
I30: Baseline vs Modeled Scenario (Change in Costs)
A31: Baseline | D31: Modeled Scenario | G31: Difference | H31: Gross System Cost | I31: =C35 -> 113792536 | J31: =F35 -> 113792536.1
A32: Current Recycling Rate: | C32: 0.7857 | D32: Current Recycling Rate: | F32: =I28 -> 0.7857190273 | G32: =F32-C32 -> 1.902728299e-05 | H32: Collection | I32: =C39 -> 21899577.24 | J32: =F39 -> 21899577.26
H33: Consolidation | I33: =C40 -> 2673938.896 | J33: =F40 -> 2673938.899
H34: Processing | I34: =C41 -> 64029877.97 | J34: =F41 -> 64029878.04
A35: Gross System Cost | C35: 113792536 | D35: Gross System Cost | F35: =E28 -> 113792536.1 | G35: =F35-C35 -> 0.1210001409 | H35: Transportation | I35: =C42 -> 14823726.8 | J35: =F42 -> 14823726.81
H36: Contingency | I36: =C43 -> 10365415.1 | J36: =F43 -> 10365415.11
A39: Collection | C39: =C35*M6 -> 21899577.24 | D39: Collection | F39: =F35*M6 -> 21899577.26 | G39: =F39-C39 -> 0.0232866928
A40: Consolidation | C40: =C35*N6 -> 2673938.896 | D40: Consolidation | F40: =F35*N6 -> 2673938.899 | G40: =F40-C40 -> 0.002843305934
A41: Processing | C41: =C35*O6 -> 64029877.97 | D41: Processing | F41: =F35*O6 -> 64029878.04 | G41: 0.06808552146
A42: Transportation | C42: =C35*P6 -> 14823726.8 | D42: Transportation | F42: =F35*P6 -> 14823726.81 | G42: 0.01576266065
A43: Contingency | C43: =C35*Q6 -> 10365415.1 | D43: Contingency | F43: =F35*Q6 -> 10365415.11 | G43: 0.01102195866
D44: Change in Individual Material Tonnages
D45: Display Devices | E45: =C12-F45 -> 0 | F45: 36776
D46: Computers | E46: =C15-F46 -> 0 | F46: 10475
D47: Printers and Peripherals | E47: =C24-F47 -> 0 | F47: 22482
D48: Big Printers/Copiers | E48: =C27-F48 -> 0 | F48: 1285

Sheet Landfilling Emissions
A1: Material Code | B1: Material | C1: California EPA | D1: Canadian Warm adapted by GDL | E1: ICF Report (2005) | F1: USEPA WARM | G1: Greenhouse Gases Calculator for Waste Management
C2: tCO2e/tonne | D2: tCO2e/tonne | E2: tCO2e/tonne | F2: tCO2e/tonne | G2: tCO2e/tonne
A4: 1 | B4: Newsprint - CNA/OCNA | C4: 3.4 | D4: 1.9282 | E4: 2.75 | F4: 2.75 | G4: 2.49
A5: 1 | B5: Newsprint - Non-CNA/OCNA | C5: 3.4 | D5: 1.9282 | E5: 2.75 | F5: 2.75 | G5: 2.49
A6: 2 | B6: Magazines and Catalogues | C6: 0.3 | D6: 2.3595 | E6: NA | F6: 3.07 | G6: 2.9
A7: 3 | B7: Telephone Books | C7: 2.7 | D7: 1.3714 | E7: NA | F7: 3.11 | G7: 2.97 | U7: http://www.rcbc.ca/files/u3/ICF-final-report.pdf
A8: 4 | B8: Other Printed Paper | C8: 4.3 | D8: 2.8094 | E8: 3.27 | F8: 2.86 | G8: 2.9
A9: Paper
A10: 5 | B10: Corrugated Cardboard | C10: 5 | D10: 2.498 | E10: 3.26 | F10: 3.12 | G10: 2.96
A11: 6 | B11: Boxboard | C11: 5 | D11: 2.6348 | E11: 3.26 | G11: 2.96
A12: 7 | B12: Gable Top Cartons | C12: NA | D12: 2.1934 | E12: NA | F12: 3.53 | G12: NA
A13: 7 | B13: Paper Laminates | C13: NA | D13: 2.1934 | E13: NA | F13: 3.53 | G13: NA
A14: 7 | B14: Aseptic Containers | C14: NA | D14: 1.6908 | E14: NA | F14: 3.53 | G14: NA
A15: Paper Based Packaging
A16: 8 | B16: PET Bottles | C16: 1.4 | D16: 1.7776 | E16: 3.63 | F16: 1.55 | G16: 3.29
A17: 9 | B17: HDPE Bottles | C17: 0.8 | D17: 1.4168 | E17: 2.27 | F17: 1.4 | G17: 2.06
A18: 10 | B18: Plastic Film | C18: NA | D18: 1.7799 | E18: NA | F18: NA | G18: NA
A19: 11 | B19: Plastic Laminates | C19: NA | D19: 1.7799 | E19: NA | F19: NA | G19: NA
A20: 12 | B20: Polystyrene | C20: NA | D20: 1.8459 | E20: NA | F20: NA | G20: NA
A21: 13 | B21: Other Plastics | C21: 1.2 | D21: 1.33 | E21: 1.8 | F21: 1.03 | G21: 1.63
A22: Plastics
A23: 14 | B23: Steel Food & Beverage Cans | C23: 1.5 | D23: 1.0645 | E23: 1.15 | F23: 1.8 | G23: 1.07
A24: 14 | B24: Steel Aerosols | C24: 1.5 | D24: 1.0645 | E24: 1.15 | F24: 1.8 | G24: 1.07
A25: 14 | B25: Steel Paint Cans | C25: 1.5 | D25: 1.0645 | E25: 1.15 | F25: 1.8 | G25: 1.07
A26: Steel
A27: 15 | B27: Aluminum Food & Beverage Cans | C27: 12.9 | D27: 10.012 | E27: 6.49 | F27: 13.67 | G27: 8.75
A28: 15 | B28: Other Aluminum Packaging | C28: 12.9 | D28: 10.012 | E28: 6.49 | F28: 13.67 | G28: 8.75
A29: Aluminum
A30: 16 | B30: Clear Glass | C30: 0.2 | D30: 0.4053 | E30: 0.1 | F30: 0.28 | G30: 0.09
A31: 16 | B31: Coloured Glass | C31: 0.2 | D31: 0.4053 | E31: 0.1 | F31: 0.28 | G31: 0.09
A32: Glass
A33: 17 | B33: Computer Monitors | C33: NA | D33: 1.9726 | E33: 0.01 | F33: NA | G33: NA
A34: 17 | B34: Display Devices <18" | C34: NA | D34: 1.9726 | E34: 0.01 | F34: NA | G34: NA
A35: 17 | B35: Display Devices 18"-29" | C35: NA | D35: 1.9726 | E35: 0.01 | F35: NA | G35: NA
A36: 17 | B36: Display Devices 29"-45" | C36: NA | D36: 1.9726 | E36: 0.01 | F36: NA | G36: NA
A37: 17 | B37: Display Devices >45" | C37: NA | D37: 1.9726 | E37: 0.01 | F37: NA | G37: NA
A38: Display Devices
A39: 18 | B39: Desktop Computers | C39: NA | D39: 4.9949 | E39: 0.01 | F39: 2.51 | G39: NA
A40: 18 | B40: Portable Computers | C40: NA | D40: 4.9949 | E40: 0.01 | F40: 2.51 | G40: NA
A41: 18 | B41: Computer Peripherals | C41: NA | D41: 2.9328 | E41: 0.01 | F41: 2.51 | G41: NA
A42: Computers
A43: 19 | B43: Priniting Copying and Multi Function Devices | C43: NA | D43: 2.9328 | E43: 0.01 | F43: NA | G43: NA
A44: 19 | B44: Floor Standing Printing Devices | C44: NA | D44: 2.889 | E44: 0.01 | F44: NA | G44: NA
A45: 19 | B45: Floor Standing Copying Devices | C45: NA | D45: 2.889 | E45: 0.01 | F45: NA | G45: NA
A46: Printing Copying and Multi Function Devices
A47: 20 | B47: Telephones and Telephone Answering Machines | C47: NA | D47: 2.9328 | E47: 0.01 | F47: NA | G47: NA
A48: 20 | B48: Cellular Devices and Pagers | C48: NA | D48: 2.9328 | E48: 0.01 | F48: NA | G48: NA
A49: 20 | B49: Personal/Portable | C49: NA | D49: 2.9328 | E49: 0.01 | F49: NA | G49: NA
A50: 20 | B50: Home/Non Portable | C50: NA | D50: 2.9328 | E50: 0.01 | F50: NA | G50: NA
A51: Cellular Devices and Pagers
A52: 21 | B52: Home Theater in a Box | C52: NA | D52: 2.9328 | E52: 0.01 | F52: NA | G52: NA
A53: 21 | B53: Aftermarket Vehicle | C53: NA | D53: 2.9328 | E53: 0.01 | F53: NA | G53: NA
A54: Image, Audio and Video Devices
A55: 22 | B55: Asphalt and Shingles Aggregates | C55: NA | D55: 0.137788874 | E55: 0.01 | F55: 0.09 | G55: NA
A56: 23 | B56: Brick and Block | C56: NA | D56: 0.34171 | E56: 0.01 | F56: 0.27 | G56: NA
A57: 24 | B57: Carpet and Pad | C57: NA | D57: 2.64554 | E57: 0.01 | F57: 2.36 | G57: NA
A58: 25 | B58: Concrete | C58: NA | D58: 0.0551155 | E58: 0.01 | F58: 0.08 | G58: NA
A59: 26 | B59: Drywall | C59: NA | D59: 0.01102311 | E59: 0.01 | F59: 0.03 | G59: NA
A60: 27 | B60: Glass | C60: 0.2 | D60: 0.352739 | E60: 0.01 | F60: 0.28 | G60: 0.09
A61: 28 | B61: Steel | C61: 1.5 | D61: 1.0645 | E61: 0.01 | F61: 4.38 | G61: 1.07
A62: 29 | B62: Wood | C62: NA | D62: 2.755777488 | E62: 0.01 | F62: 4.05 | G62: NA
A63: 30 | B63: Other | C63: NA | D63: NA | E63: 0.01 | F63: NA | G63: NA
A64: Construction and Demolition
A65: 31 | B65: Antifreeze | C65: NA | D65: 2.47 | E65: NA | F65: NA | G65: NA
A66: 32 | B66: Fertilizers | C66: NA | D66: 2.11 | E66: NA | F66: NA | G66: NA
A67: 33 | B67: Oil Containers | C67: NA | D67: 1.09 | E67: NA | F67: NA | G67: NA
A68: 34 | B68: Oil Filters | C68: NA | D68: 1.09 | E68: NA | F68: NA | G68: NA
A69: 35 | B69: Paints and Coatings | C69: NA | D69: 0.436 | E69: NA | F69: NA | G69: NA
A70: 36 | B70: Pesticides | C70: NA | D70: 0 | E70: NA | F70: NA | G70: NA
A71: 37 | B71: Pressurized Containers (Refillable) | C71: NA | D71: 0 | E71: NA | F71: NA | G71: NA
A72: 38 | B72: Single Use Batteries | C72: NA | D72: 0 | E72: NA | F72: NA | G72: NA
A73: 39 | B73: Solvents | C73: NA | D73: 0 | E73: NA | F73: NA | G73: NA
A74: Hazardous Waste
A75: 40 | B75: Tires | C75: 0.1243 | D75: 0.1332277319 | E75: 3.29 | F75: NA | G75: NA
A76: Tires
A77: 41 | B77: Organics | C77: NA | D77: 0.4779 | E77: NA | F77: NA | G77: NA
A78: Organics

Sheet Virgin Emissions
B1: Material | C1: *Using CAD WARM Data as Analog" | D1: USEPA WARM CALCULATOR | E1: 3 | F1: 4
C3: Television
B4: Computer Monitors | C4: ='Emission Factors'!$BW$21 -> 3.22798874
B5: Display Devices <18" | C5: ='Emission Factors'!$BW$21 -> 3.22798874
B6: Display Devices 18-29" | C6: ='Emission Factors'!$BW$21 -> 3.22798874
B7: Display Devices 29-45 | C7: ='Emission Factors'!$BW$21 -> 3.22798874
B8: Display Devices >45" | C8: ='Emission Factors'!$BW$21 -> 3.22798874
B9: Display Devices
B10: Desktop Computers | C10: ='Emission Factors'!$BW$20 -> 30.1489231 | D10: 50.8
B11: Portable Laptop Computers | C11: ='Emission Factors'!$BW$20 -> 30.1489231
B12: Computers
B13: Dekstop and portable Printing Copying and Multi Function Devices | C13: =AVERAGE('Emission Factors'!$BR$20:$BR$23) -> 10.15055395
B14: Telephones and Telephone Answering Machines | C14: =AVERAGE('Emission Factors'!$BR$20:$BR$23) -> 10.15055395
B15: Cellular Devices and Pagers | C15: =AVERAGE('Emission Factors'!$BR$20:$BR$23) -> 10.15055395
B16: Computer Peripherals | C16: =AVERAGE('Emission Factors'!$BR$20:$BR$23) -> 10.15055395
B17: Personal/Portable | C17: =AVERAGE('Emission Factors'!$BR$20:$BR$23) -> 10.15055395
B18: Home/Non Portable | C18: =AVERAGE('Emission Factors'!$BR$20:$BR$23) -> 10.15055395
B19: Home Theater in a Box | C19: =AVERAGE('Emission Factors'!$BR$20:$BR$23) -> 10.15055395
B20: Aftermarket Vehicle | C20: =AVERAGE('Emission Factors'!$BR$20:$BR$23) -> 10.15055395
B21: Printers and Peripherals
B22: Floor Standing Printing Devices | C22: =AVERAGE('Emission Factors'!$BR$20:$BR$23) -> 10.15055395
B23: Floor Standing Copying Devices | C23: =AVERAGE('Emission Factors'!$BR$20:$BR$23) -> 10.15055395
B24: Big Printers/Copiers | O24: =1/O25 -> 1282.051282 | P24: =O24*P25 -> 3.269230769
B25: Total | O25: 0.00078 | P25: 0.00255
N28: 0.78 | O28: =N28/1000 -> 0.00078 | P28: 0.0255 | Q28: =1/O28 -> 1282.051282 | R28: =P28*Q28 -> 32.69230769
N29: 0.2 | O29: =N29/1000 -> 0.0002 | P29: 0.0075 | Q29: =1/O29 -> 5000 | R29: =P29*Q29 -> 37.5
N30: 0.31 | O30: 0.00031 | P30: 0.0133 | Q30: 3225.806452 | R30: 42.90322581
P31: =SUMPRODUCT(P28:P30,O28:O30)/SUM(O28:O30) -> 0.01977751938
O33: 0.0155 | P33: 0.0155 | Q33: =1/O33 -> 64.51612903 | R33: =P33*Q33 -> 1
O34: 0.021 | P34: 0.0021 | Q34: =1/O34 -> 47.61904762 | R34: =P34*Q34 -> 0.1
P35: =SUMPRODUCT(O33:O34,P33:P34)/SUM(P33:P34) -> 0.01615625
H38: http://pics.uvic.ca/sites/default/files/uploads/publications/Teehan,%20P.%20Article,%202013%20%202.pdf

Sheet Recycling Coefficient
A1: Material Code | B1: Material | C1: California EPA | D1: Canadian Warm adapted by GDL | E1: ICF Report (2005) | F1: ICR Report (2005) *Without Carbon Sinks | G1: USEPA WARM | H1: Greenhouse Gases Calculator for Waste Management
C2: tCO2e/tonne | D2: tCO2e/tonne | E2: tCO2e/tonne | F2: tCO2e/tonne | G2: tCO2e/tonne | H2: tCO2e/tonne
C3: (tonnes)
A4: 1 | B4: Newsprint - CNA/OCNA | C4: 3.4 | D4: 1.9282 | E4: 2.75 | F4: 0.3 | G4: 2.75 | H4: 2.49
A5: 1 | B5: Newsprint - Non-CNA/OCNA | C5: 3.4 | D5: 1.9282 | E5: 2.75 | F5: 0.3 | G5: 2.75 | H5: 2.49
A6: 2 | B6: Magazines and Catalogues | C6: 0.3 | D6: 2.3595 | E6: NA | F6: NA | G6: 3.07 | H6: 2.9
A7: 3 | B7: Telephone Books | C7: 2.7 | D7: 1.3714 | E7: NA | F7: NA | G7: 3.11 | H7: 2.97
A8: 4 | B8: Other Printed Paper | C8: 4.3 | D8: 2.8094 | E8: 3.27 | F8: 0.25 | G8: 2.86 | H8: 2.9
A9: Paper
A10: 5 | B10: Corrugated Cardboard | C10: 5 | D10: 2.498 | E10: 3.26 | F10: 0.21 | G10: 3.12 | H10: 2.96
A11: 6 | B11: Boxboard | C11: 5 | D11: 2.6348 | E11: 3.26 | F11: 0.21 | H11: 2.96
A12: 7 | B12: Gable Top Cartons | C12: NA | D12: 2.1934 | E12: NA | F12: NA | G12: 3.53 | H12: NA
A13: 7 | B13: Paper Laminates | C13: NA | D13: 2.1934 | E13: NA | F13: NA | G13: 3.53 | H13: NA
A14: 7 | B14: Aseptic Containers | C14: NA | D14: 1.6908 | E14: NA | F14: NA | G14: 3.53 | H14: NA
A15: Paper Based Packaging
A16: 8 | B16: PET Bottles | C16: 1.4 | D16: 1.7776 | E16: 3.63 | F16: 3.63 | G16: 1.55 | H16: 3.29
A17: 9 | B17: HDPE Bottles | C17: 0.8 | D17: 1.4168 | E17: 2.27 | F17: 2.27 | G17: 1.4 | H17: 2.06
A18: 10 | B18: Plastic Film | C18: NA | D18: 1.7799 | E18: NA | F18: NA | G18: NA | H18: NA
A19: 11 | B19: Plastic Laminates | C19: NA | D19: 1.7799 | E19: NA | F19: NA | G19: NA | H19: NA
A20: 12 | B20: Polystyrene | C20: NA | D20: 1.8459 | E20: NA | F20: NA | G20: NA | H20: NA
A21: 13 | B21: Other Plastics | C21: 1.2 | D21: 1.33 | E21: 1.8 | F21: 1.80 tcO2e/tonne | G21: 1.03 | H21: 1.63
A22: Plastics
A23: 14 | B23: Steel Food & Beverage Cans | C23: 1.5 | D23: 1.0645 | E23: 1.15 | F23: 1.18 | G23: 1.8 | H23: 1.07
A24: 14 | B24: Steel Aerosols | C24: 1.5 | D24: 1.0645 | E24: 1.15 | F24: 1.18 | G24: 1.8 | H24: 1.07
A25: 14 | B25: Steel Paint Cans | C25: 1.5 | D25: 1.0645 | E25: 1.15 | F25: 1.18 | G25: 1.8 | H25: 1.07
A26: Steel
A27: 15 | B27: Aluminum Food & Beverage Cans | C27: 12.9 | D27: 10.012 | E27: 6.49 | F27: 6.49 | G27: 13.67 | H27: 8.75
A28: 15 | B28: Other Aluminum Packaging | C28: 12.9 | D28: 10.012 | E28: 6.49 | F28: 6.49 | G28: 13.67 | H28: 8.75
A29: Aluminum
A30: 16 | B30: Clear Glass | C30: 0.2 | D30: 0.4053 | E30: 0.1 | F30: 0.1 | G30: 0.28 | H30: 0.09
A31: 16 | B31: Coloured Glass | C31: 0.2 | D31: 0.4053 | E31: 0.1 | F31: 0.1 | G31: 0.28 | H31: 0.09
A32: Glass
A33: 17 | B33: Computer Monitors | C33: NA | D33: 1.9726 | E33: 0.23 | F33: 0.23 | G33: NA | H33: NA
A34: 17 | B34: Display Devices <18" | C34: NA | D34: 1.9726 | E34: 0.23 | F34: 0.23 | G34: NA | H34: NA
A35: 17 | B35: Display Devices 18"-29" | C35: NA | D35: 1.9726 | E35: 0.23 | F35: 0.23 | G35: NA | H35: NA
A36: 17 | B36: Display Devices 29"-45" | C36: NA | D36: 1.9726 | E36: 0.23 | F36: 0.23 | G36: NA | H36: NA
A37: 17 | B37: Display Devices >45" | C37: NA | D37: 1.9726 | E37: 0.23 | F37: 0.23 | G37: NA | H37: NA
A38: Display Devices
A39: 18 | B39: Desktop Computers | C39: NA | D39: 4.9949 | E39: 1.61 | F39: 1.61 | G39: 2.51 | H39: NA
A40: 18 | B40: Portable Computers | C40: NA | D40: 4.9949 | E40: 1.61 | F40: 1.61 | G40: 2.51 | H40: NA
A41: 18 | B41: Computer Peripherals | C41: NA | D41: 2.9328 | E41: 1.61 | F41: 1.61 | G41: 2.51 | H41: NA
A42: Computers
A43: 19 | B43: Priniting Copying and Multi Function Devices | C43: NA | D43: 2.9328 | E43: NA | F43: NA | G43: NA | H43: NA
A44: 19 | B44: Floor Standing Printing Devices | C44: NA | D44: 2.889 | E44: NA | F44: NA | G44: NA | H44: NA
A45: 19 | B45: Floor Standing Copying Devices | C45: NA | D45: 2.889 | E45: NA | F45: NA | G45: NA | H45: NA
A46: Printing Copying and Multi Function Devices
A47: 20 | B47: Telephones and Telephone Answering Machines | C47: NA | D47: 2.9328 | E47: NA | F47: NA | G47: NA | H47: NA
A48: 20 | B48: Cellular Devices and Pagers | C48: NA | D48: 2.9328 | E48: NA | F48: NA | G48: NA | H48: NA
A49: 20 | B49: Personal/Portable | C49: NA | D49: 2.9328 | E49: NA | F49: NA | G49: NA | H49: NA
A50: 20 | B50: Home/Non Portable | C50: NA | D50: 2.9328 | E50: NA | F50: NA | G50: NA | H50: NA
A51: Cellular Devices and Pagers
A52: 21 | B52: Home Theater in a Box | C52: NA | D52: 2.9328 | E52: NA | F52: NA | G52: NA | H52: NA
A53: 21 | B53: Aftermarket Vehicle | C53: NA | D53: 2.9328 | E53: NA | F53: NA | G53: NA | H53: NA
A54: Image, Audio and Video Devices
A55: 22 | B55: Asphalt and Shingles Aggregates | C55: NA | D55: 0.137788874 | E55: NA | F55: NA | G55: 0.09 | H55: NA
A56: 23 | B56: Brick and Block | C56: NA | D56: 0.34171 | E56: NA | F56: NA | G56: 0.27 | H56: NA
A57: 24 | B57: Carpet and Pad | C57: NA | D57: 2.64554 | E57: NA | F57: NA | G57: 2.36 | H57: NA
A58: 25 | B58: Concrete | C58: NA | D58: 0.0551155 | E58: NA | F58: NA | G58: 0.08 | H58: NA
A59: 26 | B59: Drywall | C59: NA | D59: 0.01102311 | E59: NA | F59: NA | G59: 0.03 | H59: NA
A60: 27 | B60: Glass | C60: 0.2 | D60: 0.352739 | E60: 0.1 | F60: 0.1 | G60: 0.28 | H60: 0.09
A61: 28 | B61: Steel | C61: 1.5 | D61: 1.0645 | E61: 1.15 | F61: 1.15 | G61: 4.38 | H61: 1.07
A62: 29 | B62: Wood | C62: NA | D62: 2.755777488 | E62: NA | F62: NA | G62: 4.05 | H62: NA
A63: 30 | B63: Other | C63: NA | D63: NA | E63: NA | F63: NA | G63: NA | H63: NA
A64: Construction and Demolition
A65: 31 | B65: Antifreeze | C65: NA | D65: 2.47 | E65: NA | F65: NA | G65: NA | H65: NA
A66: 32 | B66: Fertilizers | C66: NA | D66: 2.11 | E66: NA | F66: NA | G66: NA | H66: NA
A67: 33 | B67: Oil Containers | C67: NA | D67: 1.09 | E67: NA | F67: NA | G67: NA | H67: NA
A68: 34 | B68: Oil Filters | C68: NA | D68: 1.09 | E68: NA | F68: NA | G68: NA | H68: NA
A69: 35 | B69: Paints and Coatings | C69: NA | D69: 0.436 | E69: NA | F69: NA | G69: NA | H69: NA
A70: 36 | B70: Pesticides | C70: NA | D70: 0 | E70: NA | F70: NA | G70: NA | H70: NA
A71: 37 | B71: Pressurized Containers (Refillable) | C71: NA | D71: 0 | E71: NA | F71: NA | G71: NA | H71: NA
A72: 38 | B72: Single Use Batteries | C72: NA | D72: 0 | E72: NA | F72: NA | G72: NA | H72: NA
A73: 39 | B73: Solvents | C73: NA | D73: 0 | E73: NA | F73: NA | G73: NA | H73: NA
A74: Hazardous Waste
A75: 40 | B75: Tires | C75: 0.1243 | D75: 0.1332277319 | E75: 3.29 | F75: 4.29 | G75: NA | H75: NA
A76: Tires
A77: 41 | B77: Organics | C77: NA | D77: 0.4779 | E77: NA | F77: NA | G77: NA | H77: NA
A78: Organics
A81: California EPA WARM | B81: http://www.calrecycle.ca.gov/Actions/Documents%5C77%5C2010%5C248%5CProposed%20Recycling%20Emission%20Reduction%20Factor.pdf
A82: Canadian Warm Adapted by GDL
A83: ICF GHG Report | B83: http://www.rcbc.ca/files/u3/ICF-final-report.pdf

Sheet OES Cost Data
B1: Collection | C1: Consolidation | D1: Processing | E1: Transportation | F1: Contingency | G1: Total Management Cost
A2: Computer Monitors - Direct Ship | B2: =SUM(B35:B36)/$I$35 -> 294.8172064 | C2: 35.99712589 | D2: 999.9225905 | E2: 217.0835409 | F2: 154.7821422 | G2: 1702.602606
A3: Computer Monitors - Approved Collection
A4: Displays <18 | B4: =B37/$I37 -> 327.7212714 | C4: 40.01466993 | D4: 1000.369193 | E4: 217.1809291 | F4: 158.5281174 | G4: 1743.814181
A5: Displays 18-29 | B5: =B38/$I38 -> 327.6017214 | C5: 40.00019562 | D5: 1000.005379 | E5: 217.1015258 | F5: =F38/$I38 -> 158.4708529 | G5: =G38/$I38 -> 1743.179675
A6: Displays >29-45 | B6: 327.6083744 | C6: 40.00098522 | D6: 1000.025369 | E6: 217.1059113 | F6: 159.2130542 | G6: 1743.953695
A7: Displays >45 | B7: 327.5586804 | C7: 39.9951325 | D7: 999.8734451 | E7: 217.0730124 | F7: 158.449973 | G7: 1742.950243
A8: Desktop Computers - Direct Ship | B8: =SUM(B41:B42)/$I$41 -> 294.8617715 | C8: 36.00273511 | D8: 750.4775931 | E8: 206.7774037 | F8: 128.7696192 | G8: 1416.889123
A9: Desktop Computers - Approved Collection
A10: Portable Computers - Direct Ship | B10: =SUM(B43:B44)/$I$43 -> 294.8196721 | C10: 35.99765808 | D10: 749.9461358 | E10: 206.7470726 | F10: 128.7505855 | G10: 1416.261124
A11: Portable Computers - Approved Collection
A12: Computer Peripheral - Direct Ship | B12: =SUM(B45:B46)/$I$45 -> 294.9877622 | C12: 36.01748252 | D12: 850.4265734 | E12: 206.8671329 | F12: 138.8304196 | G12: 1527.129371
A13: Computer Peripheral - Approved Collection
A14: Desktop Printing, Copying and multi function devices - Approved Collection | B14: =SUM(B47:B48)/$I$47 -> 294.8397356 | C14: 36 | D14: 849.9991739 | E14: 206.7618753 | F14: 138.7600165 | G14: 1526.360801
A15: Desktop Printing, Copying and multi function devices - Direct Ship
A16: Floor Standing Printing Devices | B16: =B49/$I49 -> 163.7435897 | C16: 19.99145299 | D16: 499.8205128 | E16: 103.3418803 | F16: 78.69230769 | G16: 865.5897436
A17: Floor Standing Copying and Multi Function Devices | B17: =B50/$I50 -> 81.87179487 | C17: 9.995726496 | D17: 249.9102564 | E17: 51.67094017 | F17: 39.34615385 | G17: 432.7948718
A18: Telephones and Telephone Answering Machines | B18: 327.7043726 | C18: 40.01235741 | D18: 850.269962 | E18: 206.8279468 | F18: 142.4819392 | G18: 1567.296578
A19: Celluar Devices and Pagers | B19: 328.3053892 | C19: 40.08383234 | D19: 851.8323353 | E19: 207.2095808 | F19: 142.742515 | G19: 1570.173653
A20: Image, Audio, Video Devices - Personal | B20: 327.2780374 | C20: 39.96028037 | D20: 615.521028 | E20: 206.5584112 | F20: 142.296729 | G20: 1331.614486
A21: Image, Audio, Video Devices - Home/Non-Portable | B21: 327.6401159 | C21: 40.00506879 | D21: 850.0970311 | E21: 206.7874728 | F21: 142.4536568 | G21: 1566.983345
A22: Image, Audio, Video Devices - Home Theater in a Box | B22: 327.5646109 | C22: 39.99559471 | D22: 849.9082232 | E22: 206.7400881 | F22: 142.4207048 | G22: 1566.629222
A23: Image, Audio, Video Devices - Aftermarket Vehicle | B23: 327.1176471 | C23: 39.94117647 | D23: 848.7478992 | E23: 206.4579832 | F23: 142.2268908 | G23: 1564.491597
B34: Collection | C34: Consolidation | D34: Processing | E34: Transportation | F34: Contingency | G34: Total Management Cost | I34: Material Collected (Year 1: Used for $/tonne calculation)
A35: Computer Monitors - Direct Ship | B35: 1538651 | C35: 187869 | D35: 521860 | E35: 113296 | F35: 63516 | G35: =SUM(B35:F36) -> 8885883 | H35: Computer Monitors - Direct Ship | I35: 5219
A36: Computer Monitors - Approved Collection | D36: 4696736 | E36: 1019663 | F36: 744292 | H36: Computer Monitors - Approved Collection
A37: Displays <18 | B37: 268076 | C37: 32732 | D37: 818302 | E37: 177654 | F37: 129676 | G37: =SUM(B37:F37) -> 1426440 | H37: Displays <18 | I37: 818
A38: Displays 18-29 | B38: 3349400 | C38: 408962 | D38: 10224055 | E38: 2219646 | F38: 1620206 | G38: =SUM(B38:F38) -> 17822269 | H38: Displays 18-29 | I38: 10224
A39: Displays >29-45 | B39: 1330090 | C39: 162404 | D39: 4060103 | E39: 881450 | F39: 646405 | G39: =SUM(B39:F39) -> 7080452 | H39: Displays >29-45 | I39: 4060
A40: Displays >45 | B40: 605656 | C40: 73951 | D40: 1848766 | E40: 401368 | F40: 292974 | G40: =SUM(B40:F40) -> 3222715 | H40: Displays >45 | I40: 1849
A41: Desktop Computers - Direct Ship | B41: 1401478 | C41: 171121 | D41: 358507 | E41: 98281 | F41: 45478 | G41: =SUM(B41:F42) -> 6734474 | H41: Desktop Computers - Direct Ship | I41: 4753
A42: Desktop Computers - Approved Collection | D42: 3208513 | E42: 884532 | F42: 566564 | H42: Desktop Computers - Approved Collection
A43: Portable Computers - Direct Ship | B43: 251776 | C43: 30742 | D43: 64045 | E43: 17656 | F43: 8170 | G43: =SUM(B43:F44) -> 1209487 | H43: Portable Computers - Direct Ship | I43: 854
A44: Portable Computers - Approved Collection | D44: 576409 | E44: 158906 | F44: 101783 | H44: Portable Computers - Approved Collection
A45: Computer Peripheral - Direct Ship | B45: 168733 | C45: 20602 | D45: 48644 | E45: 11833 | F45: 6048 | G45: =SUM(B45:F46) -> 873518 | H45: Computer Peripheral - Direct Ship | I45: 572
A46: Computer Peripheral - Approved Collection | D46: 437800 | E46: 106495 | F46: 73363 | H46: Computer Peripheral - Approved Collection
A47: Desktop Printing, Copying and multi function devices - Approved Collection | B47: 1427614 | C47: 174312 | D47: 411570 | E47: 100114 | F47: 51168 | G47: =SUM(B47:F48) -> 7390639 | H47: Desktop Printing, Copying and multi function devices - Approved Collection | I47: 4842
A48: Desktop Printing, Copying and multi function devices - Direct Ship | D48: 3704126 | E48: 901027 | F48: 620708 | H48: Desktop Printing, Copying and multi function devices - Direct Ship
A49: Floor Standing Printing Devices | B49: 19158 | C49: 2339 | D49: 58479 | E49: 12091 | F49: 9207 | G49: =SUM(B49:F49) -> 101274 | H49: Floor Standing Printing Devices | I49: 117
A50: Floor Standing Copying and Multi Function Devices | B50: 19158 | C50: 2339 | D50: 58479 | E50: 12091 | F50: 9207 | G50: =SUM(B50:F50) -> 101274 | H50: Floor Standing Copying and Multi Function Devices | I50: 234
A51: Telephones and Telephone Answering Machines | B51: 344745 | C51: 42093 | D51: 894484 | E51: 217583 | F51: 149891 | G51: 1648796 | H51: Telephones and Telephone Answering Machines | I51: 1052
A52: Celluar Devices and Pagers | B52: 54827 | C52: 6694 | D52: 142256 | E52: 34604 | F52: 23838 | G52: 262219 | H52: Celluar Devices and Pagers | I52: 167
A53: Image, Audio, Video Devices - Personal | B53: 140075 | C53: 17103 | D53: 263443 | E53: 88407 | F53: 60903 | G53: 569931 | H53: Image, Audio, Video Devices - Personal | I53: 428
A54: Image, Audio, Video Devices - Home/Non-Portable | B54: 904942 | C54: 110494 | D54: 2347968 | E54: 571147 | F54: 393457 | G54: 4328008 | H54: Image, Audio, Video Devices - Home/Non-Portable | I54: 2762
A55: Image, Audio, Video Devices - Home Theater in a Box | B55: 446143 | C55: 54474 | D55: 1157575 | E55: 281580 | F55: 193977 | G55: 2133749 | H55: Image, Audio, Video Devices - Home Theater in a Box | I55: 1362
A56: Image, Audio, Video Devices - Aftermarket Vehicle | B56: 77854 | C56: 9506 | D56: 202002 | E56: 49137 | F56: 33850 | G56: 372349 | H56: Image, Audio, Video Devices - Aftermarket Vehicle | I56: 238
B57: =SUM(B35:B56) -> 12348376 | C57: =SUM(C35:C56) -> 1507737 | D57: =SUM(D35:D56) -> 36104122 | E57: =SUM(E35:E56) -> 8358561 | F57: =SUM(F35:F56) -> 5844681 | G57: 64163477
B59: =B57/$G$57 -> 0.19245179 | C59: 0.02349836808 | D59: 0.5626896123 | E59: 0.1302697639 | F59: 0.09109046569 | G59: 1

Sheet Sheet1
A1: INDIVIDUAL MATERIAL INPUTS
A2: CELLS WITH SHADED PATTERN WILL BE LOCKED IN LATER VERSIONS
A4: Material | B4: Tonnage Data | D4: Gross Costs | E4: Material Management Costs | F4: Recycling Emissions Coefficients (GHD) | G4: Landfilling Emissions Coeffcient (Canadian WARM) | H4: Virgins Emissions Coeffcient (Canadian WARM) | I4: Recycling Rates | J4: Avoided Emissions | K4: Potential Credit | L4: $/tC02 avoided
B5: Generation (Year 5 Tonnes) (Sheet 1) | C5: Recovery (Sheet 1) | D5: ($/tonne) | E5: ($s) | F5: tCO2e/tonne | G5: tCO2e/tonne | H5: tCO2e/tonne | I5: (%) | J5: tCO2e | K5: $ | L5: $/tCO2e
B6: (tonnes) | C6: (tonnes)
A7: Computer Monitors | B7: 8680 | C7: 6820.119218 | D7: ='[6]OES Cost Data'!G2 -> 1702.602606 | E7: =D7*C7 -> 11611952.75 | F7: 1.97 | G7: 0.01 | H7: ='Virgin Emissions'!C4 -> 3.22798874 | I7: =C7/B7 -> 0.7857280205 | J7: =C7*F7 -> 13435.63486 | K7: =$B$29*J7 -> 0 | L7: =D7/F7 -> 864.2652822
A8: Display Devices <18" | B8: 1814 | C8: 1425.310629 | D8: ='[6]OES Cost Data'!G4 -> 1743.814181 | E8: =D8*C8 -> 2485476.887 | F8: 1.97 | G8: 0.01 | H8: ='Virgin Emissions'!C5 -> 3.22798874 | I8: =C8/B8 -> 0.7857280205 | J8: =C8*F8 -> 2807.86194 | K8: =$B$29*J8 -> 0 | L8: =D8/F8 -> 885.1848634
A9: Display Devices 18-29" | B9: 23419 | C9: 18400.96451 | D9: ='[6]OES Cost Data'!G5 -> 1743.179675 | E9: 32076187.34 | F9: 1.97 | G9: 0.01 | H9: ='Virgin Emissions'!C6 -> 3.22798874 | I9: 0.7857280205 | J9: =C9*F9 -> 36249.90009 | K9: =$B$29*J9 -> 0 | L9: 884.8627793
A10: Display Devices 29-45 | B10: 13001 | C10: 10215.24999 | D10: ='[6]OES Cost Data'!G6 -> 1743.953695 | E10: 17814922.97 | F10: 1.97 | G10: 0.01 | H10: ='Virgin Emissions'!C7 -> 3.22798874 | I10: 0.7857280205 | J10: =C10*F10 -> 20124.04249 | K10: =$B$29*J10 -> 0 | L10: 885.2556825
A11: Display Devices >45" | B11: 6080 | C11: 4777.226365 | D11: ='[6]OES Cost Data'!G7 -> 1742.950243 | E11: 8326467.855 | F11: 1.97 | G11: 0.01 | H11: ='Virgin Emissions'!C8 -> 3.22798874 | I11: 0.7857280205 | J11: =C11*F11 -> 9411.135938 | K11: =$B$29*J11 -> 0 | L11: 884.7463164
A12: Display Devices | B12: 46805 | C12: 36776 | D12: =SUMPRODUCT(D7:D11,B7:B11)/SUM(B7:B11) -> 1736.718757 | E12: 63869569.02 | F12: 1.9726 | G12: 0.01 | H12: 3.23 | I12: =C12/B12 -> 0.7857280205 | J12: =SUM(J7:J11) -> 82028.57532 | K12: =J12*$B$29 -> 0 | L12: 880.4211484
A13: Desktop Computers | B13: 9695 | C13: 7617.633159 | D13: ='[6]OES Cost Data'!G8 -> 1416.889123 | E13: 10793341.56 | F13: 4.99 | G13: 0.01 | H13: ='Virgin Emissions'!C10 -> 30.1489231 | I13: =C13/B13 -> 0.7857280205 | J13: =C13*F13 -> 38011.98946 | K13: =$B$29*J13 -> 0 | L13: 283.945716
A14: Portable Laptop Computers | B14: 5153 | C14: 4048.85649 | D14: ='[6]OES Cost Data'!G12 -> 1527.129371 | E14: 6183127.663 | F14: 4.99 | G14: 0.01 | H14: ='Virgin Emissions'!C11 -> 30.1489231 | I14: =C14/B14 -> 0.7857280205 | J14: 20203.79388 | K14: =$B$29*J14 -> 0 | L14: 306.03795
A15: Computers | B15: 13332 | C15: 10475 | D15: =SUMPRODUCT(D13:D14,B13:B14)/SUM(B13:B14) -> 1455.148013 | E15: 15242675.43 | F15: 4.9949 | G15: 0.01 | H15: ='Virgin Emissions'!C11 -> 30.1489231 | I15: =C15/B15 -> 0.7857035704 | J15: 52321.5775 | K15: =J15*$B$29 -> 0 | L15: 291.3267558
A16: Dekstop and portable Printing Copying and Multi Function Devices | B16: 29555 | C16: 23222.19165 | D16: ='[6]OES Cost Data'!G14 -> 1526.360801 | E16: 35445443.05 | F16: 2.93 | G16: 0.01 | H16: ='Virgin Emissions'!C13 -> 10.15055395 | I16: =C16/B16 -> 0.7857280205 | J16: 68041.02152 | K16: =$B$29*J16 -> 0 | L16: 520.942253
A17: Telephones and Telephone Answering Machines | B17: 5343 | C17: 4198.144814 | D17: ='[6]OES Cost Data'!G18 -> 1567.296578 | E17: 6579738 | F17: 2.93 | G17: 0.01 | H17: ='Virgin Emissions'!C14 -> 10.15055395 | I17: =C17/B17 -> 0.7857280205 | J17: 12300.5643 | K17: =$B$29*J17 -> 0 | L17: 534.9135078
A18: Cellular Devices and Pagers | B18: 1085 | C18: 852.5149023 | D18: ='[6]OES Cost Data'!G19 -> 1570.173653 | E18: 1338596.438 | F18: 2.93 | G18: 0.01 | H18: ='Virgin Emissions'!C15 -> 10.15055395 | I18: 0.7857280205 | J18: 2497.868664 | K18: =$B$29*J18 -> 0 | L18: 535.8954446
A19: Computer Peripherals | B19: 1927 | C19: 1514.097896 | D19: ='[6]OES Cost Data'!G14 -> 1526.360801 | E19: 2311059.677 | F19: 2.93 | G19: 0.01 | H19: ='Virgin Emissions'!C16 -> 10.15055395 | I19: 0.7857280205 | J19: 4436.306834 | K19: =$B$29*J19 -> 0 | L19: 520.942253
A20: Personal/Portable | B20: 2445 | C20: 1921.10501 | D20: ='[6]OES Cost Data'!G20 -> 1331.614486 | E20: 2558171.261 | F20: 2.93 | G20: 0.01 | H20: ='Virgin Emissions'!C17 -> 10.15055395 | I20: 0.7857280205 | J20: 5628.83768 | K20: =$B$29*J20 -> 0 | L20: 454.4759338
A21: Home/Non Portable | B21: 16638 | C21: 13072.94281 | D21: ='[6]OES Cost Data'!G21 -> 1566.983345 | E21: 20485083.65 | F21: 2.93 | G21: 0.01 | H21: ='Virgin Emissions'!C18 -> 10.15055395 | I21: 0.7857280205 | J21: 38303.72242 | K21: =$B$29*J21 -> 0 | L21: 534.8066025
A22: Home Theater in a Box | B22: 9784 | C22: 7687.562953 | D22: ='[6]OES Cost Data'!G22 -> 1566.629222 | E22: 12043560.77 | F22: 2.93 | G22: 0.01 | H22: ='Virgin Emissions'!C19 -> 10.15055395 | I22: 0.7857280205 | J22: 22524.55945 | K22: =$B$29*J22 -> 0 | L22: 534.6857412
A23: Aftermarket Vehicle | B23: 1013 | C23: 795.9424848 | D23: ='[6]OES Cost Data'!G23 -> 1564.491597 | E23: 1245245.329 | F23: 2.93 | G23: 0.01 | H23: ='Virgin Emissions'!C20 -> 10.15055395 | I23: 0.7857280205 | J23: 2332.11148 | K23: =$B$29*J23 -> 0 | L23: 533.9561763
A24: Printers and Peripherals | B24: 28613 | C24: 22482 | D24: =SUMPRODUCT(D16:D23,B16:B23)/SUM(B16:B23) -> 1539.616336 | E24: 34613654.46 | F24: 2.9328 | G24: 0.01 | H24: ='Virgin Emissions'!C20 -> 10.15055395 | I24: =C24/B24 -> 0.7857267676 | J24: 65935.2096 | K24: =J24*$B$29 -> 0 | L24: 524.9646534
A25: Floor Standing Printing Devices | B25: 502 | C25: 394.4354663 | D25: ='[6]OES Cost Data'!G16 -> 865.5897436 | E25: 341419.2941 | F25: 2.89 | G25: 0.01 | H25: ='Virgin Emissions'!C22 -> 10.15055395 | I25: =C25/B25 -> 0.7857280205 | J25: 1139.918498 | K25: =$B$29*J25 -> 0 | L25: 299.512022
A26: Floor Standing Copying Devices | B26: 1006 | C26: 790.4423886 | D26: ='[6]OES Cost Data'!G17 -> 432.7948718 | E26: 342099.4122 | F26: 2.89 | G26: 0.01 | H26: ='Virgin Emissions'!C23 -> 10.15055395 | I26: =C26/B26 -> 0.7857280205 | J26: 2284.378503 | K26: =$B$29*J26 -> 0 | L26: 149.756011
A27: Big Printers/Copiers | B27: 1636 | C27: 1285 | D27: =SUMPRODUCT(D25:D26,B25:B26)/SUM(B25:B26) -> 576.8684962 | E27: 741276.0176 | F27: 2.889 | G27: 0.01 | H27: ='Virgin Emissions'!C22 -> 10.15055395 | I27: =C27/B27 -> 0.7854523227 | J27: 3712.365 | K27: =J27*$B$29 -> 0 | L27: 199.6775688
A28: Total | B28: =SUM(B27,B24,B15,B12) -> 90386 | C28: =SUM(C27,C24,C15,C12) -> 71018 | D28: =SUMPRODUCT(D7:D27,B7:B27)/SUM(B7:B27) -> 1602.305558 | E28: 113792536.1 | F28: =SUMPRODUCT(C7:C27,F7:F27)/SUM(C7:C27) -> 2.764667229 | G28: 0.01 | H28: =SUMPRODUCT(H7:H27,B7:B27)/SUM(B7:B27) -> 9.591422659 | I28: =C28/B28 -> 0.7857190273 | J28: =SUM(J27,J24,J15,J12) -> 203997.7274 | K28: =SUM(K27,K24,K15,K12) -> 0 | L28: 579.5654324

Sheet Virgin Emissions Calculations
A1: Raw PC/Electronics Data
B3: PC material data (100 percent virgin ) Franklin & Associates (2002) | AQ3: Composite Process Energy Factors (GJ/tonne) | AW3: Composite Process Emission Factors (MTCO2E/tonne)
B4: Process Energy for Materials in PC's (GJ/Tonne) | V4: CO2 Emissions from Process Energy for Materials in PC's (Tonne eCO2 per Tonne Output) | AR4: PC & Monitor1 | AS4: Televisions2 | AT4: Microwaves3 | AU4: VCRs4 | AX4: PC & Monitor1 | AY4: Televisions2 | AZ4: Microwaves3 | BA4: VCRs4
B5: Material Type (Virgin inputs) | C5: Delivered Electricity | D5: Coal | E5: Natural Gas | F5: Kerosene & Stove Oil | G5: Nat Gas feedstock (other fuels) | H5: Oils feedstock | I5: Diesel | J5: LPG | K5: Distillate (Light Fuel Oil) | L5: Residual (Heavy Fuel Oil) | M5: Gasoline | N5: Oil/ Lubricants | O5: Petroleum (Non-specified) | P5: Biomass | Q5: Hydro | R5: Nuclear | S5: Other | T5: Total | V5: Material Type (Virgin inputs) | W5: Delivered Electricity | X5: Coal | Y5: Natural Gas | Z5: Kerosene & Stove Oil | AA5: Nat Gas feedstock (other fuels) | AB5: Oils feedstock | AC5: Diesel | AD5: LPG | AE5: Distillate (Light Fuel Oil) | AF5: Residual (Heavy Fuel Oil) | AG5: Gasoline | AH5: Oil/ Lubricants | AI5: Petroleum (Non-specified) | AJ5: Biomass | AK5: Hydro | AL5: Nuclear | AM5: Other | AN5: Total | AR5: Average | AS5: "B&O 28"" | AT5: Average | AU5: Average | AX5: Average | AY5: "B&O 28"" | AZ5: Average | BA5: Average
B6: Copper | C6: ='[3]Energy Data Conversion'!C3 -> 22.24431713 | D6: ='[3]Energy Data Conversion'!D3 -> 3.206857924 | E6: ='[3]Energy Data Conversion'!E3 -> 41.93583439 | F6: ='[3]Energy Data Conversion'!F3 -> 0 | G6: ='[3]Energy Data Conversion'!G3 -> 0 | H6: ='[3]Energy Data Conversion'!H3 -> 0 | I6: ='[3]Energy Data Conversion'!I3 -> 15.42040539 | J6: ='[3]Energy Data Conversion'!J3 -> 0.02366026825 | K6: ='[3]Energy Data Conversion'!K3 -> 1.099494145 | L6: ='[3]Energy Data Conversion'!L3 -> 8.704328652 | M6: ='[3]Energy Data Conversion'!M3 -> 0.3982142258 | N6: ='[3]Energy Data Conversion'!N3 -> 0 | O6: ='[3]Energy Data Conversion'!O3 -> 0 | P6: ='[3]Energy Data Conversion'!P3 -> 0 | Q6: ='[3]Energy Data Conversion'!Q3 -> 0.07048039394 | R6: ='[3]Energy Data Conversion'!R3 -> 0.4228823636 | S6: ='[3]Energy Data Conversion'!S3 -> 0.05990833485 | T6: ='[3]Energy Data Conversion'!T3 -> 93.58638322 | V6: Copper | W6: =C6*'[2]Electricity Coefficients'!$C$20 -> 1.425937682 | X6: =D6*'[2]Carbon Coeffficients'!$I$5 -> 0.2989720969 | Y6: =E6*'[2]Carbon Coeffficients'!$I$6 -> 2.52455383 | Z6: =F6*'[2]Carbon Coeffficients'!$I$7 -> 0 | AA6: =G6*'[2]Carbon Coeffficients'!$I$8 -> 0 | AB6: =H6*'[2]Carbon Coeffficients'!$I$9 -> 0 | AC6: =I6*'[2]Carbon Coeffficients'!$I$10 -> 1.39253557 | AD6: =J6*'[2]Carbon Coeffficients'!$I$11 -> 0.001854149655 | AE6: =K6*'[2]Carbon Coeffficients'!$I$12 -> 0.1042594252 | AF6: =L6*'[2]Carbon Coeffficients'!$I$13 -> 0.8277524132 | AG6: =M6*'[2]Carbon Coeffficients'!$I$14 -> 0.03547675334 | AH6: =N6*'[2]Carbon Coeffficients'!$I$15 -> 0 | AI6: =O6*'[2]Carbon Coeffficients'!$I$16 -> 0 | AJ6: =P6*'[2]Carbon Coeffficients'!$I$17 -> 0 | AK6: =Q6*'[2]Carbon Coeffficients'!$I$18 -> 0 | AL6: =R6*'[2]Carbon Coeffficients'!$I$19 -> 0 | AM6: =S6*'[2]Carbon Coeffficients'!$I$20 -> 0 | AN6: =SUM(W6:AM6) -> 6.61134192 | AQ6: Copper | AR6: =$T6*J151 -> 6.484600494 | AS6: 1.972546719 | AT6: 8.233406149 | AU6: 10.29450215 | AW6: Copper | AX6: =$AN6*J151 -> 0.4580998816 | AY6: 0.1393491271 | AZ6: 0.5816429842 | BA6: 0.7272476112
B7: Lead | C7: ='[3]Energy Data Conversion'!C4 -> 8.233403327 | D7: ='[3]Energy Data Conversion'!D4 -> 4.333558383 | E7: ='[3]Energy Data Conversion'!E4 -> 2.616584625 | F7: ='[3]Energy Data Conversion'!F4 -> 0 | G7: ='[3]Energy Data Conversion'!G4 -> 0 | H7: ='[3]Energy Data Conversion'!H4 -> 0 | I7: ='[3]Energy Data Conversion'!I4 -> 0 | J7: ='[3]Energy Data Conversion'!J4 -> 0.01191999663 | K7: ='[3]Energy Data Conversion'!K4 -> 0.2229911564 | L7: ='[3]Energy Data Conversion'!L4 -> 0.2325853 | M7: ='[3]Energy Data Conversion'!M4 -> 0.0453541335 | N7: ='[3]Energy Data Conversion'!N4 -> 0 | O7: ='[3]Energy Data Conversion'!O4 -> 0 | P7: ='[3]Energy Data Conversion'!P4 -> 0 | Q7: ='[3]Energy Data Conversion'!Q4 -> 0.01657170262 | R7: ='[3]Energy Data Conversion'!R4 -> 0.1017560687 | S7: ='[3]Energy Data Conversion'!S4 -> 0.01482731287 | T7: ='[3]Energy Data Conversion'!T4 -> 15.82955201 | V7: Lead | W7: =C7*'[2]Electricity Coefficients'!$C$20 -> 0.5277896367 | X7: =D7*'[2]Carbon Coeffficients'!$I$5 -> 0.4040132328 | Y7: =E7*'[2]Carbon Coeffficients'!$I$6 -> 0.1575194301 | Z7: =F7*'[2]Carbon Coeffficients'!$I$7 -> 0 | AA7: =G7*'[2]Carbon Coeffficients'!$I$8 -> 0 | AB7: =H7*'[2]Carbon Coeffficients'!$I$9 -> 0 | AC7: =I7*'[2]Carbon Coeffficients'!$I$10 -> 0 | AD7: =J7*'[2]Carbon Coeffficients'!$I$11 -> 0.0009341169511 | AE7: =K7*'[2]Carbon Coeffficients'!$I$12 -> 0.02114511467 | AF7: =L7*'[2]Carbon Coeffficients'!$I$13 -> 0.02211808068 | AG7: =M7*'[2]Carbon Coeffficients'!$I$14 -> 0.004040582438 | AH7: =N7*'[2]Carbon Coeffficients'!$I$15 -> 0 | AI7: =O7*'[2]Carbon Coeffficients'!$I$16 -> 0 | AJ7: =P7*'[2]Carbon Coeffficients'!$I$17 -> 0 | AK7: =Q7*'[2]Carbon Coeffficients'!$I$18 -> 0 | AL7: =R7*'[2]Carbon Coeffficients'!$I$19 -> 0 | AM7: =S7*'[2]Carbon Coeffficients'!$I$20 -> 0 | AN7: =SUM(W7:AM7) -> 1.137560194 | AQ7: Lead | AR7: 0.9971034808 | AS7: 0.7414310073 | AT7: 0 | AU7: 0 | AW7: Lead | AX7: 0.07165491664 | AY7: 0.05328150793 | AZ7: 0 | BA7: 0
B8: CRT Glass | C8: ='[3]Energy Data Conversion'!C5 -> 0.6541932725 | D8: ='[3]Energy Data Conversion'!D5 -> 0.2418451363 | E8: ='[3]Energy Data Conversion'!E5 -> 6.765127461 | F8: ='[3]Energy Data Conversion'!F5 -> 0 | G8: ='[3]Energy Data Conversion'!G5 -> 0 | H8: ='[3]Energy Data Conversion'!H5 -> 0 | I8: ='[3]Energy Data Conversion'!I5 -> 0 | J8: ='[3]Energy Data Conversion'!J5 -> 0.001307271007 | K8: ='[3]Energy Data Conversion'!K5 -> 0.7418762965 | L8: ='[3]Energy Data Conversion'!L5 -> 0.7353399415 | M8: ='[3]Energy Data Conversion'!M5 -> 0.04597236375 | N8: ='[3]Energy Data Conversion'!N5 -> 0 | O8: ='[3]Energy Data Conversion'!O5 -> 0 | P8: ='[3]Energy Data Conversion'!P5 -> 0 | Q8: ='[3]Energy Data Conversion'!Q5 -> 0.004139691522 | R8: ='[3]Energy Data Conversion'!R5 -> 0.02614542014 | S8: ='[3]Energy Data Conversion'!S5 -> 0.00370393452 | T8: ='[3]Energy Data Conversion'!T5 -> 9.219650789 | V8: CRT Glass | W8: =C8*'[2]Electricity Coefficients'!$C$20 -> 0.04193605194 | X8: =D8*'[2]Carbon Coeffficients'!$I$5 -> 0.02254697565 | Y8: =E8*'[2]Carbon Coeffficients'!$I$6 -> 0.407263351 | Z8: =F8*'[2]Carbon Coeffficients'!$I$7 -> 0 | AA8: =G8*'[2]Carbon Coeffficients'!$I$8 -> 0 | AB8: =H8*'[2]Carbon Coeffficients'!$I$9 -> 0 | AC8: =I8*'[2]Carbon Coeffficients'!$I$10 -> 0 | AD8: =J8*'[2]Carbon Coeffficients'!$I$11 -> 0.0001024449961 | AE8: =K8*'[2]Carbon Coeffficients'!$I$12 -> 0.07034834752 | AF8: =L8*'[2]Carbon Coeffficients'!$I$13 -> 0.06992835811 | AG8: =M8*'[2]Carbon Coeffficients'!$I$14 -> 0.004095660335 | AH8: =N8*'[2]Carbon Coeffficients'!$I$15 -> 0 | AI8: =O8*'[2]Carbon Coeffficients'!$I$16 -> 0 | AJ8: =P8*'[2]Carbon Coeffficients'!$I$17 -> 0 | AK8: =Q8*'[2]Carbon Coeffficients'!$I$18 -> 0 | AL8: =R8*'[2]Carbon Coeffficients'!$I$19 -> 0 | AM8: =S8*'[2]Carbon Coeffficients'!$I$20 -> 0 | AN8: 0.6162211895 | AQ8: CRT Glass | AR8: 2.284629466 | AS8: 5.052454999 | AT8: 0.5407419818 | AU8: 0 | AW8: CRT Glass | AX8: 0.1526996108 | AY8: 0.3376949844 | AZ8: 0.03614200525 | BA8: 0
B9: ABS Resin | C9: ='[3]Energy Data Conversion'!C6 -> 2.598977918 | D9: ='[3]Energy Data Conversion'!D6 -> 0.2471218812 | E9: ='[3]Energy Data Conversion'!E6 -> 53.20388738 | F9: ='[3]Energy Data Conversion'!F6 -> 0 | G9: ='[3]Energy Data Conversion'!G6 -> 0 | H9: ='[3]Energy Data Conversion'!H6 -> 0 | I9: ='[3]Energy Data Conversion'!I6 -> 0 | J9: ='[3]Energy Data Conversion'!J6 -> 0.02918945515 | K9: ='[3]Energy Data Conversion'!K6 -> 0.3546925825 | L9: ='[3]Energy Data Conversion'!L6 -> 1.875218981 | M9: ='[3]Energy Data Conversion'!M6 -> 0.3285267362 | N9: ='[3]Energy Data Conversion'!N6 -> 0 | O9: ='[3]Energy Data Conversion'!O6 -> 33.43413687 | P9: ='[3]Energy Data Conversion'!P6 -> 0 | Q9: ='[3]Energy Data Conversion'!Q6 -> 0.0151180445 | R9: ='[3]Energy Data Conversion'!R6 -> 0.09303412 | S9: ='[3]Energy Data Conversion'!S6 -> 0.01337365475 | T9: ='[3]Energy Data Conversion'!T6 -> 92.19327762 | V9: ABS Resin | W9: =C9*'[2]Electricity Coefficients'!$C$20 -> 0.1666034757 | X9: =D9*'[2]Carbon Coeffficients'!$I$5 -> 0.02303892121 | Y9: =E9*'[2]Carbon Coeffficients'!$I$6 -> 3.202895079 | Z9: =F9*'[2]Carbon Coeffficients'!$I$7 -> 0 | AA9: =G9*'[2]Carbon Coeffficients'!$I$8 -> 0 | AB9: =H9*'[2]Carbon Coeffficients'!$I$9 -> 0 | AC9: =I9*'[2]Carbon Coeffficients'!$I$10 -> 0 | AD9: =J9*'[2]Carbon Coeffficients'!$I$11 -> 0.002287447363 | AE9: =K9*'[2]Carbon Coeffficients'!$I$12 -> 0.03363368957 | AF9: =L9*'[2]Carbon Coeffficients'!$I$13 -> 0.1783270255 | AG9: =M9*'[2]Carbon Coeffficients'!$I$14 -> 0.02926832151 | AH9: =N9*'[2]Carbon Coeffficients'!$I$15 -> 0 | AI9: =O9*'[2]Carbon Coeffficients'!$I$16 -> 3.050139242 | AJ9: =P9*'[2]Carbon Coeffficients'!$I$17 -> 0 | AK9: =Q9*'[2]Carbon Coeffficients'!$I$18 -> 0 | AL9: =R9*'[2]Carbon Coeffficients'!$I$19 -> 0 | AM9: =S9*'[2]Carbon Coeffficients'!$I$20 -> 0 | AN9: 6.686193203 | AQ9: ABS Resin | AR9: 10.59807823 | AS9: 14.03410549 | AT9: 4.055422769 | AU9: 10.60222693 | AW9: ABS Resin | AX9: 0.7686113396 | AY9: 1.017804586 | AZ9: 0.2941140705 | BA9: 0.7689122183
B10: PPO/HIPS Resin | C10: ='[3]Energy Data Conversion'!C7 -> 1.632081769 | D10: ='[3]Energy Data Conversion'!D7 -> 0.1755360755 | E10: ='[3]Energy Data Conversion'!E7 -> 51.51983815 | F10: ='[3]Energy Data Conversion'!F7 -> 0 | G10: ='[3]Energy Data Conversion'!G7 -> 0 | H10: ='[3]Energy Data Conversion'!H7 -> 0 | I10: ='[3]Energy Data Conversion'!I7 -> 0 | J10: ='[3]Energy Data Conversion'!J7 -> 0.01180480108 | K10: ='[3]Energy Data Conversion'!K7 -> 0.2194200943 | L10: ='[3]Energy Data Conversion'!L7 -> 0.776747134 | M10: ='[3]Energy Data Conversion'!M7 -> 0.2984113283 | N10: ='[3]Energy Data Conversion'!N7 -> 0 | O10: ='[3]Energy Data Conversion'!O7 -> 12.72636547 | P10: ='[3]Energy Data Conversion'!P7 -> 0 | Q10: ='[3]Energy Data Conversion'!Q7 -> 0.01053216453 | R10: ='[3]Energy Data Conversion'!R7 -> 0.0658260283 | S10: ='[3]Energy Data Conversion'!S7 -> 0.009654484151 | T10: ='[3]Energy Data Conversion'!T7 -> 67.4462175 | V10: PPO/HIPS Resin | W10: =C10*'[2]Electricity Coefficients'!$C$20 -> 0.1046220876 | X10: =D10*'[2]Carbon Coeffficients'!$I$5 -> 0.01636504947 | Y10: =E10*'[2]Carbon Coeffficients'!$I$6 -> 3.10151465 | Z10: =F10*'[2]Carbon Coeffficients'!$I$7 -> 0 | AA10: =G10*'[2]Carbon Coeffficients'!$I$8 -> 0 | AB10: =H10*'[2]Carbon Coeffficients'!$I$9 -> 0 | AC10: =I10*'[2]Carbon Coeffficients'!$I$10 -> 0 | AD10: =J10*'[2]Carbon Coeffficients'!$I$11 -> 0.0009250895898 | AE10: =K10*'[2]Carbon Coeffficients'!$I$12 -> 0.02080648906 | AF10: =L10*'[2]Carbon Coeffficients'!$I$13 -> 0.07386604301 | AG10: =M10*'[2]Carbon Coeffficients'!$I$14 -> 0.02658535131 | AH10: =N10*'[2]Carbon Coeffficients'!$I$15 -> 0 | AI10: =O10*'[2]Carbon Coeffficients'!$I$16 -> 1.161004601 | AJ10: =P10*'[2]Carbon Coeffficients'!$I$17 -> 0 | AK10: =Q10*'[2]Carbon Coeffficients'!$I$18 -> 0 | AL10: =R10*'[2]Carbon Coeffficients'!$I$19 -> 0 | AM10: =S10*'[2]Carbon Coeffficients'!$I$20 -> 0 | AN10: 4.50568936 | AQ10: PPO/HIPS Resin | AR10: 7.753279933 | AS10: 10.26698861 | AT10: 2.966842412 | AU10: 7.756315013 | AW10: PPO/HIPS Resin | AX10: 0.5179515204 | AY10: 0.6858777715 | AZ10: 0.1981974792 | BA10: 0.5181542764
B11: CRT , Plastic Housing, PWB, and Monitor Assembly | C11: ='[3]Energy Data Conversion'!C8 -> 2.718990789 | D11: ='[3]Energy Data Conversion'!D8 -> 0.2135209311 | E11: ='[3]Energy Data Conversion'!E8 -> 25.69876921 | F11: ='[3]Energy Data Conversion'!F8 -> 0 | G11: ='[3]Energy Data Conversion'!G8 -> 0 | H11: ='[3]Energy Data Conversion'!H8 -> 0 | I11: ='[3]Energy Data Conversion'!I8 -> 0 | J11: ='[3]Energy Data Conversion'!J8 -> 0.0006100598033 | K11: ='[3]Energy Data Conversion'!K8 -> 0.148702077 | L11: ='[3]Energy Data Conversion'!L8 -> 0.09532184426 | M11: ='[3]Energy Data Conversion'!M8 -> 0.1601406984 | N11: ='[3]Energy Data Conversion'!N8 -> 0 | O11: ='[3]Energy Data Conversion'!O8 -> 0 | P11: ='[3]Energy Data Conversion'!P8 -> 0 | Q11: ='[3]Energy Data Conversion'!Q8 -> 0.01296377082 | R11: ='[3]Energy Data Conversion'!R8 -> 0.08007034918 | S11: ='[3]Energy Data Conversion'!S8 -> 0.01143862131 | T11: ='[3]Energy Data Conversion'!T8 -> 29.14052835 | V11: CRT , Plastic Housing, PWB, and Monitor Assembly | W11: =C11*'[2]Electricity Coefficients'!$C$20 -> 0.1742967159 | X11: =D11*'[2]Carbon Coeffficients'!$I$5 -> 0.01990633886 | Y11: =E11*'[2]Carbon Coeffficients'!$I$6 -> 1.547076079 | Z11: =F11*'[2]Carbon Coeffficients'!$I$7 -> 0 | AA11: =G11*'[2]Carbon Coeffficients'!$I$8 -> 0 | AB11: =H11*'[2]Carbon Coeffficients'!$I$9 -> 0 | AC11: =I11*'[2]Carbon Coeffficients'!$I$10 -> 0 | AD11: =J11*'[2]Carbon Coeffficients'!$I$11 -> 4.780766483e-05 | AE11: =K11*'[2]Carbon Coeffficients'!$I$12 -> 0.01410065996 | AF11: =L11*'[2]Carbon Coeffficients'!$I$13 -> 0.009064787162 | AG11: =M11*'[2]Carbon Coeffficients'!$I$14 -> 0.01426687368 | AH11: =N11*'[2]Carbon Coeffficients'!$I$15 -> 0 | AI11: =O11*'[2]Carbon Coeffficients'!$I$16 -> 0 | AJ11: =P11*'[2]Carbon Coeffficients'!$I$17 -> 0 | AK11: =Q11*'[2]Carbon Coeffficients'!$I$18 -> 0 | AL11: =R11*'[2]Carbon Coeffficients'!$I$19 -> 0 | AM11: =S11*'[2]Carbon Coeffficients'!$I$20 -> 0 | AN11: 1.778759262 | AQ11: CRT , Plastic Housing, PWB, and Monitor Assembly | AR11: 29.14052835 | AS11: 7.285132088 | AT11: 7.285132088 | AU11: 7.285132088 | AW11: CRT , Plastic Housing, PWB, and Monitor Assembly | AX11: 1.778759262 | AY11: 0.4446898155 | AZ11: 0.4446898155 | BA11: 0.4446898155
B12: Fabrication and Packaging of Silicon Wafers | C12: ='[3]Energy Data Conversion'!C9 -> 308234.8131 | D12: ='[3]Energy Data Conversion'!D9 -> 9815.09966 | E12: ='[3]Energy Data Conversion'!E9 -> 21956.05232 | F12: ='[3]Energy Data Conversion'!F9 -> 0 | G12: ='[3]Energy Data Conversion'!G9 -> 0 | H12: ='[3]Energy Data Conversion'!H9 -> 0 | I12: ='[3]Energy Data Conversion'!I9 -> 0 | J12: ='[3]Energy Data Conversion'!J9 -> 34.887795 | K12: ='[3]Energy Data Conversion'!K9 -> 6977.559 | L12: ='[3]Energy Data Conversion'!L9 -> 2674.73095 | M12: ='[3]Energy Data Conversion'!M9 -> 1209.44356 | N12: ='[3]Energy Data Conversion'!N9 -> 0 | O12: ='[3]Energy Data Conversion'!O9 -> 0 | P12: ='[3]Energy Data Conversion'!P9 -> 0 | Q12: ='[3]Energy Data Conversion'!Q9 -> 581.46325 | R12: ='[3]Energy Data Conversion'!R9 -> 3651.58921 | S12: ='[3]Energy Data Conversion'!S9 -> 534.94619 | T12: ='[3]Energy Data Conversion'!T9 -> 355670.5851 | V12: Fabrication and Packaging of Silicon Wafers | W12: =C12*'[2]Electricity Coefficients'!$C$20 -> 19758.91786 | X12: =D12*'[2]Carbon Coeffficients'!$I$5 -> 915.0517411 | Y12: =E12*'[2]Carbon Coeffficients'!$I$6 -> 1321.76304 | Z12: =F12*'[2]Carbon Coeffficients'!$I$7 -> 0 | AA12: =G12*'[2]Carbon Coeffficients'!$I$8 -> 0 | AB12: =H12*'[2]Carbon Coeffficients'!$I$9 -> 0 | AC12: =I12*'[2]Carbon Coeffficients'!$I$10 -> 0 | AD12: =J12*'[2]Carbon Coeffficients'!$I$11 -> 2.734000832 | AE12: =K12*'[2]Carbon Coeffficients'!$I$12 -> 661.6463522 | AF12: =L12*'[2]Carbon Coeffficients'!$I$13 -> 254.3579278 | AG12: =M12*'[2]Carbon Coeffficients'!$I$14 -> 107.748865 | AH12: =N12*'[2]Carbon Coeffficients'!$I$15 -> 0 | AI12: =O12*'[2]Carbon Coeffficients'!$I$16 -> 0 | AJ12: =P12*'[2]Carbon Coeffficients'!$I$17 -> 0 | AK12: =Q12*'[2]Carbon Coeffficients'!$I$18 -> 0 | AL12: =R12*'[2]Carbon Coeffficients'!$I$19 -> 0 | AM12: =S12*'[2]Carbon Coeffficients'!$I$20 -> 0 | AN12: 23022.21979 | AQ12: Fabrication and Packaging of Silicon Wafers | AR12: 355.6705851 | AS12: 0 | AT12: 0 | AU12: 0 | AW12: Fabrication and Packaging of Silicon Wafers | AX12: 23.02221979 | AY12: 0 | AZ12: 0 | BA12: 0
B13: PWB, Steel Housing, and CPU Assembly | C13: ='[3]Energy Data Conversion'!C10 -> 0.5735123508 | D13: ='[3]Energy Data Conversion'!D10 -> 0.01824198431 | E13: ='[3]Energy Data Conversion'!E10 -> 0.04104446471 | F13: ='[3]Energy Data Conversion'!F10 -> 0 | G13: ='[3]Energy Data Conversion'!G10 -> 0 | H13: ='[3]Energy Data Conversion'!H10 -> 0 | I13: ='[3]Energy Data Conversion'!I10 -> 0 | J13: ='[3]Energy Data Conversion'!J10 -> 6.449844454e-05 | K13: ='[3]Energy Data Conversion'!K10 -> 0.0130299888 | L13: ='[3]Energy Data Conversion'!L10 -> 0.005016545686 | M13: ='[3]Energy Data Conversion'!M10 -> 0.002280248039 | N13: ='[3]Energy Data Conversion'!N10 -> 0 | O13: ='[3]Energy Data Conversion'!O10 -> 0 | P13: ='[3]Energy Data Conversion'!P10 -> 0 | Q13: ='[3]Energy Data Conversion'!Q10 -> 0.001107549048 | R13: ='[3]Energy Data Conversion'!R10 -> 0.006514994398 | S13: ='[3]Energy Data Conversion'!S10 -> 0.0009772491597 | T13: ='[3]Energy Data Conversion'!T10 -> 0.6617898734 | V13: PWB, Steel Housing, and CPU Assembly | W13: =C13*'[2]Electricity Coefficients'!$C$20 -> 0.03676412575 | X13: =D13*'[2]Carbon Coeffficients'!$I$5 -> 0.001700681612 | Y13: =E13*'[2]Carbon Coeffficients'!$I$6 -> 0.002470893022 | Z13: =F13*'[2]Carbon Coeffficients'!$I$7 -> 0 | AA13: =G13*'[2]Carbon Coeffficients'!$I$8 -> 0 | AB13: =H13*'[2]Carbon Coeffficients'!$I$9 -> 0 | AC13: =I13*'[2]Carbon Coeffficients'!$I$10 -> 0 | AD13: =J13*'[2]Carbon Coeffficients'!$I$11 -> 5.05445532e-06 | AE13: =K13*'[2]Carbon Coeffficients'!$I$12 -> 0.001235567418 | AF13: =L13*'[2]Carbon Coeffficients'!$I$13 -> 0.000477056642 | AG13: =M13*'[2]Carbon Coeffficients'!$I$14 -> 0.0002031464273 | AH13: =N13*'[2]Carbon Coeffficients'!$I$15 -> 0 | AI13: =O13*'[2]Carbon Coeffficients'!$I$16 -> 0 | AJ13: =P13*'[2]Carbon Coeffficients'!$I$17 -> 0 | AK13: =Q13*'[2]Carbon Coeffficients'!$I$18 -> 0 | AL13: =R13*'[2]Carbon Coeffficients'!$I$19 -> 0 | AM13: =S13*'[2]Carbon Coeffficients'!$I$20 -> 0 | AN13: 0.04285652533 | AQ13: PWB, Steel Housing, and CPU Assembly | AR13: 0.6617898734 | AS13: 0.1654474684 | AT13: 0.1654474684 | AU13: 0.1654474684 | AW13: PWB, Steel Housing, and CPU Assembly | AX13: 0.04285652533 | AY13: 0.01071413133 | AZ13: 0.01071413133 | BA13: 0.01071413133
B14: Aluminum | C14: ='[3]Energy Data Conversion'!C11 -> 68.41503944 | D14: ='[3]Energy Data Conversion'!D11 -> 1.713786421 | E14: ='[3]Energy Data Conversion'!E11 -> 21.29991695 | F14: ='[3]Energy Data Conversion'!F11 -> 0 | G14: ='[3]Energy Data Conversion'!G11 -> 0 | H14: ='[3]Energy Data Conversion'!H11 -> 0 | I14: ='[3]Energy Data Conversion'!I11 -> 0 | J14: ='[3]Energy Data Conversion'!J11 -> 0.02521714305 | K14: ='[3]Energy Data Conversion'!K11 -> 1.468959789 | L14: ='[3]Energy Data Conversion'!L11 -> 2.7910236 | M14: ='[3]Energy Data Conversion'!M11 -> 0.2800816665 | N14: ='[3]Energy Data Conversion'!N11 -> 0 | O14: ='[3]Energy Data Conversion'!O11 -> 0 | P14: ='[3]Energy Data Conversion'!P11 -> 0 | Q14: ='[3]Energy Data Conversion'!Q11 -> 0.06365492421 | R14: ='[3]Energy Data Conversion'!R11 -> 0.3917226105 | S14: ='[3]Energy Data Conversion'!S11 -> 0.05631012526 | T14: ='[3]Energy Data Conversion'!T11 -> 96.50571267 | V14: Aluminum | W14: =C14*'[2]Electricity Coefficients'!$C$20 -> 4.38564071 | X14: =D14*'[2]Carbon Coeffficients'!$I$5 -> 0.1597745619 | Y14: =E14*'[2]Carbon Coeffficients'!$I$6 -> 1.282263431 | Z14: =F14*'[2]Carbon Coeffficients'!$I$7 -> 0 | AA14: =G14*'[2]Carbon Coeffficients'!$I$8 -> 0 | AB14: =H14*'[2]Carbon Coeffficients'!$I$9 -> 0 | AC14: =I14*'[2]Carbon Coeffficients'!$I$10 -> 0 | AD14: =J14*'[2]Carbon Coeffficients'!$I$11 -> 0.001976154988 | AE14: =K14*'[2]Carbon Coeffficients'!$I$12 -> 0.1392939689 | AF14: =L14*'[2]Carbon Coeffficients'!$I$13 -> 0.2654169681 | AG14: =M14*'[2]Carbon Coeffficients'!$I$14 -> 0.02495236874 | AH14: =N14*'[2]Carbon Coeffficients'!$I$15 -> 0 | AI14: =O14*'[2]Carbon Coeffficients'!$I$16 -> 0 | AJ14: =P14*'[2]Carbon Coeffficients'!$I$17 -> 0 | AK14: =Q14*'[2]Carbon Coeffficients'!$I$18 -> 0 | AL14: =R14*'[2]Carbon Coeffficients'!$I$19 -> 0 | AM14: =S14*'[2]Carbon Coeffficients'!$I$20 -> 0 | AN14: 6.259318164 | AQ14: Aluminum | AR14: ='[2]Energy Data'!$T42*J159 -> 50.24482428 | AS14: ='[2]Energy Data'!$T42*K159 -> 0.8302947904 | AT14: ='[2]Energy Data'!$T42*L159 -> 1.03969465 | AU14: ='[2]Energy Data'!$T42*M159 -> 0 | AW14: Aluminum | AX14: ='[2]Energy Data'!$T7*J159 -> 1.842308971 | AY14: ='[2]Energy Data'!$T7*K159 -> 0.03044412162 | AZ14: ='[2]Energy Data'!$T7*L159 -> 0.03812211124 | BA14: ='[2]Energy Data'!$T7*M159 -> 0
B15: Steel Sheet | C15: ='[3]Energy Data Conversion'!C12 -> 2.655444261 | D15: ='[3]Energy Data Conversion'!D12 -> 15.59785334 | E15: ='[3]Energy Data Conversion'!E12 -> 6.343235455 | F15: ='[3]Energy Data Conversion'!F12 -> 0 | G15: ='[3]Energy Data Conversion'!G12 -> 0 | H15: ='[3]Energy Data Conversion'!H12 -> 0 | I15: ='[3]Energy Data Conversion'!I12 -> 0 | J15: ='[3]Energy Data Conversion'!J12 -> 0.001406897094 | K15: ='[3]Energy Data Conversion'!K12 -> 1.146661794 | L15: ='[3]Energy Data Conversion'!L12 -> 0.1138529441 | M15: ='[3]Energy Data Conversion'!M12 -> 0.08701617867 | N15: ='[3]Energy Data Conversion'!N12 -> 0 | O15: ='[3]Energy Data Conversion'!O12 -> 0 | P15: ='[3]Energy Data Conversion'!P12 -> 0 | Q15: ='[3]Energy Data Conversion'!Q12 -> 0.007563088427 | R15: ='[3]Energy Data Conversion'!R12 -> 0.04716764825 | S15: ='[3]Energy Data Conversion'!S12 -> 0.006749853112 | T15: ='[3]Energy Data Conversion'!T12 -> 26.00695145 | V15: Steel Sheet | W15: =C15*'[2]Electricity Coefficients'!$C$20 -> 0.1702231636 | X15: =D15*'[2]Carbon Coeffficients'!$I$5 -> 1.454171975 | Y15: =E15*'[2]Carbon Coeffficients'!$I$6 -> 0.3818652852 | Z15: =F15*'[2]Carbon Coeffficients'!$I$7 -> 0 | AA15: =G15*'[2]Carbon Coeffficients'!$I$8 -> 0 | AB15: =H15*'[2]Carbon Coeffficients'!$I$9 -> 0 | AC15: =I15*'[2]Carbon Coeffficients'!$I$10 -> 0 | AD15: =J15*'[2]Carbon Coeffficients'!$I$11 -> 0.000110252248 | AE15: =K15*'[2]Carbon Coeffficients'!$I$12 -> 0.1087320928 | AF15: =L15*'[2]Carbon Coeffficients'!$I$13 -> 0.0108270325 | AG15: =M15*'[2]Carbon Coeffficients'!$I$14 -> 0.007752238137 | AH15: =N15*'[2]Carbon Coeffficients'!$I$15 -> 0 | AI15: =O15*'[2]Carbon Coeffficients'!$I$16 -> 0 | AJ15: =P15*'[2]Carbon Coeffficients'!$I$17 -> 0 | AK15: =Q15*'[2]Carbon Coeffficients'!$I$18 -> 0 | AL15: =R15*'[2]Carbon Coeffficients'!$I$19 -> 0 | AM15: =S15*'[2]Carbon Coeffficients'!$I$20 -> 0 | AN15: 2.133682039 | AQ15: Steel Sheet | AR15: ='[2]Energy Data'!$T43*J160 -> 5.092753114 | AS15: ='[2]Energy Data'!$T43*K160 -> 1.806123251 | AT15: ='[2]Energy Data'!$T43*L160 -> 18.96848012 | AU15: ='[2]Energy Data'!$T43*M160 -> 11.19505105 | AW15: Steel Sheet | AX15: ='[2]Energy Data'!$T8*J160 -> 0.4309000706 | AY15: ='[2]Energy Data'!$T8*K160 -> 0.152816879 | AZ15: ='[2]Energy Data'!$T8*L160 -> 1.604931407 | BA15: ='[2]Energy Data'!$T8*M160 -> 0.947218171
B16: Zinc | C16: ='[3]Energy Data Conversion'!C13 -> 16.58584381 | D16: ='[3]Energy Data Conversion'!D13 -> 0.5271933467 | E16: ='[3]Energy Data Conversion'!E13 -> 1.1629265 | F16: ='[3]Energy Data Conversion'!F13 -> 0 | G16: ='[3]Energy Data Conversion'!G13 -> 0 | H16: ='[3]Energy Data Conversion'!H13 -> 0 | I16: ='[3]Energy Data Conversion'!I13 -> 0 | J16: ='[3]Energy Data Conversion'!J13 -> 0.004109006967 | K16: ='[3]Energy Data Conversion'!K13 -> 0.37213648 | L16: ='[3]Energy Data Conversion'!L13 -> 0.1473040233 | M16: ='[3]Energy Data Conversion'!M13 -> 0.07365201167 | N16: ='[3]Energy Data Conversion'!N13 -> 0 | O16: ='[3]Energy Data Conversion'!O13 -> 0 | P16: ='[3]Energy Data Conversion'!P13 -> 0 | Q16: ='[3]Energy Data Conversion'!Q13 -> 0.03178665767 | R16: ='[3]Energy Data Conversion'!R13 -> 0.1938210833 | S16: ='[3]Energy Data Conversion'!S13 -> 0.02868552033 | T16: ='[3]Energy Data Conversion'!T13 -> 19.12745844 | V16: Zinc | W16: =C16*'[2]Electricity Coefficients'!$C$20 -> 1.063209967 | X16: =D16*'[2]Carbon Coeffficients'!$I$5 -> 0.04914969858 | Y16: =E16*'[2]Carbon Coeffficients'!$I$6 -> 0.07000863562 | Z16: =F16*'[2]Carbon Coeffficients'!$I$7 -> 0 | AA16: =G16*'[2]Carbon Coeffficients'!$I$8 -> 0 | AB16: =H16*'[2]Carbon Coeffficients'!$I$9 -> 0 | AC16: =I16*'[2]Carbon Coeffficients'!$I$10 -> 0 | AD16: =J16*'[2]Carbon Coeffficients'!$I$11 -> 0.0003220045425 | AE16: =K16*'[2]Carbon Coeffficients'!$I$12 -> 0.03528780545 | AF16: =L16*'[2]Carbon Coeffficients'!$I$13 -> 0.01400811776 | AG16: =M16*'[2]Carbon Coeffficients'!$I$14 -> 0.0065616296 | AH16: =N16*'[2]Carbon Coeffficients'!$I$15 -> 0 | AI16: =O16*'[2]Carbon Coeffficients'!$I$16 -> 0 | AJ16: =P16*'[2]Carbon Coeffficients'!$I$17 -> 0 | AK16: =Q16*'[2]Carbon Coeffficients'!$I$18 -> 0 | AL16: =R16*'[2]Carbon Coeffficients'!$I$19 -> 0 | AM16: =S16*'[2]Carbon Coeffficients'!$I$20 -> 0 | AN16: 1.238547858 | AQ16: Zinc | AR16: =$T16*J161 -> 0.4217604586 | AS16: =$T16*K161 -> 0 | AT16: =$T16*L161 -> 0 | AU16: =$T16*M161 -> 0 | AW16: Zinc | AX16: =$AN16*J161 -> 0.02730998028 | AY16: =$AN16*K161 -> 0 | AZ16: =$AN16*L161 -> 0 | BA16: =$AN16*M161 -> 0
AQ17: net EFs | AR17: =SUM(AR6:AR16) -> 469.3499328 | AS17: =SUM(AS6:AS16) -> 42.15452443 | AT17: =SUM(AT6:AT16) -> 43.25516764 | AU17: =SUM(AU6:AU16) -> 47.2986747 | AW17: net Efs | AX17: =SUM(AX6:AX16) -> 29.11337187 | AY17: =SUM(AY6:AY16) -> 2.872672924 | AZ17: =SUM(AZ6:AZ16) -> 3.208554005 | BA17: =SUM(BA6:BA16) -> 3.416936224
AQ18: Composite Transport Energy Factors (GJ/tonne) | AW18: Composite Transport Emission Factors (MTCO2E/tonne)
B19: Transportation Energy for Materials in PC's (GJ/Tonne) | V19: CO2 Emissions from Transportation Energy for Materials in PC's (Tonne eCO2 per Tonne Output) | AR19: PC & Monitor1 | AS19: Televisions2 | AT19: Microwaves3 | AU19: VCRs4 | AX19: PC & Monitor1 | AY19: Televisions2 | AZ19: Microwaves3 | BA19: VCRs4
B20: Material Type (Virgin inputs) | C20: Delivered Electricity | D20: Coal | E20: Natural Gas | F20: Kerosene & Stove Oil | G20: Nat Gas feedstock (other fuels) | H20: Oils feedstock | I20: Diesel | J20: LPG | K20: Distillate (Light Fuel Oil) | L20: Residual (Heavy Fuel Oil) | M20: Gasoline | N20: Oil/ Lubricants | O20: Petroleum (Non-specified) | P20: Biomass | Q20: Hydro | R20: Nuclear | S20: Other | T20: Total | V20: Material Type (Virgin inputs) | W20: Delivered Electricity | X20: Coal | Y20: Natural Gas | Z20: Kerosene & Stove Oil | AA20: Nat Gas feedstock (other fuels) | AB20: Oils feedstock | AC20: Diesel | AD20: LPG | AE20: Distillate (Light Fuel Oil) | AF20: Residual (Heavy Fuel Oil) | AG20: Gasoline | AH20: Oil/ Lubricants | AI20: Petroleum (Non-specified) | AJ20: Biomass | AK20: Hydro | AL20: Nuclear | AM20: Other | AN20: Total | AR20: Average | AS20: "B&O 28"" | AT20: Average | AU20: Average | AX20: Average | AY20: "B&O 28"" | AZ20: Average | BA20: Average
B21: Copper | C21: ='[3]Energy Data Conversion'!C17 -> 3.246467906e-05 | D21: ='[3]Energy Data Conversion'!D17 -> 0.004581225606 | E21: ='[3]Energy Data Conversion'!E17 -> 0.03541992197 | F21: ='[3]Energy Data Conversion'!F17 -> 0 | G21: ='[3]Energy Data Conversion'!G17 -> 0 | H21: ='[3]Energy Data Conversion'!H17 -> 0 | I21: ='[3]Energy Data Conversion'!I17 -> 0.4793549625 | J21: ='[3]Energy Data Conversion'!J17 -> 0.0004228823636 | K21: ='[3]Energy Data Conversion'!K17 -> 0.002149652015 | L21: ='[3]Energy Data Conversion'!L17 -> 0.02213092123 | M21: ='[3]Energy Data Conversion'!M17 -> 0.0005638431515 | N21: ='[3]Energy Data Conversion'!N17 -> 0 | O21: ='[3]Energy Data Conversion'!O17 -> 0 | P21: ='[3]Energy Data Conversion'!P17 -> 0 | Q21: ='[3]Energy Data Conversion'!Q17 -> 0.0002924936348 | R21: ='[3]Energy Data Conversion'!R17 -> 0.001797250045 | S21: ='[3]Energy Data Conversion'!S17 -> 0.0002607774576 | T21: ='[3]Energy Data Conversion'!T17 -> 0.5470063947 | V21: Copper | W21: =C21*'[2]Electricity Coefficients'!$C$20 -> 2.081098239e-06 | X21: =D21*'[2]Carbon Coeffficients'!$I$5 -> 0.0004271029956 | Y21: =E21*'[2]Carbon Coeffficients'!$I$6 -> 0.002132293323 | Z21: =F21*'[2]Carbon Coeffficients'!$I$7 -> 0 | AA21: =G21*'[2]Carbon Coeffficients'!$I$8 -> 0 | AB21: =H21*'[2]Carbon Coeffficients'!$I$9 -> 0 | AC21: =I21*'[2]Carbon Coeffficients'!$I$10 -> 0.04328802123 | AD21: =J21*'[2]Carbon Coeffficients'!$I$11 -> 3.313940403e-05 | AE21: =K21*'[2]Carbon Coeffficients'!$I$12 -> 0.0002038405428 | AF21: =L21*'[2]Carbon Coeffficients'!$I$13 -> 0.002104576261 | AG21: =M21*'[2]Carbon Coeffficients'!$I$14 -> 5.02325711e-05 | AH21: =N21*'[2]Carbon Coeffficients'!$I$15 -> 0 | AI21: =O21*'[2]Carbon Coeffficients'!$I$16 -> 0 | AJ21: =P21*'[2]Carbon Coeffficients'!$I$17 -> 0 | AK21: =Q21*'[2]Carbon Coeffficients'!$I$18 -> 0 | AL21: =R21*'[2]Carbon Coeffficients'!$I$19 -> 0 | AM21: =S21*'[2]Carbon Coeffficients'!$I$20 -> 0 | AN21: =SUM(W21:AM21) -> 0.04824128742 | AQ21: Copper | AR21: =$T21*J151 -> 0.03790207309 | AS21: 0.01152940879 | AT21: 0.04812372974 | AU21: 0.06017070342 | AW21: Copper | AX21: =$AN21*J151 -> 0.003342638805 | AY21: 0.001016795285 | AZ21: 0.004244101533 | BA21: 0.005306541616
B22: Lead | C22: ='[3]Energy Data Conversion'!C18 -> 3.174324174e-05 | D22: ='[3]Energy Data Conversion'!D18 -> 0.007268290625 | E22: ='[3]Energy Data Conversion'!E18 -> 0.05523900875 | F22: ='[3]Energy Data Conversion'!F18 -> 0 | G22: ='[3]Energy Data Conversion'!G18 -> 0 | H22: ='[3]Energy Data Conversion'!H18 -> 0 | I22: ='[3]Energy Data Conversion'!I18 -> 0.7224680881 | J22: ='[3]Energy Data Conversion'!J18 -> 0.0006686827375 | K22: ='[3]Energy Data Conversion'!K18 -> 0.003198047875 | L22: ='[3]Energy Data Conversion'!L18 -> 0.04157462238 | M22: ='[3]Energy Data Conversion'!M18 -> 0.000872194875 | N22: ='[3]Energy Data Conversion'!N18 -> 0 | O22: ='[3]Energy Data Conversion'!O18 -> 0 | P22: ='[3]Energy Data Conversion'!P18 -> 0 | Q22: ='[3]Energy Data Conversion'!Q18 -> 0.0004651706 | R22: ='[3]Energy Data Conversion'!R18 -> 0.0027910236 | S22: ='[3]Energy Data Conversion'!S18 -> 0.000407024275 | T22: ='[3]Energy Data Conversion'!T18 -> 0.8349838971 | V22: Lead | W22: =C22*'[2]Electricity Coefficients'!$C$20 -> 2.034851611e-06 | X22: =D22*'[2]Carbon Coeffficients'!$I$5 -> 0.0006776153296 | Y22: =E22*'[2]Carbon Coeffficients'!$I$6 -> 0.003325410192 | Z22: =F22*'[2]Carbon Coeffficients'!$I$7 -> 0 | AA22: =G22*'[2]Carbon Coeffficients'!$I$8 -> 0 | AB22: =H22*'[2]Carbon Coeffficients'!$I$9 -> 0 | AC22: =I22*'[2]Carbon Coeffficients'!$I$10 -> 0.06524228678 | AD22: =J22*'[2]Carbon Coeffficients'!$I$11 -> 5.240168262e-05 | AE22: =K22*'[2]Carbon Coeffficients'!$I$12 -> 0.0003032545781 | AF22: =L22*'[2]Carbon Coeffficients'!$I$13 -> 0.003953606921 | AG22: =M22*'[2]Carbon Coeffficients'!$I$14 -> 7.770350843e-05 | AH22: =N22*'[2]Carbon Coeffficients'!$I$15 -> 0 | AI22: =O22*'[2]Carbon Coeffficients'!$I$16 -> 0 | AJ22: =P22*'[2]Carbon Coeffficients'!$I$17 -> 0 | AK22: =Q22*'[2]Carbon Coeffficients'!$I$18 -> 0 | AL22: =R22*'[2]Carbon Coeffficients'!$I$19 -> 0 | AM22: =S22*'[2]Carbon Coeffficients'!$I$20 -> 0 | AN22: =SUM(W22:AM22) -> 0.07363431384 | AQ22: Lead | AR22: 0.05259563568 | AS22: 0.03910931602 | AT22: 0 | AU22: 0 | AW22: Lead | AX22: 0.004638225429 | AY22: 0.003448913997 | AZ22: 0 | BA22: 0
B23: CRT Glass | C23: ='[3]Energy Data Conversion'!C19 -> 0 | D23: ='[3]Energy Data Conversion'!D19 -> 0.004684387775 | E23: ='[3]Energy Data Conversion'!E19 -> 0.03594995269 | F23: ='[3]Energy Data Conversion'!F19 -> 0 | G23: ='[3]Energy Data Conversion'!G19 -> 0 | H23: ='[3]Energy Data Conversion'!H19 -> 0 | I23: ='[3]Energy Data Conversion'!I19 -> 0.2855297758 | J23: ='[3]Energy Data Conversion'!J19 -> 0.0004248630773 | K23: ='[3]Energy Data Conversion'!K19 -> 0.002178785012 | L23: ='[3]Energy Data Conversion'!L19 -> 0.2064616677 | M23: ='[3]Energy Data Conversion'!M19 -> 0.000555590178 | N23: ='[3]Energy Data Conversion'!N19 -> 0 | O23: ='[3]Energy Data Conversion'!O19 -> 0 | P23: ='[3]Energy Data Conversion'!P19 -> 0 | Q23: ='[3]Energy Data Conversion'!Q19 -> 0.0002941359766 | R23: ='[3]Energy Data Conversion'!R19 -> 0.00185196726 | S23: ='[3]Energy Data Conversion'!S19 -> 0.0002614542014 | T23: ='[3]Energy Data Conversion'!T19 -> 0.5381925797 | V23: CRT Glass | W23: =C23*'[2]Electricity Coefficients'!$C$20 -> 0 | X23: =D23*'[2]Carbon Coeffficients'!$I$5 -> 0.0004367206996 | Y23: =E23*'[2]Carbon Coeffficients'!$I$6 -> 0.002164201382 | Z23: =F23*'[2]Carbon Coeffficients'!$I$7 -> 0 | AA23: =G23*'[2]Carbon Coeffficients'!$I$8 -> 0 | AB23: =H23*'[2]Carbon Coeffficients'!$I$9 -> 0 | AC23: =I23*'[2]Carbon Coeffficients'!$I$10 -> 0.02578468976 | AD23: =J23*'[2]Carbon Coeffficients'!$I$11 -> 3.329462372e-05 | AE23: =K23*'[2]Carbon Coeffficients'!$I$12 -> 0.0002066030764 | AF23: =L23*'[2]Carbon Coeffficients'!$I$13 -> 0.01963381101 | AG23: =M23*'[2]Carbon Coeffficients'!$I$14 -> 4.949731684e-05 | AH23: =N23*'[2]Carbon Coeffficients'!$I$15 -> 0 | AI23: =O23*'[2]Carbon Coeffficients'!$I$16 -> 0 | AJ23: =P23*'[2]Carbon Coeffficients'!$I$17 -> 0 | AK23: =Q23*'[2]Carbon Coeffficients'!$I$18 -> 0 | AL23: =R23*'[2]Carbon Coeffficients'!$I$19 -> 0 | AM23: =S23*'[2]Carbon Coeffficients'!$I$20 -> 0 | AN23: 0.04830881787 | AQ23: CRT Glass | AR23: 0.1333641212 | AS23: 0.2949345753 | AT23: 0.03156554719 | AU23: 0 | AW23: CRT Glass | AX23: 0.01197092507 | AY23: 0.02647368473 | AZ23: 0.002833361752 | BA23: 0
B24: ABS Resin | C24: ='[3]Energy Data Conversion'!C20 -> 0.4513492185 | D24: ='[3]Energy Data Conversion'!D20 -> 0.01424584962 | E24: ='[3]Energy Data Conversion'!E20 -> 0.2761950437 | F24: ='[3]Energy Data Conversion'!F20 -> 0 | G24: ='[3]Energy Data Conversion'!G20 -> 0 | H24: ='[3]Energy Data Conversion'!H20 -> 0 | I24: ='[3]Energy Data Conversion'!I20 -> 0.2820096762 | J24: ='[3]Energy Data Conversion'!J20 -> 0.001104780175 | K24: ='[3]Energy Data Conversion'!K20 -> 0.006977559 | L24: ='[3]Energy Data Conversion'!L20 -> 0.95359973 | M24: ='[3]Energy Data Conversion'!M20 -> 0.002645657788 | N24: ='[3]Energy Data Conversion'!N20 -> 0 | O24: ='[3]Energy Data Conversion'!O20 -> 0 | P24: ='[3]Energy Data Conversion'!P20 -> 0 | Q24: ='[3]Energy Data Conversion'!Q20 -> 0.000872194875 | R24: ='[3]Energy Data Conversion'!R20 -> 0.005523900875 | S24: ='[3]Energy Data Conversion'!S20 -> 0.0007849753875 | T24: ='[3]Energy Data Conversion'!T20 -> 1.995308586 | V24: ABS Resin | W24: =C24*'[2]Electricity Coefficients'!$C$20 -> 0.02893304635 | X24: =D24*'[2]Carbon Coeffficients'!$I$5 -> 0.001328126046 | Y24: =E24*'[2]Carbon Coeffficients'!$I$6 -> 0.01662705096 | Z24: =F24*'[2]Carbon Coeffficients'!$I$7 -> 0 | AA24: =G24*'[2]Carbon Coeffficients'!$I$8 -> 0 | AB24: =H24*'[2]Carbon Coeffficients'!$I$9 -> 0 | AC24: =I24*'[2]Carbon Coeffficients'!$I$10 -> 0.02546680812 | AD24: =J24*'[2]Carbon Coeffficients'!$I$11 -> 8.657669303e-05 | AE24: =K24*'[2]Carbon Coeffficients'!$I$12 -> 0.0006616463522 | AF24: =L24*'[2]Carbon Coeffficients'!$I$13 -> 0.09068413077 | AG24: =M24*'[2]Carbon Coeffficients'!$I$14 -> 0.0002357006422 | AH24: =N24*'[2]Carbon Coeffficients'!$I$15 -> 0 | AI24: =O24*'[2]Carbon Coeffficients'!$I$16 -> 0 | AJ24: =P24*'[2]Carbon Coeffficients'!$I$17 -> 0 | AK24: =Q24*'[2]Carbon Coeffficients'!$I$18 -> 0 | AL24: =R24*'[2]Carbon Coeffficients'!$I$19 -> 0 | AM24: =S24*'[2]Carbon Coeffficients'!$I$20 -> 0 | AN24: 0.1640230859 | AQ24: ABS Resin | AR24: 0.2293706985 | AS24: 0.3037354991 | AT24: 0.08777017242 | AU24: 0.2294604874 | AW24: ABS Resin | AX24: 0.01885527384 | AY24: 0.02496838545 | AZ24: 0.007215091757 | BA24: 0.01886265488
B25: PPO/HIPS Resin | C25: ='[3]Energy Data Conversion'!C21 -> 0.008385007253 | D25: ='[3]Energy Data Conversion'!D21 -> 0.01316520566 | E25: ='[3]Energy Data Conversion'!E21 -> 0.3071881321 | F25: ='[3]Energy Data Conversion'!F21 -> 0 | G25: ='[3]Energy Data Conversion'!G21 -> 0 | H25: ='[3]Energy Data Conversion'!H21 -> 0 | I25: ='[3]Energy Data Conversion'!I21 -> 0.846522724 | J25: ='[3]Energy Data Conversion'!J21 -> 0.001097100472 | K25: ='[3]Energy Data Conversion'!K21 -> 0.006143762642 | L25: ='[3]Energy Data Conversion'!L21 -> 0.4182146998 | M25: ='[3]Energy Data Conversion'!M21 -> 0.002676925151 | N25: ='[3]Energy Data Conversion'!N21 -> 0 | O25: ='[3]Energy Data Conversion'!O21 -> 0 | P25: ='[3]Energy Data Conversion'!P21 -> 0 | Q25: ='[3]Energy Data Conversion'!Q21 -> 0.0008337963585 | R25: ='[3]Energy Data Conversion'!R21 -> 0.005266082264 | S25: ='[3]Energy Data Conversion'!S21 -> 0.0007460283208 | T25: ='[3]Energy Data Conversion'!T21 -> 1.610239464 | V25: PPO/HIPS Resin | W25: =C25*'[2]Electricity Coefficients'!$C$20 -> 0.0005375079728 | X25: =D25*'[2]Carbon Coeffficients'!$I$5 -> 0.00122737871 | Y25: =E25*'[2]Carbon Coeffficients'!$I$6 -> 0.01849284714 | Z25: =F25*'[2]Carbon Coeffficients'!$I$7 -> 0 | AA25: =G25*'[2]Carbon Coeffficients'!$I$8 -> 0 | AB25: =H25*'[2]Carbon Coeffficients'!$I$9 -> 0 | AC25: =I25*'[2]Carbon Coeffficients'!$I$10 -> 0.07644500737 | AD25: =J25*'[2]Carbon Coeffficients'!$I$11 -> 8.597486894e-05 | AE25: =K25*'[2]Carbon Coeffficients'!$I$12 -> 0.0005825816938 | AF25: =L25*'[2]Carbon Coeffficients'!$I$13 -> 0.03977081299 | AG25: =M25*'[2]Carbon Coeffficients'!$I$14 -> 0.0002384862397 | AH25: =N25*'[2]Carbon Coeffficients'!$I$15 -> 0 | AI25: =O25*'[2]Carbon Coeffficients'!$I$16 -> 0 | AJ25: =P25*'[2]Carbon Coeffficients'!$I$17 -> 0 | AK25: =Q25*'[2]Carbon Coeffficients'!$I$18 -> 0 | AL25: =R25*'[2]Carbon Coeffficients'!$I$19 -> 0 | AM25: =S25*'[2]Carbon Coeffficients'!$I$20 -> 0 | AN25: 0.137380597 | AQ25: PPO/HIPS Resin | AR25: 0.1851050776 | AS25: 0.2451184196 | AT25: 0.07083164798 | AU25: 0.1851775384 | AW25: PPO/HIPS Resin | AX25: 0.01579258653 | AY25: 0.02091273725 | AZ25: 0.006043134765 | BA25: 0.01579876865
B26: CRT , Plastic Housing, PWB, and Monitor Assembly | C26: ='[3]Energy Data Conversion'!C22 -> 0 | D26: ='[3]Energy Data Conversion'!D22 -> 0.04194161148 | E26: ='[3]Energy Data Conversion'!E22 -> 0.3355328918 | F26: ='[3]Energy Data Conversion'!F22 -> 0 | G26: ='[3]Energy Data Conversion'!G22 -> 0 | H26: ='[3]Energy Data Conversion'!H22 -> 0 | I26: ='[3]Energy Data Conversion'!I22 -> 0.4537319787 | J26: ='[3]Energy Data Conversion'!J22 -> 0.00381287377 | K26: ='[3]Energy Data Conversion'!K22 -> 0.01982694361 | L26: ='[3]Energy Data Conversion'!L22 -> 4.15603241 | M26: ='[3]Energy Data Conversion'!M22 -> 0.004956735902 | N26: ='[3]Energy Data Conversion'!N22 -> 0 | O26: ='[3]Energy Data Conversion'!O22 -> 0 | P26: ='[3]Energy Data Conversion'!P22 -> 0 | Q26: ='[3]Energy Data Conversion'!Q22 -> 0.000648188541 | R26: ='[3]Energy Data Conversion'!R22 -> 0.01677664459 | S26: ='[3]Energy Data Conversion'!S22 -> 0.002402110475 | T26: ='[3]Energy Data Conversion'!T22 -> 5.035662389 | V26: CRT , Plastic Housing, PWB, and Monitor Assembly | W26: =C26*'[2]Electricity Coefficients'!$C$20 -> 0 | X26: =D26*'[2]Carbon Coeffficients'!$I$5 -> 0.003910173705 | Y26: =E26*'[2]Carbon Coeffficients'!$I$6 -> 0.0201992129 | Z26: =F26*'[2]Carbon Coeffficients'!$I$7 -> 0 | AA26: =G26*'[2]Carbon Coeffficients'!$I$8 -> 0 | AB26: =H26*'[2]Carbon Coeffficients'!$I$9 -> 0 | AC26: =I26*'[2]Carbon Coeffficients'!$I$10 -> 0.04097414455 | AD26: =J26*'[2]Carbon Coeffficients'!$I$11 -> 0.0002987979052 | AE26: =K26*'[2]Carbon Coeffficients'!$I$12 -> 0.001880087995 | AF26: =L26*'[2]Carbon Coeffficients'!$I$13 -> 0.3952247203 | AG26: =M26*'[2]Carbon Coeffficients'!$I$14 -> 0.0004415937091 | AH26: =N26*'[2]Carbon Coeffficients'!$I$15 -> 0 | AI26: =O26*'[2]Carbon Coeffficients'!$I$16 -> 0 | AJ26: =P26*'[2]Carbon Coeffficients'!$I$17 -> 0 | AK26: =Q26*'[2]Carbon Coeffficients'!$I$18 -> 0 | AL26: =R26*'[2]Carbon Coeffficients'!$I$19 -> 0 | AM26: =S26*'[2]Carbon Coeffficients'!$I$20 -> 0 | AN26: 0.462928731 | AQ26: CRT , Plastic Housing, PWB, and Monitor Assembly | AR26: 5.035662389 | AS26: 1.258915597 | AT26: 1.258915597 | AU26: 1.258915597 | AW26: CRT , Plastic Housing, PWB, and Monitor Assembly | AX26: 0.462928731 | AY26: 0.1157321828 | AZ26: 0.1157321828 | BA26: 0.1157321828
